Workbook

Sheet Espelho

Sheet EspelhoII
A1: =IF(E1>0,E1,"") -> 
A2: =IF(E2>0,E2,"") -> 
A11: =IF(E11>0,E11,"") -> 
A66: =IF(E66>0,E66,"") -> 
A130: =IF(E130>0,E130,"") -> 
A194: =IF(E194>0,E194,"") -> 
A258: =IF(E258>0,E258,"") -> 
A322: =IF(E322>0,E322,"") -> 
A386: =IF(E386>0,E386,"") -> 
A450: =IF(E450>0,E450,"") -> 

Sheet EspelhoIII

Sheet Codificador
A1: MÊS/ANO | B1: MÊS | C1: ANO | D1: CODIGO | E1: DESCRICAO | F1: VALOR | G1: COD1 | H1: COD2
A2: =IF(F2="","",CONCATENATE(B2:B2,"/",C2)) ->  | B2: =IF(F2="","",IF(Importação!$H$9="","",Importação!$H$9)) ->  | C2: =IF(F2="","",IF(Importação!$J$9="","",Importação!$J$9)) ->  | E2: =IFERROR((VLOOKUP($D2,'Plano de Contas'!$B$2:$E$200,3,FALSE)),"") ->  | G2: =IF(H2="","",IF(H2="1.","FATURAMENTO",IF(H2="10","RECEITA NÃO OPERACIONAL","PAGAMENTOS"))) ->  | H2: =MID(D2,1,2) -> 
A3: =IF(F3="","",CONCATENATE(B3:B3,"/",C3)) ->  | B3: =IF(F3="","",IF(Importação!$H$9="","",Importação!$H$9)) ->  | C3: =IF(F3="","",IF(Importação!$J$9="","",Importação!$J$9)) ->  | E3: =IFERROR((VLOOKUP($D3,'Plano de Contas'!$B$2:$E$200,3,FALSE)),"") ->  | G3: =IF(H3="","",IF(H3="1.","FATURAMENTO",IF(H3="10","RECEITA NÃO OPERACIONAL","PAGAMENTOS"))) ->  | H3: =MID(D3,1,2) -> 
B4: =IF(F4="","",IF(Importação!$H$9="","",Importação!$H$9)) ->  | C4: =IF(F4="","",IF(Importação!$J$9="","",Importação!$J$9)) ->  | E4: =IFERROR((VLOOKUP($D4,'Plano de Contas'!$B$2:$E$200,3,FALSE)),"") -> 
B5: =IF(F5="","",IF(Importação!$H$9="","",Importação!$H$9)) ->  | C5: =IF(F5="","",IF(Importação!$J$9="","",Importação!$J$9)) ->  | E5: =IFERROR((VLOOKUP($D5,'Plano de Contas'!$B$2:$E$200,3,FALSE)),"") -> 
B6: =IF(F6="","",IF(Importação!$H$9="","",Importação!$H$9)) ->  | C6: =IF(F6="","",IF(Importação!$J$9="","",Importação!$J$9)) ->  | E6: =IFERROR((VLOOKUP($D6,'Plano de Contas'!$B$2:$E$200,3,FALSE)),"") -> 
B7: =IF(F7="","",IF(Importação!$H$9="","",Importação!$H$9)) ->  | C7: =IF(F7="","",IF(Importação!$J$9="","",Importação!$J$9)) ->  | E7: =IFERROR((VLOOKUP($D7,'Plano de Contas'!$B$2:$E$200,3,FALSE)),"") -> 
B8: =IF(F8="","",IF(Importação!$H$9="","",Importação!$H$9)) ->  | C8: =IF(F8="","",IF(Importação!$J$9="","",Importação!$J$9)) ->  | E8: =IFERROR((VLOOKUP($D8,'Plano de Contas'!$B$2:$E$200,3,FALSE)),"") -> 
B9: =IF(F9="","",IF(Importação!$H$9="","",Importação!$H$9)) ->  | C9: =IF(F9="","",IF(Importação!$J$9="","",Importação!$J$9)) ->  | E9: =IFERROR((VLOOKUP($D9,'Plano de Contas'!$B$2:$E$200,3,FALSE)),"") -> 
B10: =IF(F10="","",IF(Importação!$H$9="","",Importação!$H$9)) ->  | C10: =IF(F10="","",IF(Importação!$J$9="","",Importação!$J$9)) ->  | E10: =IFERROR((VLOOKUP($D10,'Plano de Contas'!$B$2:$E$200,3,FALSE)),"") -> 
B11: =IF(F11="","",IF(Importação!$H$9="","",Importação!$H$9)) ->  | C11: =IF(F11="","",IF(Importação!$J$9="","",Importação!$J$9)) ->  | E11: =IFERROR((VLOOKUP($D11,'Plano de Contas'!$B$2:$E$200,3,FALSE)),"") -> 
B12: =IF(F12="","",IF(Importação!$H$9="","",Importação!$H$9)) ->  | C12: =IF(F12="","",IF(Importação!$J$9="","",Importação!$J$9)) ->  | E12: =IFERROR((VLOOKUP($D12,'Plano de Contas'!$B$2:$E$200,3,FALSE)),"") -> 
B13: =IF(F13="","",IF(Importação!$H$9="","",Importação!$H$9)) ->  | C13: =IF(F13="","",IF(Importação!$J$9="","",Importação!$J$9)) ->  | E13: =IFERROR((VLOOKUP($D13,'Plano de Contas'!$B$2:$E$200,3,FALSE)),"") -> 
B14: =IF(F14="","",IF(Importação!$H$9="","",Importação!$H$9)) ->  | C14: =IF(F14="","",IF(Importação!$J$9="","",Importação!$J$9)) ->  | E14: =IFERROR((VLOOKUP($D14,'Plano de Contas'!$B$2:$E$200,3,FALSE)),"") -> 
B15: =IF(F15="","",IF(Importação!$H$9="","",Importação!$H$9)) ->  | C15: =IF(F15="","",IF(Importação!$J$9="","",Importação!$J$9)) ->  | E15: =IFERROR((VLOOKUP($D15,'Plano de Contas'!$B$2:$E$200,3,FALSE)),"") -> 
B16: =IF(F16="","",IF(Importação!$H$9="","",Importação!$H$9)) ->  | C16: =IF(F16="","",IF(Importação!$J$9="","",Importação!$J$9)) ->  | E16: =IFERROR((VLOOKUP($D16,'Plano de Contas'!$B$2:$E$200,3,FALSE)),"") -> 
B17: =IF(F17="","",IF(Importação!$H$9="","",Importação!$H$9)) ->  | C17: =IF(F17="","",IF(Importação!$J$9="","",Importação!$J$9)) ->  | E17: =IFERROR((VLOOKUP($D17,'Plano de Contas'!$B$2:$E$200,3,FALSE)),"") -> 
B18: =IF(F18="","",IF(Importação!$H$9="","",Importação!$H$9)) ->  | C18: =IF(F18="","",IF(Importação!$J$9="","",Importação!$J$9)) ->  | E18: =IFERROR((VLOOKUP($D18,'Plano de Contas'!$B$2:$E$200,3,FALSE)),"") -> 
B19: =IF(F19="","",IF(Importação!$H$9="","",Importação!$H$9)) ->  | C19: =IF(F19="","",IF(Importação!$J$9="","",Importação!$J$9)) ->  | E19: =IFERROR((VLOOKUP($D19,'Plano de Contas'!$B$2:$E$200,3,FALSE)),"") -> 
B20: =IF(F20="","",IF(Importação!$H$9="","",Importação!$H$9)) ->  | C20: =IF(F20="","",IF(Importação!$J$9="","",Importação!$J$9)) ->  | E20: =IFERROR((VLOOKUP($D20,'Plano de Contas'!$B$2:$E$200,3,FALSE)),"") -> 
B21: =IF(F21="","",IF(Importação!$H$9="","",Importação!$H$9)) ->  | C21: =IF(F21="","",IF(Importação!$J$9="","",Importação!$J$9)) ->  | E21: =IFERROR((VLOOKUP($D21,'Plano de Contas'!$B$2:$E$200,3,FALSE)),"") -> 
B22: =IF(F22="","",IF(Importação!$H$9="","",Importação!$H$9)) ->  | C22: =IF(F22="","",IF(Importação!$J$9="","",Importação!$J$9)) ->  | E22: =IFERROR((VLOOKUP($D22,'Plano de Contas'!$B$2:$E$200,3,FALSE)),"") -> 
B23: =IF(F23="","",IF(Importação!$H$9="","",Importação!$H$9)) ->  | C23: =IF(F23="","",IF(Importação!$J$9="","",Importação!$J$9)) ->  | E23: =IFERROR((VLOOKUP($D23,'Plano de Contas'!$B$2:$E$200,3,FALSE)),"") -> 
B24: =IF(F24="","",IF(Importação!$H$9="","",Importação!$H$9)) ->  | C24: =IF(F24="","",IF(Importação!$J$9="","",Importação!$J$9)) ->  | E24: =IFERROR((VLOOKUP($D24,'Plano de Contas'!$B$2:$E$200,3,FALSE)),"") -> 
B25: =IF(F25="","",IF(Importação!$H$9="","",Importação!$H$9)) ->  | C25: =IF(F25="","",IF(Importação!$J$9="","",Importação!$J$9)) ->  | E25: =IFERROR((VLOOKUP($D25,'Plano de Contas'!$B$2:$E$200,3,FALSE)),"") -> 
B26: =IF(F26="","",IF(Importação!$H$9="","",Importação!$H$9)) ->  | C26: =IF(F26="","",IF(Importação!$J$9="","",Importação!$J$9)) ->  | E26: =IFERROR((VLOOKUP($D26,'Plano de Contas'!$B$2:$E$200,3,FALSE)),"") -> 
B27: =IF(F27="","",IF(Importação!$H$9="","",Importação!$H$9)) ->  | C27: =IF(F27="","",IF(Importação!$J$9="","",Importação!$J$9)) ->  | E27: =IFERROR((VLOOKUP($D27,'Plano de Contas'!$B$2:$E$200,3,FALSE)),"") -> 
B28: =IF(F28="","",IF(Importação!$H$9="","",Importação!$H$9)) ->  | C28: =IF(F28="","",IF(Importação!$J$9="","",Importação!$J$9)) ->  | E28: =IFERROR((VLOOKUP($D28,'Plano de Contas'!$B$2:$E$200,3,FALSE)),"") -> 
B29: =IF(F29="","",IF(Importação!$H$9="","",Importação!$H$9)) ->  | C29: =IF(F29="","",IF(Importação!$J$9="","",Importação!$J$9)) ->  | E29: =IFERROR((VLOOKUP($D29,'Plano de Contas'!$B$2:$E$200,3,FALSE)),"") -> 
B30: =IF(F30="","",IF(Importação!$H$9="","",Importação!$H$9)) ->  | C30: =IF(F30="","",IF(Importação!$J$9="","",Importação!$J$9)) ->  | E30: =IFERROR((VLOOKUP($D30,'Plano de Contas'!$B$2:$E$200,3,FALSE)),"") -> 
B31: =IF(F31="","",IF(Importação!$H$9="","",Importação!$H$9)) ->  | C31: =IF(F31="","",IF(Importação!$J$9="","",Importação!$J$9)) ->  | E31: =IFERROR((VLOOKUP($D31,'Plano de Contas'!$B$2:$E$200,3,FALSE)),"") -> 
B32: =IF(F32="","",IF(Importação!$H$9="","",Importação!$H$9)) ->  | C32: =IF(F32="","",IF(Importação!$J$9="","",Importação!$J$9)) ->  | E32: =IFERROR((VLOOKUP($D32,'Plano de Contas'!$B$2:$E$200,3,FALSE)),"") -> 
B33: =IF(F33="","",IF(Importação!$H$9="","",Importação!$H$9)) ->  | C33: =IF(F33="","",IF(Importação!$J$9="","",Importação!$J$9)) ->  | E33: =IFERROR((VLOOKUP($D33,'Plano de Contas'!$B$2:$E$200,3,FALSE)),"") -> 
B34: =IF(F34="","",IF(Importação!$H$9="","",Importação!$H$9)) ->  | C34: =IF(F34="","",IF(Importação!$J$9="","",Importação!$J$9)) ->  | E34: =IFERROR((VLOOKUP($D34,'Plano de Contas'!$B$2:$E$200,3,FALSE)),"") -> 
B35: =IF(F35="","",IF(Importação!$H$9="","",Importação!$H$9)) ->  | C35: =IF(F35="","",IF(Importação!$J$9="","",Importação!$J$9)) ->  | E35: =IFERROR((VLOOKUP($D35,'Plano de Contas'!$B$2:$E$200,3,FALSE)),"") -> 
B36: =IF(F36="","",IF(Importação!$H$9="","",Importação!$H$9)) ->  | C36: =IF(F36="","",IF(Importação!$J$9="","",Importação!$J$9)) ->  | E36: =IFERROR((VLOOKUP($D36,'Plano de Contas'!$B$2:$E$200,3,FALSE)),"") -> 
B37: =IF(F37="","",IF(Importação!$H$9="","",Importação!$H$9)) ->  | C37: =IF(F37="","",IF(Importação!$J$9="","",Importação!$J$9)) ->  | E37: =IFERROR((VLOOKUP($D37,'Plano de Contas'!$B$2:$E$200,3,FALSE)),"") -> 
B38: =IF(F38="","",IF(Importação!$H$9="","",Importação!$H$9)) ->  | C38: =IF(F38="","",IF(Importação!$J$9="","",Importação!$J$9)) ->  | E38: =IFERROR((VLOOKUP($D38,'Plano de Contas'!$B$2:$E$200,3,FALSE)),"") -> 
B39: =IF(F39="","",IF(Importação!$H$9="","",Importação!$H$9)) ->  | C39: =IF(F39="","",IF(Importação!$J$9="","",Importação!$J$9)) ->  | E39: =IFERROR((VLOOKUP($D39,'Plano de Contas'!$B$2:$E$200,3,FALSE)),"") -> 
B40: =IF(F40="","",IF(Importação!$H$9="","",Importação!$H$9)) ->  | C40: =IF(F40="","",IF(Importação!$J$9="","",Importação!$J$9)) ->  | E40: =IFERROR((VLOOKUP($D40,'Plano de Contas'!$B$2:$E$200,3,FALSE)),"") -> 
B41: =IF(F41="","",IF(Importação!$H$9="","",Importação!$H$9)) ->  | C41: =IF(F41="","",IF(Importação!$J$9="","",Importação!$J$9)) ->  | E41: =IFERROR((VLOOKUP($D41,'Plano de Contas'!$B$2:$E$200,3,FALSE)),"") -> 
B42: =IF(F42="","",IF(Importação!$H$9="","",Importação!$H$9)) ->  | C42: =IF(F42="","",IF(Importação!$J$9="","",Importação!$J$9)) ->  | E42: =IFERROR((VLOOKUP($D42,'Plano de Contas'!$B$2:$E$200,3,FALSE)),"") -> 
B43: =IF(F43="","",IF(Importação!$H$9="","",Importação!$H$9)) ->  | C43: =IF(F43="","",IF(Importação!$J$9="","",Importação!$J$9)) ->  | E43: =IFERROR((VLOOKUP($D43,'Plano de Contas'!$B$2:$E$200,3,FALSE)),"") -> 
B44: =IF(F44="","",IF(Importação!$H$9="","",Importação!$H$9)) ->  | C44: =IF(F44="","",IF(Importação!$J$9="","",Importação!$J$9)) ->  | E44: =IFERROR((VLOOKUP($D44,'Plano de Contas'!$B$2:$E$200,3,FALSE)),"") -> 
B45: =IF(F45="","",IF(Importação!$H$9="","",Importação!$H$9)) ->  | C45: =IF(F45="","",IF(Importação!$J$9="","",Importação!$J$9)) ->  | E45: =IFERROR((VLOOKUP($D45,'Plano de Contas'!$B$2:$E$200,3,FALSE)),"") -> 
B46: =IF(F46="","",IF(Importação!$H$9="","",Importação!$H$9)) ->  | C46: =IF(F46="","",IF(Importação!$J$9="","",Importação!$J$9)) ->  | E46: =IFERROR((VLOOKUP($D46,'Plano de Contas'!$B$2:$E$200,3,FALSE)),"") -> 
B47: =IF(F47="","",IF(Importação!$H$9="","",Importação!$H$9)) ->  | C47: =IF(F47="","",IF(Importação!$J$9="","",Importação!$J$9)) ->  | E47: =IFERROR((VLOOKUP($D47,'Plano de Contas'!$B$2:$E$200,3,FALSE)),"") -> 
B48: =IF(F48="","",IF(Importação!$H$9="","",Importação!$H$9)) ->  | C48: =IF(F48="","",IF(Importação!$J$9="","",Importação!$J$9)) ->  | E48: =IFERROR((VLOOKUP($D48,'Plano de Contas'!$B$2:$E$200,3,FALSE)),"") -> 
B49: =IF(F49="","",IF(Importação!$H$9="","",Importação!$H$9)) ->  | C49: =IF(F49="","",IF(Importação!$J$9="","",Importação!$J$9)) ->  | E49: =IFERROR((VLOOKUP($D49,'Plano de Contas'!$B$2:$E$200,3,FALSE)),"") -> 
B50: =IF(F50="","",IF(Importação!$H$9="","",Importação!$H$9)) ->  | C50: =IF(F50="","",IF(Importação!$J$9="","",Importação!$J$9)) ->  | E50: =IFERROR((VLOOKUP($D50,'Plano de Contas'!$B$2:$E$200,3,FALSE)),"") -> 
B51: =IF(F51="","",IF(Importação!$H$9="","",Importação!$H$9)) ->  | C51: =IF(F51="","",IF(Importação!$J$9="","",Importação!$J$9)) ->  | E51: =IFERROR((VLOOKUP($D51,'Plano de Contas'!$B$2:$E$200,3,FALSE)),"") -> 
B52: =IF(F52="","",IF(Importação!$H$9="","",Importação!$H$9)) ->  | C52: =IF(F52="","",IF(Importação!$J$9="","",Importação!$J$9)) ->  | E52: =IFERROR((VLOOKUP($D52,'Plano de Contas'!$B$2:$E$200,3,FALSE)),"") -> 
B53: =IF(F53="","",IF(Importação!$H$9="","",Importação!$H$9)) ->  | C53: =IF(F53="","",IF(Importação!$J$9="","",Importação!$J$9)) ->  | E53: =IFERROR((VLOOKUP($D53,'Plano de Contas'!$B$2:$E$200,3,FALSE)),"") -> 
B54: =IF(F54="","",IF(Importação!$H$9="","",Importação!$H$9)) ->  | C54: =IF(F54="","",IF(Importação!$J$9="","",Importação!$J$9)) ->  | E54: =IFERROR((VLOOKUP($D54,'Plano de Contas'!$B$2:$E$200,3,FALSE)),"") -> 
B55: =IF(F55="","",IF(Importação!$H$9="","",Importação!$H$9)) ->  | C55: =IF(F55="","",IF(Importação!$J$9="","",Importação!$J$9)) ->  | E55: =IFERROR((VLOOKUP($D55,'Plano de Contas'!$B$2:$E$200,3,FALSE)),"") -> 
B56: =IF(F56="","",IF(Importação!$H$9="","",Importação!$H$9)) ->  | C56: =IF(F56="","",IF(Importação!$J$9="","",Importação!$J$9)) ->  | E56: =IFERROR((VLOOKUP($D56,'Plano de Contas'!$B$2:$E$200,3,FALSE)),"") -> 
B57: =IF(F57="","",IF(Importação!$H$9="","",Importação!$H$9)) ->  | C57: =IF(F57="","",IF(Importação!$J$9="","",Importação!$J$9)) ->  | E57: =IFERROR((VLOOKUP($D57,'Plano de Contas'!$B$2:$E$200,3,FALSE)),"") -> 
B58: =IF(F58="","",IF(Importação!$H$9="","",Importação!$H$9)) ->  | C58: =IF(F58="","",IF(Importação!$J$9="","",Importação!$J$9)) ->  | E58: =IFERROR((VLOOKUP($D58,'Plano de Contas'!$B$2:$E$200,3,FALSE)),"") -> 
B59: =IF(F59="","",IF(Importação!$H$9="","",Importação!$H$9)) ->  | C59: =IF(F59="","",IF(Importação!$J$9="","",Importação!$J$9)) ->  | E59: =IFERROR((VLOOKUP($D59,'Plano de Contas'!$B$2:$E$200,3,FALSE)),"") -> 
B60: =IF(F60="","",IF(Importação!$H$9="","",Importação!$H$9)) ->  | C60: =IF(F60="","",IF(Importação!$J$9="","",Importação!$J$9)) ->  | E60: =IFERROR((VLOOKUP($D60,'Plano de Contas'!$B$2:$E$200,3,FALSE)),"") -> 
B61: =IF(F61="","",IF(Importação!$H$9="","",Importação!$H$9)) ->  | C61: =IF(F61="","",IF(Importação!$J$9="","",Importação!$J$9)) ->  | E61: =IFERROR((VLOOKUP($D61,'Plano de Contas'!$B$2:$E$200,3,FALSE)),"") -> 
B62: =IF(F62="","",IF(Importação!$H$9="","",Importação!$H$9)) ->  | C62: =IF(F62="","",IF(Importação!$J$9="","",Importação!$J$9)) ->  | E62: =IFERROR((VLOOKUP($D62,'Plano de Contas'!$B$2:$E$200,3,FALSE)),"") -> 
B63: =IF(F63="","",IF(Importação!$H$9="","",Importação!$H$9)) ->  | C63: =IF(F63="","",IF(Importação!$J$9="","",Importação!$J$9)) ->  | E63: =IFERROR((VLOOKUP($D63,'Plano de Contas'!$B$2:$E$200,3,FALSE)),"") -> 
B64: =IF(F64="","",IF(Importação!$H$9="","",Importação!$H$9)) ->  | C64: =IF(F64="","",IF(Importação!$J$9="","",Importação!$J$9)) ->  | E64: =IFERROR((VLOOKUP($D64,'Plano de Contas'!$B$2:$E$200,3,FALSE)),"") -> 
B65: =IF(F65="","",IF(Importação!$H$9="","",Importação!$H$9)) ->  | C65: =IF(F65="","",IF(Importação!$J$9="","",Importação!$J$9)) ->  | E65: =IFERROR((VLOOKUP($D65,'Plano de Contas'!$B$2:$E$200,3,FALSE)),"") -> 
B66: =IF(F66="","",IF(Importação!$H$9="","",Importação!$H$9)) ->  | C66: =IF(F66="","",IF(Importação!$J$9="","",Importação!$J$9)) ->  | E66: =IFERROR((VLOOKUP($D66,'Plano de Contas'!$B$2:$E$200,3,FALSE)),"") -> 
A67: =IF(F67="","",CONCATENATE(B67:B67,"/",C67)) ->  | B67: =IF(F67="","",IF(Importação!$H$9="","",Importação!$H$9)) ->  | C67: =IF(F67="","",IF(Importação!$J$9="","",Importação!$J$9)) ->  | E67: =IFERROR((VLOOKUP($D67,'Plano de Contas'!$B$2:$E$200,3,FALSE)),"") ->  | G67: =IF(H67="","",IF(H67="1.","FATURAMENTO",IF(H67="10","RECEITA NÃO OPERACIONAL","PAGAMENTOS"))) ->  | H67: =MID(D67,1,2) -> 
B68: =IF(F68="","",IF(Importação!$H$9="","",Importação!$H$9)) ->  | C68: =IF(F68="","",IF(Importação!$J$9="","",Importação!$J$9)) ->  | E68: =IFERROR((VLOOKUP($D68,'Plano de Contas'!$B$2:$E$200,3,FALSE)),"") -> 
B69: =IF(F69="","",IF(Importação!$H$9="","",Importação!$H$9)) ->  | C69: =IF(F69="","",IF(Importação!$J$9="","",Importação!$J$9)) ->  | E69: =IFERROR((VLOOKUP($D69,'Plano de Contas'!$B$2:$E$200,3,FALSE)),"") -> 
B70: =IF(F70="","",IF(Importação!$H$9="","",Importação!$H$9)) ->  | C70: =IF(F70="","",IF(Importação!$J$9="","",Importação!$J$9)) ->  | E70: =IFERROR((VLOOKUP($D70,'Plano de Contas'!$B$2:$E$200,3,FALSE)),"") -> 
B71: =IF(F71="","",IF(Importação!$H$9="","",Importação!$H$9)) ->  | C71: =IF(F71="","",IF(Importação!$J$9="","",Importação!$J$9)) ->  | E71: =IFERROR((VLOOKUP($D71,'Plano de Contas'!$B$2:$E$200,3,FALSE)),"") -> 
B72: =IF(F72="","",IF(Importação!$H$9="","",Importação!$H$9)) ->  | C72: =IF(F72="","",IF(Importação!$J$9="","",Importação!$J$9)) ->  | E72: =IFERROR((VLOOKUP($D72,'Plano de Contas'!$B$2:$E$200,3,FALSE)),"") -> 
B73: =IF(F73="","",IF(Importação!$H$9="","",Importação!$H$9)) ->  | C73: =IF(F73="","",IF(Importação!$J$9="","",Importação!$J$9)) ->  | E73: =IFERROR((VLOOKUP($D73,'Plano de Contas'!$B$2:$E$200,3,FALSE)),"") -> 
B74: =IF(F74="","",IF(Importação!$H$9="","",Importação!$H$9)) ->  | C74: =IF(F74="","",IF(Importação!$J$9="","",Importação!$J$9)) ->  | E74: =IFERROR((VLOOKUP($D74,'Plano de Contas'!$B$2:$E$200,3,FALSE)),"") -> 
B75: =IF(F75="","",IF(Importação!$H$9="","",Importação!$H$9)) ->  | C75: =IF(F75="","",IF(Importação!$J$9="","",Importação!$J$9)) ->  | E75: =IFERROR((VLOOKUP($D75,'Plano de Contas'!$B$2:$E$200,3,FALSE)),"") -> 
B76: =IF(F76="","",IF(Importação!$H$9="","",Importação!$H$9)) ->  | C76: =IF(F76="","",IF(Importação!$J$9="","",Importação!$J$9)) ->  | E76: =IFERROR((VLOOKUP($D76,'Plano de Contas'!$B$2:$E$200,3,FALSE)),"") -> 
B77: =IF(F77="","",IF(Importação!$H$9="","",Importação!$H$9)) ->  | C77: =IF(F77="","",IF(Importação!$J$9="","",Importação!$J$9)) ->  | E77: =IFERROR((VLOOKUP($D77,'Plano de Contas'!$B$2:$E$200,3,FALSE)),"") -> 
B78: =IF(F78="","",IF(Importação!$H$9="","",Importação!$H$9)) ->  | C78: =IF(F78="","",IF(Importação!$J$9="","",Importação!$J$9)) ->  | E78: =IFERROR((VLOOKUP($D78,'Plano de Contas'!$B$2:$E$200,3,FALSE)),"") -> 
B79: =IF(F79="","",IF(Importação!$H$9="","",Importação!$H$9)) ->  | C79: =IF(F79="","",IF(Importação!$J$9="","",Importação!$J$9)) ->  | E79: =IFERROR((VLOOKUP($D79,'Plano de Contas'!$B$2:$E$200,3,FALSE)),"") -> 
B80: =IF(F80="","",IF(Importação!$H$9="","",Importação!$H$9)) ->  | C80: =IF(F80="","",IF(Importação!$J$9="","",Importação!$J$9)) ->  | E80: =IFERROR((VLOOKUP($D80,'Plano de Contas'!$B$2:$E$200,3,FALSE)),"") -> 
B81: =IF(F81="","",IF(Importação!$H$9="","",Importação!$H$9)) ->  | C81: =IF(F81="","",IF(Importação!$J$9="","",Importação!$J$9)) ->  | E81: =IFERROR((VLOOKUP($D81,'Plano de Contas'!$B$2:$E$200,3,FALSE)),"") -> 
B82: =IF(F82="","",IF(Importação!$H$9="","",Importação!$H$9)) ->  | C82: =IF(F82="","",IF(Importação!$J$9="","",Importação!$J$9)) ->  | E82: =IFERROR((VLOOKUP($D82,'Plano de Contas'!$B$2:$E$200,3,FALSE)),"") -> 
B83: =IF(F83="","",IF(Importação!$H$9="","",Importação!$H$9)) ->  | C83: =IF(F83="","",IF(Importação!$J$9="","",Importação!$J$9)) ->  | E83: =IFERROR((VLOOKUP($D83,'Plano de Contas'!$B$2:$E$200,3,FALSE)),"") -> 
B84: =IF(F84="","",IF(Importação!$H$9="","",Importação!$H$9)) ->  | C84: =IF(F84="","",IF(Importação!$J$9="","",Importação!$J$9)) ->  | E84: =IFERROR((VLOOKUP($D84,'Plano de Contas'!$B$2:$E$200,3,FALSE)),"") -> 
B85: =IF(F85="","",IF(Importação!$H$9="","",Importação!$H$9)) ->  | C85: =IF(F85="","",IF(Importação!$J$9="","",Importação!$J$9)) ->  | E85: =IFERROR((VLOOKUP($D85,'Plano de Contas'!$B$2:$E$200,3,FALSE)),"") -> 
B86: =IF(F86="","",IF(Importação!$H$9="","",Importação!$H$9)) ->  | C86: =IF(F86="","",IF(Importação!$J$9="","",Importação!$J$9)) ->  | E86: =IFERROR((VLOOKUP($D86,'Plano de Contas'!$B$2:$E$200,3,FALSE)),"") -> 
B87: =IF(F87="","",IF(Importação!$H$9="","",Importação!$H$9)) ->  | C87: =IF(F87="","",IF(Importação!$J$9="","",Importação!$J$9)) ->  | E87: =IFERROR((VLOOKUP($D87,'Plano de Contas'!$B$2:$E$200,3,FALSE)),"") -> 
B88: =IF(F88="","",IF(Importação!$H$9="","",Importação!$H$9)) ->  | C88: =IF(F88="","",IF(Importação!$J$9="","",Importação!$J$9)) ->  | E88: =IFERROR((VLOOKUP($D88,'Plano de Contas'!$B$2:$E$200,3,FALSE)),"") -> 
B89: =IF(F89="","",IF(Importação!$H$9="","",Importação!$H$9)) ->  | C89: =IF(F89="","",IF(Importação!$J$9="","",Importação!$J$9)) ->  | E89: =IFERROR((VLOOKUP($D89,'Plano de Contas'!$B$2:$E$200,3,FALSE)),"") -> 
B90: =IF(F90="","",IF(Importação!$H$9="","",Importação!$H$9)) ->  | C90: =IF(F90="","",IF(Importação!$J$9="","",Importação!$J$9)) ->  | E90: =IFERROR((VLOOKUP($D90,'Plano de Contas'!$B$2:$E$200,3,FALSE)),"") -> 
B91: =IF(F91="","",IF(Importação!$H$9="","",Importação!$H$9)) ->  | C91: =IF(F91="","",IF(Importação!$J$9="","",Importação!$J$9)) ->  | E91: =IFERROR((VLOOKUP($D91,'Plano de Contas'!$B$2:$E$200,3,FALSE)),"") -> 
B92: =IF(F92="","",IF(Importação!$H$9="","",Importação!$H$9)) ->  | C92: =IF(F92="","",IF(Importação!$J$9="","",Importação!$J$9)) ->  | E92: =IFERROR((VLOOKUP($D92,'Plano de Contas'!$B$2:$E$200,3,FALSE)),"") -> 
B93: =IF(F93="","",IF(Importação!$H$9="","",Importação!$H$9)) ->  | C93: =IF(F93="","",IF(Importação!$J$9="","",Importação!$J$9)) ->  | E93: =IFERROR((VLOOKUP($D93,'Plano de Contas'!$B$2:$E$200,3,FALSE)),"") -> 
B94: =IF(F94="","",IF(Importação!$H$9="","",Importação!$H$9)) ->  | C94: =IF(F94="","",IF(Importação!$J$9="","",Importação!$J$9)) ->  | E94: =IFERROR((VLOOKUP($D94,'Plano de Contas'!$B$2:$E$200,3,FALSE)),"") -> 
B95: =IF(F95="","",IF(Importação!$H$9="","",Importação!$H$9)) ->  | C95: =IF(F95="","",IF(Importação!$J$9="","",Importação!$J$9)) ->  | E95: =IFERROR((VLOOKUP($D95,'Plano de Contas'!$B$2:$E$200,3,FALSE)),"") -> 
B96: =IF(F96="","",IF(Importação!$H$9="","",Importação!$H$9)) ->  | C96: =IF(F96="","",IF(Importação!$J$9="","",Importação!$J$9)) ->  | E96: =IFERROR((VLOOKUP($D96,'Plano de Contas'!$B$2:$E$200,3,FALSE)),"") -> 
B97: =IF(F97="","",IF(Importação!$H$9="","",Importação!$H$9)) ->  | C97: =IF(F97="","",IF(Importação!$J$9="","",Importação!$J$9)) ->  | E97: =IFERROR((VLOOKUP($D97,'Plano de Contas'!$B$2:$E$200,3,FALSE)),"") -> 
B98: =IF(F98="","",IF(Importação!$H$9="","",Importação!$H$9)) ->  | C98: =IF(F98="","",IF(Importação!$J$9="","",Importação!$J$9)) ->  | E98: =IFERROR((VLOOKUP($D98,'Plano de Contas'!$B$2:$E$200,3,FALSE)),"") -> 
B99: =IF(F99="","",IF(Importação!$H$9="","",Importação!$H$9)) ->  | C99: =IF(F99="","",IF(Importação!$J$9="","",Importação!$J$9)) ->  | E99: =IFERROR((VLOOKUP($D99,'Plano de Contas'!$B$2:$E$200,3,FALSE)),"") -> 
B100: =IF(F100="","",IF(Importação!$H$9="","",Importação!$H$9)) ->  | C100: =IF(F100="","",IF(Importação!$J$9="","",Importação!$J$9)) ->  | E100: =IFERROR((VLOOKUP($D100,'Plano de Contas'!$B$2:$E$200,3,FALSE)),"") -> 
B101: =IF(F101="","",IF(Importação!$H$9="","",Importação!$H$9)) ->  | C101: =IF(F101="","",IF(Importação!$J$9="","",Importação!$J$9)) ->  | E101: =IFERROR((VLOOKUP($D101,'Plano de Contas'!$B$2:$E$200,3,FALSE)),"") -> 
B102: =IF(F102="","",IF(Importação!$H$9="","",Importação!$H$9)) ->  | C102: =IF(F102="","",IF(Importação!$J$9="","",Importação!$J$9)) ->  | E102: =IFERROR((VLOOKUP($D102,'Plano de Contas'!$B$2:$E$200,3,FALSE)),"") -> 
B103: =IF(F103="","",IF(Importação!$H$9="","",Importação!$H$9)) ->  | C103: =IF(F103="","",IF(Importação!$J$9="","",Importação!$J$9)) ->  | E103: =IFERROR((VLOOKUP($D103,'Plano de Contas'!$B$2:$E$200,3,FALSE)),"") -> 
B104: =IF(F104="","",IF(Importação!$H$9="","",Importação!$H$9)) ->  | C104: =IF(F104="","",IF(Importação!$J$9="","",Importação!$J$9)) ->  | E104: =IFERROR((VLOOKUP($D104,'Plano de Contas'!$B$2:$E$200,3,FALSE)),"") -> 
B105: =IF(F105="","",IF(Importação!$H$9="","",Importação!$H$9)) ->  | C105: =IF(F105="","",IF(Importação!$J$9="","",Importação!$J$9)) ->  | E105: =IFERROR((VLOOKUP($D105,'Plano de Contas'!$B$2:$E$200,3,FALSE)),"") -> 
B106: =IF(F106="","",IF(Importação!$H$9="","",Importação!$H$9)) ->  | C106: =IF(F106="","",IF(Importação!$J$9="","",Importação!$J$9)) ->  | E106: =IFERROR((VLOOKUP($D106,'Plano de Contas'!$B$2:$E$200,3,FALSE)),"") -> 
B107: =IF(F107="","",IF(Importação!$H$9="","",Importação!$H$9)) ->  | C107: =IF(F107="","",IF(Importação!$J$9="","",Importação!$J$9)) ->  | E107: =IFERROR((VLOOKUP($D107,'Plano de Contas'!$B$2:$E$200,3,FALSE)),"") -> 
B108: =IF(F108="","",IF(Importação!$H$9="","",Importação!$H$9)) ->  | C108: =IF(F108="","",IF(Importação!$J$9="","",Importação!$J$9)) ->  | E108: =IFERROR((VLOOKUP($D108,'Plano de Contas'!$B$2:$E$200,3,FALSE)),"") -> 
B109: =IF(F109="","",IF(Importação!$H$9="","",Importação!$H$9)) ->  | C109: =IF(F109="","",IF(Importação!$J$9="","",Importação!$J$9)) ->  | E109: =IFERROR((VLOOKUP($D109,'Plano de Contas'!$B$2:$E$200,3,FALSE)),"") -> 
B110: =IF(F110="","",IF(Importação!$H$9="","",Importação!$H$9)) ->  | C110: =IF(F110="","",IF(Importação!$J$9="","",Importação!$J$9)) ->  | E110: =IFERROR((VLOOKUP($D110,'Plano de Contas'!$B$2:$E$200,3,FALSE)),"") -> 
B111: =IF(F111="","",IF(Importação!$H$9="","",Importação!$H$9)) ->  | C111: =IF(F111="","",IF(Importação!$J$9="","",Importação!$J$9)) ->  | E111: =IFERROR((VLOOKUP($D111,'Plano de Contas'!$B$2:$E$200,3,FALSE)),"") -> 
B112: =IF(F112="","",IF(Importação!$H$9="","",Importação!$H$9)) ->  | C112: =IF(F112="","",IF(Importação!$J$9="","",Importação!$J$9)) ->  | E112: =IFERROR((VLOOKUP($D112,'Plano de Contas'!$B$2:$E$200,3,FALSE)),"") -> 
B113: =IF(F113="","",IF(Importação!$H$9="","",Importação!$H$9)) ->  | C113: =IF(F113="","",IF(Importação!$J$9="","",Importação!$J$9)) ->  | E113: =IFERROR((VLOOKUP($D113,'Plano de Contas'!$B$2:$E$200,3,FALSE)),"") -> 
B114: =IF(F114="","",IF(Importação!$H$9="","",Importação!$H$9)) ->  | C114: =IF(F114="","",IF(Importação!$J$9="","",Importação!$J$9)) ->  | E114: =IFERROR((VLOOKUP($D114,'Plano de Contas'!$B$2:$E$200,3,FALSE)),"") -> 
B115: =IF(F115="","",IF(Importação!$H$9="","",Importação!$H$9)) ->  | C115: =IF(F115="","",IF(Importação!$J$9="","",Importação!$J$9)) ->  | E115: =IFERROR((VLOOKUP($D115,'Plano de Contas'!$B$2:$E$200,3,FALSE)),"") -> 
B116: =IF(F116="","",IF(Importação!$H$9="","",Importação!$H$9)) ->  | C116: =IF(F116="","",IF(Importação!$J$9="","",Importação!$J$9)) ->  | E116: =IFERROR((VLOOKUP($D116,'Plano de Contas'!$B$2:$E$200,3,FALSE)),"") -> 
B117: =IF(F117="","",IF(Importação!$H$9="","",Importação!$H$9)) ->  | C117: =IF(F117="","",IF(Importação!$J$9="","",Importação!$J$9)) ->  | E117: =IFERROR((VLOOKUP($D117,'Plano de Contas'!$B$2:$E$200,3,FALSE)),"") -> 
B118: =IF(F118="","",IF(Importação!$H$9="","",Importação!$H$9)) ->  | C118: =IF(F118="","",IF(Importação!$J$9="","",Importação!$J$9)) ->  | E118: =IFERROR((VLOOKUP($D118,'Plano de Contas'!$B$2:$E$200,3,FALSE)),"") -> 
B119: =IF(F119="","",IF(Importação!$H$9="","",Importação!$H$9)) ->  | C119: =IF(F119="","",IF(Importação!$J$9="","",Importação!$J$9)) ->  | E119: =IFERROR((VLOOKUP($D119,'Plano de Contas'!$B$2:$E$200,3,FALSE)),"") -> 
B120: =IF(F120="","",IF(Importação!$H$9="","",Importação!$H$9)) ->  | C120: =IF(F120="","",IF(Importação!$J$9="","",Importação!$J$9)) ->  | E120: =IFERROR((VLOOKUP($D120,'Plano de Contas'!$B$2:$E$200,3,FALSE)),"") -> 
B121: =IF(F121="","",IF(Importação!$H$9="","",Importação!$H$9)) ->  | C121: =IF(F121="","",IF(Importação!$J$9="","",Importação!$J$9)) ->  | E121: =IFERROR((VLOOKUP($D121,'Plano de Contas'!$B$2:$E$200,3,FALSE)),"") -> 
B122: =IF(F122="","",IF(Importação!$H$9="","",Importação!$H$9)) ->  | C122: =IF(F122="","",IF(Importação!$J$9="","",Importação!$J$9)) ->  | E122: =IFERROR((VLOOKUP($D122,'Plano de Contas'!$B$2:$E$200,3,FALSE)),"") -> 
B123: =IF(F123="","",IF(Importação!$H$9="","",Importação!$H$9)) ->  | C123: =IF(F123="","",IF(Importação!$J$9="","",Importação!$J$9)) ->  | E123: =IFERROR((VLOOKUP($D123,'Plano de Contas'!$B$2:$E$200,3,FALSE)),"") -> 
B124: =IF(F124="","",IF(Importação!$H$9="","",Importação!$H$9)) ->  | C124: =IF(F124="","",IF(Importação!$J$9="","",Importação!$J$9)) ->  | E124: =IFERROR((VLOOKUP($D124,'Plano de Contas'!$B$2:$E$200,3,FALSE)),"") -> 
B125: =IF(F125="","",IF(Importação!$H$9="","",Importação!$H$9)) ->  | C125: =IF(F125="","",IF(Importação!$J$9="","",Importação!$J$9)) ->  | E125: =IFERROR((VLOOKUP($D125,'Plano de Contas'!$B$2:$E$200,3,FALSE)),"") -> 
B126: =IF(F126="","",IF(Importação!$H$9="","",Importação!$H$9)) ->  | C126: =IF(F126="","",IF(Importação!$J$9="","",Importação!$J$9)) ->  | E126: =IFERROR((VLOOKUP($D126,'Plano de Contas'!$B$2:$E$200,3,FALSE)),"") -> 
B127: =IF(F127="","",IF(Importação!$H$9="","",Importação!$H$9)) ->  | C127: =IF(F127="","",IF(Importação!$J$9="","",Importação!$J$9)) ->  | E127: =IFERROR((VLOOKUP($D127,'Plano de Contas'!$B$2:$E$200,3,FALSE)),"") -> 
B128: =IF(F128="","",IF(Importação!$H$9="","",Importação!$H$9)) ->  | C128: =IF(F128="","",IF(Importação!$J$9="","",Importação!$J$9)) ->  | E128: =IFERROR((VLOOKUP($D128,'Plano de Contas'!$B$2:$E$200,3,FALSE)),"") -> 
B129: =IF(F129="","",IF(Importação!$H$9="","",Importação!$H$9)) ->  | C129: =IF(F129="","",IF(Importação!$J$9="","",Importação!$J$9)) ->  | E129: =IFERROR((VLOOKUP($D129,'Plano de Contas'!$B$2:$E$200,3,FALSE)),"") -> 
B130: =IF(F130="","",IF(Importação!$H$9="","",Importação!$H$9)) ->  | C130: =IF(F130="","",IF(Importação!$J$9="","",Importação!$J$9)) ->  | E130: =IFERROR((VLOOKUP($D130,'Plano de Contas'!$B$2:$E$200,3,FALSE)),"") -> 
A131: =IF(F131="","",CONCATENATE(B131:B131,"/",C131)) ->  | B131: =IF(F131="","",IF(Importação!$H$9="","",Importação!$H$9)) ->  | C131: =IF(F131="","",IF(Importação!$J$9="","",Importação!$J$9)) ->  | E131: =IFERROR((VLOOKUP($D131,'Plano de Contas'!$B$2:$E$200,3,FALSE)),"") ->  | G131: =IF(H131="","",IF(H131="1.","FATURAMENTO",IF(H131="10","RECEITA NÃO OPERACIONAL","PAGAMENTOS"))) ->  | H131: =MID(D131,1,2) -> 
B132: =IF(F132="","",IF(Importação!$H$9="","",Importação!$H$9)) ->  | C132: =IF(F132="","",IF(Importação!$J$9="","",Importação!$J$9)) ->  | E132: =IFERROR((VLOOKUP($D132,'Plano de Contas'!$B$2:$E$200,3,FALSE)),"") -> 
B133: =IF(F133="","",IF(Importação!$H$9="","",Importação!$H$9)) ->  | C133: =IF(F133="","",IF(Importação!$J$9="","",Importação!$J$9)) ->  | E133: =IFERROR((VLOOKUP($D133,'Plano de Contas'!$B$2:$E$200,3,FALSE)),"") -> 
B134: =IF(F134="","",IF(Importação!$H$9="","",Importação!$H$9)) ->  | C134: =IF(F134="","",IF(Importação!$J$9="","",Importação!$J$9)) ->  | E134: =IFERROR((VLOOKUP($D134,'Plano de Contas'!$B$2:$E$200,3,FALSE)),"") -> 
B135: =IF(F135="","",IF(Importação!$H$9="","",Importação!$H$9)) ->  | C135: =IF(F135="","",IF(Importação!$J$9="","",Importação!$J$9)) ->  | E135: =IFERROR((VLOOKUP($D135,'Plano de Contas'!$B$2:$E$200,3,FALSE)),"") -> 
B136: =IF(F136="","",IF(Importação!$H$9="","",Importação!$H$9)) ->  | C136: =IF(F136="","",IF(Importação!$J$9="","",Importação!$J$9)) ->  | E136: =IFERROR((VLOOKUP($D136,'Plano de Contas'!$B$2:$E$200,3,FALSE)),"") -> 
B137: =IF(F137="","",IF(Importação!$H$9="","",Importação!$H$9)) ->  | C137: =IF(F137="","",IF(Importação!$J$9="","",Importação!$J$9)) ->  | E137: =IFERROR((VLOOKUP($D137,'Plano de Contas'!$B$2:$E$200,3,FALSE)),"") -> 
B138: =IF(F138="","",IF(Importação!$H$9="","",Importação!$H$9)) ->  | C138: =IF(F138="","",IF(Importação!$J$9="","",Importação!$J$9)) ->  | E138: =IFERROR((VLOOKUP($D138,'Plano de Contas'!$B$2:$E$200,3,FALSE)),"") -> 
B139: =IF(F139="","",IF(Importação!$H$9="","",Importação!$H$9)) ->  | C139: =IF(F139="","",IF(Importação!$J$9="","",Importação!$J$9)) ->  | E139: =IFERROR((VLOOKUP($D139,'Plano de Contas'!$B$2:$E$200,3,FALSE)),"") -> 
B140: =IF(F140="","",IF(Importação!$H$9="","",Importação!$H$9)) ->  | C140: =IF(F140="","",IF(Importação!$J$9="","",Importação!$J$9)) ->  | E140: =IFERROR((VLOOKUP($D140,'Plano de Contas'!$B$2:$E$200,3,FALSE)),"") -> 
B141: =IF(F141="","",IF(Importação!$H$9="","",Importação!$H$9)) ->  | C141: =IF(F141="","",IF(Importação!$J$9="","",Importação!$J$9)) ->  | E141: =IFERROR((VLOOKUP($D141,'Plano de Contas'!$B$2:$E$200,3,FALSE)),"") -> 
B142: =IF(F142="","",IF(Importação!$H$9="","",Importação!$H$9)) ->  | C142: =IF(F142="","",IF(Importação!$J$9="","",Importação!$J$9)) ->  | E142: =IFERROR((VLOOKUP($D142,'Plano de Contas'!$B$2:$E$200,3,FALSE)),"") -> 
B143: =IF(F143="","",IF(Importação!$H$9="","",Importação!$H$9)) ->  | C143: =IF(F143="","",IF(Importação!$J$9="","",Importação!$J$9)) ->  | E143: =IFERROR((VLOOKUP($D143,'Plano de Contas'!$B$2:$E$200,3,FALSE)),"") -> 
B144: =IF(F144="","",IF(Importação!$H$9="","",Importação!$H$9)) ->  | C144: =IF(F144="","",IF(Importação!$J$9="","",Importação!$J$9)) ->  | E144: =IFERROR((VLOOKUP($D144,'Plano de Contas'!$B$2:$E$200,3,FALSE)),"") -> 
B145: =IF(F145="","",IF(Importação!$H$9="","",Importação!$H$9)) ->  | C145: =IF(F145="","",IF(Importação!$J$9="","",Importação!$J$9)) ->  | E145: =IFERROR((VLOOKUP($D145,'Plano de Contas'!$B$2:$E$200,3,FALSE)),"") -> 
B146: =IF(F146="","",IF(Importação!$H$9="","",Importação!$H$9)) ->  | C146: =IF(F146="","",IF(Importação!$J$9="","",Importação!$J$9)) ->  | E146: =IFERROR((VLOOKUP($D146,'Plano de Contas'!$B$2:$E$200,3,FALSE)),"") -> 
B147: =IF(F147="","",IF(Importação!$H$9="","",Importação!$H$9)) ->  | C147: =IF(F147="","",IF(Importação!$J$9="","",Importação!$J$9)) ->  | E147: =IFERROR((VLOOKUP($D147,'Plano de Contas'!$B$2:$E$200,3,FALSE)),"") -> 
B148: =IF(F148="","",IF(Importação!$H$9="","",Importação!$H$9)) ->  | C148: =IF(F148="","",IF(Importação!$J$9="","",Importação!$J$9)) ->  | E148: =IFERROR((VLOOKUP($D148,'Plano de Contas'!$B$2:$E$200,3,FALSE)),"") -> 
B149: =IF(F149="","",IF(Importação!$H$9="","",Importação!$H$9)) ->  | C149: =IF(F149="","",IF(Importação!$J$9="","",Importação!$J$9)) ->  | E149: =IFERROR((VLOOKUP($D149,'Plano de Contas'!$B$2:$E$200,3,FALSE)),"") -> 
B150: =IF(F150="","",IF(Importação!$H$9="","",Importação!$H$9)) ->  | C150: =IF(F150="","",IF(Importação!$J$9="","",Importação!$J$9)) ->  | E150: =IFERROR((VLOOKUP($D150,'Plano de Contas'!$B$2:$E$200,3,FALSE)),"") -> 
B151: =IF(F151="","",IF(Importação!$H$9="","",Importação!$H$9)) ->  | C151: =IF(F151="","",IF(Importação!$J$9="","",Importação!$J$9)) ->  | E151: =IFERROR((VLOOKUP($D151,'Plano de Contas'!$B$2:$E$200,3,FALSE)),"") -> 
B152: =IF(F152="","",IF(Importação!$H$9="","",Importação!$H$9)) ->  | C152: =IF(F152="","",IF(Importação!$J$9="","",Importação!$J$9)) ->  | E152: =IFERROR((VLOOKUP($D152,'Plano de Contas'!$B$2:$E$200,3,FALSE)),"") -> 
B153: =IF(F153="","",IF(Importação!$H$9="","",Importação!$H$9)) ->  | C153: =IF(F153="","",IF(Importação!$J$9="","",Importação!$J$9)) ->  | E153: =IFERROR((VLOOKUP($D153,'Plano de Contas'!$B$2:$E$200,3,FALSE)),"") -> 
B154: =IF(F154="","",IF(Importação!$H$9="","",Importação!$H$9)) ->  | C154: =IF(F154="","",IF(Importação!$J$9="","",Importação!$J$9)) ->  | E154: =IFERROR((VLOOKUP($D154,'Plano de Contas'!$B$2:$E$200,3,FALSE)),"") -> 
B155: =IF(F155="","",IF(Importação!$H$9="","",Importação!$H$9)) ->  | C155: =IF(F155="","",IF(Importação!$J$9="","",Importação!$J$9)) ->  | E155: =IFERROR((VLOOKUP($D155,'Plano de Contas'!$B$2:$E$200,3,FALSE)),"") -> 
B156: =IF(F156="","",IF(Importação!$H$9="","",Importação!$H$9)) ->  | C156: =IF(F156="","",IF(Importação!$J$9="","",Importação!$J$9)) ->  | E156: =IFERROR((VLOOKUP($D156,'Plano de Contas'!$B$2:$E$200,3,FALSE)),"") -> 
B157: =IF(F157="","",IF(Importação!$H$9="","",Importação!$H$9)) ->  | C157: =IF(F157="","",IF(Importação!$J$9="","",Importação!$J$9)) ->  | E157: =IFERROR((VLOOKUP($D157,'Plano de Contas'!$B$2:$E$200,3,FALSE)),"") -> 
B158: =IF(F158="","",IF(Importação!$H$9="","",Importação!$H$9)) ->  | C158: =IF(F158="","",IF(Importação!$J$9="","",Importação!$J$9)) ->  | E158: =IFERROR((VLOOKUP($D158,'Plano de Contas'!$B$2:$E$200,3,FALSE)),"") -> 
B159: =IF(F159="","",IF(Importação!$H$9="","",Importação!$H$9)) ->  | C159: =IF(F159="","",IF(Importação!$J$9="","",Importação!$J$9)) ->  | E159: =IFERROR((VLOOKUP($D159,'Plano de Contas'!$B$2:$E$200,3,FALSE)),"") -> 
B160: =IF(F160="","",IF(Importação!$H$9="","",Importação!$H$9)) ->  | C160: =IF(F160="","",IF(Importação!$J$9="","",Importação!$J$9)) ->  | E160: =IFERROR((VLOOKUP($D160,'Plano de Contas'!$B$2:$E$200,3,FALSE)),"") -> 
B161: =IF(F161="","",IF(Importação!$H$9="","",Importação!$H$9)) ->  | C161: =IF(F161="","",IF(Importação!$J$9="","",Importação!$J$9)) ->  | E161: =IFERROR((VLOOKUP($D161,'Plano de Contas'!$B$2:$E$200,3,FALSE)),"") -> 
B162: =IF(F162="","",IF(Importação!$H$9="","",Importação!$H$9)) ->  | C162: =IF(F162="","",IF(Importação!$J$9="","",Importação!$J$9)) ->  | E162: =IFERROR((VLOOKUP($D162,'Plano de Contas'!$B$2:$E$200,3,FALSE)),"") -> 
B163: =IF(F163="","",IF(Importação!$H$9="","",Importação!$H$9)) ->  | C163: =IF(F163="","",IF(Importação!$J$9="","",Importação!$J$9)) ->  | E163: =IFERROR((VLOOKUP($D163,'Plano de Contas'!$B$2:$E$200,3,FALSE)),"") -> 
B164: =IF(F164="","",IF(Importação!$H$9="","",Importação!$H$9)) ->  | C164: =IF(F164="","",IF(Importação!$J$9="","",Importação!$J$9)) ->  | E164: =IFERROR((VLOOKUP($D164,'Plano de Contas'!$B$2:$E$200,3,FALSE)),"") -> 
B165: =IF(F165="","",IF(Importação!$H$9="","",Importação!$H$9)) ->  | C165: =IF(F165="","",IF(Importação!$J$9="","",Importação!$J$9)) ->  | E165: =IFERROR((VLOOKUP($D165,'Plano de Contas'!$B$2:$E$200,3,FALSE)),"") -> 
B166: =IF(F166="","",IF(Importação!$H$9="","",Importação!$H$9)) ->  | C166: =IF(F166="","",IF(Importação!$J$9="","",Importação!$J$9)) ->  | E166: =IFERROR((VLOOKUP($D166,'Plano de Contas'!$B$2:$E$200,3,FALSE)),"") -> 
B167: =IF(F167="","",IF(Importação!$H$9="","",Importação!$H$9)) ->  | C167: =IF(F167="","",IF(Importação!$J$9="","",Importação!$J$9)) ->  | E167: =IFERROR((VLOOKUP($D167,'Plano de Contas'!$B$2:$E$200,3,FALSE)),"") -> 
B168: =IF(F168="","",IF(Importação!$H$9="","",Importação!$H$9)) ->  | C168: =IF(F168="","",IF(Importação!$J$9="","",Importação!$J$9)) ->  | E168: =IFERROR((VLOOKUP($D168,'Plano de Contas'!$B$2:$E$200,3,FALSE)),"") -> 
B169: =IF(F169="","",IF(Importação!$H$9="","",Importação!$H$9)) ->  | C169: =IF(F169="","",IF(Importação!$J$9="","",Importação!$J$9)) ->  | E169: =IFERROR((VLOOKUP($D169,'Plano de Contas'!$B$2:$E$200,3,FALSE)),"") -> 
B170: =IF(F170="","",IF(Importação!$H$9="","",Importação!$H$9)) ->  | C170: =IF(F170="","",IF(Importação!$J$9="","",Importação!$J$9)) ->  | E170: =IFERROR((VLOOKUP($D170,'Plano de Contas'!$B$2:$E$200,3,FALSE)),"") -> 
B171: =IF(F171="","",IF(Importação!$H$9="","",Importação!$H$9)) ->  | C171: =IF(F171="","",IF(Importação!$J$9="","",Importação!$J$9)) ->  | E171: =IFERROR((VLOOKUP($D171,'Plano de Contas'!$B$2:$E$200,3,FALSE)),"") -> 
B172: =IF(F172="","",IF(Importação!$H$9="","",Importação!$H$9)) ->  | C172: =IF(F172="","",IF(Importação!$J$9="","",Importação!$J$9)) ->  | E172: =IFERROR((VLOOKUP($D172,'Plano de Contas'!$B$2:$E$200,3,FALSE)),"") -> 
B173: =IF(F173="","",IF(Importação!$H$9="","",Importação!$H$9)) ->  | C173: =IF(F173="","",IF(Importação!$J$9="","",Importação!$J$9)) ->  | E173: =IFERROR((VLOOKUP($D173,'Plano de Contas'!$B$2:$E$200,3,FALSE)),"") -> 
B174: =IF(F174="","",IF(Importação!$H$9="","",Importação!$H$9)) ->  | C174: =IF(F174="","",IF(Importação!$J$9="","",Importação!$J$9)) ->  | E174: =IFERROR((VLOOKUP($D174,'Plano de Contas'!$B$2:$E$200,3,FALSE)),"") -> 
B175: =IF(F175="","",IF(Importação!$H$9="","",Importação!$H$9)) ->  | C175: =IF(F175="","",IF(Importação!$J$9="","",Importação!$J$9)) ->  | E175: =IFERROR((VLOOKUP($D175,'Plano de Contas'!$B$2:$E$200,3,FALSE)),"") -> 
B176: =IF(F176="","",IF(Importação!$H$9="","",Importação!$H$9)) ->  | C176: =IF(F176="","",IF(Importação!$J$9="","",Importação!$J$9)) ->  | E176: =IFERROR((VLOOKUP($D176,'Plano de Contas'!$B$2:$E$200,3,FALSE)),"") -> 
B177: =IF(F177="","",IF(Importação!$H$9="","",Importação!$H$9)) ->  | C177: =IF(F177="","",IF(Importação!$J$9="","",Importação!$J$9)) ->  | E177: =IFERROR((VLOOKUP($D177,'Plano de Contas'!$B$2:$E$200,3,FALSE)),"") -> 
B178: =IF(F178="","",IF(Importação!$H$9="","",Importação!$H$9)) ->  | C178: =IF(F178="","",IF(Importação!$J$9="","",Importação!$J$9)) ->  | E178: =IFERROR((VLOOKUP($D178,'Plano de Contas'!$B$2:$E$200,3,FALSE)),"") -> 
B179: =IF(F179="","",IF(Importação!$H$9="","",Importação!$H$9)) ->  | C179: =IF(F179="","",IF(Importação!$J$9="","",Importação!$J$9)) ->  | E179: =IFERROR((VLOOKUP($D179,'Plano de Contas'!$B$2:$E$200,3,FALSE)),"") -> 
B180: =IF(F180="","",IF(Importação!$H$9="","",Importação!$H$9)) ->  | C180: =IF(F180="","",IF(Importação!$J$9="","",Importação!$J$9)) ->  | E180: =IFERROR((VLOOKUP($D180,'Plano de Contas'!$B$2:$E$200,3,FALSE)),"") -> 
B181: =IF(F181="","",IF(Importação!$H$9="","",Importação!$H$9)) ->  | C181: =IF(F181="","",IF(Importação!$J$9="","",Importação!$J$9)) ->  | E181: =IFERROR((VLOOKUP($D181,'Plano de Contas'!$B$2:$E$200,3,FALSE)),"") -> 
B182: =IF(F182="","",IF(Importação!$H$9="","",Importação!$H$9)) ->  | C182: =IF(F182="","",IF(Importação!$J$9="","",Importação!$J$9)) ->  | E182: =IFERROR((VLOOKUP($D182,'Plano de Contas'!$B$2:$E$200,3,FALSE)),"") -> 
B183: =IF(F183="","",IF(Importação!$H$9="","",Importação!$H$9)) ->  | C183: =IF(F183="","",IF(Importação!$J$9="","",Importação!$J$9)) ->  | E183: =IFERROR((VLOOKUP($D183,'Plano de Contas'!$B$2:$E$200,3,FALSE)),"") -> 
B184: =IF(F184="","",IF(Importação!$H$9="","",Importação!$H$9)) ->  | C184: =IF(F184="","",IF(Importação!$J$9="","",Importação!$J$9)) ->  | E184: =IFERROR((VLOOKUP($D184,'Plano de Contas'!$B$2:$E$200,3,FALSE)),"") -> 
B185: =IF(F185="","",IF(Importação!$H$9="","",Importação!$H$9)) ->  | C185: =IF(F185="","",IF(Importação!$J$9="","",Importação!$J$9)) ->  | E185: =IFERROR((VLOOKUP($D185,'Plano de Contas'!$B$2:$E$200,3,FALSE)),"") -> 
B186: =IF(F186="","",IF(Importação!$H$9="","",Importação!$H$9)) ->  | C186: =IF(F186="","",IF(Importação!$J$9="","",Importação!$J$9)) ->  | E186: =IFERROR((VLOOKUP($D186,'Plano de Contas'!$B$2:$E$200,3,FALSE)),"") -> 
B187: =IF(F187="","",IF(Importação!$H$9="","",Importação!$H$9)) ->  | C187: =IF(F187="","",IF(Importação!$J$9="","",Importação!$J$9)) ->  | E187: =IFERROR((VLOOKUP($D187,'Plano de Contas'!$B$2:$E$200,3,FALSE)),"") -> 
B188: =IF(F188="","",IF(Importação!$H$9="","",Importação!$H$9)) ->  | C188: =IF(F188="","",IF(Importação!$J$9="","",Importação!$J$9)) ->  | E188: =IFERROR((VLOOKUP($D188,'Plano de Contas'!$B$2:$E$200,3,FALSE)),"") -> 
B189: =IF(F189="","",IF(Importação!$H$9="","",Importação!$H$9)) ->  | C189: =IF(F189="","",IF(Importação!$J$9="","",Importação!$J$9)) ->  | E189: =IFERROR((VLOOKUP($D189,'Plano de Contas'!$B$2:$E$200,3,FALSE)),"") -> 
B190: =IF(F190="","",IF(Importação!$H$9="","",Importação!$H$9)) ->  | C190: =IF(F190="","",IF(Importação!$J$9="","",Importação!$J$9)) ->  | E190: =IFERROR((VLOOKUP($D190,'Plano de Contas'!$B$2:$E$200,3,FALSE)),"") -> 
B191: =IF(F191="","",IF(Importação!$H$9="","",Importação!$H$9)) ->  | C191: =IF(F191="","",IF(Importação!$J$9="","",Importação!$J$9)) ->  | E191: =IFERROR((VLOOKUP($D191,'Plano de Contas'!$B$2:$E$200,3,FALSE)),"") -> 
B192: =IF(F192="","",IF(Importação!$H$9="","",Importação!$H$9)) ->  | C192: =IF(F192="","",IF(Importação!$J$9="","",Importação!$J$9)) ->  | E192: =IFERROR((VLOOKUP($D192,'Plano de Contas'!$B$2:$E$200,3,FALSE)),"") -> 
B193: =IF(F193="","",IF(Importação!$H$9="","",Importação!$H$9)) ->  | C193: =IF(F193="","",IF(Importação!$J$9="","",Importação!$J$9)) ->  | E193: =IFERROR((VLOOKUP($D193,'Plano de Contas'!$B$2:$E$200,3,FALSE)),"") -> 
B194: =IF(F194="","",IF(Importação!$H$9="","",Importação!$H$9)) ->  | C194: =IF(F194="","",IF(Importação!$J$9="","",Importação!$J$9)) ->  | E194: =IFERROR((VLOOKUP($D194,'Plano de Contas'!$B$2:$E$200,3,FALSE)),"") -> 
A195: =IF(F195="","",CONCATENATE(B195:B195,"/",C195)) ->  | B195: =IF(F195="","",IF(Importação!$H$9="","",Importação!$H$9)) ->  | C195: =IF(F195="","",IF(Importação!$J$9="","",Importação!$J$9)) ->  | E195: =IFERROR((VLOOKUP($D195,'Plano de Contas'!$B$2:$E$200,3,FALSE)),"") ->  | G195: =IF(H195="","",IF(H195="1.","FATURAMENTO",IF(H195="10","RECEITA NÃO OPERACIONAL","PAGAMENTOS"))) ->  | H195: =MID(D195,1,2) -> 
B196: =IF(F196="","",IF(Importação!$H$9="","",Importação!$H$9)) ->  | C196: =IF(F196="","",IF(Importação!$J$9="","",Importação!$J$9)) ->  | E196: =IFERROR((VLOOKUP($D196,'Plano de Contas'!$B$2:$E$200,3,FALSE)),"") -> 
B197: =IF(F197="","",IF(Importação!$H$9="","",Importação!$H$9)) ->  | C197: =IF(F197="","",IF(Importação!$J$9="","",Importação!$J$9)) ->  | E197: =IFERROR((VLOOKUP($D197,'Plano de Contas'!$B$2:$E$200,3,FALSE)),"") -> 
B198: =IF(F198="","",IF(Importação!$H$9="","",Importação!$H$9)) ->  | C198: =IF(F198="","",IF(Importação!$J$9="","",Importação!$J$9)) ->  | E198: =IFERROR((VLOOKUP($D198,'Plano de Contas'!$B$2:$E$200,3,FALSE)),"") -> 
B199: =IF(F199="","",IF(Importação!$H$9="","",Importação!$H$9)) ->  | C199: =IF(F199="","",IF(Importação!$J$9="","",Importação!$J$9)) ->  | E199: =IFERROR((VLOOKUP($D199,'Plano de Contas'!$B$2:$E$200,3,FALSE)),"") -> 
B200: =IF(F200="","",IF(Importação!$H$9="","",Importação!$H$9)) ->  | C200: =IF(F200="","",IF(Importação!$J$9="","",Importação!$J$9)) ->  | E200: =IFERROR((VLOOKUP($D200,'Plano de Contas'!$B$2:$E$200,3,FALSE)),"") -> 
... 300 more rows

Sheet Arquivo
A1: MÊS/ANO | B1: MÊS | C1: ANO | D1: CÓDIGO | E1: DESCRIÇÃO | F1: VALOR | G1: COD1 | H1: COD2 | I1: =CONCATENATE(Importação!H16,"/",Importação!J16) -> JUNHO/2018
A2: MÊS/ANO | B2: MÊS | C2: ANO | D2: CÓDIGO | E2: DESCRIÇÃO | F2: VALOR | G2: COD1 | H2: COD2
A3: ABRIL/2017 | B3: Abril | C3: 2017 | D3: 1.1.1.2 | E3: VL. TOTAL DOS CUPONS* A PRAZO | F3: 1760130.35 | G3: FATURAMENTO | H3: 1.
A4: ABRIL/2017 | B4: Abril | C4: 2017 | D4: 2.1.1.1 | E4: (CUST12) CUSTO DOS PRODUTOS VENDIDOS | F4: 1524873.78 | G4: PAGAMENTOS | H4: 2.
A5: ABRIL/2017 | B5: Abril | C5: 2017 | D5: 4.1.1.1 | E5: PIS/COFINS | F5: 543.5 | G5: PAGAMENTOS | H5: 4.
A6: ABRIL/2017 | B6: Abril | C6: 2017 | D6: 4.1.1.2 | E6: OUTROS IMPOSTOS | F6: 483.24 | G6: PAGAMENTOS | H6: 4.
A7: ABRIL/2017 | B7: Abril | C7: 2017 | D7: 6.1.1.2 | E7: CUSTO COM EMBALAGENS | F7: 66981.31 | G7: PAGAMENTOS | H7: 6.
A8: ABRIL/2017 | B8: Abril | C8: 2017 | D8: 6.1.1.3 | E8: FUNRURAL | F8: 33085.76 | G8: PAGAMENTOS | H8: 6.
A9: ABRIL/2017 | B9: Abril | C9: 2017 | D9: 8.1.1.1 | E9: FOPAG ADMINISTRATIVO | F9: 13159.91 | G9: PAGAMENTOS | H9: 8.
A10: ABRIL/2017 | B10: Abril | C10: 2017 | D10: 8.1.1.2 | E10: FOPAG PESSOAL CAMARA/EMBALADORES | F10: 31946.72 | G10: PAGAMENTOS | H10: 8.
A11: ABRIL/2017 | B11: Abril | C11: 2017 | D11: 8.1.1.4 | E11: EMPRESTIMOS A FUNCIONARIOS | F11: 600 | G11: PAGAMENTOS | H11: 8.
A12: ABRIL/2017 | B12: Abril | C12: 2017 | D12: 8.1.1.6 | E12: RESCISAO CONTRATUAL | G12: PAGAMENTOS | H12: 8.
A13: ABRIL/2017 | B13: Abril | C13: 2017 | D13: 8.1.1.8 | E13: DESPESA COM VIAGEM | F13: 1050 | G13: PAGAMENTOS | H13: 8.
A14: ABRIL/2017 | B14: Abril | C14: 2017 | D14: 8.1.1.9 | E14: OUTRAS DESP. COM PESSOAL | F14: 4615.26 | G14: PAGAMENTOS | H14: 8.
A15: ABRIL/2017 | B15: Abril | C15: 2017 | D15: 8.1.1.10 | E15: FERIAS FUNCIONARIOS | F15: 4118.92 | G15: PAGAMENTOS | H15: 8.
A16: ABRIL/2017 | B16: Abril | C16: 2017 | D16: 8.1.1.11 | E16: DECIMO TERCEIRO SALARIO | F16: 1697.36 | G16: PAGAMENTOS | H16: 8.
A17: ABRIL/2017 | B17: Abril | C17: 2017 | D17: 8.1.2.2 | E17: FGTS | F17: 4587.88 | G17: PAGAMENTOS | H17: 8.
A18: ABRIL/2017 | B18: Abril | C18: 2017 | D18: 8.1.2.3 | E18: CONTRIBUICAO SOCIAL | F18: 1084.2 | G18: PAGAMENTOS | H18: 8.
A19: ABRIL/2017 | B19: Abril | C19: 2017 | D19: 8.1.2.4 | E19: INSS ADMINISTRACAO/CAMARA | F19: 6520.95 | G19: PAGAMENTOS | H19: 8.
A20: ABRIL/2017 | B20: Abril | C20: 2017 | D20: 8.1.2.5 | E20: INSS COLHEITADORES | F20: 4388.08 | G20: PAGAMENTOS | H20: 8.
A21: ABRIL/2017 | B21: Abril | C21: 2017 | D21: 8.1.3.1 | E21: ENERGIA | F21: 3282.23 | G21: PAGAMENTOS | H21: 8.
A22: ABRIL/2017 | B22: Abril | C22: 2017 | D22: 8.1.3.2 | E22: AGUA | F22: 53.12 | G22: PAGAMENTOS | H22: 8.
A23: ABRIL/2017 | B23: Abril | C23: 2017 | D23: 8.1.3.3 | E23: TELEFONE FIXO | F23: 179.8 | G23: PAGAMENTOS | H23: 8.
A24: ABRIL/2017 | B24: Abril | C24: 2017 | D24: 8.1.3.4 | E24: TELEFONE CELULAR | F24: 1004.76 | G24: PAGAMENTOS | H24: 8.
A25: ABRIL/2017 | B25: Abril | C25: 2017 | D25: 8.1.3.5 | E25: HONORARIOS CONTABEIS | F25: 2859 | G25: PAGAMENTOS | H25: 8.
A26: ABRIL/2017 | B26: Abril | C26: 2017 | D26: 8.1.3.6 | E26: MATERIAL DE ESCRITORIO | F26: 242 | G26: PAGAMENTOS | H26: 8.
A27: ABRIL/2017 | B27: Abril | C27: 2017 | D27: 8.1.3.7 | E27: MATERIAL DE LIMPEZA E CANTINA | F27: 449.83 | G27: PAGAMENTOS | H27: 8.
A28: ABRIL/2017 | B28: Abril | C28: 2017 | D28: 8.1.3.9 | E28: CORREIO, ENCOMENDAS E CARTORIOS | G28: PAGAMENTOS | H28: 8.
A29: ABRIL/2017 | B29: Abril | C29: 2017 | D29: 8.1.3.10 | E29: SEGUROS | F29: 1652.99 | G29: PAGAMENTOS | H29: 8.
A30: ABRIL/2017 | B30: Abril | C30: 2017 | D30: 8.1.3.12 | E30: MENSALIDADE-ABANORTE | F30: 1074 | G30: PAGAMENTOS | H30: 8.
A31: ABRIL/2017 | B31: Abril | C31: 2017 | D31: 8.1.3.13 | E31: MENSALIDADE-ACIJAN | F31: 80.1 | G31: PAGAMENTOS | H31: 8.
A32: ABRIL/2017 | B32: Abril | C32: 2017 | D32: 8.1.3.14 | E32: ASSINATURA (JORNAL, INTERNET) | F32: 25 | G32: PAGAMENTOS | H32: 8.
A33: ABRIL/2017 | B33: Abril | C33: 2017 | D33: 8.1.3.15 | E33: SUPORTE INFORMATICA | F33: 311.1 | G33: PAGAMENTOS | H33: 8.
A34: ABRIL/2017 | B34: Abril | C34: 2017 | D34: 8.1.3.17 | E34: MANUT. HIDRAULICA E ELETRICA | G34: PAGAMENTOS | H34: 8.
A35: ABRIL/2017 | B35: Abril | C35: 2017 | D35: 8.1.3.18 | E35: SERVICOS DE VIGILANCIA | F35: 140 | G35: PAGAMENTOS | H35: 8.
A36: ABRIL/2017 | B36: Abril | C36: 2017 | D36: 8.1.3.19 | E36: PADARIA E LANCHONETE | F36: 489.2 | G36: PAGAMENTOS | H36: 8.
A37: ABRIL/2017 | B37: Abril | C37: 2017 | D37: 8.1.3.20 | E37: OUTRAS DESP.ADMINISTRATIVAS | F37: 1874 | G37: PAGAMENTOS | H37: 8.
A38: ABRIL/2017 | B38: Abril | C38: 2017 | D38: 8.2.1.3 | E38: OUTRAS DESP.COM VENDAS | F38: 1838.6 | G38: PAGAMENTOS | H38: 8.
A39: ABRIL/2017 | B39: Abril | C39: 2017 | D39: 8.2.1.4 | E39: DESCONTOS CONCEDIDOS | F39: 123.5 | G39: PAGAMENTOS | H39: 8.
A40: ABRIL/2017 | B40: Abril | C40: 2017 | D40: 8.2.2.1 | E40: MANUTENCAO VEICULO | F40: 1875.5 | G40: PAGAMENTOS | H40: 8.
A41: ABRIL/2017 | B41: Abril | C41: 2017 | D41: 8.2.2.2 | E41: COMBUSTIVEL | F41: 2952.76 | G41: PAGAMENTOS | H41: 8.
A42: ABRIL/2017 | B42: Abril | C42: 2017 | D42: 8.2.2.6 | E42: ICMS SOBRE FRETE | F42: 7884.07 | G42: PAGAMENTOS | H42: 8.
A43: ABRIL/2017 | B43: Abril | C43: 2017 | D43: 8.2.2.7 | E43: FRETE TRANSPORTES | F43: 2500 | G43: PAGAMENTOS | H43: 8.
A44: ABRIL/2017 | B44: Abril | C44: 2017 | D44: 8.2.2.8 | E44: PERMISSAO TRANSITO | F44: 3381.04 | G44: PAGAMENTOS | H44: 8.
A45: ABRIL/2017 | B45: Abril | C45: 2017 | D45: 8.2.2.15 | E45: COMBUSTIVEL COOPERADOS | F45: 3807 | G45: PAGAMENTOS | H45: 8.
A46: ABRIL/2017 | B46: Abril | C46: 2017 | D46: 8.2.2.16 | E46: COMBUSTIVEL (OLEO DIESEL) | F46: 6708 | G46: PAGAMENTOS | H46: 8.
A47: ABRIL/2017 | B47: Abril | C47: 2017 | D47: 8.2.2.17 | E47: COMBUSTIVEL TERCEIROS | F47: 4263 | G47: PAGAMENTOS | H47: 8.
A48: ABRIL/2017 | B48: Abril | C48: 2017 | D48: 8.2.3.1 | E48: PROPAGANDA | G48: PAGAMENTOS | H48: 8.
A49: ABRIL/2017 | B49: Abril | C49: 2017 | D49: 8.2.3.2 | E49: PATROCINIOS | G49: PAGAMENTOS | H49: 8.
A50: ABRIL/2017 | B50: Abril | C50: 2017 | D50: 8.3.1.2 | E50: OUTRAS DESP.FINANCEIRAS | F50: 952.86 | G50: PAGAMENTOS | H50: 8.
A51: ABRIL/2017 | B51: Abril | C51: 2017 | D51: 8.4.1.3 | E51: IPTU | G51: PAGAMENTOS | H51: 8.
A52: ABRIL/2017 | B52: Abril | C52: 2017 | D52: 8.4.1.4 | E52: OUTRAS DESP.TRIBUTARIAS | F52: 394.42 | G52: PAGAMENTOS | H52: 8.
A53: ABRIL/2017 | B53: Abril | C53: 2017 | D53: 10.1.1.3 | E53: OUTRAS REC.NAO OPERACIONAIS | F53: 16366.4 | G53: RECEITA NÃO OPERACIONAL | H53: 10
A54: ABRIL/2017 | B54: Abril | C54: 2017 | D54: 10.1.1.5 | E54: DESCONTOS OBTIDOS | F54: 3177.31 | G54: RECEITA NÃO OPERACIONAL | H54: 10
A55: ABRIL/2017 | B55: Abril | C55: 2017 | D55: 11.1.1.1 | E55: DESPESAS NAO OPERACIONAIS | F55: 766.59 | G55: PAGAMENTOS | H55: 11
A56: ABRIL/2017 | B56: Abril | C56: 2017 | D56: 11.1.1.2 | E56: PROVISAO P/ DEVEDORES DUVIDOSOS | F56: 9238.11 | G56: PAGAMENTOS | H56: 11
A57: ABRIL/2017 | B57: Abril | C57: 2017 | D57: 11.1.1.6 | E57: FERRAMENTARIA | G57: PAGAMENTOS | H57: 11
A58: ABRIL/2017 | B58: Abril | C58: 2017 | D58: 11.1.1.8 | E58: FUNDO ABANORTE SIGATOKA NEGRA | F58: 2016 | G58: PAGAMENTOS | H58: 11
A59: ABRIL/2018 | B59: ABRIL | C59: 2018 | D59: 1.1.1.2 | E59: VL. TOTAL DOS CUPONS* A PRAZO | F59: 1008922.75 | G59: FATURAMENTO | H59: 1.
A60: ABRIL/2018 | B60: ABRIL | C60: 2018 | D60: 2.1.1.1 | E60: (CUST12) CUSTO DOS PRODUTOS VENDIDOS | F60: 831438.8 | G60: PAGAMENTOS | H60: 2.
A61: ABRIL/2018 | B61: ABRIL | C61: 2018 | D61: 4.1.1.1 | E61: PIS/COFINS | F61: 701.35 | G61: PAGAMENTOS | H61: 4.
A62: ABRIL/2018 | B62: ABRIL | C62: 2018 | D62: 4.1.1.2 | E62: OUTROS IMPOSTOS | F62: 2148.97 | G62: PAGAMENTOS | H62: 4.
A63: ABRIL/2018 | B63: ABRIL | C63: 2018 | D63: 6.1.1.2 | E63: CUSTO COM EMBALAGENS | F63: 35596.96 | G63: PAGAMENTOS | H63: 6.
A64: ABRIL/2018 | B64: ABRIL | C64: 2018 | D64: 6.1.1.3 | E64: FUNRURAL | F64: 11998.92 | G64: PAGAMENTOS | H64: 6.
A65: ABRIL/2018 | B65: ABRIL | C65: 2018 | D65: 8.1.1.1 | E65: FOPAG ADMINISTRATIVO | F65: 13772.64 | G65: PAGAMENTOS | H65: 8.
A66: ABRIL/2018 | B66: ABRIL | C66: 2018 | D66: 8.1.1.2 | E66: FOPAG PESSOAL CAMARA/EMBALADORES | F66: 29961.53 | G66: PAGAMENTOS | H66: 8.
A67: ABRIL/2018 | B67: ABRIL | C67: 2018 | D67: 8.1.1.9 | E67: OUTRAS DESP. COM PESSOAL | F67: 2102.76 | G67: PAGAMENTOS | H67: 8.
A68: ABRIL/2018 | B68: ABRIL | C68: 2018 | D68: 8.1.1.10 | E68: FERIAS FUNCIONARIOS | F68: 5026.07 | G68: PAGAMENTOS | H68: 8.
A69: ABRIL/2018 | B69: ABRIL | C69: 2018 | D69: 8.1.1.11 | E69: DECIMO TERCEIRO SALARIO | F69: 5221.06 | G69: PAGAMENTOS | H69: 8.
A70: ABRIL/2018 | B70: ABRIL | C70: 2018 | D70: 8.1.2.2 | E70: FGTS | F70: 4729.56 | G70: PAGAMENTOS | H70: 8.
A71: ABRIL/2018 | B71: ABRIL | C71: 2018 | D71: 8.1.2.4 | E71: INSS ADMINISTRACAO/CAMARA | F71: 6639.33 | G71: PAGAMENTOS | H71: 8.
A72: ABRIL/2018 | B72: ABRIL | C72: 2018 | D72: 8.1.2.5 | E72: INSS COLHEITADORES | F72: 4073.82 | G72: PAGAMENTOS | H72: 8.
A73: ABRIL/2018 | B73: ABRIL | C73: 2018 | D73: 8.1.3.1 | E73: ENERGIA | F73: 1416.22 | G73: PAGAMENTOS | H73: 8.
A74: ABRIL/2018 | B74: ABRIL | C74: 2018 | D74: 8.1.3.2 | E74: AGUA | F74: 78.04 | G74: PAGAMENTOS | H74: 8.
A75: ABRIL/2018 | B75: ABRIL | C75: 2018 | D75: 8.1.3.3 | E75: TELEFONE FIXO | F75: 67.83 | G75: PAGAMENTOS | H75: 8.
A76: ABRIL/2018 | B76: ABRIL | C76: 2018 | D76: 8.1.3.4 | E76: TELEFONE CELULAR | F76: 630.95 | G76: PAGAMENTOS | H76: 8.
A77: ABRIL/2018 | B77: ABRIL | C77: 2018 | D77: 8.1.3.5 | E77: HONORARIOS CONTABEIS | F77: 2923 | G77: PAGAMENTOS | H77: 8.
A78: ABRIL/2018 | B78: ABRIL | C78: 2018 | D78: 8.1.3.6 | E78: MATERIAL DE ESCRITORIO | F78: 45 | G78: PAGAMENTOS | H78: 8.
A79: ABRIL/2018 | B79: ABRIL | C79: 2018 | D79: 8.1.3.7 | E79: MATERIAL DE LIMPEZA E CANTINA | F79: 622.61 | G79: PAGAMENTOS | H79: 8.
A80: ABRIL/2018 | B80: ABRIL | C80: 2018 | D80: 8.1.3.10 | E80: SEGUROS | F80: 1585.45 | G80: PAGAMENTOS | H80: 8.
A81: ABRIL/2018 | B81: ABRIL | C81: 2018 | D81: 8.1.3.12 | E81: MENSALIDADE-ABANORTE | F81: 1074 | G81: PAGAMENTOS | H81: 8.
A82: ABRIL/2018 | B82: ABRIL | C82: 2018 | D82: 8.1.3.13 | E82: MENSALIDADE-ACIJAN | F82: 78.8 | G82: PAGAMENTOS | H82: 8.
A83: ABRIL/2018 | B83: ABRIL | C83: 2018 | D83: 8.1.3.14 | E83: ASSINATURA (JORNAL, INTERNET) | F83: 25 | G83: PAGAMENTOS | H83: 8.
A84: ABRIL/2018 | B84: ABRIL | C84: 2018 | D84: 8.1.3.15 | E84: SUPORTE INFORMATICA | F84: 286.2 | G84: PAGAMENTOS | H84: 8.
A85: ABRIL/2018 | B85: ABRIL | C85: 2018 | D85: 8.1.3.16 | E85: MANUT.MAQ E EQUIP | F85: 195 | G85: PAGAMENTOS | H85: 8.
A86: ABRIL/2018 | B86: ABRIL | C86: 2018 | D86: 8.1.3.18 | E86: SERVICOS DE VIGILANCIA | F86: 150 | G86: PAGAMENTOS | H86: 8.
A87: ABRIL/2018 | B87: ABRIL | C87: 2018 | D87: 8.1.3.19 | E87: PADARIA E LANCHONETE | F87: 651.04 | G87: PAGAMENTOS | H87: 8.
A88: ABRIL/2018 | B88: ABRIL | C88: 2018 | D88: 8.1.3.20 | E88: OUTRAS DESP.ADMINISTRATIVAS | F88: 4694.88 | G88: PAGAMENTOS | H88: 8.
A89: ABRIL/2018 | B89: ABRIL | C89: 2018 | D89: 8.2.1.3 | E89: OUTRAS DESP.COM VENDAS | F89: 4337.77 | G89: PAGAMENTOS | H89: 8.
A90: ABRIL/2018 | B90: ABRIL | C90: 2018 | D90: 8.2.1.4 | E90: DESCONTOS CONCEDIDOS | F90: 3749.15 | G90: PAGAMENTOS | H90: 8.
A91: ABRIL/2018 | B91: ABRIL | C91: 2018 | D91: 8.2.2.1 | E91: MANUTENCAO VEICULO | F91: 2434 | G91: PAGAMENTOS | H91: 8.
A92: ABRIL/2018 | B92: ABRIL | C92: 2018 | D92: 8.2.2.2 | E92: COMBUSTIVEL | F92: 2758.43 | G92: PAGAMENTOS | H92: 8.
A93: ABRIL/2018 | B93: ABRIL | C93: 2018 | D93: 8.2.2.6 | E93: ICMS SOBRE FRETE | F93: 644.48 | G93: PAGAMENTOS | H93: 8.
A94: ABRIL/2018 | B94: ABRIL | C94: 2018 | D94: 8.2.2.7 | E94: FRETE TRANSPORTES | F94: 6809.92 | G94: PAGAMENTOS | H94: 8.
A95: ABRIL/2018 | B95: ABRIL | C95: 2018 | D95: 8.2.2.8 | E95: PERMISSAO TRANSITO | F95: 2925.9 | G95: PAGAMENTOS | H95: 8.
A96: ABRIL/2018 | B96: ABRIL | C96: 2018 | D96: 8.2.2.15 | E96: COMBUSTIVEL COOPERADOS | F96: 3440.45 | G96: PAGAMENTOS | H96: 8.
A97: ABRIL/2018 | B97: ABRIL | C97: 2018 | D97: 8.2.2.16 | E97: COMBUSTIVEL (OLEO DIESEL) | F97: 1376.85 | G97: PAGAMENTOS | H97: 8.
A98: ABRIL/2018 | B98: ABRIL | C98: 2018 | D98: 8.2.2.17 | E98: COMBUSTIVEL TERCEIROS | F98: 4723.5 | G98: PAGAMENTOS | H98: 8.
A99: ABRIL/2018 | B99: ABRIL | C99: 2018 | D99: 8.3.1.2 | E99: OUTRAS DESP.FINANCEIRAS | F99: 1021.63 | G99: PAGAMENTOS | H99: 8.
A100: ABRIL/2018 | B100: ABRIL | C100: 2018 | D100: 8.4.1.4 | E100: OUTRAS DESP.TRIBUTARIAS | F100: 499.25 | G100: PAGAMENTOS | H100: 8.
A101: ABRIL/2018 | B101: ABRIL | C101: 2018 | D101: 10.1.1.3 | E101: OUTRAS REC.NAO OPERACIONAIS | F101: 8094.96 | G101: RECEITA NÃO OPERACIONAL | H101: 10
A102: ABRIL/2018 | B102: ABRIL | C102: 2018 | D102: 10.1.1.5 | E102: DESCONTOS OBTIDOS | F102: 1102.56 | G102: RECEITA NÃO OPERACIONAL | H102: 10
A103: ABRIL/2018 | B103: ABRIL | C103: 2018 | D103: 11.1.1.2 | E103: PROVISAO P/ DEVEDORES DUVIDOSOS | F103: 5812.88 | G103: PAGAMENTOS | H103: 11
A104: ABRIL/2018 | B104: ABRIL | C104: 2018 | D104: 11.1.1.8 | E104: FUNDO ABANORTE SIGATOKA NEGRA | F104: 1952 | G104: PAGAMENTOS | H104: 11
A105: ABRIL/2018 | B105: ABRIL | C105: 2018 | D105: 13.1.1.1 | E105: IMPOSTO S/ LUCRO | F105: 567.42 | G105: PAGAMENTOS | H105: 13
A106: AGOSTO/2017 | B106: Agosto | C106: 2017 | D106: 1.1.1.2 | E106: VL. TOTAL DOS CUPONS* A PRAZO | F106: 914126.2 | G106: FATURAMENTO | H106: 1.
A107: AGOSTO/2017 | B107: Agosto | C107: 2017 | D107: 2.1.1.1 | E107: (CUST12) CUSTO DOS PRODUTOS VENDIDOS | F107: 740408.84 | G107: PAGAMENTOS | H107: 2.
A108: AGOSTO/2017 | B108: Agosto | C108: 2017 | D108: 4.1.1.1 | E108: PIS/COFINS | F108: 527.96 | G108: PAGAMENTOS | H108: 4.
A109: AGOSTO/2017 | B109: Agosto | C109: 2017 | D109: 4.1.1.2 | E109: OUTROS IMPOSTOS | F109: 1647.8 | G109: PAGAMENTOS | H109: 4.
A110: AGOSTO/2017 | B110: Agosto | C110: 2017 | D110: 6.1.1.2 | E110: CUSTO COM EMBALAGENS | F110: 36818.98 | G110: PAGAMENTOS | H110: 6.
A111: AGOSTO/2017 | B111: Agosto | C111: 2017 | D111: 6.1.1.3 | E111: FUNRURAL | F111: 16184.64 | G111: PAGAMENTOS | H111: 6.
A112: AGOSTO/2017 | B112: Agosto | C112: 2017 | D112: 8.1.1.1 | E112: FOPAG ADMINISTRATIVO | F112: 13724.06 | G112: PAGAMENTOS | H112: 8.
A113: AGOSTO/2017 | B113: Agosto | C113: 2017 | D113: 8.1.1.2 | E113: FOPAG PESSOAL CAMARA/EMBALADORES | F113: 27815.36 | G113: PAGAMENTOS | H113: 8.
A114: AGOSTO/2017 | B114: Agosto | C114: 2017 | D114: 8.1.1.4 | E114: EMPRESTIMOS A FUNCIONARIOS | F114: 1200 | G114: PAGAMENTOS | H114: 8.
A115: AGOSTO/2017 | B115: Agosto | C115: 2017 | D115: 8.1.1.6 | E115: RESCISAO CONTRATUAL | G115: PAGAMENTOS | H115: 8.
A116: AGOSTO/2017 | B116: Agosto | C116: 2017 | D116: 8.1.1.8 | E116: DESPESA COM VIAGEM | G116: PAGAMENTOS | H116: 8.
A117: AGOSTO/2017 | B117: Agosto | C117: 2017 | D117: 8.1.1.9 | E117: OUTRAS DESP. COM PESSOAL | F117: 4430.26 | G117: PAGAMENTOS | H117: 8.
A118: AGOSTO/2017 | B118: Agosto | C118: 2017 | D118: 8.1.1.10 | E118: FERIAS FUNCIONARIOS | F118: 4070.53 | G118: PAGAMENTOS | H118: 8.
A119: AGOSTO/2017 | B119: Agosto | C119: 2017 | D119: 8.1.1.11 | E119: DECIMO TERCEIRO SALARIO | F119: 4167.48 | G119: PAGAMENTOS | H119: 8.
A120: AGOSTO/2017 | B120: Agosto | C120: 2017 | D120: 8.1.2.2 | E120: FGTS | F120: 4632.72 | G120: PAGAMENTOS | H120: 8.
A121: AGOSTO/2017 | B121: Agosto | C121: 2017 | D121: 8.1.2.3 | E121: CONTRIBUICAO SOCIAL | G121: PAGAMENTOS | H121: 8.
A122: AGOSTO/2017 | B122: Agosto | C122: 2017 | D122: 8.1.2.4 | E122: INSS ADMINISTRACAO/CAMARA | F122: 6119.41 | G122: PAGAMENTOS | H122: 8.
A123: AGOSTO/2017 | B123: Agosto | C123: 2017 | D123: 8.1.2.5 | E123: INSS COLHEITADORES | F123: 4287.2 | G123: PAGAMENTOS | H123: 8.
A124: AGOSTO/2017 | B124: Agosto | C124: 2017 | D124: 8.1.3.1 | E124: ENERGIA | F124: 1292.11 | G124: PAGAMENTOS | H124: 8.
A125: AGOSTO/2017 | B125: Agosto | C125: 2017 | D125: 8.1.3.2 | E125: AGUA | F125: 81.7 | G125: PAGAMENTOS | H125: 8.
A126: AGOSTO/2017 | B126: Agosto | C126: 2017 | D126: 8.1.3.3 | E126: TELEFONE FIXO | F126: 190.12 | G126: PAGAMENTOS | H126: 8.
A127: AGOSTO/2017 | B127: Agosto | C127: 2017 | D127: 8.1.3.4 | E127: TELEFONE CELULAR | F127: 750.66 | G127: PAGAMENTOS | H127: 8.
A128: AGOSTO/2017 | B128: Agosto | C128: 2017 | D128: 8.1.3.5 | E128: HONORARIOS CONTABEIS | F128: 2873.95 | G128: PAGAMENTOS | H128: 8.
A129: AGOSTO/2017 | B129: Agosto | C129: 2017 | D129: 8.1.3.6 | E129: MATERIAL DE ESCRITORIO | F129: 226.1 | G129: PAGAMENTOS | H129: 8.
A130: AGOSTO/2017 | B130: Agosto | C130: 2017 | D130: 8.1.3.7 | E130: MATERIAL DE LIMPEZA E CANTINA | F130: 362.2 | G130: PAGAMENTOS | H130: 8.
A131: AGOSTO/2017 | B131: Agosto | C131: 2017 | D131: 8.1.3.9 | E131: CORREIO, ENCOMENDAS E CARTORIOS | F131: 32.5 | G131: PAGAMENTOS | H131: 8.
A132: AGOSTO/2017 | B132: Agosto | C132: 2017 | D132: 8.1.3.10 | E132: SEGUROS | F132: 3850.97 | G132: PAGAMENTOS | H132: 8.
A133: AGOSTO/2017 | B133: Agosto | C133: 2017 | D133: 8.1.3.12 | E133: MENSALIDADE-ABANORTE | F133: 1074 | G133: PAGAMENTOS | H133: 8.
A134: AGOSTO/2017 | B134: Agosto | C134: 2017 | D134: 8.1.3.13 | E134: MENSALIDADE-ACIJAN | F134: 88.7 | G134: PAGAMENTOS | H134: 8.
A135: AGOSTO/2017 | B135: Agosto | C135: 2017 | D135: 8.1.3.14 | E135: ASSINATURA (JORNAL, INTERNET) | F135: 25 | G135: PAGAMENTOS | H135: 8.
A136: AGOSTO/2017 | B136: Agosto | C136: 2017 | D136: 8.1.3.15 | E136: SUPORTE INFORMATICA | F136: 481.1 | G136: PAGAMENTOS | H136: 8.
A137: AGOSTO/2017 | B137: Agosto | C137: 2017 | D137: 8.1.3.17 | E137: MANUT. HIDRAULICA E ELETRICA | F137: 922 | G137: PAGAMENTOS | H137: 8.
A138: AGOSTO/2017 | B138: Agosto | C138: 2017 | D138: 8.1.3.18 | E138: SERVICOS DE VIGILANCIA | F138: 140 | G138: PAGAMENTOS | H138: 8.
A139: AGOSTO/2017 | B139: Agosto | C139: 2017 | D139: 8.1.3.19 | E139: PADARIA E LANCHONETE | F139: 498.5 | G139: PAGAMENTOS | H139: 8.
A140: AGOSTO/2017 | B140: Agosto | C140: 2017 | D140: 8.1.3.20 | E140: OUTRAS DESP.ADMINISTRATIVAS | F140: 2518 | G140: PAGAMENTOS | H140: 8.
A141: AGOSTO/2017 | B141: Agosto | C141: 2017 | D141: 8.2.1.3 | E141: OUTRAS DESP.COM VENDAS | G141: PAGAMENTOS | H141: 8.
A142: AGOSTO/2017 | B142: Agosto | C142: 2017 | D142: 8.2.1.4 | E142: DESCONTOS CONCEDIDOS | F142: 574.8 | G142: PAGAMENTOS | H142: 8.
A143: AGOSTO/2017 | B143: Agosto | C143: 2017 | D143: 8.2.2.1 | E143: MANUTENCAO VEICULO | F143: 9506.9 | G143: PAGAMENTOS | H143: 8.
A144: AGOSTO/2017 | B144: Agosto | C144: 2017 | D144: 8.2.2.2 | E144: COMBUSTIVEL | F144: 1901.25 | G144: PAGAMENTOS | H144: 8.
A145: AGOSTO/2017 | B145: Agosto | C145: 2017 | D145: 8.2.2.6 | E145: ICMS SOBRE FRETE | F145: 5572.96 | G145: PAGAMENTOS | H145: 8.
A146: AGOSTO/2017 | B146: Agosto | C146: 2017 | D146: 8.2.2.7 | E146: FRETE TRANSPORTES | G146: PAGAMENTOS | H146: 8.
A147: AGOSTO/2017 | B147: Agosto | C147: 2017 | D147: 8.2.2.8 | E147: PERMISSAO TRANSITO | F147: 3023.43 | G147: PAGAMENTOS | H147: 8.
A148: AGOSTO/2017 | B148: Agosto | C148: 2017 | D148: 8.2.2.15 | E148: COMBUSTIVEL COOPERADOS | F148: 2697 | G148: PAGAMENTOS | H148: 8.
A149: AGOSTO/2017 | B149: Agosto | C149: 2017 | D149: 8.2.2.16 | E149: COMBUSTIVEL (OLEO DIESEL) | F149: 1599.6 | G149: PAGAMENTOS | H149: 8.
A150: AGOSTO/2017 | B150: Agosto | C150: 2017 | D150: 8.2.2.17 | E150: COMBUSTIVEL TERCEIROS | F150: 186 | G150: PAGAMENTOS | H150: 8.
A151: AGOSTO/2017 | B151: Agosto | C151: 2017 | D151: 8.2.3.1 | E151: PROPAGANDA | G151: PAGAMENTOS | H151: 8.
A152: AGOSTO/2017 | B152: Agosto | C152: 2017 | D152: 8.2.3.2 | E152: PATROCINIOS | G152: PAGAMENTOS | H152: 8.
A153: AGOSTO/2017 | B153: Agosto | C153: 2017 | D153: 8.3.1.2 | E153: OUTRAS DESP.FINANCEIRAS | F153: 868.78 | G153: PAGAMENTOS | H153: 8.
A154: AGOSTO/2017 | B154: Agosto | C154: 2017 | D154: 8.4.1.3 | E154: IPTU | F154: 1360 | G154: PAGAMENTOS | H154: 8.
A155: AGOSTO/2017 | B155: Agosto | C155: 2017 | D155: 8.4.1.4 | E155: OUTRAS DESP.TRIBUTARIAS | F155: 21.22 | G155: PAGAMENTOS | H155: 8.
A156: AGOSTO/2017 | B156: Agosto | C156: 2017 | D156: 10.1.1.3 | E156: OUTRAS REC.NAO OPERACIONAIS | F156: 3869.05 | G156: RECEITA NÃO OPERACIONAL | H156: 10
A157: AGOSTO/2017 | B157: Agosto | C157: 2017 | D157: 10.1.1.5 | E157: DESCONTOS OBTIDOS | F157: 565.67 | G157: RECEITA NÃO OPERACIONAL | H157: 10
A158: AGOSTO/2017 | B158: Agosto | C158: 2017 | D158: 11.1.1.1 | E158: DESPESAS NAO OPERACIONAIS | F158: 250 | G158: PAGAMENTOS | H158: 11
A159: AGOSTO/2017 | B159: Agosto | C159: 2017 | D159: 11.1.1.2 | E159: PROVISAO P/ DEVEDORES DUVIDOSOS | F159: 8033.45 | G159: PAGAMENTOS | H159: 11
A160: AGOSTO/2017 | B160: Agosto | C160: 2017 | D160: 11.1.1.6 | E160: FERRAMENTARIA | F160: 400 | G160: PAGAMENTOS | H160: 11
A161: AGOSTO/2017 | B161: Agosto | C161: 2017 | D161: 11.1.1.8 | E161: FUNDO ABANORTE SIGATOKA NEGRA | F161: 1728 | G161: PAGAMENTOS | H161: 11
A162: DEZEMBRO/2017 | B162: Dezembro | C162: 2017 | D162: 1.1.1.2 | E162: VL. TOTAL DOS CUPONS* A PRAZO | F162: 889893.35 | G162: FATURAMENTO | H162: 1.
A163: DEZEMBRO/2017 | B163: Dezembro | C163: 2017 | D163: 2.1.1.1 | E163: (CUST12) CUSTO DOS PRODUTOS VENDIDOS | F163: 756734.25 | G163: PAGAMENTOS | H163: 2.
A164: DEZEMBRO/2017 | B164: Dezembro | C164: 2017 | D164: 4.1.1.1 | E164: PIS/COFINS | F164: 686.16 | G164: PAGAMENTOS | H164: 4.
A165: DEZEMBRO/2017 | B165: Dezembro | C165: 2017 | D165: 4.1.1.2 | E165: OUTROS IMPOSTOS | F165: 2006.39 | G165: PAGAMENTOS | H165: 4.
A166: DEZEMBRO/2017 | B166: Dezembro | C166: 2017 | D166: 6.1.1.2 | E166: CUSTO COM EMBALAGENS | F166: 27961.72 | G166: PAGAMENTOS | H166: 6.
A167: DEZEMBRO/2017 | B167: Dezembro | C167: 2017 | D167: 6.1.1.3 | E167: FUNRURAL | F167: 16443.75 | G167: PAGAMENTOS | H167: 6.
A168: DEZEMBRO/2017 | B168: Dezembro | C168: 2017 | D168: 8.1.1.1 | E168: FOPAG ADMINISTRATIVO | F168: 13593.4 | G168: PAGAMENTOS | H168: 8.
A169: DEZEMBRO/2017 | B169: Dezembro | C169: 2017 | D169: 8.1.1.2 | E169: FOPAG PESSOAL CAMARA/EMBALADORES | F169: 28434.61 | G169: PAGAMENTOS | H169: 8.
A170: DEZEMBRO/2017 | B170: Dezembro | C170: 2017 | D170: 8.1.1.4 | E170: EMPRESTIMOS A FUNCIONARIOS | G170: PAGAMENTOS | H170: 8.
A171: DEZEMBRO/2017 | B171: Dezembro | C171: 2017 | D171: 8.1.1.6 | E171: RESCISAO CONTRATUAL | G171: PAGAMENTOS | H171: 8.
A172: DEZEMBRO/2017 | B172: Dezembro | C172: 2017 | D172: 8.1.1.8 | E172: DESPESA COM VIAGEM | F172: 1435.43 | G172: PAGAMENTOS | H172: 8.
A173: DEZEMBRO/2017 | B173: Dezembro | C173: 2017 | D173: 8.1.1.9 | E173: OUTRAS DESP. COM PESSOAL | F173: 4556.98 | G173: PAGAMENTOS | H173: 8.
A174: DEZEMBRO/2017 | B174: Dezembro | C174: 2017 | D174: 8.1.1.10 | E174: FERIAS FUNCIONARIOS | F174: 7597.19 | G174: PAGAMENTOS | H174: 8.
A175: DEZEMBRO/2017 | B175: Dezembro | C175: 2017 | D175: 8.1.1.11 | E175: DECIMO TERCEIRO SALARIO | F175: 19872.05 | G175: PAGAMENTOS | H175: 8.
A176: DEZEMBRO/2017 | B176: Dezembro | C176: 2017 | D176: 8.1.2.2 | E176: FGTS | F176: 5918.43 | G176: PAGAMENTOS | H176: 8.
A177: DEZEMBRO/2017 | B177: Dezembro | C177: 2017 | D177: 8.1.2.3 | E177: CONTRIBUICAO SOCIAL | G177: PAGAMENTOS | H177: 8.
A178: DEZEMBRO/2017 | B178: Dezembro | C178: 2017 | D178: 8.1.2.4 | E178: INSS ADMINISTRACAO/CAMARA | F178: 12466.59 | G178: PAGAMENTOS | H178: 8.
A179: DEZEMBRO/2017 | B179: Dezembro | C179: 2017 | D179: 8.1.2.5 | E179: INSS COLHEITADORES | F179: 7467.69 | G179: PAGAMENTOS | H179: 8.
A180: DEZEMBRO/2017 | B180: Dezembro | C180: 2017 | D180: 8.1.3.1 | E180: ENERGIA | F180: 1168.53 | G180: PAGAMENTOS | H180: 8.
A181: DEZEMBRO/2017 | B181: Dezembro | C181: 2017 | D181: 8.1.3.2 | E181: AGUA | F181: 78.04 | G181: PAGAMENTOS | H181: 8.
A182: DEZEMBRO/2017 | B182: Dezembro | C182: 2017 | D182: 8.1.3.3 | E182: TELEFONE FIXO | F182: 190.12 | G182: PAGAMENTOS | H182: 8.
A183: DEZEMBRO/2017 | B183: Dezembro | C183: 2017 | D183: 8.1.3.4 | E183: TELEFONE CELULAR | F183: 590.52 | G183: PAGAMENTOS | H183: 8.
A184: DEZEMBRO/2017 | B184: Dezembro | C184: 2017 | D184: 8.1.3.5 | E184: HONORARIOS CONTABEIS | F184: 5670 | G184: PAGAMENTOS | H184: 8.
A185: DEZEMBRO/2017 | B185: Dezembro | C185: 2017 | D185: 8.1.3.6 | E185: MATERIAL DE ESCRITORIO | F185: 412.6 | G185: PAGAMENTOS | H185: 8.
A186: DEZEMBRO/2017 | B186: Dezembro | C186: 2017 | D186: 8.1.3.7 | E186: MATERIAL DE LIMPEZA E CANTINA | G186: PAGAMENTOS | H186: 8.
A187: DEZEMBRO/2017 | B187: Dezembro | C187: 2017 | D187: 8.1.3.9 | E187: CORREIO, ENCOMENDAS E CARTORIOS | G187: PAGAMENTOS | H187: 8.
A188: DEZEMBRO/2017 | B188: Dezembro | C188: 2017 | D188: 8.1.3.10 | E188: SEGUROS | F188: 1947.7 | G188: PAGAMENTOS | H188: 8.
A189: DEZEMBRO/2017 | B189: Dezembro | C189: 2017 | D189: 8.1.3.12 | E189: MENSALIDADE-ABANORTE | F189: 1074 | G189: PAGAMENTOS | H189: 8.
A190: DEZEMBRO/2017 | B190: Dezembro | C190: 2017 | D190: 8.1.3.13 | E190: MENSALIDADE-ACIJAN | F190: 88.7 | G190: PAGAMENTOS | H190: 8.
A191: DEZEMBRO/2017 | B191: Dezembro | C191: 2017 | D191: 8.1.3.14 | E191: ASSINATURA (JORNAL, INTERNET) | F191: 25 | G191: PAGAMENTOS | H191: 8.
A192: DEZEMBRO/2017 | B192: Dezembro | C192: 2017 | D192: 8.1.3.15 | E192: SUPORTE INFORMATICA | F192: 281.1 | G192: PAGAMENTOS | H192: 8.
A193: DEZEMBRO/2017 | B193: Dezembro | C193: 2017 | D193: 8.1.3.17 | E193: MANUT. HIDRAULICA E ELETRICA | F193: 13.5 | G193: PAGAMENTOS | H193: 8.
A194: DEZEMBRO/2017 | B194: Dezembro | C194: 2017 | D194: 8.1.3.18 | E194: SERVICOS DE VIGILANCIA | F194: 140 | G194: PAGAMENTOS | H194: 8.
A195: DEZEMBRO/2017 | B195: Dezembro | C195: 2017 | D195: 8.1.3.19 | E195: PADARIA E LANCHONETE | F195: 451.35 | G195: PAGAMENTOS | H195: 8.
A196: DEZEMBRO/2017 | B196: Dezembro | C196: 2017 | D196: 8.1.3.20 | E196: OUTRAS DESP.ADMINISTRATIVAS | F196: 14409.55 | G196: PAGAMENTOS | H196: 8.
A197: DEZEMBRO/2017 | B197: Dezembro | C197: 2017 | D197: 8.2.1.3 | E197: OUTRAS DESP.COM VENDAS | F197: 848.5 | G197: PAGAMENTOS | H197: 8.
A198: DEZEMBRO/2017 | B198: Dezembro | C198: 2017 | D198: 8.2.1.4 | E198: DESCONTOS CONCEDIDOS | F198: 2229.67 | G198: PAGAMENTOS | H198: 8.
A199: DEZEMBRO/2017 | B199: Dezembro | C199: 2017 | D199: 8.2.2.1 | E199: MANUTENCAO VEICULO | F199: 2000 | G199: PAGAMENTOS | H199: 8.
A200: DEZEMBRO/2017 | B200: Dezembro | C200: 2017 | D200: 8.2.2.2 | E200: COMBUSTIVEL | F200: 2447.65 | G200: PAGAMENTOS | H200: 8.
... 798 more rows

Sheet Importação
B1: MENU
G7: IMPORTAÇÃO DE DADOS
H8: MÊS | J8: ANO | R8: =COUNTIF(Arquivo!A:A,CONCATENATE(H9,"/",J9)) -> 47
H9: JULHO | J9: 2018
G14: EXCLUSÃO DE DADOS
H15: MÊS | J15: ANO | R15: =COUNTIF(Arquivo!A:A,CONCATENATE(H16,"/",J16)) -> 44
H16: JUNHO | J16: 2018
H40: JANEIRO
H41: FEVEREIRO
H42: MARÇO
H43: ABRIL
H44: MAIO
H45: JUNHO
H46: JULHO
H47: AGOSTO
H48: SETEMBRO
H49: OUTUBRO
H50: NOVEMBRO
H51: DEZEMBRO

Sheet Plano de Contas
B1: CADASTRAMENTO DE CONTAS
B4: PLANO DE CONTAS | I4: IDENTIFICADOR DE CONTAS NÃO CADASTRADAS
B5: ESTRUTURA | C5: CÓDIGO | D5: DESCRIÇÃO | E5: TIPO | I5: =IF(COUNTIF(J7:J190,"CONTA NÃO CADASTRADA")>0,"ATENÇÃO! FAVOR EFETUAR O CADASTRAMENTO DE CONTAS","") -> 
D6: (+) RECEITA BRUTA | I6: ESTRUTURA | J6: DESCRIÇÃO
B7: 1.1.1.1 | C7: (000003) | D7: REC. VENDAS A VISTA | I7: 1 | J7: =IF(LEN(I7)>6,IFERROR((VLOOKUP($I7,$B$5:$E$200,3,FALSE)),"CONTA NÃO CADASTRADA"),"") -> 
B8: 1.1.1.2 | C8: (CUST04) | D8: VL. TOTAL DOS CUPONS* A PRAZO | I8: 1.1 | J8: =IF(LEN(I8)>6,IFERROR((VLOOKUP($I8,$B$5:$E$200,3,FALSE)),"CONTA NÃO CADASTRADA"),"") -> 
I9: 1.1.1
I10: 1.1.1.2 | J10: VL. TOTAL DOS CUPONS* A PRAZO
I11: 2
I12: 2.1
I13: 2.1.1
D14: (-) IMPOSTOS E DEDUÇÕES | I14: 2.1.1.1 | J14: (CUST12) CUSTO DOS PRODUTOS VENDIDOS
B15: 4.1.1.1 | C15: (000005) | D15: PIS/COFINS | E15: CV | I15: 3
B16: 4.1.1.2 | C16: (000007) | D16: OUTROS IMPOSTOS | E16: CV | I16: 4
I17: 4.1
I18: 4.1.1
I19: 4.1.1.1 | J19: PIS/COFINS
I20: 4.1.1.2 | J20: OUTROS IMPOSTOS
I21: 5
I22: 6
D23: (-) CUSTO MERCADORIA VENDIDA | I23: 6.1
B24: 2.1.1.1 | C24: (CUST12) | D24: (CUST12) CUSTO DOS PRODUTOS VENDIDOS | E24: CV | I24: 6.1.1
B25: 6.1.1.1 | C25: (000078) | D25: OUTROS CUSTOS DIRETOS | E25: CV | I25: 6.1.1.2 | J25: CUSTO COM EMBALAGENS
B26: 6.1.1.2 | C26: (000085) | D26: CUSTO COM EMBALAGENS | E26: CV | I26: 6.1.1.3 | J26: FUNRURAL
B27: 6.1.1.4 | C27: (000075) | D27: OUTROS CUSTOS COM EMBALAGEM | E27: CV | I27: 7
I28: 8
I29: 8.1
I30: 8.1.1
I31: 8.1.1.1 | J31: FOPAG ADMINISTRATIVO
I32: 8.1.1.2 | J32: FOPAG PESSOAL CAMARA/EMBALADORES
D33: DESPESAS COM PESSOAL | I33: 8.1.1.9 | J33: OUTRAS DESP. COM PESSOAL
B34: 8.1.1.1 | C34: (000016) | D34: FOPAG ADMINISTRATIVO | E34: CF | I34: 8.1.1.10 | J34: FERIAS FUNCIONARIOS
B35: 8.1.1.2 | C35: (000017) | D35: FOPAG PESSOAL CAMARA/EMBALADORES | E35: CF | I35: 8.1.1.11 | J35: DECIMO TERCEIRO SALARIO
B36: 8.1.1.3 | C36: (000018) | D36: HONORARIOS DIRETORIA | E36: CF | I36: 8.1.2
B37: 8.1.1.5 | C37: (000020) | D37: EMBALADORES | E37: CV | I37: 8.1.2.2 | J37: FGTS
B38: 8.1.1.6 | C38: (000021) | D38: RESCISAO CONTRATUAL | E38: CV | I38: 8.1.2.4 | J38: INSS ADMINISTRACAO/CAMARA
B39: 8.1.1.7 | C39: (000076) | D39: TREINAMENTO DE PESSOAL | E39: CV | I39: 8.1.2.5 | J39: INSS COLHEITADORES
B40: 8.1.1.8 | C40: (000077) | D40: DESPESA COM VIAGEM | E40: CV | I40: 8.1.3
B41: 8.1.1.9 | C41: (000071) | D41: OUTRAS DESP. COM PESSOAL | E41: CV | I41: 8.1.3.1 | J41: ENERGIA
B42: 8.1.1.10 | C42: (000098) | D42: FERIAS FUNCIONARIOS | E42: CF | I42: 8.1.3.2 | J42: AGUA
B43: 8.1.1.11 | C43: (000101) | D43: DECIMO TERCEIRO SALARIO | E43: CF | I43: 8.1.3.3 | J43: TELEFONE FIXO
B44: 8.1.1.12 | C44: (000115) | D44: DISTRIBUICAO DE PLR FUNCIONARIOS | E44: CV | I44: 8.1.3.4 | J44: TELEFONE CELULAR
B45: 8.1.2.1 | C45: (000022) | D45: INSS | E45: CF | I45: 8.1.3.5 | J45: HONORARIOS CONTABEIS
B46: 8.1.2.2 | C46: (000023) | D46: FGTS | E46: CF | I46: 8.1.3.6 | J46: MATERIAL DE ESCRITORIO
B47: 8.1.2.3 | C47: (000024) | D47: CONTRIBUICAO SOCIAL | E47: CF | I47: 8.1.3.10 | J47: SEGUROS
B48: 8.1.2.4 | C48: (000090) | D48: INSS ADMINISTRACAO/CAMARA | E48: CF | I48: 8.1.3.12 | J48: MENSALIDADE-ABANORTE
B49: 8.1.2.5 | C49: (000091) | D49: INSS COLHEITADORES | E49: CF | I49: 8.1.3.13 | J49: MENSALIDADE-ACIJAN
B50: 8.4.1.2 | C50: (000057) | D50: BRINDES C/ APOSENTADORIA FUNCIONARIOS | E50: CV | I50: 8.1.3.14 | J50: ASSINATURA (JORNAL, INTERNET)
B51: 6.1.1.3 | C51: (000068) | D51: FUNRURAL | E51: CV | I51: 8.1.3.15 | J51: SUPORTE INFORMATICA
I52: 8.1.3.17 | J52: MANUT. HIDRAULICA E ELETRICA
I53: 8.1.3.18 | J53: SERVICOS DE VIGILANCIA
I54: 8.1.3.19 | J54: PADARIA E LANCHONETE
I55: 8.1.3.20 | J55: OUTRAS DESP.ADMINISTRATIVAS
D56: DESPESAS ADMINISTRATIVAS | I56: 8.2
B57: 8.1.3.1 | C57: (000025) | D57: ENERGIA | E57: CF | I57: 8.2.1
B58: 8.1.3.2 | C58: (000026) | D58: AGUA | E58: CF | I58: 8.2.1.4 | J58: DESCONTOS CONCEDIDOS
B59: 8.1.3.3 | C59: (000027) | D59: TELEFONE FIXO | E59: CF | I59: 8.2.2
B60: 8.1.3.4 | C60: (000028) | D60: TELEFONE CELULAR | E60: CF | I60: 8.2.2.1 | J60: MANUTENCAO VEICULO
B61: 8.1.3.5 | C61: (000029) | D61: HONORARIOS CONTABEIS | E61: CF | I61: 8.2.2.2 | J61: COMBUSTIVEL
B62: 8.1.3.6 | C62: (000030) | D62: MATERIAL DE ESCRITORIO | E62: CV | I62: 8.2.2.7 | J62: FRETE TRANSPORTES
B63: 8.1.3.7 | C63: (000031) | D63: MATERIAL DE LIMPEZA E CANTINA | E63: CF | I63: 8.2.2.8 | J63: PERMISSAO TRANSITO
B64: 8.1.3.8 | C64: (000032) | D64: ALUGUEIS E ARRENDAMENTOS | E64: CF | I64: 8.2.2.15 | J64: COMBUSTIVEL COOPERADOS
B65: 8.1.3.9 | C65: (000033) | D65: CORREIO, ENCOMENDAS E CARTORIOS | E65: CV | I65: 8.2.2.16 | J65: COMBUSTIVEL (OLEO DIESEL)
B66: 8.1.3.10 | C66: (000034) | D66: SEGUROS | E66: CF | I66: 8.2.2.17 | J66: COMBUSTIVEL TERCEIROS
B67: 8.1.3.11 | C67: (000035) | D67: COMODATO-ABANORTE | E67: CF | I67: 8.3
B68: 8.1.3.12 | C68: (000036) | D68: MENSALIDADE-ABANORTE | E68: CF | I68: 8.3.1
B69: 8.1.3.13 | C69: (000037) | D69: MENSALIDADE-ACIJAN | E69: CF | I69: 8.3.1.2 | J69: OUTRAS DESP.FINANCEIRAS
B70: 8.1.3.14 | C70: (000038) | D70: ASSINATURA (JORNAL, INTERNET) | E70: CF | I70: 8.4
B71: 8.1.3.15 | C71: (000039) | D71: SUPORTE INFORMATICA | E71: CV | I71: 8.4.1
B72: 8.1.3.16 | C72: (000040) | D72: MANUT.MAQ E EQUIP | E72: CV | I72: 8.4.1.4 | J72: =IF(LEN(I72)>6,IFERROR((VLOOKUP($I72,$B$5:$E$200,3,FALSE)),"CONTA NÃO CADASTRADA"),"") -> OUTRAS DESP.TRIBUTARIAS
B73: 8.1.3.17 | C73: (000070) | D73: MANUT. HIDRAULICA E ELETRICA | E73: CV | I73: 9
B74: 8.1.3.18 | C74: (000073) | D74: SERVICOS DE VIGILANCIA | E74: CF | I74: 10
B75: 8.1.3.19 | C75: (000074) | D75: PADARIA E LANCHONETE | E75: CV | I75: 10.1
B76: 8.1.3.20 | C76: (000041) | D76: OUTRAS DESP.ADMINISTRATIVAS | E76: CV | I76: 10.1.1
B77: 11.1.1.8 | C77: (000105) | D77: FUNDO ABANORTE SIGATOKA NEGRA | E77: CF | I77: 10.1.1.3 | J77: OUTRAS REC.NAO OPERACIONAIS
B78: 8.2.2.15 | C78: (000102) | D78: COMBUSTIVEL COOPERADOS | E78: CV | I78: 10.1.1.5 | J78: DESCONTOS OBTIDOS
I79: 11
I80: 11.1
I81: 11.1.1
D82: DESPESAS COMERCIAIS | I82: 11.1.1.2 | J82: PROVISAO P/ DEVEDORES DUVIDOSOS
B83: 8.2.1.1 | C83: (000042) | D83: COMISSAO VENDEDORES | E83: CV | I83: 11.1.1.6 | J83: FERRAMENTARIA
B84: 8.2.1.2 | C84: (000043) | D84: AJUDA DE CUSTO | E84: CV | I84: 11.1.1.8 | J84: FUNDO ABANORTE SIGATOKA NEGRA
B85: 8.2.1.3 | C85: (000044) | D85: OUTRAS DESP.COM VENDAS | E85: CV | I85: 12
I86: 14
D91: DESPESAS COM TRANSPORTE
B92: 8.2.2.1 | C92: (000045) | D92: MANUTENCAO VEICULO | E92: CV
B93: 8.2.2.2 | C93: (000046) | D93: COMBUSTIVEL | E93: CV
B94: 8.2.2.3 | C94: (000047) | D94: PECAS E REPAROS | E94: CV
B95: 8.2.2.4 | C95: (000048) | D95: BALDEIO | E95: CV
B96: 8.2.2.5 | C96: (000069) | D96: BALSA | E96: CV
B97: 8.2.2.6 | C97: (000006) | D97: ICMS SOBRE FRETE | E97: CV
B98: 8.2.2.7 | C98: (000080) | D98: FRETE TRANSPORTES | E98: CV
B99: 8.2.2.8 | C99: (000067) | D99: PERMISSAO TRANSITO | E99: CV
B100: 8.2.2.9 | C100: (000092) | D100: MANUTENCAO CAMINHAO HMG 0033 | E100: CV
B101: 8.2.2.10 | C101: (000093) | D101: MANUTENCAO CAMINHAO VW GMB-9576 | E101: CV
B102: 8.2.2.11 | C102: (000094) | D102: MANUTENCAO MOTO GVZ 8529 | E102: CV
B103: 8.2.2.12 | C103: (000095) | D103: MANUTENCAO MOTO HAC 6345 | E103: CV
B104: 8.2.2.13 | C104: (000099) | D104: MANUT. UNO MILLE EX PLACA GMG-8644 | E104: CV
B105: 8.2.2.14 | C105: (000100) | D105: MANUTENCAO MOTO HAW 9706 | E105: CV
B106: 8.2.2.16 | C106: (000103) | D106: COMBUSTIVEL (OLEO DIESEL) | E106: CV
B107: 8.2.2.17 | C107: (000104) | D107: COMBUSTIVEL TERCEIROS | E107: CV
B108: 8.2.2.18 | C108: (000108) | D108: MANUTENCAO MOTO HBT-8219 | E108: CV
B109: 8.2.2.19 | C109: (000109) | D109: MANUTENCAO CAMINHAO GUR 3478 | E109: CV
B110: 8.2.2.20 | C110: (000110) | D110: MANUTENCAO MOTO YBR HDE 4759 | E110: CV
B111: 8.2.2.21 | C111: (000111) | D111: MANUTENCAO MOTO XTZ AZUL HDU-8042 | E111: CV
B112: 8.2.2.22 | C112: (000112) | D112: MANUTENCAO MOTO YBR 125 K HDU 9298 | E112: CV
B113: 8.2.2.23 | C113: (000113) | D113: MANUTENCAO MOTO XTZ PRETA PLACA HKG-2418 | E113: CV
D120: DESPESAS COM MARKETING
B121: 8.2.3.1 | C121: (000049) | D121: PROPAGANDA | E121: CV
B122: 8.2.3.2 | C122: (000050) | D122: PATROCINIOS | E122: CV
B123: 8.2.3.3 | C123: (000051) | D123: DOACOES | E123: CV
B124: 8.2.3.4 | C124: (000052) | D124: PESQUISA NOVOS PRODUTOS | E124: CV
B125: 8.2.3.5 | C125: (000053) | D125: OUTRAS DESP.COM MARKETING | E125: CV
D131: DESPESAS TRIBUTARIAS
B132: 8.4.1.3 | C132: (000058) | D132: IPTU | E132: CF
B133: 8.4.1.4 | C133: (000059) | D133: OUTRAS DESP.TRIBUTARIAS | E133: CV
D139: DESPESAS FINANCEIRAS
B140: 8.3.1.1 | C140: (000054) | D140: JUROS | E140: CV
B141: 8.3.1.2 | C141: (000055) | D141: OUTRAS DESP.FINANCEIRAS | E141: CV
B142: 8.2.1.4 | C142: (000106) | D142: DESCONTOS CONCEDIDOS | E142: CV
B143: 8.4.1.1 | C143: (000056) | D143: CPMF | E143: CV
D149: (+) RECEITAS NAO OPERACIONAIS
B150: 10.1.1.1 | C150: (000060) | D150: RECEITAS FINANCEIRAS
B151: 10.1.1.3 | C151: (000062) | D151: OUTRAS REC.NAO OPERACIONAIS
B152: 10.1.1.4 | C152: (000086) | D152: COMPLEMENTO NOTAS
B153: 10.1.1.5 | C153: (000107) | D153: DESCONTOS OBTIDOS
D159: (-) DESPESAS NAO OPERACIONAIS
B160: 11.1.1.1 | C160: (000063) | D160: DESPESAS NAO OPERACIONAIS | E160: CV
B161: 11.1.1.6 | C161: (000096) | D161: FERRAMENTARIA | E161: CV
D167: (-) DEDUÇÕES SOBRE LUCRO
B168: 13.1.1.1 | C168: (000064) | D168: IMPOSTO S/ LUCRO | E168: CV
D172: CAPTAÇÕES E RESERVAS
B173: 11.1.1.2 | C173: (000084) | D173: PROVISAO P/ DEVEDORES DUVIDOSOS
B174: 11.1.1.4 | C174: (000088) | D174: FUNDO P/ COMERCIALIZACAO
B175: 11.1.1.5 | C175: (000089) | D175: FUNDO PARA MANUTENCAO CAMARA
B176: 11.1.1.7 | C176: (000097) | D176: INTEGRALIZACAO DE CAPITAL
D183: CRÉDITOS A RECEBER
B184: 8.1.1.4 | C184: (000019) | D184: EMPRESTIMOS A FUNCIONARIOS

Sheet Resumo vendas
B1: RESUMO
B4: VENDAS E PAGAMENTOS
B5: MÊS | C5: ANO | D5: ITEM | E5: VALOR
B6: Abril | C6: 2017 | D6: Receita Total | E6: 1760130.35 | G6: Receita Total | I6: Janeiro
B7: Abril | C7: 2017 | D7: Custos Totais | E7: 1742611.74 | G7: Custos Totais | I7: Fevereiro
B8: Abril | C8: 2017 | D8: Caixa banana cooperado | E8: 37527 | G8: Caixa banana cooperado | I8: Março
B9: Abril | C9: 2017 | D9: Caixa banana não cooperado | E9: 7936 | G9: Caixa banana não cooperado | I9: Abril
B10: Agosto | C10: 2017 | D10: Receita Total | E10: 914126.2 | I10: Maio
B11: Agosto | C11: 2017 | D11: Custos Totais | E11: 914731.52 | I11: Junho
B12: Agosto | C12: 2017 | D12: Caixa banana cooperado | E12: 31479 | I12: Julho
B13: Agosto | C13: 2017 | D13: Caixa banana não cooperado | E13: 9496 | I13: Agosto
B14: Dezembro | C14: 2017 | D14: Receita Total | E14: 889893.35 | I14: Setembro
B15: Dezembro | C15: 2017 | D15: Custos Totais | E15: 944306.68 | I15: Outubro
B16: Dezembro | C16: 2017 | D16: Caixa banana cooperado | E16: 28283 | I16: Novembro
B17: Dezembro | C17: 2017 | D17: Caixa banana não cooperado | E17: 7121 | I17: Dezembro
B18: Fevereiro | C18: 2017 | D18: Receita Total | E18: 1053098.05
B19: Fevereiro | C19: 2017 | D19: Custos Totais | E19: 1064098.48
B20: Fevereiro | C20: 2017 | D20: Caixa banana cooperado | E20: 20950
B21: Fevereiro | C21: 2017 | D21: Caixa banana não cooperado | E21: 7574
B22: Janeiro | C22: 2017 | D22: Receita Total | E22: 1139265.1
B23: Janeiro | C23: 2017 | D23: Custos Totais | E23: 1170438
B24: Janeiro | C24: 2017 | D24: Caixa banana cooperado | E24: 21094
B25: Janeiro | C25: 2017 | D25: Caixa banana não cooperado | E25: 7204
B26: Julho | C26: 2017 | D26: Receita Total | E26: 696869
B27: Julho | C27: 2017 | D27: Custos Totais | E27: 720868.46
B28: Julho | C28: 2017 | D28: Caixa banana cooperado | E28: 32081
B29: Julho | C29: 2017 | D29: Caixa banana não cooperado | E29: 8627
B30: Junho | C30: 2017 | D30: Receita Total | E30: 843373.35
B31: Junho | C31: 2017 | D31: Custos Totais | E31: 905610.84
B32: Junho | C32: 2017 | D32: Caixa banana cooperado | E32: 34174
B33: Junho | C33: 2017 | D33: Caixa banana não cooperado | E33: 5825
B34: Maio | C34: 2017 | D34: Receita Total | E34: 1202834.85
B35: Maio | C35: 2017 | D35: Custos Totais | E35: 1295360.86
B36: Maio | C36: 2017 | D36: Caixa banana cooperado | E36: 36842
B37: Maio | C37: 2017 | D37: Caixa banana não cooperado | E37: 5596
B38: Março | C38: 2017 | D38: Receita Total | E38: 1352426.55
B39: Março | C39: 2017 | D39: Custos Totais | E39: 1384041.02
B40: Março | C40: 2017 | D40: Caixa banana cooperado | E40: 27294
B41: Março | C41: 2017 | D41: Caixa banana não cooperado | E41: 8911
B42: Novembro | C42: 2017 | D42: Receita Total | E42: 719459.05
B43: Novembro | C43: 2017 | D43: Custos Totais | E43: 753853.83
B44: Novembro | C44: 2017 | D44: Caixa banana cooperado | E44: 39186
B45: Novembro | C45: 2017 | D45: Caixa banana não cooperado | E45: 9720
B46: Outubro | C46: 2017 | D46: Receita Total | E46: 628653.95
B47: Outubro | C47: 2017 | D47: Custos Totais | E47: 660657.28
B48: Outubro | C48: 2017 | D48: Caixa banana cooperado | E48: 42512
B49: Outubro | C49: 2017 | D49: Caixa banana não cooperado | E49: 8462
B50: Setembro | C50: 2017 | D50: Receita Total | E50: 899596.5
B51: Setembro | C51: 2017 | D51: Custos Totais | E51: 913388.56
B52: Setembro | C52: 2017 | D52: Caixa banana cooperado | E52: 34797
B53: Setembro | C53: 2017 | D53: Caixa banana não cooperado | E53: 5897
B54: Fevereiro | C54: 2018 | D54: Receita Total | E54: 821530.1
B55: Fevereiro | C55: 2018 | D55: Custos Totais | E55: 681415.88
B56: Fevereiro | C56: 2018 | D56: Caixa banana cooperado | E56: 21233
B57: Fevereiro | C57: 2018 | D57: Caixa banana não cooperado | E57: 7251
B58: Janeiro | C58: 2018 | D58: Receita Total | E58: 960626.8
B59: Janeiro | C59: 2018 | D59: Custos Totais | E59: 964447.05
B60: Janeiro | C60: 2018 | D60: Caixa banana cooperado | E60: 28781
B61: Janeiro | C61: 2018 | D61: Caixa banana não cooperado | E61: 5311
B62: Março | C62: 2018 | D62: Receita Total | E62: 1323267.3
B63: Março | C63: 2018 | D63: Custos Totais | E63: 1302955.1
B64: Março | C64: 2018 | D64: Caixa banana cooperado | E64: 31352
B65: Março | C65: 2018 | D65: Caixa banana não cooperado | E65: 6349
B66: Abril | C66: 2018 | D66: Receita Total | E66: 1008922.75
B67: Abril | C67: 2018 | D67: Custos Totais | E67: 1001791.9
B68: Abril | C68: 2018 | D68: Caixa banana cooperado | E68: 28213
B69: Abril | C69: 2018 | D69: Caixa banana não cooperado | E69: 5335
B70: Maio | C70: 2018 | D70: Receita Total | E70: 804756.6
B71: Maio | C71: 2018 | D71: Custos Totais | E71: 814440.84
B72: Maio | C72: 2018 | D72: Caixa banana cooperado | E72: 22235
B73: Maio | C73: 2018 | D73: Caixa banana não cooperado | E73: 3285
B74: Junho | C74: 2018 | D74: Receita Total | E74: 883169.1
B75: Junho | C75: 2018 | D75: Custos Totais | E75: 840521.83
B76: Junho | C76: 2018 | D76: Caixa banana cooperado | E76: 39986
B77: Junho | C77: 2018 | D77: Caixa banana não cooperado | E77: 296
B78: Julho | C78: 2018 | D78: Receita Total | E78: 608346.95
B79: Julho | C79: 2018 | D79: Custos Totais | E79: 574230.49
B80: Julho | C80: 2018 | D80: Caixa banana cooperado | E80: 35506
B81: Julho | C81: 2018 | D81: Caixa banana não cooperado | E81: 748

Sheet Demonstrativo
B1: DEMONSTRATIVO DE RESULTADO GERENCIAL
G2: MODO DE VISUALIZAÇÃO | V2: CUSTO FIXO | W2: CF
G3: CUSTOS TOTAIS | Q3: ANÁLISE CUSTOS (CONSIDERAR CMV, IMPOSTOS E DEDUÇÕES) | U3: % S/RB | V3: CUSTO VARIÁVEL | W3: CV | X3: =VLOOKUP(G3,V2:W4,2,FALSE) -> CT
Q4: ANÁLISE CUSTOS (DESCONSIDERAR CMV, IMPOSTOS E DEDUÇÕES) | U4: % S/SOMA | V4: CUSTOS TOTAIS | W4: CT
G5: 1 | I5: 2 | K5: 3 | M5: 4 | O5: 5 | Q5: 6 | S5: 7 | U5: 8 | W5: 9 | Y5: 10 | AA5: 11 | AC5: 12
F6: JANEIRO | G6: 2018 | H6: FEVEREIRO | I6: 2018 | J6: MARÇO | K6: 2018 | L6: ABRIL | M6: 2018 | N6: MAIO | O6: 2018 | P6: JUNHO | Q6: 2018 | R6: JULHO | S6: 2018
C8: =IF(X3="CT","DEMONSTRATIVO DE RESULTADO GERENCIAL",CONCATENATE("ANÁLISE DE ",G3)) -> DEMONSTRATIVO DE RESULTADO GERENCIAL | F8: =CONCATENATE(F$6,"/",G$6) -> JANEIRO/2018 | H8: =CONCATENATE(H$6,"/",I$6) -> FEVEREIRO/2018 | J8: =CONCATENATE(J$6,"/",K$6) -> MARÇO/2018 | L8: =CONCATENATE(L$6,"/",M$6) -> ABRIL/2018 | N8: =CONCATENATE(N$6,"/",O$6) -> MAIO/2018 | P8: =CONCATENATE(P$6,"/",Q$6) -> JUNHO/2018 | R8: =CONCATENATE(R$6,"/",S$6) -> JULHO/2018 | T8: =CONCATENATE(T$6,"/",U$6) -> / | V8: =CONCATENATE(V$6,"/",W$6) -> / | X8: =CONCATENATE(X$6,"/",Y$6) -> / | Z8: =CONCATENATE(Z$6,"/",AA$6) -> / | AB8: =CONCATENATE(AB$6,"/",AC$6) -> / | AD8: CONSOLIDADO
C9: =IF(E4="","",E4) ->  | F9: (R$) | G9: (%) | H9: (R$) | I9: (%) | J9: (R$) | K9: (%) | L9: (R$) | M9: (%) | N9: (R$) | O9: (%) | P9: (R$) | Q9: (%) | R9: (R$) | S9: (%) | T9: (R$) | U9: (%) | V9: (R$) | W9: (%) | X9: (R$) | Y9: (%) | Z9: (R$) | AA9: (%) | AB9: (R$) | AC9: (%) | AD9: (R$) | AE9: (%)
D10: (+) RECEITA BRUTA | F10: =SUM(F11:F17) -> 960626.8 | G10: 1 | H10: 821530.1 | I10: 1 | J10: 1323267.3 | K10: 1 | L10: 1008922.75 | M10: 1 | N10: 804756.6 | O10: 1 | P10: 883169.1 | Q10: 1 | R10: 608346.95 | S10: 1 | T10: 0 | U10: 0 | V10: 0 | W10: 0 | X10: 0 | Y10: 0 | Z10: 0 | AA10: 0 | AB10: 0 | AC10: 0 | AD10: 6410619.6 | AE10: 1 | AH10: =IF(AND($X$3="CT",AD10<>0),"X","") -> X
C11: =IF('Plano de Contas'!B7="","",'Plano de Contas'!B7) -> 1.1.1.1 | E11: =IF($C11="","",VLOOKUP($C11,'Plano de Contas'!$B$2:$E$200,3,FALSE)) -> REC. VENDAS A VISTA | F11: =IFERROR((SUMIFS(Arquivo!$F$2:$F$20000,Arquivo!$B$2:$B$20000,F$6,Arquivo!$C$2:$C$20000,G$6,Arquivo!$D$2:$D$20000,$C11)),0) -> 0 | G11: =IFERROR((F11/F$10),0) -> 0 | H11: =IFERROR((SUMIFS(Arquivo!$F$2:$F$20000,Arquivo!$B$2:$B$20000,H$6,Arquivo!$C$2:$C$20000,I$6,Arquivo!$D$2:$D$20000,$C11)),0) -> 0 | I11: =IFERROR((H11/H$10),0) -> 0 | J11: =IFERROR((SUMIFS(Arquivo!$F$2:$F$20000,Arquivo!$B$2:$B$20000,J$6,Arquivo!$C$2:$C$20000,K$6,Arquivo!$D$2:$D$20000,$C11)),0) -> 0 | K11: =IFERROR((J11/J$10),0) -> 0 | L11: =IFERROR((SUMIFS(Arquivo!$F$2:$F$20000,Arquivo!$B$2:$B$20000,L$6,Arquivo!$C$2:$C$20000,M$6,Arquivo!$D$2:$D$20000,$C11)),0) -> 0 | M11: =IFERROR((L11/L$10),0) -> 0 | N11: =IFERROR((SUMIFS(Arquivo!$F$2:$F$20000,Arquivo!$B$2:$B$20000,N$6,Arquivo!$C$2:$C$20000,O$6,Arquivo!$D$2:$D$20000,$C11)),0) -> 0 | O11: =IFERROR((N11/N$10),0) -> 0 | P11: =IFERROR((SUMIFS(Arquivo!$F$2:$F$20000,Arquivo!$B$2:$B$20000,P$6,Arquivo!$C$2:$C$20000,Q$6,Arquivo!$D$2:$D$20000,$C11)),0) -> 0 | Q11: =IFERROR((P11/P$10),0) -> 0 | R11: =IFERROR((SUMIFS(Arquivo!$F$2:$F$20000,Arquivo!$B$2:$B$20000,R$6,Arquivo!$C$2:$C$20000,S$6,Arquivo!$D$2:$D$20000,$C11)),0) -> 0 | S11: =IFERROR((R11/R$10),0) -> 0 | T11: =IFERROR((SUMIFS(Arquivo!$F$2:$F$20000,Arquivo!$B$2:$B$20000,T$6,Arquivo!$C$2:$C$20000,U$6,Arquivo!$D$2:$D$20000,$C11)),0) -> 0 | U11: =IFERROR((T11/T$10),0) -> 0 | V11: =IFERROR((SUMIFS(Arquivo!$F$2:$F$20000,Arquivo!$B$2:$B$20000,V$6,Arquivo!$C$2:$C$20000,W$6,Arquivo!$D$2:$D$20000,$C11)),0) -> 0 | W11: =IFERROR((V11/V$10),0) -> 0 | X11: =IFERROR((SUMIFS(Arquivo!$F$2:$F$20000,Arquivo!$B$2:$B$20000,X$6,Arquivo!$C$2:$C$20000,Y$6,Arquivo!$D$2:$D$20000,$C11)),0) -> 0 | Y11: =IFERROR((X11/X$10),0) -> 0 | Z11: =IFERROR((SUMIFS(Arquivo!$F$2:$F$20000,Arquivo!$B$2:$B$20000,Z$6,Arquivo!$C$2:$C$20000,AA$6,Arquivo!$D$2:$D$20000,$C11)),0) -> 0 | AA11: =IFERROR((Z11/Z$10),0) -> 0 | AB11: =IFERROR((SUMIFS(Arquivo!$F$2:$F$20000,Arquivo!$B$2:$B$20000,AB$6,Arquivo!$C$2:$C$20000,AC$6,Arquivo!$D$2:$D$20000,$C11)),0) -> 0 | AC11: =IFERROR((AB11/AB$10),0) -> 0 | AD11: =F11+H11+J11+L11+N11+P11+R11+T11+V11+X11+Z11+AB11 -> 0 | AE11: =IFERROR((AD11/AD$10),0) -> 0
C12: =IF('Plano de Contas'!B8="","",'Plano de Contas'!B8) -> 1.1.1.2 | E12: =IF($C12="","",VLOOKUP($C12,'Plano de Contas'!$B$2:$E$200,3,FALSE)) -> VL. TOTAL DOS CUPONS* A PRAZO | F12: =IFERROR((SUMIFS(Arquivo!$F$2:$F$20000,Arquivo!$B$2:$B$20000,F$6,Arquivo!$C$2:$C$20000,G$6,Arquivo!$D$2:$D$20000,$C12)),0) -> 960626.8 | G12: 1 | H12: =IFERROR((SUMIFS(Arquivo!$F$2:$F$20000,Arquivo!$B$2:$B$20000,H$6,Arquivo!$C$2:$C$20000,I$6,Arquivo!$D$2:$D$20000,$C12)),0) -> 821530.1 | I12: 1 | J12: =IFERROR((SUMIFS(Arquivo!$F$2:$F$20000,Arquivo!$B$2:$B$20000,J$6,Arquivo!$C$2:$C$20000,K$6,Arquivo!$D$2:$D$20000,$C12)),0) -> 1323267.3 | K12: 1 | L12: =IFERROR((SUMIFS(Arquivo!$F$2:$F$20000,Arquivo!$B$2:$B$20000,L$6,Arquivo!$C$2:$C$20000,M$6,Arquivo!$D$2:$D$20000,$C12)),0) -> 1008922.75 | M12: 1 | N12: =IFERROR((SUMIFS(Arquivo!$F$2:$F$20000,Arquivo!$B$2:$B$20000,N$6,Arquivo!$C$2:$C$20000,O$6,Arquivo!$D$2:$D$20000,$C12)),0) -> 804756.6 | O12: 1 | P12: =IFERROR((SUMIFS(Arquivo!$F$2:$F$20000,Arquivo!$B$2:$B$20000,P$6,Arquivo!$C$2:$C$20000,Q$6,Arquivo!$D$2:$D$20000,$C12)),0) -> 883169.1 | Q12: 1 | R12: =IFERROR((SUMIFS(Arquivo!$F$2:$F$20000,Arquivo!$B$2:$B$20000,R$6,Arquivo!$C$2:$C$20000,S$6,Arquivo!$D$2:$D$20000,$C12)),0) -> 608346.95 | S12: 1 | T12: =IFERROR((SUMIFS(Arquivo!$F$2:$F$20000,Arquivo!$B$2:$B$20000,T$6,Arquivo!$C$2:$C$20000,U$6,Arquivo!$D$2:$D$20000,$C12)),0) -> 0 | U12: 0 | V12: =IFERROR((SUMIFS(Arquivo!$F$2:$F$20000,Arquivo!$B$2:$B$20000,V$6,Arquivo!$C$2:$C$20000,W$6,Arquivo!$D$2:$D$20000,$C12)),0) -> 0 | W12: 0 | X12: =IFERROR((SUMIFS(Arquivo!$F$2:$F$20000,Arquivo!$B$2:$B$20000,X$6,Arquivo!$C$2:$C$20000,Y$6,Arquivo!$D$2:$D$20000,$C12)),0) -> 0 | Y12: 0 | Z12: =IFERROR((SUMIFS(Arquivo!$F$2:$F$20000,Arquivo!$B$2:$B$20000,Z$6,Arquivo!$C$2:$C$20000,AA$6,Arquivo!$D$2:$D$20000,$C12)),0) -> 0 | AA12: 0 | AB12: =IFERROR((SUMIFS(Arquivo!$F$2:$F$20000,Arquivo!$B$2:$B$20000,AB$6,Arquivo!$C$2:$C$20000,AC$6,Arquivo!$D$2:$D$20000,$C12)),0) -> 0 | AC12: 0 | AD12: =F12+H12+J12+L12+N12+P12+R12+T12+V12+X12+Z12+AB12 -> 6410619.6 | AE12: 1 | AH12: X
C13: =IF('Plano de Contas'!B9="","",'Plano de Contas'!B9) ->  | E13: =IF($C13="","",VLOOKUP($C13,'Plano de Contas'!$B$2:$E$200,3,FALSE)) ->  | F13: =IFERROR((SUMIFS(Arquivo!$F$2:$F$20000,Arquivo!$B$2:$B$20000,F$6,Arquivo!$C$2:$C$20000,G$6,Arquivo!$D$2:$D$20000,$C13)),0) -> 0 | G13: 0 | H13: =IFERROR((SUMIFS(Arquivo!$F$2:$F$20000,Arquivo!$B$2:$B$20000,H$6,Arquivo!$C$2:$C$20000,I$6,Arquivo!$D$2:$D$20000,$C13)),0) -> 0 | I13: 0 | J13: =IFERROR((SUMIFS(Arquivo!$F$2:$F$20000,Arquivo!$B$2:$B$20000,J$6,Arquivo!$C$2:$C$20000,K$6,Arquivo!$D$2:$D$20000,$C13)),0) -> 0 | K13: 0 | L13: =IFERROR((SUMIFS(Arquivo!$F$2:$F$20000,Arquivo!$B$2:$B$20000,L$6,Arquivo!$C$2:$C$20000,M$6,Arquivo!$D$2:$D$20000,$C13)),0) -> 0 | M13: 0 | N13: =IFERROR((SUMIFS(Arquivo!$F$2:$F$20000,Arquivo!$B$2:$B$20000,N$6,Arquivo!$C$2:$C$20000,O$6,Arquivo!$D$2:$D$20000,$C13)),0) -> 0 | O13: 0 | P13: =IFERROR((SUMIFS(Arquivo!$F$2:$F$20000,Arquivo!$B$2:$B$20000,P$6,Arquivo!$C$2:$C$20000,Q$6,Arquivo!$D$2:$D$20000,$C13)),0) -> 0 | Q13: 0 | R13: =IFERROR((SUMIFS(Arquivo!$F$2:$F$20000,Arquivo!$B$2:$B$20000,R$6,Arquivo!$C$2:$C$20000,S$6,Arquivo!$D$2:$D$20000,$C13)),0) -> 0 | S13: 0 | T13: =IFERROR((SUMIFS(Arquivo!$F$2:$F$20000,Arquivo!$B$2:$B$20000,T$6,Arquivo!$C$2:$C$20000,U$6,Arquivo!$D$2:$D$20000,$C13)),0) -> 0 | U13: 0 | V13: =IFERROR((SUMIFS(Arquivo!$F$2:$F$20000,Arquivo!$B$2:$B$20000,V$6,Arquivo!$C$2:$C$20000,W$6,Arquivo!$D$2:$D$20000,$C13)),0) -> 0 | W13: 0 | X13: =IFERROR((SUMIFS(Arquivo!$F$2:$F$20000,Arquivo!$B$2:$B$20000,X$6,Arquivo!$C$2:$C$20000,Y$6,Arquivo!$D$2:$D$20000,$C13)),0) -> 0 | Y13: 0 | Z13: =IFERROR((SUMIFS(Arquivo!$F$2:$F$20000,Arquivo!$B$2:$B$20000,Z$6,Arquivo!$C$2:$C$20000,AA$6,Arquivo!$D$2:$D$20000,$C13)),0) -> 0 | AA13: 0 | AB13: =IFERROR((SUMIFS(Arquivo!$F$2:$F$20000,Arquivo!$B$2:$B$20000,AB$6,Arquivo!$C$2:$C$20000,AC$6,Arquivo!$D$2:$D$20000,$C13)),0) -> 0 | AC13: 0 | AD13: 0 | AE13: 0
C14: =IF('Plano de Contas'!B11="","",'Plano de Contas'!B11) ->  | E14: =IF($C14="","",VLOOKUP($C14,'Plano de Contas'!$B$2:$E$200,3,FALSE)) ->  | F14: =IFERROR((SUMIFS(Arquivo!$F$2:$F$20000,Arquivo!$B$2:$B$20000,F$6,Arquivo!$C$2:$C$20000,G$6,Arquivo!$D$2:$D$20000,$C14)),0) -> 0 | G14: 0 | H14: =IFERROR((SUMIFS(Arquivo!$F$2:$F$20000,Arquivo!$B$2:$B$20000,H$6,Arquivo!$C$2:$C$20000,I$6,Arquivo!$D$2:$D$20000,$C14)),0) -> 0 | I14: 0 | J14: =IFERROR((SUMIFS(Arquivo!$F$2:$F$20000,Arquivo!$B$2:$B$20000,J$6,Arquivo!$C$2:$C$20000,K$6,Arquivo!$D$2:$D$20000,$C14)),0) -> 0 | K14: 0 | L14: =IFERROR((SUMIFS(Arquivo!$F$2:$F$20000,Arquivo!$B$2:$B$20000,L$6,Arquivo!$C$2:$C$20000,M$6,Arquivo!$D$2:$D$20000,$C14)),0) -> 0 | M14: 0 | N14: =IFERROR((SUMIFS(Arquivo!$F$2:$F$20000,Arquivo!$B$2:$B$20000,N$6,Arquivo!$C$2:$C$20000,O$6,Arquivo!$D$2:$D$20000,$C14)),0) -> 0 | O14: 0 | P14: =IFERROR((SUMIFS(Arquivo!$F$2:$F$20000,Arquivo!$B$2:$B$20000,P$6,Arquivo!$C$2:$C$20000,Q$6,Arquivo!$D$2:$D$20000,$C14)),0) -> 0 | Q14: 0 | R14: =IFERROR((SUMIFS(Arquivo!$F$2:$F$20000,Arquivo!$B$2:$B$20000,R$6,Arquivo!$C$2:$C$20000,S$6,Arquivo!$D$2:$D$20000,$C14)),0) -> 0 | S14: 0 | T14: =IFERROR((SUMIFS(Arquivo!$F$2:$F$20000,Arquivo!$B$2:$B$20000,T$6,Arquivo!$C$2:$C$20000,U$6,Arquivo!$D$2:$D$20000,$C14)),0) -> 0 | U14: 0 | V14: =IFERROR((SUMIFS(Arquivo!$F$2:$F$20000,Arquivo!$B$2:$B$20000,V$6,Arquivo!$C$2:$C$20000,W$6,Arquivo!$D$2:$D$20000,$C14)),0) -> 0 | W14: 0 | X14: =IFERROR((SUMIFS(Arquivo!$F$2:$F$20000,Arquivo!$B$2:$B$20000,X$6,Arquivo!$C$2:$C$20000,Y$6,Arquivo!$D$2:$D$20000,$C14)),0) -> 0 | Y14: 0 | Z14: =IFERROR((SUMIFS(Arquivo!$F$2:$F$20000,Arquivo!$B$2:$B$20000,Z$6,Arquivo!$C$2:$C$20000,AA$6,Arquivo!$D$2:$D$20000,$C14)),0) -> 0 | AA14: 0 | AB14: =IFERROR((SUMIFS(Arquivo!$F$2:$F$20000,Arquivo!$B$2:$B$20000,AB$6,Arquivo!$C$2:$C$20000,AC$6,Arquivo!$D$2:$D$20000,$C14)),0) -> 0 | AC14: 0 | AD14: 0 | AE14: 0
C15: =IF('Plano de Contas'!B12="","",'Plano de Contas'!B12) ->  | E15: =IF($C15="","",VLOOKUP($C15,'Plano de Contas'!$B$2:$E$200,3,FALSE)) ->  | F15: =IFERROR((SUMIFS(Arquivo!$F$2:$F$20000,Arquivo!$B$2:$B$20000,F$6,Arquivo!$C$2:$C$20000,G$6,Arquivo!$D$2:$D$20000,$C15)),0) -> 0 | G15: 0 | H15: =IFERROR((SUMIFS(Arquivo!$F$2:$F$20000,Arquivo!$B$2:$B$20000,H$6,Arquivo!$C$2:$C$20000,I$6,Arquivo!$D$2:$D$20000,$C15)),0) -> 0 | I15: 0 | J15: =IFERROR((SUMIFS(Arquivo!$F$2:$F$20000,Arquivo!$B$2:$B$20000,J$6,Arquivo!$C$2:$C$20000,K$6,Arquivo!$D$2:$D$20000,$C15)),0) -> 0 | K15: 0 | L15: =IFERROR((SUMIFS(Arquivo!$F$2:$F$20000,Arquivo!$B$2:$B$20000,L$6,Arquivo!$C$2:$C$20000,M$6,Arquivo!$D$2:$D$20000,$C15)),0) -> 0 | M15: 0 | N15: =IFERROR((SUMIFS(Arquivo!$F$2:$F$20000,Arquivo!$B$2:$B$20000,N$6,Arquivo!$C$2:$C$20000,O$6,Arquivo!$D$2:$D$20000,$C15)),0) -> 0 | O15: 0 | P15: =IFERROR((SUMIFS(Arquivo!$F$2:$F$20000,Arquivo!$B$2:$B$20000,P$6,Arquivo!$C$2:$C$20000,Q$6,Arquivo!$D$2:$D$20000,$C15)),0) -> 0 | Q15: 0 | R15: =IFERROR((SUMIFS(Arquivo!$F$2:$F$20000,Arquivo!$B$2:$B$20000,R$6,Arquivo!$C$2:$C$20000,S$6,Arquivo!$D$2:$D$20000,$C15)),0) -> 0 | S15: 0 | T15: =IFERROR((SUMIFS(Arquivo!$F$2:$F$20000,Arquivo!$B$2:$B$20000,T$6,Arquivo!$C$2:$C$20000,U$6,Arquivo!$D$2:$D$20000,$C15)),0) -> 0 | U15: 0 | V15: =IFERROR((SUMIFS(Arquivo!$F$2:$F$20000,Arquivo!$B$2:$B$20000,V$6,Arquivo!$C$2:$C$20000,W$6,Arquivo!$D$2:$D$20000,$C15)),0) -> 0 | W15: 0 | X15: =IFERROR((SUMIFS(Arquivo!$F$2:$F$20000,Arquivo!$B$2:$B$20000,X$6,Arquivo!$C$2:$C$20000,Y$6,Arquivo!$D$2:$D$20000,$C15)),0) -> 0 | Y15: 0 | Z15: =IFERROR((SUMIFS(Arquivo!$F$2:$F$20000,Arquivo!$B$2:$B$20000,Z$6,Arquivo!$C$2:$C$20000,AA$6,Arquivo!$D$2:$D$20000,$C15)),0) -> 0 | AA15: 0 | AB15: =IFERROR((SUMIFS(Arquivo!$F$2:$F$20000,Arquivo!$B$2:$B$20000,AB$6,Arquivo!$C$2:$C$20000,AC$6,Arquivo!$D$2:$D$20000,$C15)),0) -> 0 | AC15: 0 | AD15: 0 | AE15: 0
C16: =IF('Plano de Contas'!B13="","",'Plano de Contas'!B13) ->  | E16: =IF($C16="","",VLOOKUP($C16,'Plano de Contas'!$B$2:$E$200,3,FALSE)) ->  | F16: =IFERROR((SUMIFS(Arquivo!$F$2:$F$20000,Arquivo!$B$2:$B$20000,F$6,Arquivo!$C$2:$C$20000,G$6,Arquivo!$D$2:$D$20000,$C16)),0) -> 0 | G16: 0 | H16: =IFERROR((SUMIFS(Arquivo!$F$2:$F$20000,Arquivo!$B$2:$B$20000,H$6,Arquivo!$C$2:$C$20000,I$6,Arquivo!$D$2:$D$20000,$C16)),0) -> 0 | I16: 0 | J16: =IFERROR((SUMIFS(Arquivo!$F$2:$F$20000,Arquivo!$B$2:$B$20000,J$6,Arquivo!$C$2:$C$20000,K$6,Arquivo!$D$2:$D$20000,$C16)),0) -> 0 | K16: 0 | L16: =IFERROR((SUMIFS(Arquivo!$F$2:$F$20000,Arquivo!$B$2:$B$20000,L$6,Arquivo!$C$2:$C$20000,M$6,Arquivo!$D$2:$D$20000,$C16)),0) -> 0 | M16: 0 | N16: =IFERROR((SUMIFS(Arquivo!$F$2:$F$20000,Arquivo!$B$2:$B$20000,N$6,Arquivo!$C$2:$C$20000,O$6,Arquivo!$D$2:$D$20000,$C16)),0) -> 0 | O16: 0 | P16: =IFERROR((SUMIFS(Arquivo!$F$2:$F$20000,Arquivo!$B$2:$B$20000,P$6,Arquivo!$C$2:$C$20000,Q$6,Arquivo!$D$2:$D$20000,$C16)),0) -> 0 | Q16: 0 | R16: =IFERROR((SUMIFS(Arquivo!$F$2:$F$20000,Arquivo!$B$2:$B$20000,R$6,Arquivo!$C$2:$C$20000,S$6,Arquivo!$D$2:$D$20000,$C16)),0) -> 0 | S16: 0 | T16: =IFERROR((SUMIFS(Arquivo!$F$2:$F$20000,Arquivo!$B$2:$B$20000,T$6,Arquivo!$C$2:$C$20000,U$6,Arquivo!$D$2:$D$20000,$C16)),0) -> 0 | U16: 0 | V16: =IFERROR((SUMIFS(Arquivo!$F$2:$F$20000,Arquivo!$B$2:$B$20000,V$6,Arquivo!$C$2:$C$20000,W$6,Arquivo!$D$2:$D$20000,$C16)),0) -> 0 | W16: 0 | X16: =IFERROR((SUMIFS(Arquivo!$F$2:$F$20000,Arquivo!$B$2:$B$20000,X$6,Arquivo!$C$2:$C$20000,Y$6,Arquivo!$D$2:$D$20000,$C16)),0) -> 0 | Y16: 0 | Z16: =IFERROR((SUMIFS(Arquivo!$F$2:$F$20000,Arquivo!$B$2:$B$20000,Z$6,Arquivo!$C$2:$C$20000,AA$6,Arquivo!$D$2:$D$20000,$C16)),0) -> 0 | AA16: 0 | AB16: =IFERROR((SUMIFS(Arquivo!$F$2:$F$20000,Arquivo!$B$2:$B$20000,AB$6,Arquivo!$C$2:$C$20000,AC$6,Arquivo!$D$2:$D$20000,$C16)),0) -> 0 | AC16: 0 | AD16: 0 | AE16: 0
AH17: =IF(AND($X$3="CT",AD10<>0),"X","") -> X
D18: (-) IMPOSTOS E DEDUÇÕES | F18: =SUBTOTAL(9,F19:F27) -> 3824.64 | G18: =IFERROR((F18/IF($X$3="CT",F$10,F$18)),0) -> 0.003981400477 | H18: =SUBTOTAL(9,H19:H27) -> 3383.57 | I18: =IFERROR((H18/IF($X$3="CT",H$10,H$18)),0) -> 0.004118619634 | J18: =SUBTOTAL(9,J19:J27) -> 4533.61 | K18: =IFERROR((J18/IF($X$3="CT",J$10,J$18)),0) -> 0.003426072722 | L18: =SUBTOTAL(9,L19:L27) -> 2850.32 | M18: =IFERROR((L18/IF($X$3="CT",L$10,L$18)),0) -> 0.00282511223 | N18: =SUBTOTAL(9,N19:N27) -> 1011.06 | O18: =IFERROR((N18/IF($X$3="CT",N$10,N$18)),0) -> 0.001256355027 | P18: =SUBTOTAL(9,P19:P27) -> 1307.11 | Q18: =IFERROR((P18/IF($X$3="CT",P$10,P$18)),0) -> 0.001480022342 | R18: =SUBTOTAL(9,R19:R27) -> 964.41 | S18: =IFERROR((R18/IF($X$3="CT",R$10,R$18)),0) -> 0.001585296022 | T18: =SUBTOTAL(9,T19:T27) -> 0 | U18: =IFERROR((T18/IF($X$3="CT",T$10,T$18)),0) -> 0 | V18: =SUBTOTAL(9,V19:V27) -> 0 | W18: =IFERROR((V18/IF($X$3="CT",V$10,V$18)),0) -> 0 | X18: =SUBTOTAL(9,X19:X27) -> 0 | Y18: =IFERROR((X18/IF($X$3="CT",X$10,X$18)),0) -> 0 | Z18: =SUBTOTAL(9,Z19:Z27) -> 0 | AA18: =IFERROR((Z18/IF($X$3="CT",Z$10,Z$18)),0) -> 0 | AB18: =SUBTOTAL(9,AB19:AB27) -> 0 | AC18: =IFERROR((AB18/IF($X$3="CT",AB$10,AB$18)),0) -> 0 | AD18: =SUBTOTAL(9,AD19:AD27) -> 17874.72 | AE18: =IFERROR((AD18/IF($X$3="CT",AD$10,AD$18)),0) -> 0.002788298342 | AH18: =IF(COUNTIF(AH19:AH26,"X")>0,"X","") -> X
C19: =IF('Plano de Contas'!B15="","",'Plano de Contas'!B15) -> 4.1.1.1 | D19: =IF($C19="","",VLOOKUP($C19,'Plano de Contas'!$B$2:$E$200,4,FALSE)) -> CV | E19: =IF($C19="","",VLOOKUP($C19,'Plano de Contas'!$B$2:$E$200,3,FALSE)) -> PIS/COFINS | F19: =IFERROR((SUMIFS(Arquivo!$F$2:$F$20000,Arquivo!$B$2:$B$20000,F$6,Arquivo!$C$2:$C$20000,G$6,Arquivo!$D$2:$D$20000,$C19)),0) -> 452.69 | G19: 0.0004712444 | H19: =IFERROR((SUMIFS(Arquivo!$F$2:$F$20000,Arquivo!$B$2:$B$20000,H$6,Arquivo!$C$2:$C$20000,I$6,Arquivo!$D$2:$D$20000,$C19)),0) -> 538.96 | I19: 0.0006560441303 | J19: =IFERROR((SUMIFS(Arquivo!$F$2:$F$20000,Arquivo!$B$2:$B$20000,J$6,Arquivo!$C$2:$C$20000,K$6,Arquivo!$D$2:$D$20000,$C19)),0) -> 711.18 | K19: 0.0005374424351 | L19: =IFERROR((SUMIFS(Arquivo!$F$2:$F$20000,Arquivo!$B$2:$B$20000,L$6,Arquivo!$C$2:$C$20000,M$6,Arquivo!$D$2:$D$20000,$C19)),0) -> 701.35 | M19: 0.0006951473738 | N19: =IFERROR((SUMIFS(Arquivo!$F$2:$F$20000,Arquivo!$B$2:$B$20000,N$6,Arquivo!$C$2:$C$20000,O$6,Arquivo!$D$2:$D$20000,$C19)),0) -> 478.31 | O19: 0.000594353622 | P19: =IFERROR((SUMIFS(Arquivo!$F$2:$F$20000,Arquivo!$B$2:$B$20000,P$6,Arquivo!$C$2:$C$20000,Q$6,Arquivo!$D$2:$D$20000,$C19)),0) -> 655.77 | Q19: 0.0007425191846 | R19: =IFERROR((SUMIFS(Arquivo!$F$2:$F$20000,Arquivo!$B$2:$B$20000,R$6,Arquivo!$C$2:$C$20000,S$6,Arquivo!$D$2:$D$20000,$C19)),0) -> 512.45 | S19: 0.0008423647065 | T19: =IFERROR((SUMIFS(Arquivo!$F$2:$F$20000,Arquivo!$B$2:$B$20000,T$6,Arquivo!$C$2:$C$20000,U$6,Arquivo!$D$2:$D$20000,$C19)),0) -> 0 | U19: 0 | V19: =IFERROR((SUMIFS(Arquivo!$F$2:$F$20000,Arquivo!$B$2:$B$20000,V$6,Arquivo!$C$2:$C$20000,W$6,Arquivo!$D$2:$D$20000,$C19)),0) -> 0 | W19: 0 | X19: =IFERROR((SUMIFS(Arquivo!$F$2:$F$20000,Arquivo!$B$2:$B$20000,X$6,Arquivo!$C$2:$C$20000,Y$6,Arquivo!$D$2:$D$20000,$C19)),0) -> 0 | Y19: 0 | Z19: =IFERROR((SUMIFS(Arquivo!$F$2:$F$20000,Arquivo!$B$2:$B$20000,Z$6,Arquivo!$C$2:$C$20000,AA$6,Arquivo!$D$2:$D$20000,$C19)),0) -> 0 | AA19: 0 | AB19: =IFERROR((SUMIFS(Arquivo!$F$2:$F$20000,Arquivo!$B$2:$B$20000,AB$6,Arquivo!$C$2:$C$20000,AC$6,Arquivo!$D$2:$D$20000,$C19)),0) -> 0 | AC19: 0 | AD19: =F19+H19+J19+L19+N19+P19+R19+T19+V19+X19+Z19+AB19 -> 4050.71 | AE19: 0.0006318749595 | AH19: =IF($AD19=0,"",IF($X$3="CT","X",IF($X$3=$D19,"X",""))) -> X
C20: =IF('Plano de Contas'!B16="","",'Plano de Contas'!B16) -> 4.1.1.2 | D20: =IF($C20="","",VLOOKUP($C20,'Plano de Contas'!$B$2:$E$200,4,FALSE)) -> CV | E20: =IF($C20="","",VLOOKUP($C20,'Plano de Contas'!$B$2:$E$200,3,FALSE)) -> OUTROS IMPOSTOS | F20: =IFERROR((SUMIFS(Arquivo!$F$2:$F$20000,Arquivo!$B$2:$B$20000,F$6,Arquivo!$C$2:$C$20000,G$6,Arquivo!$D$2:$D$20000,$C20)),0) -> 3371.95 | G20: 0.003510156077 | H20: =IFERROR((SUMIFS(Arquivo!$F$2:$F$20000,Arquivo!$B$2:$B$20000,H$6,Arquivo!$C$2:$C$20000,I$6,Arquivo!$D$2:$D$20000,$C20)),0) -> 2844.61 | I20: 0.003462575504 | J20: =IFERROR((SUMIFS(Arquivo!$F$2:$F$20000,Arquivo!$B$2:$B$20000,J$6,Arquivo!$C$2:$C$20000,K$6,Arquivo!$D$2:$D$20000,$C20)),0) -> 3822.43 | K20: 0.002888630287 | L20: =IFERROR((SUMIFS(Arquivo!$F$2:$F$20000,Arquivo!$B$2:$B$20000,L$6,Arquivo!$C$2:$C$20000,M$6,Arquivo!$D$2:$D$20000,$C20)),0) -> 2148.97 | M20: 0.002129964856 | N20: =IFERROR((SUMIFS(Arquivo!$F$2:$F$20000,Arquivo!$B$2:$B$20000,N$6,Arquivo!$C$2:$C$20000,O$6,Arquivo!$D$2:$D$20000,$C20)),0) -> 532.75 | O20: 0.0006620014051 | P20: =IFERROR((SUMIFS(Arquivo!$F$2:$F$20000,Arquivo!$B$2:$B$20000,P$6,Arquivo!$C$2:$C$20000,Q$6,Arquivo!$D$2:$D$20000,$C20)),0) -> 651.34 | Q20: 0.0007375031577 | R20: =IFERROR((SUMIFS(Arquivo!$F$2:$F$20000,Arquivo!$B$2:$B$20000,R$6,Arquivo!$C$2:$C$20000,S$6,Arquivo!$D$2:$D$20000,$C20)),0) -> 451.96 | S20: 0.0007429313158 | T20: =IFERROR((SUMIFS(Arquivo!$F$2:$F$20000,Arquivo!$B$2:$B$20000,T$6,Arquivo!$C$2:$C$20000,U$6,Arquivo!$D$2:$D$20000,$C20)),0) -> 0 | U20: 0 | V20: =IFERROR((SUMIFS(Arquivo!$F$2:$F$20000,Arquivo!$B$2:$B$20000,V$6,Arquivo!$C$2:$C$20000,W$6,Arquivo!$D$2:$D$20000,$C20)),0) -> 0 | W20: 0 | X20: =IFERROR((SUMIFS(Arquivo!$F$2:$F$20000,Arquivo!$B$2:$B$20000,X$6,Arquivo!$C$2:$C$20000,Y$6,Arquivo!$D$2:$D$20000,$C20)),0) -> 0 | Y20: 0 | Z20: =IFERROR((SUMIFS(Arquivo!$F$2:$F$20000,Arquivo!$B$2:$B$20000,Z$6,Arquivo!$C$2:$C$20000,AA$6,Arquivo!$D$2:$D$20000,$C20)),0) -> 0 | AA20: 0 | AB20: =IFERROR((SUMIFS(Arquivo!$F$2:$F$20000,Arquivo!$B$2:$B$20000,AB$6,Arquivo!$C$2:$C$20000,AC$6,Arquivo!$D$2:$D$20000,$C20)),0) -> 0 | AC20: 0 | AD20: 13824.01 | AE20: 0.002156423382 | AH20: X
C21: =IF('Plano de Contas'!B17="","",'Plano de Contas'!B17) ->  | D21: =IF($C21="","",VLOOKUP($C21,'Plano de Contas'!$B$2:$E$200,4,FALSE)) ->  | E21: =IF($C21="","",VLOOKUP($C21,'Plano de Contas'!$B$2:$E$200,3,FALSE)) ->  | F21: =IFERROR((SUMIFS(Arquivo!$F$2:$F$20000,Arquivo!$B$2:$B$20000,F$6,Arquivo!$C$2:$C$20000,G$6,Arquivo!$D$2:$D$20000,$C21)),0) -> 0 | G21: 0 | H21: =IFERROR((SUMIFS(Arquivo!$F$2:$F$20000,Arquivo!$B$2:$B$20000,H$6,Arquivo!$C$2:$C$20000,I$6,Arquivo!$D$2:$D$20000,$C21)),0) -> 0 | I21: 0 | J21: =IFERROR((SUMIFS(Arquivo!$F$2:$F$20000,Arquivo!$B$2:$B$20000,J$6,Arquivo!$C$2:$C$20000,K$6,Arquivo!$D$2:$D$20000,$C21)),0) -> 0 | K21: 0 | L21: =IFERROR((SUMIFS(Arquivo!$F$2:$F$20000,Arquivo!$B$2:$B$20000,L$6,Arquivo!$C$2:$C$20000,M$6,Arquivo!$D$2:$D$20000,$C21)),0) -> 0 | M21: 0 | N21: =IFERROR((SUMIFS(Arquivo!$F$2:$F$20000,Arquivo!$B$2:$B$20000,N$6,Arquivo!$C$2:$C$20000,O$6,Arquivo!$D$2:$D$20000,$C21)),0) -> 0 | O21: 0 | P21: =IFERROR((SUMIFS(Arquivo!$F$2:$F$20000,Arquivo!$B$2:$B$20000,P$6,Arquivo!$C$2:$C$20000,Q$6,Arquivo!$D$2:$D$20000,$C21)),0) -> 0 | Q21: 0 | R21: =IFERROR((SUMIFS(Arquivo!$F$2:$F$20000,Arquivo!$B$2:$B$20000,R$6,Arquivo!$C$2:$C$20000,S$6,Arquivo!$D$2:$D$20000,$C21)),0) -> 0 | S21: 0 | T21: =IFERROR((SUMIFS(Arquivo!$F$2:$F$20000,Arquivo!$B$2:$B$20000,T$6,Arquivo!$C$2:$C$20000,U$6,Arquivo!$D$2:$D$20000,$C21)),0) -> 0 | U21: 0 | V21: =IFERROR((SUMIFS(Arquivo!$F$2:$F$20000,Arquivo!$B$2:$B$20000,V$6,Arquivo!$C$2:$C$20000,W$6,Arquivo!$D$2:$D$20000,$C21)),0) -> 0 | W21: 0 | X21: =IFERROR((SUMIFS(Arquivo!$F$2:$F$20000,Arquivo!$B$2:$B$20000,X$6,Arquivo!$C$2:$C$20000,Y$6,Arquivo!$D$2:$D$20000,$C21)),0) -> 0 | Y21: 0 | Z21: =IFERROR((SUMIFS(Arquivo!$F$2:$F$20000,Arquivo!$B$2:$B$20000,Z$6,Arquivo!$C$2:$C$20000,AA$6,Arquivo!$D$2:$D$20000,$C21)),0) -> 0 | AA21: 0 | AB21: =IFERROR((SUMIFS(Arquivo!$F$2:$F$20000,Arquivo!$B$2:$B$20000,AB$6,Arquivo!$C$2:$C$20000,AC$6,Arquivo!$D$2:$D$20000,$C21)),0) -> 0 | AC21: 0 | AD21: 0 | AE21: 0
C22: =IF('Plano de Contas'!B18="","",'Plano de Contas'!B18) ->  | D22: =IF($C22="","",VLOOKUP($C22,'Plano de Contas'!$B$2:$E$200,4,FALSE)) ->  | E22: =IF($C22="","",VLOOKUP($C22,'Plano de Contas'!$B$2:$E$200,3,FALSE)) ->  | F22: =IFERROR((SUMIFS(Arquivo!$F$2:$F$20000,Arquivo!$B$2:$B$20000,F$6,Arquivo!$C$2:$C$20000,G$6,Arquivo!$D$2:$D$20000,$C22)),0) -> 0 | G22: 0 | H22: =IFERROR((SUMIFS(Arquivo!$F$2:$F$20000,Arquivo!$B$2:$B$20000,H$6,Arquivo!$C$2:$C$20000,I$6,Arquivo!$D$2:$D$20000,$C22)),0) -> 0 | I22: 0 | J22: =IFERROR((SUMIFS(Arquivo!$F$2:$F$20000,Arquivo!$B$2:$B$20000,J$6,Arquivo!$C$2:$C$20000,K$6,Arquivo!$D$2:$D$20000,$C22)),0) -> 0 | K22: 0 | L22: =IFERROR((SUMIFS(Arquivo!$F$2:$F$20000,Arquivo!$B$2:$B$20000,L$6,Arquivo!$C$2:$C$20000,M$6,Arquivo!$D$2:$D$20000,$C22)),0) -> 0 | M22: 0 | N22: =IFERROR((SUMIFS(Arquivo!$F$2:$F$20000,Arquivo!$B$2:$B$20000,N$6,Arquivo!$C$2:$C$20000,O$6,Arquivo!$D$2:$D$20000,$C22)),0) -> 0 | O22: 0 | P22: =IFERROR((SUMIFS(Arquivo!$F$2:$F$20000,Arquivo!$B$2:$B$20000,P$6,Arquivo!$C$2:$C$20000,Q$6,Arquivo!$D$2:$D$20000,$C22)),0) -> 0 | Q22: 0 | R22: =IFERROR((SUMIFS(Arquivo!$F$2:$F$20000,Arquivo!$B$2:$B$20000,R$6,Arquivo!$C$2:$C$20000,S$6,Arquivo!$D$2:$D$20000,$C22)),0) -> 0 | S22: 0 | T22: =IFERROR((SUMIFS(Arquivo!$F$2:$F$20000,Arquivo!$B$2:$B$20000,T$6,Arquivo!$C$2:$C$20000,U$6,Arquivo!$D$2:$D$20000,$C22)),0) -> 0 | U22: 0 | V22: =IFERROR((SUMIFS(Arquivo!$F$2:$F$20000,Arquivo!$B$2:$B$20000,V$6,Arquivo!$C$2:$C$20000,W$6,Arquivo!$D$2:$D$20000,$C22)),0) -> 0 | W22: 0 | X22: =IFERROR((SUMIFS(Arquivo!$F$2:$F$20000,Arquivo!$B$2:$B$20000,X$6,Arquivo!$C$2:$C$20000,Y$6,Arquivo!$D$2:$D$20000,$C22)),0) -> 0 | Y22: 0 | Z22: =IFERROR((SUMIFS(Arquivo!$F$2:$F$20000,Arquivo!$B$2:$B$20000,Z$6,Arquivo!$C$2:$C$20000,AA$6,Arquivo!$D$2:$D$20000,$C22)),0) -> 0 | AA22: 0 | AB22: =IFERROR((SUMIFS(Arquivo!$F$2:$F$20000,Arquivo!$B$2:$B$20000,AB$6,Arquivo!$C$2:$C$20000,AC$6,Arquivo!$D$2:$D$20000,$C22)),0) -> 0 | AC22: 0 | AD22: 0 | AE22: 0
C23: =IF('Plano de Contas'!B19="","",'Plano de Contas'!B19) ->  | D23: =IF($C23="","",VLOOKUP($C23,'Plano de Contas'!$B$2:$E$200,4,FALSE)) ->  | E23: =IF($C23="","",VLOOKUP($C23,'Plano de Contas'!$B$2:$E$200,3,FALSE)) ->  | F23: =IFERROR((SUMIFS(Arquivo!$F$2:$F$20000,Arquivo!$B$2:$B$20000,F$6,Arquivo!$C$2:$C$20000,G$6,Arquivo!$D$2:$D$20000,$C23)),0) -> 0 | G23: 0 | H23: =IFERROR((SUMIFS(Arquivo!$F$2:$F$20000,Arquivo!$B$2:$B$20000,H$6,Arquivo!$C$2:$C$20000,I$6,Arquivo!$D$2:$D$20000,$C23)),0) -> 0 | I23: 0 | J23: =IFERROR((SUMIFS(Arquivo!$F$2:$F$20000,Arquivo!$B$2:$B$20000,J$6,Arquivo!$C$2:$C$20000,K$6,Arquivo!$D$2:$D$20000,$C23)),0) -> 0 | K23: 0 | L23: =IFERROR((SUMIFS(Arquivo!$F$2:$F$20000,Arquivo!$B$2:$B$20000,L$6,Arquivo!$C$2:$C$20000,M$6,Arquivo!$D$2:$D$20000,$C23)),0) -> 0 | M23: 0 | N23: =IFERROR((SUMIFS(Arquivo!$F$2:$F$20000,Arquivo!$B$2:$B$20000,N$6,Arquivo!$C$2:$C$20000,O$6,Arquivo!$D$2:$D$20000,$C23)),0) -> 0 | O23: 0 | P23: =IFERROR((SUMIFS(Arquivo!$F$2:$F$20000,Arquivo!$B$2:$B$20000,P$6,Arquivo!$C$2:$C$20000,Q$6,Arquivo!$D$2:$D$20000,$C23)),0) -> 0 | Q23: 0 | R23: =IFERROR((SUMIFS(Arquivo!$F$2:$F$20000,Arquivo!$B$2:$B$20000,R$6,Arquivo!$C$2:$C$20000,S$6,Arquivo!$D$2:$D$20000,$C23)),0) -> 0 | S23: 0 | T23: =IFERROR((SUMIFS(Arquivo!$F$2:$F$20000,Arquivo!$B$2:$B$20000,T$6,Arquivo!$C$2:$C$20000,U$6,Arquivo!$D$2:$D$20000,$C23)),0) -> 0 | U23: 0 | V23: =IFERROR((SUMIFS(Arquivo!$F$2:$F$20000,Arquivo!$B$2:$B$20000,V$6,Arquivo!$C$2:$C$20000,W$6,Arquivo!$D$2:$D$20000,$C23)),0) -> 0 | W23: 0 | X23: =IFERROR((SUMIFS(Arquivo!$F$2:$F$20000,Arquivo!$B$2:$B$20000,X$6,Arquivo!$C$2:$C$20000,Y$6,Arquivo!$D$2:$D$20000,$C23)),0) -> 0 | Y23: 0 | Z23: =IFERROR((SUMIFS(Arquivo!$F$2:$F$20000,Arquivo!$B$2:$B$20000,Z$6,Arquivo!$C$2:$C$20000,AA$6,Arquivo!$D$2:$D$20000,$C23)),0) -> 0 | AA23: 0 | AB23: =IFERROR((SUMIFS(Arquivo!$F$2:$F$20000,Arquivo!$B$2:$B$20000,AB$6,Arquivo!$C$2:$C$20000,AC$6,Arquivo!$D$2:$D$20000,$C23)),0) -> 0 | AC23: 0 | AD23: 0 | AE23: 0
C24: =IF('Plano de Contas'!B20="","",'Plano de Contas'!B20) ->  | D24: =IF($C24="","",VLOOKUP($C24,'Plano de Contas'!$B$2:$E$200,4,FALSE)) ->  | E24: =IF($C24="","",VLOOKUP($C24,'Plano de Contas'!$B$2:$E$200,3,FALSE)) ->  | F24: =IFERROR((SUMIFS(Arquivo!$F$2:$F$20000,Arquivo!$B$2:$B$20000,F$6,Arquivo!$C$2:$C$20000,G$6,Arquivo!$D$2:$D$20000,$C24)),0) -> 0 | G24: 0 | H24: =IFERROR((SUMIFS(Arquivo!$F$2:$F$20000,Arquivo!$B$2:$B$20000,H$6,Arquivo!$C$2:$C$20000,I$6,Arquivo!$D$2:$D$20000,$C24)),0) -> 0 | I24: 0 | J24: =IFERROR((SUMIFS(Arquivo!$F$2:$F$20000,Arquivo!$B$2:$B$20000,J$6,Arquivo!$C$2:$C$20000,K$6,Arquivo!$D$2:$D$20000,$C24)),0) -> 0 | K24: 0 | L24: =IFERROR((SUMIFS(Arquivo!$F$2:$F$20000,Arquivo!$B$2:$B$20000,L$6,Arquivo!$C$2:$C$20000,M$6,Arquivo!$D$2:$D$20000,$C24)),0) -> 0 | M24: 0 | N24: =IFERROR((SUMIFS(Arquivo!$F$2:$F$20000,Arquivo!$B$2:$B$20000,N$6,Arquivo!$C$2:$C$20000,O$6,Arquivo!$D$2:$D$20000,$C24)),0) -> 0 | O24: 0 | P24: =IFERROR((SUMIFS(Arquivo!$F$2:$F$20000,Arquivo!$B$2:$B$20000,P$6,Arquivo!$C$2:$C$20000,Q$6,Arquivo!$D$2:$D$20000,$C24)),0) -> 0 | Q24: 0 | R24: =IFERROR((SUMIFS(Arquivo!$F$2:$F$20000,Arquivo!$B$2:$B$20000,R$6,Arquivo!$C$2:$C$20000,S$6,Arquivo!$D$2:$D$20000,$C24)),0) -> 0 | S24: 0 | T24: =IFERROR((SUMIFS(Arquivo!$F$2:$F$20000,Arquivo!$B$2:$B$20000,T$6,Arquivo!$C$2:$C$20000,U$6,Arquivo!$D$2:$D$20000,$C24)),0) -> 0 | U24: 0 | V24: =IFERROR((SUMIFS(Arquivo!$F$2:$F$20000,Arquivo!$B$2:$B$20000,V$6,Arquivo!$C$2:$C$20000,W$6,Arquivo!$D$2:$D$20000,$C24)),0) -> 0 | W24: 0 | X24: =IFERROR((SUMIFS(Arquivo!$F$2:$F$20000,Arquivo!$B$2:$B$20000,X$6,Arquivo!$C$2:$C$20000,Y$6,Arquivo!$D$2:$D$20000,$C24)),0) -> 0 | Y24: 0 | Z24: =IFERROR((SUMIFS(Arquivo!$F$2:$F$20000,Arquivo!$B$2:$B$20000,Z$6,Arquivo!$C$2:$C$20000,AA$6,Arquivo!$D$2:$D$20000,$C24)),0) -> 0 | AA24: 0 | AB24: =IFERROR((SUMIFS(Arquivo!$F$2:$F$20000,Arquivo!$B$2:$B$20000,AB$6,Arquivo!$C$2:$C$20000,AC$6,Arquivo!$D$2:$D$20000,$C24)),0) -> 0 | AC24: 0 | AD24: 0 | AE24: 0
C25: =IF('Plano de Contas'!B21="","",'Plano de Contas'!B21) ->  | D25: =IF($C25="","",VLOOKUP($C25,'Plano de Contas'!$B$2:$E$200,4,FALSE)) ->  | E25: =IF($C25="","",VLOOKUP($C25,'Plano de Contas'!$B$2:$E$200,3,FALSE)) ->  | F25: =IFERROR((SUMIFS(Arquivo!$F$2:$F$20000,Arquivo!$B$2:$B$20000,F$6,Arquivo!$C$2:$C$20000,G$6,Arquivo!$D$2:$D$20000,$C25)),0) -> 0 | G25: 0 | H25: =IFERROR((SUMIFS(Arquivo!$F$2:$F$20000,Arquivo!$B$2:$B$20000,H$6,Arquivo!$C$2:$C$20000,I$6,Arquivo!$D$2:$D$20000,$C25)),0) -> 0 | I25: 0 | J25: =IFERROR((SUMIFS(Arquivo!$F$2:$F$20000,Arquivo!$B$2:$B$20000,J$6,Arquivo!$C$2:$C$20000,K$6,Arquivo!$D$2:$D$20000,$C25)),0) -> 0 | K25: 0 | L25: =IFERROR((SUMIFS(Arquivo!$F$2:$F$20000,Arquivo!$B$2:$B$20000,L$6,Arquivo!$C$2:$C$20000,M$6,Arquivo!$D$2:$D$20000,$C25)),0) -> 0 | M25: 0 | N25: =IFERROR((SUMIFS(Arquivo!$F$2:$F$20000,Arquivo!$B$2:$B$20000,N$6,Arquivo!$C$2:$C$20000,O$6,Arquivo!$D$2:$D$20000,$C25)),0) -> 0 | O25: 0 | P25: =IFERROR((SUMIFS(Arquivo!$F$2:$F$20000,Arquivo!$B$2:$B$20000,P$6,Arquivo!$C$2:$C$20000,Q$6,Arquivo!$D$2:$D$20000,$C25)),0) -> 0 | Q25: 0 | R25: =IFERROR((SUMIFS(Arquivo!$F$2:$F$20000,Arquivo!$B$2:$B$20000,R$6,Arquivo!$C$2:$C$20000,S$6,Arquivo!$D$2:$D$20000,$C25)),0) -> 0 | S25: 0 | T25: =IFERROR((SUMIFS(Arquivo!$F$2:$F$20000,Arquivo!$B$2:$B$20000,T$6,Arquivo!$C$2:$C$20000,U$6,Arquivo!$D$2:$D$20000,$C25)),0) -> 0 | U25: 0 | V25: =IFERROR((SUMIFS(Arquivo!$F$2:$F$20000,Arquivo!$B$2:$B$20000,V$6,Arquivo!$C$2:$C$20000,W$6,Arquivo!$D$2:$D$20000,$C25)),0) -> 0 | W25: 0 | X25: =IFERROR((SUMIFS(Arquivo!$F$2:$F$20000,Arquivo!$B$2:$B$20000,X$6,Arquivo!$C$2:$C$20000,Y$6,Arquivo!$D$2:$D$20000,$C25)),0) -> 0 | Y25: 0 | Z25: =IFERROR((SUMIFS(Arquivo!$F$2:$F$20000,Arquivo!$B$2:$B$20000,Z$6,Arquivo!$C$2:$C$20000,AA$6,Arquivo!$D$2:$D$20000,$C25)),0) -> 0 | AA25: 0 | AB25: =IFERROR((SUMIFS(Arquivo!$F$2:$F$20000,Arquivo!$B$2:$B$20000,AB$6,Arquivo!$C$2:$C$20000,AC$6,Arquivo!$D$2:$D$20000,$C25)),0) -> 0 | AC25: 0 | AD25: 0 | AE25: 0
C26: =IF('Plano de Contas'!B22="","",'Plano de Contas'!B22) ->  | D26: =IF($C26="","",VLOOKUP($C26,'Plano de Contas'!$B$2:$E$200,4,FALSE)) ->  | E26: =IF($C26="","",VLOOKUP($C26,'Plano de Contas'!$B$2:$E$200,3,FALSE)) ->  | F26: =IFERROR((SUMIFS(Arquivo!$F$2:$F$20000,Arquivo!$B$2:$B$20000,F$6,Arquivo!$C$2:$C$20000,G$6,Arquivo!$D$2:$D$20000,$C26)),0) -> 0 | G26: 0 | H26: =IFERROR((SUMIFS(Arquivo!$F$2:$F$20000,Arquivo!$B$2:$B$20000,H$6,Arquivo!$C$2:$C$20000,I$6,Arquivo!$D$2:$D$20000,$C26)),0) -> 0 | I26: 0 | J26: =IFERROR((SUMIFS(Arquivo!$F$2:$F$20000,Arquivo!$B$2:$B$20000,J$6,Arquivo!$C$2:$C$20000,K$6,Arquivo!$D$2:$D$20000,$C26)),0) -> 0 | K26: 0 | L26: =IFERROR((SUMIFS(Arquivo!$F$2:$F$20000,Arquivo!$B$2:$B$20000,L$6,Arquivo!$C$2:$C$20000,M$6,Arquivo!$D$2:$D$20000,$C26)),0) -> 0 | M26: 0 | N26: =IFERROR((SUMIFS(Arquivo!$F$2:$F$20000,Arquivo!$B$2:$B$20000,N$6,Arquivo!$C$2:$C$20000,O$6,Arquivo!$D$2:$D$20000,$C26)),0) -> 0 | O26: 0 | P26: =IFERROR((SUMIFS(Arquivo!$F$2:$F$20000,Arquivo!$B$2:$B$20000,P$6,Arquivo!$C$2:$C$20000,Q$6,Arquivo!$D$2:$D$20000,$C26)),0) -> 0 | Q26: 0 | R26: =IFERROR((SUMIFS(Arquivo!$F$2:$F$20000,Arquivo!$B$2:$B$20000,R$6,Arquivo!$C$2:$C$20000,S$6,Arquivo!$D$2:$D$20000,$C26)),0) -> 0 | S26: 0 | T26: =IFERROR((SUMIFS(Arquivo!$F$2:$F$20000,Arquivo!$B$2:$B$20000,T$6,Arquivo!$C$2:$C$20000,U$6,Arquivo!$D$2:$D$20000,$C26)),0) -> 0 | U26: 0 | V26: =IFERROR((SUMIFS(Arquivo!$F$2:$F$20000,Arquivo!$B$2:$B$20000,V$6,Arquivo!$C$2:$C$20000,W$6,Arquivo!$D$2:$D$20000,$C26)),0) -> 0 | W26: 0 | X26: =IFERROR((SUMIFS(Arquivo!$F$2:$F$20000,Arquivo!$B$2:$B$20000,X$6,Arquivo!$C$2:$C$20000,Y$6,Arquivo!$D$2:$D$20000,$C26)),0) -> 0 | Y26: 0 | Z26: =IFERROR((SUMIFS(Arquivo!$F$2:$F$20000,Arquivo!$B$2:$B$20000,Z$6,Arquivo!$C$2:$C$20000,AA$6,Arquivo!$D$2:$D$20000,$C26)),0) -> 0 | AA26: 0 | AB26: =IFERROR((SUMIFS(Arquivo!$F$2:$F$20000,Arquivo!$B$2:$B$20000,AB$6,Arquivo!$C$2:$C$20000,AC$6,Arquivo!$D$2:$D$20000,$C26)),0) -> 0 | AC26: 0 | AD26: 0 | AE26: 0
AH27: =IF(AH18="","","X") -> X
D28: (=) RECEITA OPERACIONAL LÍQUIDA | F28: =F10-F18 -> 956802.16 | G28: =IFERROR((F28/F$10),0) -> 0.9960185995 | H28: =H10-H18 -> 818146.53 | I28: =IFERROR((H28/H$10),0) -> 0.9958813804 | J28: =J10-J18 -> 1318733.69 | K28: =IFERROR((J28/J$10),0) -> 0.9965739273 | L28: =L10-L18 -> 1006072.43 | M28: =IFERROR((L28/L$10),0) -> 0.9971748878 | N28: =N10-N18 -> 803745.54 | O28: =IFERROR((N28/N$10),0) -> 0.998743645 | P28: =P10-P18 -> 881861.99 | Q28: =IFERROR((P28/P$10),0) -> 0.9985199777 | R28: =R10-R18 -> 607382.54 | S28: =IFERROR((R28/R$10),0) -> 0.998414704 | T28: =T10-T18 -> 0 | U28: =IFERROR((T28/T$10),0) -> 0 | V28: =V10-V18 -> 0 | W28: =IFERROR((V28/V$10),0) -> 0 | X28: =X10-X18 -> 0 | Y28: =IFERROR((X28/X$10),0) -> 0 | Z28: =Z10-Z18 -> 0 | AA28: =IFERROR((Z28/Z$10),0) -> 0 | AB28: =AB10-AB18 -> 0 | AC28: =IFERROR((AB28/AB$10),0) -> 0 | AD28: =AD10-AD18 -> 6392744.88 | AE28: =IFERROR((AD28/AD$10),0) -> 0.9972117017 | AH28: =IF(AND($X$3="CT",AD28<>0),"X","") -> X
AH29: =IF(AH28="","","X") -> X
D30: (-) CMV - CUSTO MERCADORIA VENDIDA | F30: =SUBTOTAL(9,F31:F40) -> 862188.61 | G30: =IFERROR((F30/IF($X$3="CT",F$10,F$30)),0) -> 0.897527125 | H30: =SUBTOTAL(9,H31:H40) -> 710927.49 | I30: =IFERROR((H30/IF($X$3="CT",H$10,H$30)),0) -> 0.8653699846 | J30: =SUBTOTAL(9,J31:J40) -> 1156128.98 | K30: =IFERROR((J30/IF($X$3="CT",J$10,J$30)),0) -> 0.8736926999 | L30: =SUBTOTAL(9,L31:L40) -> 867035.76 | M30: =IFERROR((L30/IF($X$3="CT",L$10,L$30)),0) -> 0.8593678356 | N30: =SUBTOTAL(9,N31:N40) -> 703346.2 | O30: =IFERROR((N30/IF($X$3="CT",N$10,N$30)),0) -> 0.8739862463 | P30: =SUBTOTAL(9,P31:P40) -> 717600 | Q30: =IFERROR((P30/IF($X$3="CT",P$10,P$30)),0) -> 0.8125284275 | R30: =SUBTOTAL(9,R31:R40) -> 444274.46 | S30: =IFERROR((R30/IF($X$3="CT",R$10,R$30)),0) -> 0.7302978342 | T30: =SUBTOTAL(9,T31:T40) -> 0 | U30: =IFERROR((T30/IF($X$3="CT",T$10,T$30)),0) -> 0 | V30: =SUBTOTAL(9,V31:V40) -> 0 | W30: =IFERROR((V30/IF($X$3="CT",V$10,V$30)),0) -> 0 | X30: =SUBTOTAL(9,X31:X40) -> 0 | Y30: =IFERROR((X30/IF($X$3="CT",X$10,X$30)),0) -> 0 | Z30: =SUBTOTAL(9,Z31:Z40) -> 0 | AA30: =IFERROR((Z30/IF($X$3="CT",Z$10,Z$30)),0) -> 0 | AB30: =SUBTOTAL(9,AB31:AB40) -> 0 | AC30: =IFERROR((AB30/IF($X$3="CT",AB$10,AB$30)),0) -> 0 | AD30: =SUBTOTAL(9,AD31:AD40) -> 5461501.5 | AE30: =IFERROR((AD30/IF($X$3="CT",AD$10,AD$30)),0) -> 0.8519459648 | AH30: =IF(COUNTIF(AH31:AH39,"X")>0,"X","") -> X
C31: =IF('Plano de Contas'!B24="","",'Plano de Contas'!B24) -> 2.1.1.1 | D31: =IF($C31="","",VLOOKUP($C31,'Plano de Contas'!$B$2:$E$200,4,FALSE)) -> CV | E31: =IF($C31="","",VLOOKUP($C31,'Plano de Contas'!$B$2:$E$200,3,FALSE)) -> (CUST12) CUSTO DOS PRODUTOS VENDIDOS | F31: =IFERROR((SUMIFS(Arquivo!$F$2:$F$20000,Arquivo!$B$2:$B$20000,F$6,Arquivo!$C$2:$C$20000,G$6,Arquivo!$D$2:$D$20000,$C31)),0) -> 831805.22 | G31: 0.8658984113 | H31: =IFERROR((SUMIFS(Arquivo!$F$2:$F$20000,Arquivo!$B$2:$B$20000,H$6,Arquivo!$C$2:$C$20000,I$6,Arquivo!$D$2:$D$20000,$C31)),0) -> 681415.88 | I31: 0.8294472473 | J31: =IFERROR((SUMIFS(Arquivo!$F$2:$F$20000,Arquivo!$B$2:$B$20000,J$6,Arquivo!$C$2:$C$20000,K$6,Arquivo!$D$2:$D$20000,$C31)),0) -> 1114412.7 | K31: 0.8421674895 | L31: =IFERROR((SUMIFS(Arquivo!$F$2:$F$20000,Arquivo!$B$2:$B$20000,L$6,Arquivo!$C$2:$C$20000,M$6,Arquivo!$D$2:$D$20000,$C31)),0) -> 831438.8 | M31: 0.8240856894 | N31: =IFERROR((SUMIFS(Arquivo!$F$2:$F$20000,Arquivo!$B$2:$B$20000,N$6,Arquivo!$C$2:$C$20000,O$6,Arquivo!$D$2:$D$20000,$C31)),0) -> 674216 | O31: 0.8377887177 | P31: =IFERROR((SUMIFS(Arquivo!$F$2:$F$20000,Arquivo!$B$2:$B$20000,P$6,Arquivo!$C$2:$C$20000,Q$6,Arquivo!$D$2:$D$20000,$C31)),0) -> 683704 | Q31: 0.7741484615 | R31: =IFERROR((SUMIFS(Arquivo!$F$2:$F$20000,Arquivo!$B$2:$B$20000,R$6,Arquivo!$C$2:$C$20000,S$6,Arquivo!$D$2:$D$20000,$C31)),0) -> 411915.2 | S31: 0.6771057207 | T31: =IFERROR((SUMIFS(Arquivo!$F$2:$F$20000,Arquivo!$B$2:$B$20000,T$6,Arquivo!$C$2:$C$20000,U$6,Arquivo!$D$2:$D$20000,$C31)),0) -> 0 | U31: 0 | V31: =IFERROR((SUMIFS(Arquivo!$F$2:$F$20000,Arquivo!$B$2:$B$20000,V$6,Arquivo!$C$2:$C$20000,W$6,Arquivo!$D$2:$D$20000,$C31)),0) -> 0 | W31: 0 | X31: =IFERROR((SUMIFS(Arquivo!$F$2:$F$20000,Arquivo!$B$2:$B$20000,X$6,Arquivo!$C$2:$C$20000,Y$6,Arquivo!$D$2:$D$20000,$C31)),0) -> 0 | Y31: 0 | Z31: =IFERROR((SUMIFS(Arquivo!$F$2:$F$20000,Arquivo!$B$2:$B$20000,Z$6,Arquivo!$C$2:$C$20000,AA$6,Arquivo!$D$2:$D$20000,$C31)),0) -> 0 | AA31: 0 | AB31: =IFERROR((SUMIFS(Arquivo!$F$2:$F$20000,Arquivo!$B$2:$B$20000,AB$6,Arquivo!$C$2:$C$20000,AC$6,Arquivo!$D$2:$D$20000,$C31)),0) -> 0 | AC31: 0 | AD31: =F31+H31+J31+L31+N31+P31+R31+T31+V31+X31+Z31+AB31 -> 5228907.8 | AE31: 0.8156634033 | AH31: =IF($AD31=0,"",IF($X$3="CT","X",IF($X$3=$D31,"X",""))) -> X
C32: =IF('Plano de Contas'!B25="","",'Plano de Contas'!B25) -> 6.1.1.1 | D32: =IF($C32="","",VLOOKUP($C32,'Plano de Contas'!$B$2:$E$200,4,FALSE)) -> CV | E32: =IF($C32="","",VLOOKUP($C32,'Plano de Contas'!$B$2:$E$200,3,FALSE)) -> OUTROS CUSTOS DIRETOS | F32: =IFERROR((SUMIFS(Arquivo!$F$2:$F$20000,Arquivo!$B$2:$B$20000,F$6,Arquivo!$C$2:$C$20000,G$6,Arquivo!$D$2:$D$20000,$C32)),0) -> 0 | G32: 0 | H32: =IFERROR((SUMIFS(Arquivo!$F$2:$F$20000,Arquivo!$B$2:$B$20000,H$6,Arquivo!$C$2:$C$20000,I$6,Arquivo!$D$2:$D$20000,$C32)),0) -> 0 | I32: 0 | J32: =IFERROR((SUMIFS(Arquivo!$F$2:$F$20000,Arquivo!$B$2:$B$20000,J$6,Arquivo!$C$2:$C$20000,K$6,Arquivo!$D$2:$D$20000,$C32)),0) -> 0 | K32: 0 | L32: =IFERROR((SUMIFS(Arquivo!$F$2:$F$20000,Arquivo!$B$2:$B$20000,L$6,Arquivo!$C$2:$C$20000,M$6,Arquivo!$D$2:$D$20000,$C32)),0) -> 0 | M32: 0 | N32: =IFERROR((SUMIFS(Arquivo!$F$2:$F$20000,Arquivo!$B$2:$B$20000,N$6,Arquivo!$C$2:$C$20000,O$6,Arquivo!$D$2:$D$20000,$C32)),0) -> 0 | O32: 0 | P32: =IFERROR((SUMIFS(Arquivo!$F$2:$F$20000,Arquivo!$B$2:$B$20000,P$6,Arquivo!$C$2:$C$20000,Q$6,Arquivo!$D$2:$D$20000,$C32)),0) -> 0 | Q32: 0 | R32: =IFERROR((SUMIFS(Arquivo!$F$2:$F$20000,Arquivo!$B$2:$B$20000,R$6,Arquivo!$C$2:$C$20000,S$6,Arquivo!$D$2:$D$20000,$C32)),0) -> 0 | S32: 0 | T32: =IFERROR((SUMIFS(Arquivo!$F$2:$F$20000,Arquivo!$B$2:$B$20000,T$6,Arquivo!$C$2:$C$20000,U$6,Arquivo!$D$2:$D$20000,$C32)),0) -> 0 | U32: 0 | V32: =IFERROR((SUMIFS(Arquivo!$F$2:$F$20000,Arquivo!$B$2:$B$20000,V$6,Arquivo!$C$2:$C$20000,W$6,Arquivo!$D$2:$D$20000,$C32)),0) -> 0 | W32: 0 | X32: =IFERROR((SUMIFS(Arquivo!$F$2:$F$20000,Arquivo!$B$2:$B$20000,X$6,Arquivo!$C$2:$C$20000,Y$6,Arquivo!$D$2:$D$20000,$C32)),0) -> 0 | Y32: 0 | Z32: =IFERROR((SUMIFS(Arquivo!$F$2:$F$20000,Arquivo!$B$2:$B$20000,Z$6,Arquivo!$C$2:$C$20000,AA$6,Arquivo!$D$2:$D$20000,$C32)),0) -> 0 | AA32: 0 | AB32: =IFERROR((SUMIFS(Arquivo!$F$2:$F$20000,Arquivo!$B$2:$B$20000,AB$6,Arquivo!$C$2:$C$20000,AC$6,Arquivo!$D$2:$D$20000,$C32)),0) -> 0 | AC32: 0 | AD32: 0 | AE32: 0
C33: =IF('Plano de Contas'!B26="","",'Plano de Contas'!B26) -> 6.1.1.2 | D33: =IF($C33="","",VLOOKUP($C33,'Plano de Contas'!$B$2:$E$200,4,FALSE)) -> CV | E33: =IF($C33="","",VLOOKUP($C33,'Plano de Contas'!$B$2:$E$200,3,FALSE)) -> CUSTO COM EMBALAGENS | F33: =IFERROR((SUMIFS(Arquivo!$F$2:$F$20000,Arquivo!$B$2:$B$20000,F$6,Arquivo!$C$2:$C$20000,G$6,Arquivo!$D$2:$D$20000,$C33)),0) -> 30383.39 | G33: 0.03162871367 | H33: =IFERROR((SUMIFS(Arquivo!$F$2:$F$20000,Arquivo!$B$2:$B$20000,H$6,Arquivo!$C$2:$C$20000,I$6,Arquivo!$D$2:$D$20000,$C33)),0) -> 29511.61 | I33: 0.03592273734 | J33: =IFERROR((SUMIFS(Arquivo!$F$2:$F$20000,Arquivo!$B$2:$B$20000,J$6,Arquivo!$C$2:$C$20000,K$6,Arquivo!$D$2:$D$20000,$C33)),0) -> 41716.28 | K33: 0.03152521036 | L33: =IFERROR((SUMIFS(Arquivo!$F$2:$F$20000,Arquivo!$B$2:$B$20000,L$6,Arquivo!$C$2:$C$20000,M$6,Arquivo!$D$2:$D$20000,$C33)),0) -> 35596.96 | M33: 0.03528214623 | N33: =IFERROR((SUMIFS(Arquivo!$F$2:$F$20000,Arquivo!$B$2:$B$20000,N$6,Arquivo!$C$2:$C$20000,O$6,Arquivo!$D$2:$D$20000,$C33)),0) -> 29130.2 | O33: 0.03619752854 | P33: =IFERROR((SUMIFS(Arquivo!$F$2:$F$20000,Arquivo!$B$2:$B$20000,P$6,Arquivo!$C$2:$C$20000,Q$6,Arquivo!$D$2:$D$20000,$C33)),0) -> 33896 | Q33: 0.03837996597 | R33: =IFERROR((SUMIFS(Arquivo!$F$2:$F$20000,Arquivo!$B$2:$B$20000,R$6,Arquivo!$C$2:$C$20000,S$6,Arquivo!$D$2:$D$20000,$C33)),0) -> 32359.26 | S33: 0.05319211348 | T33: =IFERROR((SUMIFS(Arquivo!$F$2:$F$20000,Arquivo!$B$2:$B$20000,T$6,Arquivo!$C$2:$C$20000,U$6,Arquivo!$D$2:$D$20000,$C33)),0) -> 0 | U33: 0 | V33: =IFERROR((SUMIFS(Arquivo!$F$2:$F$20000,Arquivo!$B$2:$B$20000,V$6,Arquivo!$C$2:$C$20000,W$6,Arquivo!$D$2:$D$20000,$C33)),0) -> 0 | W33: 0 | X33: =IFERROR((SUMIFS(Arquivo!$F$2:$F$20000,Arquivo!$B$2:$B$20000,X$6,Arquivo!$C$2:$C$20000,Y$6,Arquivo!$D$2:$D$20000,$C33)),0) -> 0 | Y33: 0 | Z33: =IFERROR((SUMIFS(Arquivo!$F$2:$F$20000,Arquivo!$B$2:$B$20000,Z$6,Arquivo!$C$2:$C$20000,AA$6,Arquivo!$D$2:$D$20000,$C33)),0) -> 0 | AA33: 0 | AB33: =IFERROR((SUMIFS(Arquivo!$F$2:$F$20000,Arquivo!$B$2:$B$20000,AB$6,Arquivo!$C$2:$C$20000,AC$6,Arquivo!$D$2:$D$20000,$C33)),0) -> 0 | AC33: 0 | AD33: 232593.7 | AE33: 0.03628256152 | AH33: X
C34: =IF('Plano de Contas'!B27="","",'Plano de Contas'!B27) -> 6.1.1.4 | D34: =IF($C34="","",VLOOKUP($C34,'Plano de Contas'!$B$2:$E$200,4,FALSE)) -> CV | E34: =IF($C34="","",VLOOKUP($C34,'Plano de Contas'!$B$2:$E$200,3,FALSE)) -> OUTROS CUSTOS COM EMBALAGEM | F34: =IFERROR((SUMIFS(Arquivo!$F$2:$F$20000,Arquivo!$B$2:$B$20000,F$6,Arquivo!$C$2:$C$20000,G$6,Arquivo!$D$2:$D$20000,$C34)),0) -> 0 | G34: 0 | H34: =IFERROR((SUMIFS(Arquivo!$F$2:$F$20000,Arquivo!$B$2:$B$20000,H$6,Arquivo!$C$2:$C$20000,I$6,Arquivo!$D$2:$D$20000,$C34)),0) -> 0 | I34: 0 | J34: =IFERROR((SUMIFS(Arquivo!$F$2:$F$20000,Arquivo!$B$2:$B$20000,J$6,Arquivo!$C$2:$C$20000,K$6,Arquivo!$D$2:$D$20000,$C34)),0) -> 0 | K34: 0 | L34: =IFERROR((SUMIFS(Arquivo!$F$2:$F$20000,Arquivo!$B$2:$B$20000,L$6,Arquivo!$C$2:$C$20000,M$6,Arquivo!$D$2:$D$20000,$C34)),0) -> 0 | M34: 0 | N34: =IFERROR((SUMIFS(Arquivo!$F$2:$F$20000,Arquivo!$B$2:$B$20000,N$6,Arquivo!$C$2:$C$20000,O$6,Arquivo!$D$2:$D$20000,$C34)),0) -> 0 | O34: 0 | P34: =IFERROR((SUMIFS(Arquivo!$F$2:$F$20000,Arquivo!$B$2:$B$20000,P$6,Arquivo!$C$2:$C$20000,Q$6,Arquivo!$D$2:$D$20000,$C34)),0) -> 0 | Q34: 0 | R34: =IFERROR((SUMIFS(Arquivo!$F$2:$F$20000,Arquivo!$B$2:$B$20000,R$6,Arquivo!$C$2:$C$20000,S$6,Arquivo!$D$2:$D$20000,$C34)),0) -> 0 | S34: 0 | T34: =IFERROR((SUMIFS(Arquivo!$F$2:$F$20000,Arquivo!$B$2:$B$20000,T$6,Arquivo!$C$2:$C$20000,U$6,Arquivo!$D$2:$D$20000,$C34)),0) -> 0 | U34: 0 | V34: =IFERROR((SUMIFS(Arquivo!$F$2:$F$20000,Arquivo!$B$2:$B$20000,V$6,Arquivo!$C$2:$C$20000,W$6,Arquivo!$D$2:$D$20000,$C34)),0) -> 0 | W34: 0 | X34: =IFERROR((SUMIFS(Arquivo!$F$2:$F$20000,Arquivo!$B$2:$B$20000,X$6,Arquivo!$C$2:$C$20000,Y$6,Arquivo!$D$2:$D$20000,$C34)),0) -> 0 | Y34: 0 | Z34: =IFERROR((SUMIFS(Arquivo!$F$2:$F$20000,Arquivo!$B$2:$B$20000,Z$6,Arquivo!$C$2:$C$20000,AA$6,Arquivo!$D$2:$D$20000,$C34)),0) -> 0 | AA34: 0 | AB34: =IFERROR((SUMIFS(Arquivo!$F$2:$F$20000,Arquivo!$B$2:$B$20000,AB$6,Arquivo!$C$2:$C$20000,AC$6,Arquivo!$D$2:$D$20000,$C34)),0) -> 0 | AC34: 0 | AD34: 0 | AE34: 0
C35: =IF('Plano de Contas'!B28="","",'Plano de Contas'!B28) ->  | D35: =IF($C35="","",VLOOKUP($C35,'Plano de Contas'!$B$2:$E$200,4,FALSE)) ->  | E35: =IF($C35="","",VLOOKUP($C35,'Plano de Contas'!$B$2:$E$200,3,FALSE)) ->  | F35: =IFERROR((SUMIFS(Arquivo!$F$2:$F$20000,Arquivo!$B$2:$B$20000,F$6,Arquivo!$C$2:$C$20000,G$6,Arquivo!$D$2:$D$20000,$C35)),0) -> 0 | G35: 0 | H35: =IFERROR((SUMIFS(Arquivo!$F$2:$F$20000,Arquivo!$B$2:$B$20000,H$6,Arquivo!$C$2:$C$20000,I$6,Arquivo!$D$2:$D$20000,$C35)),0) -> 0 | I35: 0 | J35: =IFERROR((SUMIFS(Arquivo!$F$2:$F$20000,Arquivo!$B$2:$B$20000,J$6,Arquivo!$C$2:$C$20000,K$6,Arquivo!$D$2:$D$20000,$C35)),0) -> 0 | K35: 0 | L35: =IFERROR((SUMIFS(Arquivo!$F$2:$F$20000,Arquivo!$B$2:$B$20000,L$6,Arquivo!$C$2:$C$20000,M$6,Arquivo!$D$2:$D$20000,$C35)),0) -> 0 | M35: 0 | N35: =IFERROR((SUMIFS(Arquivo!$F$2:$F$20000,Arquivo!$B$2:$B$20000,N$6,Arquivo!$C$2:$C$20000,O$6,Arquivo!$D$2:$D$20000,$C35)),0) -> 0 | O35: 0 | P35: =IFERROR((SUMIFS(Arquivo!$F$2:$F$20000,Arquivo!$B$2:$B$20000,P$6,Arquivo!$C$2:$C$20000,Q$6,Arquivo!$D$2:$D$20000,$C35)),0) -> 0 | Q35: 0 | R35: =IFERROR((SUMIFS(Arquivo!$F$2:$F$20000,Arquivo!$B$2:$B$20000,R$6,Arquivo!$C$2:$C$20000,S$6,Arquivo!$D$2:$D$20000,$C35)),0) -> 0 | S35: 0 | T35: =IFERROR((SUMIFS(Arquivo!$F$2:$F$20000,Arquivo!$B$2:$B$20000,T$6,Arquivo!$C$2:$C$20000,U$6,Arquivo!$D$2:$D$20000,$C35)),0) -> 0 | U35: 0 | V35: =IFERROR((SUMIFS(Arquivo!$F$2:$F$20000,Arquivo!$B$2:$B$20000,V$6,Arquivo!$C$2:$C$20000,W$6,Arquivo!$D$2:$D$20000,$C35)),0) -> 0 | W35: 0 | X35: =IFERROR((SUMIFS(Arquivo!$F$2:$F$20000,Arquivo!$B$2:$B$20000,X$6,Arquivo!$C$2:$C$20000,Y$6,Arquivo!$D$2:$D$20000,$C35)),0) -> 0 | Y35: 0 | Z35: =IFERROR((SUMIFS(Arquivo!$F$2:$F$20000,Arquivo!$B$2:$B$20000,Z$6,Arquivo!$C$2:$C$20000,AA$6,Arquivo!$D$2:$D$20000,$C35)),0) -> 0 | AA35: 0 | AB35: =IFERROR((SUMIFS(Arquivo!$F$2:$F$20000,Arquivo!$B$2:$B$20000,AB$6,Arquivo!$C$2:$C$20000,AC$6,Arquivo!$D$2:$D$20000,$C35)),0) -> 0 | AC35: 0 | AD35: 0 | AE35: 0
C36: =IF('Plano de Contas'!B29="","",'Plano de Contas'!B29) ->  | D36: =IF($C36="","",VLOOKUP($C36,'Plano de Contas'!$B$2:$E$200,4,FALSE)) ->  | E36: =IF($C36="","",VLOOKUP($C36,'Plano de Contas'!$B$2:$E$200,3,FALSE)) ->  | F36: =IFERROR((SUMIFS(Arquivo!$F$2:$F$20000,Arquivo!$B$2:$B$20000,F$6,Arquivo!$C$2:$C$20000,G$6,Arquivo!$D$2:$D$20000,$C36)),0) -> 0 | G36: 0 | H36: =IFERROR((SUMIFS(Arquivo!$F$2:$F$20000,Arquivo!$B$2:$B$20000,H$6,Arquivo!$C$2:$C$20000,I$6,Arquivo!$D$2:$D$20000,$C36)),0) -> 0 | I36: 0 | J36: =IFERROR((SUMIFS(Arquivo!$F$2:$F$20000,Arquivo!$B$2:$B$20000,J$6,Arquivo!$C$2:$C$20000,K$6,Arquivo!$D$2:$D$20000,$C36)),0) -> 0 | K36: 0 | L36: =IFERROR((SUMIFS(Arquivo!$F$2:$F$20000,Arquivo!$B$2:$B$20000,L$6,Arquivo!$C$2:$C$20000,M$6,Arquivo!$D$2:$D$20000,$C36)),0) -> 0 | M36: 0 | N36: =IFERROR((SUMIFS(Arquivo!$F$2:$F$20000,Arquivo!$B$2:$B$20000,N$6,Arquivo!$C$2:$C$20000,O$6,Arquivo!$D$2:$D$20000,$C36)),0) -> 0 | O36: 0 | P36: =IFERROR((SUMIFS(Arquivo!$F$2:$F$20000,Arquivo!$B$2:$B$20000,P$6,Arquivo!$C$2:$C$20000,Q$6,Arquivo!$D$2:$D$20000,$C36)),0) -> 0 | Q36: 0 | R36: =IFERROR((SUMIFS(Arquivo!$F$2:$F$20000,Arquivo!$B$2:$B$20000,R$6,Arquivo!$C$2:$C$20000,S$6,Arquivo!$D$2:$D$20000,$C36)),0) -> 0 | S36: 0 | T36: =IFERROR((SUMIFS(Arquivo!$F$2:$F$20000,Arquivo!$B$2:$B$20000,T$6,Arquivo!$C$2:$C$20000,U$6,Arquivo!$D$2:$D$20000,$C36)),0) -> 0 | U36: 0 | V36: =IFERROR((SUMIFS(Arquivo!$F$2:$F$20000,Arquivo!$B$2:$B$20000,V$6,Arquivo!$C$2:$C$20000,W$6,Arquivo!$D$2:$D$20000,$C36)),0) -> 0 | W36: 0 | X36: =IFERROR((SUMIFS(Arquivo!$F$2:$F$20000,Arquivo!$B$2:$B$20000,X$6,Arquivo!$C$2:$C$20000,Y$6,Arquivo!$D$2:$D$20000,$C36)),0) -> 0 | Y36: 0 | Z36: =IFERROR((SUMIFS(Arquivo!$F$2:$F$20000,Arquivo!$B$2:$B$20000,Z$6,Arquivo!$C$2:$C$20000,AA$6,Arquivo!$D$2:$D$20000,$C36)),0) -> 0 | AA36: 0 | AB36: =IFERROR((SUMIFS(Arquivo!$F$2:$F$20000,Arquivo!$B$2:$B$20000,AB$6,Arquivo!$C$2:$C$20000,AC$6,Arquivo!$D$2:$D$20000,$C36)),0) -> 0 | AC36: 0 | AD36: 0 | AE36: 0
C37: =IF('Plano de Contas'!B30="","",'Plano de Contas'!B30) ->  | D37: =IF($C37="","",VLOOKUP($C37,'Plano de Contas'!$B$2:$E$200,4,FALSE)) ->  | E37: =IF($C37="","",VLOOKUP($C37,'Plano de Contas'!$B$2:$E$200,3,FALSE)) ->  | F37: =IFERROR((SUMIFS(Arquivo!$F$2:$F$20000,Arquivo!$B$2:$B$20000,F$6,Arquivo!$C$2:$C$20000,G$6,Arquivo!$D$2:$D$20000,$C37)),0) -> 0 | G37: 0 | H37: =IFERROR((SUMIFS(Arquivo!$F$2:$F$20000,Arquivo!$B$2:$B$20000,H$6,Arquivo!$C$2:$C$20000,I$6,Arquivo!$D$2:$D$20000,$C37)),0) -> 0 | I37: 0 | J37: =IFERROR((SUMIFS(Arquivo!$F$2:$F$20000,Arquivo!$B$2:$B$20000,J$6,Arquivo!$C$2:$C$20000,K$6,Arquivo!$D$2:$D$20000,$C37)),0) -> 0 | K37: 0 | L37: =IFERROR((SUMIFS(Arquivo!$F$2:$F$20000,Arquivo!$B$2:$B$20000,L$6,Arquivo!$C$2:$C$20000,M$6,Arquivo!$D$2:$D$20000,$C37)),0) -> 0 | M37: 0 | N37: =IFERROR((SUMIFS(Arquivo!$F$2:$F$20000,Arquivo!$B$2:$B$20000,N$6,Arquivo!$C$2:$C$20000,O$6,Arquivo!$D$2:$D$20000,$C37)),0) -> 0 | O37: 0 | P37: =IFERROR((SUMIFS(Arquivo!$F$2:$F$20000,Arquivo!$B$2:$B$20000,P$6,Arquivo!$C$2:$C$20000,Q$6,Arquivo!$D$2:$D$20000,$C37)),0) -> 0 | Q37: 0 | R37: =IFERROR((SUMIFS(Arquivo!$F$2:$F$20000,Arquivo!$B$2:$B$20000,R$6,Arquivo!$C$2:$C$20000,S$6,Arquivo!$D$2:$D$20000,$C37)),0) -> 0 | S37: 0 | T37: =IFERROR((SUMIFS(Arquivo!$F$2:$F$20000,Arquivo!$B$2:$B$20000,T$6,Arquivo!$C$2:$C$20000,U$6,Arquivo!$D$2:$D$20000,$C37)),0) -> 0 | U37: 0 | V37: =IFERROR((SUMIFS(Arquivo!$F$2:$F$20000,Arquivo!$B$2:$B$20000,V$6,Arquivo!$C$2:$C$20000,W$6,Arquivo!$D$2:$D$20000,$C37)),0) -> 0 | W37: 0 | X37: =IFERROR((SUMIFS(Arquivo!$F$2:$F$20000,Arquivo!$B$2:$B$20000,X$6,Arquivo!$C$2:$C$20000,Y$6,Arquivo!$D$2:$D$20000,$C37)),0) -> 0 | Y37: 0 | Z37: =IFERROR((SUMIFS(Arquivo!$F$2:$F$20000,Arquivo!$B$2:$B$20000,Z$6,Arquivo!$C$2:$C$20000,AA$6,Arquivo!$D$2:$D$20000,$C37)),0) -> 0 | AA37: 0 | AB37: =IFERROR((SUMIFS(Arquivo!$F$2:$F$20000,Arquivo!$B$2:$B$20000,AB$6,Arquivo!$C$2:$C$20000,AC$6,Arquivo!$D$2:$D$20000,$C37)),0) -> 0 | AC37: 0 | AD37: 0 | AE37: 0
C38: =IF('Plano de Contas'!B31="","",'Plano de Contas'!B31) ->  | D38: =IF($C38="","",VLOOKUP($C38,'Plano de Contas'!$B$2:$E$200,4,FALSE)) ->  | E38: =IF($C38="","",VLOOKUP($C38,'Plano de Contas'!$B$2:$E$200,3,FALSE)) ->  | F38: =IFERROR((SUMIFS(Arquivo!$F$2:$F$20000,Arquivo!$B$2:$B$20000,F$6,Arquivo!$C$2:$C$20000,G$6,Arquivo!$D$2:$D$20000,$C38)),0) -> 0 | G38: 0 | H38: =IFERROR((SUMIFS(Arquivo!$F$2:$F$20000,Arquivo!$B$2:$B$20000,H$6,Arquivo!$C$2:$C$20000,I$6,Arquivo!$D$2:$D$20000,$C38)),0) -> 0 | I38: 0 | J38: =IFERROR((SUMIFS(Arquivo!$F$2:$F$20000,Arquivo!$B$2:$B$20000,J$6,Arquivo!$C$2:$C$20000,K$6,Arquivo!$D$2:$D$20000,$C38)),0) -> 0 | K38: 0 | L38: =IFERROR((SUMIFS(Arquivo!$F$2:$F$20000,Arquivo!$B$2:$B$20000,L$6,Arquivo!$C$2:$C$20000,M$6,Arquivo!$D$2:$D$20000,$C38)),0) -> 0 | M38: 0 | N38: =IFERROR((SUMIFS(Arquivo!$F$2:$F$20000,Arquivo!$B$2:$B$20000,N$6,Arquivo!$C$2:$C$20000,O$6,Arquivo!$D$2:$D$20000,$C38)),0) -> 0 | O38: 0 | P38: =IFERROR((SUMIFS(Arquivo!$F$2:$F$20000,Arquivo!$B$2:$B$20000,P$6,Arquivo!$C$2:$C$20000,Q$6,Arquivo!$D$2:$D$20000,$C38)),0) -> 0 | Q38: 0 | R38: =IFERROR((SUMIFS(Arquivo!$F$2:$F$20000,Arquivo!$B$2:$B$20000,R$6,Arquivo!$C$2:$C$20000,S$6,Arquivo!$D$2:$D$20000,$C38)),0) -> 0 | S38: 0 | T38: =IFERROR((SUMIFS(Arquivo!$F$2:$F$20000,Arquivo!$B$2:$B$20000,T$6,Arquivo!$C$2:$C$20000,U$6,Arquivo!$D$2:$D$20000,$C38)),0) -> 0 | U38: 0 | V38: =IFERROR((SUMIFS(Arquivo!$F$2:$F$20000,Arquivo!$B$2:$B$20000,V$6,Arquivo!$C$2:$C$20000,W$6,Arquivo!$D$2:$D$20000,$C38)),0) -> 0 | W38: 0 | X38: =IFERROR((SUMIFS(Arquivo!$F$2:$F$20000,Arquivo!$B$2:$B$20000,X$6,Arquivo!$C$2:$C$20000,Y$6,Arquivo!$D$2:$D$20000,$C38)),0) -> 0 | Y38: 0 | Z38: =IFERROR((SUMIFS(Arquivo!$F$2:$F$20000,Arquivo!$B$2:$B$20000,Z$6,Arquivo!$C$2:$C$20000,AA$6,Arquivo!$D$2:$D$20000,$C38)),0) -> 0 | AA38: 0 | AB38: =IFERROR((SUMIFS(Arquivo!$F$2:$F$20000,Arquivo!$B$2:$B$20000,AB$6,Arquivo!$C$2:$C$20000,AC$6,Arquivo!$D$2:$D$20000,$C38)),0) -> 0 | AC38: 0 | AD38: 0 | AE38: 0
C39: =IF('Plano de Contas'!B32="","",'Plano de Contas'!B32) ->  | D39: =IF($C39="","",VLOOKUP($C39,'Plano de Contas'!$B$2:$E$200,4,FALSE)) ->  | E39: =IF($C39="","",VLOOKUP($C39,'Plano de Contas'!$B$2:$E$200,3,FALSE)) ->  | F39: =IFERROR((SUMIFS(Arquivo!$F$2:$F$20000,Arquivo!$B$2:$B$20000,F$6,Arquivo!$C$2:$C$20000,G$6,Arquivo!$D$2:$D$20000,$C39)),0) -> 0 | G39: 0 | H39: =IFERROR((SUMIFS(Arquivo!$F$2:$F$20000,Arquivo!$B$2:$B$20000,H$6,Arquivo!$C$2:$C$20000,I$6,Arquivo!$D$2:$D$20000,$C39)),0) -> 0 | I39: 0 | J39: =IFERROR((SUMIFS(Arquivo!$F$2:$F$20000,Arquivo!$B$2:$B$20000,J$6,Arquivo!$C$2:$C$20000,K$6,Arquivo!$D$2:$D$20000,$C39)),0) -> 0 | K39: 0 | L39: =IFERROR((SUMIFS(Arquivo!$F$2:$F$20000,Arquivo!$B$2:$B$20000,L$6,Arquivo!$C$2:$C$20000,M$6,Arquivo!$D$2:$D$20000,$C39)),0) -> 0 | M39: 0 | N39: =IFERROR((SUMIFS(Arquivo!$F$2:$F$20000,Arquivo!$B$2:$B$20000,N$6,Arquivo!$C$2:$C$20000,O$6,Arquivo!$D$2:$D$20000,$C39)),0) -> 0 | O39: 0 | P39: =IFERROR((SUMIFS(Arquivo!$F$2:$F$20000,Arquivo!$B$2:$B$20000,P$6,Arquivo!$C$2:$C$20000,Q$6,Arquivo!$D$2:$D$20000,$C39)),0) -> 0 | Q39: 0 | R39: =IFERROR((SUMIFS(Arquivo!$F$2:$F$20000,Arquivo!$B$2:$B$20000,R$6,Arquivo!$C$2:$C$20000,S$6,Arquivo!$D$2:$D$20000,$C39)),0) -> 0 | S39: 0 | T39: =IFERROR((SUMIFS(Arquivo!$F$2:$F$20000,Arquivo!$B$2:$B$20000,T$6,Arquivo!$C$2:$C$20000,U$6,Arquivo!$D$2:$D$20000,$C39)),0) -> 0 | U39: 0 | V39: =IFERROR((SUMIFS(Arquivo!$F$2:$F$20000,Arquivo!$B$2:$B$20000,V$6,Arquivo!$C$2:$C$20000,W$6,Arquivo!$D$2:$D$20000,$C39)),0) -> 0 | W39: 0 | X39: =IFERROR((SUMIFS(Arquivo!$F$2:$F$20000,Arquivo!$B$2:$B$20000,X$6,Arquivo!$C$2:$C$20000,Y$6,Arquivo!$D$2:$D$20000,$C39)),0) -> 0 | Y39: 0 | Z39: =IFERROR((SUMIFS(Arquivo!$F$2:$F$20000,Arquivo!$B$2:$B$20000,Z$6,Arquivo!$C$2:$C$20000,AA$6,Arquivo!$D$2:$D$20000,$C39)),0) -> 0 | AA39: 0 | AB39: =IFERROR((SUMIFS(Arquivo!$F$2:$F$20000,Arquivo!$B$2:$B$20000,AB$6,Arquivo!$C$2:$C$20000,AC$6,Arquivo!$D$2:$D$20000,$C39)),0) -> 0 | AC39: 0 | AD39: 0 | AE39: 0
AH40: =IF(AH30="","","X") -> X
D41: (=) LUCRO BRUTO | F41: =F28-F30 -> 94613.55 | G41: =IFERROR((F41/F$10),0) -> 0.09849147452 | H41: =H28-H30 -> 107219.04 | I41: =IFERROR((H41/H$10),0) -> 0.1305113957 | J41: =J28-J30 -> 162604.71 | K41: =IFERROR((J41/J$10),0) -> 0.1228812274 | L41: =L28-L30 -> 139036.67 | M41: =IFERROR((L41/L$10),0) -> 0.1378070521 | N41: =N28-N30 -> 100399.34 | O41: =IFERROR((N41/N$10),0) -> 0.1247573987 | P41: =P28-P30 -> 164261.99 | Q41: =IFERROR((P41/P$10),0) -> 0.1859915502 | R41: =R28-R30 -> 163108.08 | S41: =IFERROR((R41/R$10),0) -> 0.2681168698 | T41: =T28-T30 -> 0 | U41: =IFERROR((T41/T$10),0) -> 0 | V41: =V28-V30 -> 0 | W41: =IFERROR((V41/V$10),0) -> 0 | X41: =X28-X30 -> 0 | Y41: =IFERROR((X41/X$10),0) -> 0 | Z41: =Z28-Z30 -> 0 | AA41: =IFERROR((Z41/Z$10),0) -> 0 | AB41: =AB28-AB30 -> 0 | AC41: =IFERROR((AB41/AB$10),0) -> 0 | AD41: =AD28-AD30 -> 931243.38 | AE41: =IFERROR((AD41/AD$10),0) -> 0.1452657369 | AH41: =IF(AND($X$3="CT",AD41<>0),"X","") -> X
AH42: =IF(AH41="","","X") -> X
D43: (-) CUSTO OPERACIONAL TOTAL | F43: =F45+F69+F96+F106+F136+F148+F157 -> 105001 | G43: =IFERROR((F43/F$10),0) -> 0.1093046748 | H43: =H45+H69+H96+H106+H136+H148+H157 -> 111409.5 | I43: =IFERROR((H43/H$10),0) -> 0.1356121949 | J43: =J45+J69+J96+J106+J136+J148+J157 -> 137301.79 | K43: =IFERROR((J43/J$10),0) -> 0.1037596788 | L43: =L45+L69+L96+L106+L136+L148+L157 -> 134723.04 | M43: =IFERROR((L43/L$10),0) -> 0.1335315712 | N43: =N45+N69+N96+N106+N136+N148+N157 -> 109991.92 | O43: =IFERROR((N43/N$10),0) -> 0.1366772512 | P43: =P45+P69+P96+P106+P136+P148+P157 -> 117839.75 | Q43: =IFERROR((P43/P$10),0) -> 0.1334282982 | R43: =R45+R69+R96+R106+R136+R148+R157 -> 121128.4 | S43: =IFERROR((R43/R$10),0) -> 0.1991107213 | T43: =T45+T69+T96+T106+T136+T148+T157 -> 0 | U43: =IFERROR((T43/T$10),0) -> 0 | V43: =V45+V69+V96+V106+V136+V148+V157 -> 0 | W43: =IFERROR((V43/V$10),0) -> 0 | X43: =X45+X69+X96+X106+X136+X148+X157 -> 0 | Y43: =IFERROR((X43/X$10),0) -> 0 | Z43: =Z45+Z69+Z96+Z106+Z136+Z148+Z157 -> 0 | AA43: =IFERROR((Z43/Z$10),0) -> 0 | AB43: =AB45+AB69+AB96+AB106+AB136+AB148+AB157 -> 0 | AC43: =IFERROR((AB43/AB$10),0) -> 0 | AD43: =AD45+AD69+AD96+AD106+AD136+AD148+AD157 -> 837395.4 | AE43: =IFERROR((AD43/AD$10),0) -> 0.1306262814 | AH43: =IF(AND($X$3="CT",AD43<>0),"X","") -> X
AD44: =AD45/AD43 -> 0.6820364549 | AH44: =IF(AH43="","","X") -> X
D45: DESPESAS COM PESSOAL | F45: =SUBTOTAL(9,F46:F68) -> 71142.49 | G45: =IFERROR((F45/IF($X$3="CT",F$10,F$45)),0) -> 0.07405840645 | H45: =SUBTOTAL(9,H46:H68) -> 83041.4 | I45: =IFERROR((H45/IF($X$3="CT",H$10,H$45)),0) -> 0.1010813846 | J45: =SUBTOTAL(9,J46:J68) -> 94797.42 | K45: =IFERROR((J45/IF($X$3="CT",J$10,J$45)),0) -> 0.0716389047 | L45: =SUBTOTAL(9,L46:L68) -> 83525.69 | M45: =IFERROR((L45/IF($X$3="CT",L$10,L$45)),0) -> 0.08278700228 | N45: =SUBTOTAL(9,N46:N68) -> 76301.14 | O45: =IFERROR((N45/IF($X$3="CT",N$10,N$45)),0) -> 0.09481269243 | P45: =SUBTOTAL(9,P46:P68) -> 81401.32 | Q45: =IFERROR((P45/IF($X$3="CT",P$10,P$45)),0) -> 0.09216957432 | R45: =SUBTOTAL(9,R46:R68) -> 80924.73 | S45: =IFERROR((R45/IF($X$3="CT",R$10,R$45)),0) -> 0.1330239759 | T45: =SUBTOTAL(9,T46:T68) -> 0 | U45: =IFERROR((T45/IF($X$3="CT",T$10,T$45)),0) -> 0 | V45: =SUBTOTAL(9,V46:V68) -> 0 | W45: =IFERROR((V45/IF($X$3="CT",V$10,V$45)),0) -> 0 | X45: =SUBTOTAL(9,X46:X68) -> 0 | Y45: =IFERROR((X45/IF($X$3="CT",X$10,X$45)),0) -> 0 | Z45: =SUBTOTAL(9,Z46:Z68) -> 0 | AA45: =IFERROR((Z45/IF($X$3="CT",Z$10,Z$45)),0) -> 0 | AB45: =SUBTOTAL(9,AB46:AB68) -> 0 | AC45: =IFERROR((AB45/IF($X$3="CT",AB$10,AB$45)),0) -> 0 | AD45: =SUBTOTAL(9,AD46:AD68) -> 571134.19 | AE45: =IFERROR((AD45/IF($X$3="CT",AD$10,AD$45)),0) -> 0.08909188591 | AH45: =IF(COUNTIF(AH46:AH67,"X")>0,"X","") -> X
C46: =IF('Plano de Contas'!B34="","",'Plano de Contas'!B34) -> 8.1.1.1 | D46: =IF($C46="","",VLOOKUP($C46,'Plano de Contas'!$B$2:$E$200,4,FALSE)) -> CF | E46: =IF($C46="","",VLOOKUP($C46,'Plano de Contas'!$B$2:$E$200,3,FALSE)) -> FOPAG ADMINISTRATIVO | F46: =IFERROR((SUMIFS(Arquivo!$F$2:$F$20000,Arquivo!$B$2:$B$20000,F$6,Arquivo!$C$2:$C$20000,G$6,Arquivo!$D$2:$D$20000,$C46)),0) -> 13332.14 | G46: 0.01387858427 | H46: =IFERROR((SUMIFS(Arquivo!$F$2:$F$20000,Arquivo!$B$2:$B$20000,H$6,Arquivo!$C$2:$C$20000,I$6,Arquivo!$D$2:$D$20000,$C46)),0) -> 14978.95 | I46: 0.01823298988 | J46: =IFERROR((SUMIFS(Arquivo!$F$2:$F$20000,Arquivo!$B$2:$B$20000,J$6,Arquivo!$C$2:$C$20000,K$6,Arquivo!$D$2:$D$20000,$C46)),0) -> 15032.04 | K46: 0.01135979103 | L46: =IFERROR((SUMIFS(Arquivo!$F$2:$F$20000,Arquivo!$B$2:$B$20000,L$6,Arquivo!$C$2:$C$20000,M$6,Arquivo!$D$2:$D$20000,$C46)),0) -> 13772.64 | M46: 0.01365083699 | N46: =IFERROR((SUMIFS(Arquivo!$F$2:$F$20000,Arquivo!$B$2:$B$20000,N$6,Arquivo!$C$2:$C$20000,O$6,Arquivo!$D$2:$D$20000,$C46)),0) -> 14689.26 | O46: 0.01825304695 | P46: =IFERROR((SUMIFS(Arquivo!$F$2:$F$20000,Arquivo!$B$2:$B$20000,P$6,Arquivo!$C$2:$C$20000,Q$6,Arquivo!$D$2:$D$20000,$C46)),0) -> 15683.45 | Q46: 0.01775815073 | R46: =IFERROR((SUMIFS(Arquivo!$F$2:$F$20000,Arquivo!$B$2:$B$20000,R$6,Arquivo!$C$2:$C$20000,S$6,Arquivo!$D$2:$D$20000,$C46)),0) -> 13043.39 | S46: 0.02144070912 | T46: =IFERROR((SUMIFS(Arquivo!$F$2:$F$20000,Arquivo!$B$2:$B$20000,T$6,Arquivo!$C$2:$C$20000,U$6,Arquivo!$D$2:$D$20000,$C46)),0) -> 0 | U46: 0 | V46: =IFERROR((SUMIFS(Arquivo!$F$2:$F$20000,Arquivo!$B$2:$B$20000,V$6,Arquivo!$C$2:$C$20000,W$6,Arquivo!$D$2:$D$20000,$C46)),0) -> 0 | W46: 0 | X46: =IFERROR((SUMIFS(Arquivo!$F$2:$F$20000,Arquivo!$B$2:$B$20000,X$6,Arquivo!$C$2:$C$20000,Y$6,Arquivo!$D$2:$D$20000,$C46)),0) -> 0 | Y46: 0 | Z46: =IFERROR((SUMIFS(Arquivo!$F$2:$F$20000,Arquivo!$B$2:$B$20000,Z$6,Arquivo!$C$2:$C$20000,AA$6,Arquivo!$D$2:$D$20000,$C46)),0) -> 0 | AA46: 0 | AB46: =IFERROR((SUMIFS(Arquivo!$F$2:$F$20000,Arquivo!$B$2:$B$20000,AB$6,Arquivo!$C$2:$C$20000,AC$6,Arquivo!$D$2:$D$20000,$C46)),0) -> 0 | AC46: 0 | AD46: =F46+H46+J46+L46+N46+P46+R46+T46+V46+X46+Z46+AB46 -> 100531.87 | AE46: 0.01568208321 | AH46: =IF($AD46=0,"",IF($X$3="CT","X",IF($X$3=$D46,"X",""))) -> X
C47: =IF('Plano de Contas'!B35="","",'Plano de Contas'!B35) -> 8.1.1.2 | D47: =IF($C47="","",VLOOKUP($C47,'Plano de Contas'!$B$2:$E$200,4,FALSE)) -> CF | E47: =IF($C47="","",VLOOKUP($C47,'Plano de Contas'!$B$2:$E$200,3,FALSE)) -> FOPAG PESSOAL CAMARA/EMBALADORES | F47: =IFERROR((SUMIFS(Arquivo!$F$2:$F$20000,Arquivo!$B$2:$B$20000,F$6,Arquivo!$C$2:$C$20000,G$6,Arquivo!$D$2:$D$20000,$C47)),0) -> 28561.72 | G47: 0.0297323789 | H47: =IFERROR((SUMIFS(Arquivo!$F$2:$F$20000,Arquivo!$B$2:$B$20000,H$6,Arquivo!$C$2:$C$20000,I$6,Arquivo!$D$2:$D$20000,$C47)),0) -> 33933.78 | I47: 0.04130558333 | J47: =IFERROR((SUMIFS(Arquivo!$F$2:$F$20000,Arquivo!$B$2:$B$20000,J$6,Arquivo!$C$2:$C$20000,K$6,Arquivo!$D$2:$D$20000,$C47)),0) -> 29929.74 | K47: 0.02261806061 | L47: =IFERROR((SUMIFS(Arquivo!$F$2:$F$20000,Arquivo!$B$2:$B$20000,L$6,Arquivo!$C$2:$C$20000,M$6,Arquivo!$D$2:$D$20000,$C47)),0) -> 29961.53 | M47: 0.02969655506 | N47: =IFERROR((SUMIFS(Arquivo!$F$2:$F$20000,Arquivo!$B$2:$B$20000,N$6,Arquivo!$C$2:$C$20000,O$6,Arquivo!$D$2:$D$20000,$C47)),0) -> 28702.89 | O47: 0.03566654812 | P47: =IFERROR((SUMIFS(Arquivo!$F$2:$F$20000,Arquivo!$B$2:$B$20000,P$6,Arquivo!$C$2:$C$20000,Q$6,Arquivo!$D$2:$D$20000,$C47)),0) -> 29949.47 | Q47: 0.03391136533 | R47: =IFERROR((SUMIFS(Arquivo!$F$2:$F$20000,Arquivo!$B$2:$B$20000,R$6,Arquivo!$C$2:$C$20000,S$6,Arquivo!$D$2:$D$20000,$C47)),0) -> 30641.47 | S47: 0.0503684123 | T47: =IFERROR((SUMIFS(Arquivo!$F$2:$F$20000,Arquivo!$B$2:$B$20000,T$6,Arquivo!$C$2:$C$20000,U$6,Arquivo!$D$2:$D$20000,$C47)),0) -> 0 | U47: 0 | V47: =IFERROR((SUMIFS(Arquivo!$F$2:$F$20000,Arquivo!$B$2:$B$20000,V$6,Arquivo!$C$2:$C$20000,W$6,Arquivo!$D$2:$D$20000,$C47)),0) -> 0 | W47: 0 | X47: =IFERROR((SUMIFS(Arquivo!$F$2:$F$20000,Arquivo!$B$2:$B$20000,X$6,Arquivo!$C$2:$C$20000,Y$6,Arquivo!$D$2:$D$20000,$C47)),0) -> 0 | Y47: 0 | Z47: =IFERROR((SUMIFS(Arquivo!$F$2:$F$20000,Arquivo!$B$2:$B$20000,Z$6,Arquivo!$C$2:$C$20000,AA$6,Arquivo!$D$2:$D$20000,$C47)),0) -> 0 | AA47: 0 | AB47: =IFERROR((SUMIFS(Arquivo!$F$2:$F$20000,Arquivo!$B$2:$B$20000,AB$6,Arquivo!$C$2:$C$20000,AC$6,Arquivo!$D$2:$D$20000,$C47)),0) -> 0 | AC47: 0 | AD47: 211680.6 | AE47: 0.03302030275 | AH47: X
C48: =IF('Plano de Contas'!B36="","",'Plano de Contas'!B36) -> 8.1.1.3 | D48: =IF($C48="","",VLOOKUP($C48,'Plano de Contas'!$B$2:$E$200,4,FALSE)) -> CF | E48: =IF($C48="","",VLOOKUP($C48,'Plano de Contas'!$B$2:$E$200,3,FALSE)) -> HONORARIOS DIRETORIA | F48: =IFERROR((SUMIFS(Arquivo!$F$2:$F$20000,Arquivo!$B$2:$B$20000,F$6,Arquivo!$C$2:$C$20000,G$6,Arquivo!$D$2:$D$20000,$C48)),0) -> 0 | G48: 0 | H48: =IFERROR((SUMIFS(Arquivo!$F$2:$F$20000,Arquivo!$B$2:$B$20000,H$6,Arquivo!$C$2:$C$20000,I$6,Arquivo!$D$2:$D$20000,$C48)),0) -> 0 | I48: 0 | J48: =IFERROR((SUMIFS(Arquivo!$F$2:$F$20000,Arquivo!$B$2:$B$20000,J$6,Arquivo!$C$2:$C$20000,K$6,Arquivo!$D$2:$D$20000,$C48)),0) -> 0 | K48: 0 | L48: =IFERROR((SUMIFS(Arquivo!$F$2:$F$20000,Arquivo!$B$2:$B$20000,L$6,Arquivo!$C$2:$C$20000,M$6,Arquivo!$D$2:$D$20000,$C48)),0) -> 0 | M48: 0 | N48: =IFERROR((SUMIFS(Arquivo!$F$2:$F$20000,Arquivo!$B$2:$B$20000,N$6,Arquivo!$C$2:$C$20000,O$6,Arquivo!$D$2:$D$20000,$C48)),0) -> 0 | O48: 0 | P48: =IFERROR((SUMIFS(Arquivo!$F$2:$F$20000,Arquivo!$B$2:$B$20000,P$6,Arquivo!$C$2:$C$20000,Q$6,Arquivo!$D$2:$D$20000,$C48)),0) -> 0 | Q48: 0 | R48: =IFERROR((SUMIFS(Arquivo!$F$2:$F$20000,Arquivo!$B$2:$B$20000,R$6,Arquivo!$C$2:$C$20000,S$6,Arquivo!$D$2:$D$20000,$C48)),0) -> 0 | S48: 0 | T48: =IFERROR((SUMIFS(Arquivo!$F$2:$F$20000,Arquivo!$B$2:$B$20000,T$6,Arquivo!$C$2:$C$20000,U$6,Arquivo!$D$2:$D$20000,$C48)),0) -> 0 | U48: 0 | V48: =IFERROR((SUMIFS(Arquivo!$F$2:$F$20000,Arquivo!$B$2:$B$20000,V$6,Arquivo!$C$2:$C$20000,W$6,Arquivo!$D$2:$D$20000,$C48)),0) -> 0 | W48: 0 | X48: =IFERROR((SUMIFS(Arquivo!$F$2:$F$20000,Arquivo!$B$2:$B$20000,X$6,Arquivo!$C$2:$C$20000,Y$6,Arquivo!$D$2:$D$20000,$C48)),0) -> 0 | Y48: 0 | Z48: =IFERROR((SUMIFS(Arquivo!$F$2:$F$20000,Arquivo!$B$2:$B$20000,Z$6,Arquivo!$C$2:$C$20000,AA$6,Arquivo!$D$2:$D$20000,$C48)),0) -> 0 | AA48: 0 | AB48: =IFERROR((SUMIFS(Arquivo!$F$2:$F$20000,Arquivo!$B$2:$B$20000,AB$6,Arquivo!$C$2:$C$20000,AC$6,Arquivo!$D$2:$D$20000,$C48)),0) -> 0 | AC48: 0 | AD48: 0 | AE48: 0
C49: =IF('Plano de Contas'!B37="","",'Plano de Contas'!B37) -> 8.1.1.5 | D49: =IF($C49="","",VLOOKUP($C49,'Plano de Contas'!$B$2:$E$200,4,FALSE)) -> CV | E49: =IF($C49="","",VLOOKUP($C49,'Plano de Contas'!$B$2:$E$200,3,FALSE)) -> EMBALADORES | F49: =IFERROR((SUMIFS(Arquivo!$F$2:$F$20000,Arquivo!$B$2:$B$20000,F$6,Arquivo!$C$2:$C$20000,G$6,Arquivo!$D$2:$D$20000,$C49)),0) -> 0 | G49: 0 | H49: =IFERROR((SUMIFS(Arquivo!$F$2:$F$20000,Arquivo!$B$2:$B$20000,H$6,Arquivo!$C$2:$C$20000,I$6,Arquivo!$D$2:$D$20000,$C49)),0) -> 0 | I49: 0 | J49: =IFERROR((SUMIFS(Arquivo!$F$2:$F$20000,Arquivo!$B$2:$B$20000,J$6,Arquivo!$C$2:$C$20000,K$6,Arquivo!$D$2:$D$20000,$C49)),0) -> 0 | K49: 0 | L49: =IFERROR((SUMIFS(Arquivo!$F$2:$F$20000,Arquivo!$B$2:$B$20000,L$6,Arquivo!$C$2:$C$20000,M$6,Arquivo!$D$2:$D$20000,$C49)),0) -> 0 | M49: 0 | N49: =IFERROR((SUMIFS(Arquivo!$F$2:$F$20000,Arquivo!$B$2:$B$20000,N$6,Arquivo!$C$2:$C$20000,O$6,Arquivo!$D$2:$D$20000,$C49)),0) -> 0 | O49: 0 | P49: =IFERROR((SUMIFS(Arquivo!$F$2:$F$20000,Arquivo!$B$2:$B$20000,P$6,Arquivo!$C$2:$C$20000,Q$6,Arquivo!$D$2:$D$20000,$C49)),0) -> 0 | Q49: 0 | R49: =IFERROR((SUMIFS(Arquivo!$F$2:$F$20000,Arquivo!$B$2:$B$20000,R$6,Arquivo!$C$2:$C$20000,S$6,Arquivo!$D$2:$D$20000,$C49)),0) -> 0 | S49: 0 | T49: =IFERROR((SUMIFS(Arquivo!$F$2:$F$20000,Arquivo!$B$2:$B$20000,T$6,Arquivo!$C$2:$C$20000,U$6,Arquivo!$D$2:$D$20000,$C49)),0) -> 0 | U49: 0 | V49: =IFERROR((SUMIFS(Arquivo!$F$2:$F$20000,Arquivo!$B$2:$B$20000,V$6,Arquivo!$C$2:$C$20000,W$6,Arquivo!$D$2:$D$20000,$C49)),0) -> 0 | W49: 0 | X49: =IFERROR((SUMIFS(Arquivo!$F$2:$F$20000,Arquivo!$B$2:$B$20000,X$6,Arquivo!$C$2:$C$20000,Y$6,Arquivo!$D$2:$D$20000,$C49)),0) -> 0 | Y49: 0 | Z49: =IFERROR((SUMIFS(Arquivo!$F$2:$F$20000,Arquivo!$B$2:$B$20000,Z$6,Arquivo!$C$2:$C$20000,AA$6,Arquivo!$D$2:$D$20000,$C49)),0) -> 0 | AA49: 0 | AB49: =IFERROR((SUMIFS(Arquivo!$F$2:$F$20000,Arquivo!$B$2:$B$20000,AB$6,Arquivo!$C$2:$C$20000,AC$6,Arquivo!$D$2:$D$20000,$C49)),0) -> 0 | AC49: 0 | AD49: 0 | AE49: 0
C50: =IF('Plano de Contas'!B38="","",'Plano de Contas'!B38) -> 8.1.1.6 | D50: =IF($C50="","",VLOOKUP($C50,'Plano de Contas'!$B$2:$E$200,4,FALSE)) -> CV | E50: =IF($C50="","",VLOOKUP($C50,'Plano de Contas'!$B$2:$E$200,3,FALSE)) -> RESCISAO CONTRATUAL | F50: =IFERROR((SUMIFS(Arquivo!$F$2:$F$20000,Arquivo!$B$2:$B$20000,F$6,Arquivo!$C$2:$C$20000,G$6,Arquivo!$D$2:$D$20000,$C50)),0) -> 0 | G50: 0 | H50: =IFERROR((SUMIFS(Arquivo!$F$2:$F$20000,Arquivo!$B$2:$B$20000,H$6,Arquivo!$C$2:$C$20000,I$6,Arquivo!$D$2:$D$20000,$C50)),0) -> 0 | I50: 0 | J50: =IFERROR((SUMIFS(Arquivo!$F$2:$F$20000,Arquivo!$B$2:$B$20000,J$6,Arquivo!$C$2:$C$20000,K$6,Arquivo!$D$2:$D$20000,$C50)),0) -> 2656.47 | K50: 0.002007508234 | L50: =IFERROR((SUMIFS(Arquivo!$F$2:$F$20000,Arquivo!$B$2:$B$20000,L$6,Arquivo!$C$2:$C$20000,M$6,Arquivo!$D$2:$D$20000,$C50)),0) -> 0 | M50: 0 | N50: =IFERROR((SUMIFS(Arquivo!$F$2:$F$20000,Arquivo!$B$2:$B$20000,N$6,Arquivo!$C$2:$C$20000,O$6,Arquivo!$D$2:$D$20000,$C50)),0) -> 0 | O50: 0 | P50: =IFERROR((SUMIFS(Arquivo!$F$2:$F$20000,Arquivo!$B$2:$B$20000,P$6,Arquivo!$C$2:$C$20000,Q$6,Arquivo!$D$2:$D$20000,$C50)),0) -> 0 | Q50: 0 | R50: =IFERROR((SUMIFS(Arquivo!$F$2:$F$20000,Arquivo!$B$2:$B$20000,R$6,Arquivo!$C$2:$C$20000,S$6,Arquivo!$D$2:$D$20000,$C50)),0) -> 0 | S50: 0 | T50: =IFERROR((SUMIFS(Arquivo!$F$2:$F$20000,Arquivo!$B$2:$B$20000,T$6,Arquivo!$C$2:$C$20000,U$6,Arquivo!$D$2:$D$20000,$C50)),0) -> 0 | U50: 0 | V50: =IFERROR((SUMIFS(Arquivo!$F$2:$F$20000,Arquivo!$B$2:$B$20000,V$6,Arquivo!$C$2:$C$20000,W$6,Arquivo!$D$2:$D$20000,$C50)),0) -> 0 | W50: 0 | X50: =IFERROR((SUMIFS(Arquivo!$F$2:$F$20000,Arquivo!$B$2:$B$20000,X$6,Arquivo!$C$2:$C$20000,Y$6,Arquivo!$D$2:$D$20000,$C50)),0) -> 0 | Y50: 0 | Z50: =IFERROR((SUMIFS(Arquivo!$F$2:$F$20000,Arquivo!$B$2:$B$20000,Z$6,Arquivo!$C$2:$C$20000,AA$6,Arquivo!$D$2:$D$20000,$C50)),0) -> 0 | AA50: 0 | AB50: =IFERROR((SUMIFS(Arquivo!$F$2:$F$20000,Arquivo!$B$2:$B$20000,AB$6,Arquivo!$C$2:$C$20000,AC$6,Arquivo!$D$2:$D$20000,$C50)),0) -> 0 | AC50: 0 | AD50: 2656.47 | AE50: 0.0004143858419 | AH50: X
C51: =IF('Plano de Contas'!B39="","",'Plano de Contas'!B39) -> 8.1.1.7 | D51: =IF($C51="","",VLOOKUP($C51,'Plano de Contas'!$B$2:$E$200,4,FALSE)) -> CV | E51: =IF($C51="","",VLOOKUP($C51,'Plano de Contas'!$B$2:$E$200,3,FALSE)) -> TREINAMENTO DE PESSOAL | F51: =IFERROR((SUMIFS(Arquivo!$F$2:$F$20000,Arquivo!$B$2:$B$20000,F$6,Arquivo!$C$2:$C$20000,G$6,Arquivo!$D$2:$D$20000,$C51)),0) -> 0 | G51: 0 | H51: =IFERROR((SUMIFS(Arquivo!$F$2:$F$20000,Arquivo!$B$2:$B$20000,H$6,Arquivo!$C$2:$C$20000,I$6,Arquivo!$D$2:$D$20000,$C51)),0) -> 0 | I51: 0 | J51: =IFERROR((SUMIFS(Arquivo!$F$2:$F$20000,Arquivo!$B$2:$B$20000,J$6,Arquivo!$C$2:$C$20000,K$6,Arquivo!$D$2:$D$20000,$C51)),0) -> 0 | K51: 0 | L51: =IFERROR((SUMIFS(Arquivo!$F$2:$F$20000,Arquivo!$B$2:$B$20000,L$6,Arquivo!$C$2:$C$20000,M$6,Arquivo!$D$2:$D$20000,$C51)),0) -> 0 | M51: 0 | N51: =IFERROR((SUMIFS(Arquivo!$F$2:$F$20000,Arquivo!$B$2:$B$20000,N$6,Arquivo!$C$2:$C$20000,O$6,Arquivo!$D$2:$D$20000,$C51)),0) -> 0 | O51: 0 | P51: =IFERROR((SUMIFS(Arquivo!$F$2:$F$20000,Arquivo!$B$2:$B$20000,P$6,Arquivo!$C$2:$C$20000,Q$6,Arquivo!$D$2:$D$20000,$C51)),0) -> 0 | Q51: 0 | R51: =IFERROR((SUMIFS(Arquivo!$F$2:$F$20000,Arquivo!$B$2:$B$20000,R$6,Arquivo!$C$2:$C$20000,S$6,Arquivo!$D$2:$D$20000,$C51)),0) -> 0 | S51: 0 | T51: =IFERROR((SUMIFS(Arquivo!$F$2:$F$20000,Arquivo!$B$2:$B$20000,T$6,Arquivo!$C$2:$C$20000,U$6,Arquivo!$D$2:$D$20000,$C51)),0) -> 0 | U51: 0 | V51: =IFERROR((SUMIFS(Arquivo!$F$2:$F$20000,Arquivo!$B$2:$B$20000,V$6,Arquivo!$C$2:$C$20000,W$6,Arquivo!$D$2:$D$20000,$C51)),0) -> 0 | W51: 0 | X51: =IFERROR((SUMIFS(Arquivo!$F$2:$F$20000,Arquivo!$B$2:$B$20000,X$6,Arquivo!$C$2:$C$20000,Y$6,Arquivo!$D$2:$D$20000,$C51)),0) -> 0 | Y51: 0 | Z51: =IFERROR((SUMIFS(Arquivo!$F$2:$F$20000,Arquivo!$B$2:$B$20000,Z$6,Arquivo!$C$2:$C$20000,AA$6,Arquivo!$D$2:$D$20000,$C51)),0) -> 0 | AA51: 0 | AB51: =IFERROR((SUMIFS(Arquivo!$F$2:$F$20000,Arquivo!$B$2:$B$20000,AB$6,Arquivo!$C$2:$C$20000,AC$6,Arquivo!$D$2:$D$20000,$C51)),0) -> 0 | AC51: 0 | AD51: 0 | AE51: 0
C52: =IF('Plano de Contas'!B40="","",'Plano de Contas'!B40) -> 8.1.1.8 | D52: =IF($C52="","",VLOOKUP($C52,'Plano de Contas'!$B$2:$E$200,4,FALSE)) -> CV | E52: =IF($C52="","",VLOOKUP($C52,'Plano de Contas'!$B$2:$E$200,3,FALSE)) -> DESPESA COM VIAGEM | F52: =IFERROR((SUMIFS(Arquivo!$F$2:$F$20000,Arquivo!$B$2:$B$20000,F$6,Arquivo!$C$2:$C$20000,G$6,Arquivo!$D$2:$D$20000,$C52)),0) -> 0 | G52: 0 | H52: =IFERROR((SUMIFS(Arquivo!$F$2:$F$20000,Arquivo!$B$2:$B$20000,H$6,Arquivo!$C$2:$C$20000,I$6,Arquivo!$D$2:$D$20000,$C52)),0) -> 0 | I52: 0 | J52: =IFERROR((SUMIFS(Arquivo!$F$2:$F$20000,Arquivo!$B$2:$B$20000,J$6,Arquivo!$C$2:$C$20000,K$6,Arquivo!$D$2:$D$20000,$C52)),0) -> 736 | K52: 0.0005561990385 | L52: =IFERROR((SUMIFS(Arquivo!$F$2:$F$20000,Arquivo!$B$2:$B$20000,L$6,Arquivo!$C$2:$C$20000,M$6,Arquivo!$D$2:$D$20000,$C52)),0) -> 0 | M52: 0 | N52: =IFERROR((SUMIFS(Arquivo!$F$2:$F$20000,Arquivo!$B$2:$B$20000,N$6,Arquivo!$C$2:$C$20000,O$6,Arquivo!$D$2:$D$20000,$C52)),0) -> 0 | O52: 0 | P52: =IFERROR((SUMIFS(Arquivo!$F$2:$F$20000,Arquivo!$B$2:$B$20000,P$6,Arquivo!$C$2:$C$20000,Q$6,Arquivo!$D$2:$D$20000,$C52)),0) -> 0 | Q52: 0 | R52: =IFERROR((SUMIFS(Arquivo!$F$2:$F$20000,Arquivo!$B$2:$B$20000,R$6,Arquivo!$C$2:$C$20000,S$6,Arquivo!$D$2:$D$20000,$C52)),0) -> 0 | S52: 0 | T52: =IFERROR((SUMIFS(Arquivo!$F$2:$F$20000,Arquivo!$B$2:$B$20000,T$6,Arquivo!$C$2:$C$20000,U$6,Arquivo!$D$2:$D$20000,$C52)),0) -> 0 | U52: 0 | V52: =IFERROR((SUMIFS(Arquivo!$F$2:$F$20000,Arquivo!$B$2:$B$20000,V$6,Arquivo!$C$2:$C$20000,W$6,Arquivo!$D$2:$D$20000,$C52)),0) -> 0 | W52: 0 | X52: =IFERROR((SUMIFS(Arquivo!$F$2:$F$20000,Arquivo!$B$2:$B$20000,X$6,Arquivo!$C$2:$C$20000,Y$6,Arquivo!$D$2:$D$20000,$C52)),0) -> 0 | Y52: 0 | Z52: =IFERROR((SUMIFS(Arquivo!$F$2:$F$20000,Arquivo!$B$2:$B$20000,Z$6,Arquivo!$C$2:$C$20000,AA$6,Arquivo!$D$2:$D$20000,$C52)),0) -> 0 | AA52: 0 | AB52: =IFERROR((SUMIFS(Arquivo!$F$2:$F$20000,Arquivo!$B$2:$B$20000,AB$6,Arquivo!$C$2:$C$20000,AC$6,Arquivo!$D$2:$D$20000,$C52)),0) -> 0 | AC52: 0 | AD52: 736 | AE52: 0.0001148094952 | AH52: X
C53: =IF('Plano de Contas'!B41="","",'Plano de Contas'!B41) -> 8.1.1.9 | D53: =IF($C53="","",VLOOKUP($C53,'Plano de Contas'!$B$2:$E$200,4,FALSE)) -> CV | E53: =IF($C53="","",VLOOKUP($C53,'Plano de Contas'!$B$2:$E$200,3,FALSE)) -> OUTRAS DESP. COM PESSOAL | F53: =IFERROR((SUMIFS(Arquivo!$F$2:$F$20000,Arquivo!$B$2:$B$20000,F$6,Arquivo!$C$2:$C$20000,G$6,Arquivo!$D$2:$D$20000,$C53)),0) -> 699.66 | G53: 0.0007283369567 | H53: =IFERROR((SUMIFS(Arquivo!$F$2:$F$20000,Arquivo!$B$2:$B$20000,H$6,Arquivo!$C$2:$C$20000,I$6,Arquivo!$D$2:$D$20000,$C53)),0) -> 890.26 | I53: 0.001083660842 | J53: =IFERROR((SUMIFS(Arquivo!$F$2:$F$20000,Arquivo!$B$2:$B$20000,J$6,Arquivo!$C$2:$C$20000,K$6,Arquivo!$D$2:$D$20000,$C53)),0) -> 1475.5 | K53: 0.001115043045 | L53: =IFERROR((SUMIFS(Arquivo!$F$2:$F$20000,Arquivo!$B$2:$B$20000,L$6,Arquivo!$C$2:$C$20000,M$6,Arquivo!$D$2:$D$20000,$C53)),0) -> 2102.76 | M53: 0.00208416353 | N53: =IFERROR((SUMIFS(Arquivo!$F$2:$F$20000,Arquivo!$B$2:$B$20000,N$6,Arquivo!$C$2:$C$20000,O$6,Arquivo!$D$2:$D$20000,$C53)),0) -> 1849.5 | O53: 0.002298210415 | P53: =IFERROR((SUMIFS(Arquivo!$F$2:$F$20000,Arquivo!$B$2:$B$20000,P$6,Arquivo!$C$2:$C$20000,Q$6,Arquivo!$D$2:$D$20000,$C53)),0) -> 703.75 | Q53: 0.0007968462665 | R53: =IFERROR((SUMIFS(Arquivo!$F$2:$F$20000,Arquivo!$B$2:$B$20000,R$6,Arquivo!$C$2:$C$20000,S$6,Arquivo!$D$2:$D$20000,$C53)),0) -> 2076.75 | S53: 0.003413759204 | T53: =IFERROR((SUMIFS(Arquivo!$F$2:$F$20000,Arquivo!$B$2:$B$20000,T$6,Arquivo!$C$2:$C$20000,U$6,Arquivo!$D$2:$D$20000,$C53)),0) -> 0 | U53: 0 | V53: =IFERROR((SUMIFS(Arquivo!$F$2:$F$20000,Arquivo!$B$2:$B$20000,V$6,Arquivo!$C$2:$C$20000,W$6,Arquivo!$D$2:$D$20000,$C53)),0) -> 0 | W53: 0 | X53: =IFERROR((SUMIFS(Arquivo!$F$2:$F$20000,Arquivo!$B$2:$B$20000,X$6,Arquivo!$C$2:$C$20000,Y$6,Arquivo!$D$2:$D$20000,$C53)),0) -> 0 | Y53: 0 | Z53: =IFERROR((SUMIFS(Arquivo!$F$2:$F$20000,Arquivo!$B$2:$B$20000,Z$6,Arquivo!$C$2:$C$20000,AA$6,Arquivo!$D$2:$D$20000,$C53)),0) -> 0 | AA53: 0 | AB53: =IFERROR((SUMIFS(Arquivo!$F$2:$F$20000,Arquivo!$B$2:$B$20000,AB$6,Arquivo!$C$2:$C$20000,AC$6,Arquivo!$D$2:$D$20000,$C53)),0) -> 0 | AC53: 0 | AD53: 9798.18 | AE53: 0.001528429483 | AH53: X
C54: =IF('Plano de Contas'!B42="","",'Plano de Contas'!B42) -> 8.1.1.10 | D54: =IF($C54="","",VLOOKUP($C54,'Plano de Contas'!$B$2:$E$200,4,FALSE)) -> CF | E54: =IF($C54="","",VLOOKUP($C54,'Plano de Contas'!$B$2:$E$200,3,FALSE)) -> FERIAS FUNCIONARIOS | F54: =IFERROR((SUMIFS(Arquivo!$F$2:$F$20000,Arquivo!$B$2:$B$20000,F$6,Arquivo!$C$2:$C$20000,G$6,Arquivo!$D$2:$D$20000,$C54)),0) -> 2132.47 | G54: 0.002219873524 | H54: =IFERROR((SUMIFS(Arquivo!$F$2:$F$20000,Arquivo!$B$2:$B$20000,H$6,Arquivo!$C$2:$C$20000,I$6,Arquivo!$D$2:$D$20000,$C54)),0) -> 5739.44 | I54: 0.006986280844 | J54: =IFERROR((SUMIFS(Arquivo!$F$2:$F$20000,Arquivo!$B$2:$B$20000,J$6,Arquivo!$C$2:$C$20000,K$6,Arquivo!$D$2:$D$20000,$C54)),0) -> 4291.07 | K54: 0.003242783979 | L54: =IFERROR((SUMIFS(Arquivo!$F$2:$F$20000,Arquivo!$B$2:$B$20000,L$6,Arquivo!$C$2:$C$20000,M$6,Arquivo!$D$2:$D$20000,$C54)),0) -> 5026.07 | M54: 0.004981620248 | N54: =IFERROR((SUMIFS(Arquivo!$F$2:$F$20000,Arquivo!$B$2:$B$20000,N$6,Arquivo!$C$2:$C$20000,O$6,Arquivo!$D$2:$D$20000,$C54)),0) -> 2685.1 | O54: 0.003336536786 | P54: =IFERROR((SUMIFS(Arquivo!$F$2:$F$20000,Arquivo!$B$2:$B$20000,P$6,Arquivo!$C$2:$C$20000,Q$6,Arquivo!$D$2:$D$20000,$C54)),0) -> 6872 | Q54: 0.007781069333 | R54: =IFERROR((SUMIFS(Arquivo!$F$2:$F$20000,Arquivo!$B$2:$B$20000,R$6,Arquivo!$C$2:$C$20000,S$6,Arquivo!$D$2:$D$20000,$C54)),0) -> 9761.64 | S54: 0.01604617234 | T54: =IFERROR((SUMIFS(Arquivo!$F$2:$F$20000,Arquivo!$B$2:$B$20000,T$6,Arquivo!$C$2:$C$20000,U$6,Arquivo!$D$2:$D$20000,$C54)),0) -> 0 | U54: 0 | V54: =IFERROR((SUMIFS(Arquivo!$F$2:$F$20000,Arquivo!$B$2:$B$20000,V$6,Arquivo!$C$2:$C$20000,W$6,Arquivo!$D$2:$D$20000,$C54)),0) -> 0 | W54: 0 | X54: =IFERROR((SUMIFS(Arquivo!$F$2:$F$20000,Arquivo!$B$2:$B$20000,X$6,Arquivo!$C$2:$C$20000,Y$6,Arquivo!$D$2:$D$20000,$C54)),0) -> 0 | Y54: 0 | Z54: =IFERROR((SUMIFS(Arquivo!$F$2:$F$20000,Arquivo!$B$2:$B$20000,Z$6,Arquivo!$C$2:$C$20000,AA$6,Arquivo!$D$2:$D$20000,$C54)),0) -> 0 | AA54: 0 | AB54: =IFERROR((SUMIFS(Arquivo!$F$2:$F$20000,Arquivo!$B$2:$B$20000,AB$6,Arquivo!$C$2:$C$20000,AC$6,Arquivo!$D$2:$D$20000,$C54)),0) -> 0 | AC54: 0 | AD54: 36507.79 | AE54: 0.005694892581 | AH54: X
C55: =IF('Plano de Contas'!B43="","",'Plano de Contas'!B43) -> 8.1.1.11 | D55: =IF($C55="","",VLOOKUP($C55,'Plano de Contas'!$B$2:$E$200,4,FALSE)) -> CF | E55: =IF($C55="","",VLOOKUP($C55,'Plano de Contas'!$B$2:$E$200,3,FALSE)) -> DECIMO TERCEIRO SALARIO | F55: =IFERROR((SUMIFS(Arquivo!$F$2:$F$20000,Arquivo!$B$2:$B$20000,F$6,Arquivo!$C$2:$C$20000,G$6,Arquivo!$D$2:$D$20000,$C55)),0) -> 0 | G55: 0 | H55: =IFERROR((SUMIFS(Arquivo!$F$2:$F$20000,Arquivo!$B$2:$B$20000,H$6,Arquivo!$C$2:$C$20000,I$6,Arquivo!$D$2:$D$20000,$C55)),0) -> 2345.31 | I55: 0.002854807146 | J55: =IFERROR((SUMIFS(Arquivo!$F$2:$F$20000,Arquivo!$B$2:$B$20000,J$6,Arquivo!$C$2:$C$20000,K$6,Arquivo!$D$2:$D$20000,$C55)),0) -> 1768.29 | K55: 0.001336305975 | L55: =IFERROR((SUMIFS(Arquivo!$F$2:$F$20000,Arquivo!$B$2:$B$20000,L$6,Arquivo!$C$2:$C$20000,M$6,Arquivo!$D$2:$D$20000,$C55)),0) -> 5221.06 | M55: 0.005174885788 | N55: =IFERROR((SUMIFS(Arquivo!$F$2:$F$20000,Arquivo!$B$2:$B$20000,N$6,Arquivo!$C$2:$C$20000,O$6,Arquivo!$D$2:$D$20000,$C55)),0) -> 1151.57 | O55: 0.001430954403 | P55: =IFERROR((SUMIFS(Arquivo!$F$2:$F$20000,Arquivo!$B$2:$B$20000,P$6,Arquivo!$C$2:$C$20000,Q$6,Arquivo!$D$2:$D$20000,$C55)),0) -> 2849.81 | Q55: 0.003226799941 | R55: =IFERROR((SUMIFS(Arquivo!$F$2:$F$20000,Arquivo!$B$2:$B$20000,R$6,Arquivo!$C$2:$C$20000,S$6,Arquivo!$D$2:$D$20000,$C55)),0) -> 3992.21 | S55: 0.006562390097 | T55: =IFERROR((SUMIFS(Arquivo!$F$2:$F$20000,Arquivo!$B$2:$B$20000,T$6,Arquivo!$C$2:$C$20000,U$6,Arquivo!$D$2:$D$20000,$C55)),0) -> 0 | U55: 0 | V55: =IFERROR((SUMIFS(Arquivo!$F$2:$F$20000,Arquivo!$B$2:$B$20000,V$6,Arquivo!$C$2:$C$20000,W$6,Arquivo!$D$2:$D$20000,$C55)),0) -> 0 | W55: 0 | X55: =IFERROR((SUMIFS(Arquivo!$F$2:$F$20000,Arquivo!$B$2:$B$20000,X$6,Arquivo!$C$2:$C$20000,Y$6,Arquivo!$D$2:$D$20000,$C55)),0) -> 0 | Y55: 0 | Z55: =IFERROR((SUMIFS(Arquivo!$F$2:$F$20000,Arquivo!$B$2:$B$20000,Z$6,Arquivo!$C$2:$C$20000,AA$6,Arquivo!$D$2:$D$20000,$C55)),0) -> 0 | AA55: 0 | AB55: =IFERROR((SUMIFS(Arquivo!$F$2:$F$20000,Arquivo!$B$2:$B$20000,AB$6,Arquivo!$C$2:$C$20000,AC$6,Arquivo!$D$2:$D$20000,$C55)),0) -> 0 | AC55: 0 | AD55: 17328.25 | AE55: 0.002703053851 | AH55: X
C56: =IF('Plano de Contas'!B44="","",'Plano de Contas'!B44) -> 8.1.1.12 | D56: =IF($C56="","",VLOOKUP($C56,'Plano de Contas'!$B$2:$E$200,4,FALSE)) -> CV | E56: =IF($C56="","",VLOOKUP($C56,'Plano de Contas'!$B$2:$E$200,3,FALSE)) -> DISTRIBUICAO DE PLR FUNCIONARIOS | F56: =IFERROR((SUMIFS(Arquivo!$F$2:$F$20000,Arquivo!$B$2:$B$20000,F$6,Arquivo!$C$2:$C$20000,G$6,Arquivo!$D$2:$D$20000,$C56)),0) -> 0 | G56: 0 | H56: =IFERROR((SUMIFS(Arquivo!$F$2:$F$20000,Arquivo!$B$2:$B$20000,H$6,Arquivo!$C$2:$C$20000,I$6,Arquivo!$D$2:$D$20000,$C56)),0) -> 0 | I56: 0 | J56: =IFERROR((SUMIFS(Arquivo!$F$2:$F$20000,Arquivo!$B$2:$B$20000,J$6,Arquivo!$C$2:$C$20000,K$6,Arquivo!$D$2:$D$20000,$C56)),0) -> 0 | K56: 0 | L56: =IFERROR((SUMIFS(Arquivo!$F$2:$F$20000,Arquivo!$B$2:$B$20000,L$6,Arquivo!$C$2:$C$20000,M$6,Arquivo!$D$2:$D$20000,$C56)),0) -> 0 | M56: 0 | N56: =IFERROR((SUMIFS(Arquivo!$F$2:$F$20000,Arquivo!$B$2:$B$20000,N$6,Arquivo!$C$2:$C$20000,O$6,Arquivo!$D$2:$D$20000,$C56)),0) -> 0 | O56: 0 | P56: =IFERROR((SUMIFS(Arquivo!$F$2:$F$20000,Arquivo!$B$2:$B$20000,P$6,Arquivo!$C$2:$C$20000,Q$6,Arquivo!$D$2:$D$20000,$C56)),0) -> 0 | Q56: 0 | R56: =IFERROR((SUMIFS(Arquivo!$F$2:$F$20000,Arquivo!$B$2:$B$20000,R$6,Arquivo!$C$2:$C$20000,S$6,Arquivo!$D$2:$D$20000,$C56)),0) -> 0 | S56: 0 | T56: =IFERROR((SUMIFS(Arquivo!$F$2:$F$20000,Arquivo!$B$2:$B$20000,T$6,Arquivo!$C$2:$C$20000,U$6,Arquivo!$D$2:$D$20000,$C56)),0) -> 0 | U56: 0 | V56: =IFERROR((SUMIFS(Arquivo!$F$2:$F$20000,Arquivo!$B$2:$B$20000,V$6,Arquivo!$C$2:$C$20000,W$6,Arquivo!$D$2:$D$20000,$C56)),0) -> 0 | W56: 0 | X56: =IFERROR((SUMIFS(Arquivo!$F$2:$F$20000,Arquivo!$B$2:$B$20000,X$6,Arquivo!$C$2:$C$20000,Y$6,Arquivo!$D$2:$D$20000,$C56)),0) -> 0 | Y56: 0 | Z56: =IFERROR((SUMIFS(Arquivo!$F$2:$F$20000,Arquivo!$B$2:$B$20000,Z$6,Arquivo!$C$2:$C$20000,AA$6,Arquivo!$D$2:$D$20000,$C56)),0) -> 0 | AA56: 0 | AB56: =IFERROR((SUMIFS(Arquivo!$F$2:$F$20000,Arquivo!$B$2:$B$20000,AB$6,Arquivo!$C$2:$C$20000,AC$6,Arquivo!$D$2:$D$20000,$C56)),0) -> 0 | AC56: 0 | AD56: 0 | AE56: 0
C57: =IF('Plano de Contas'!B45="","",'Plano de Contas'!B45) -> 8.1.2.1 | D57: =IF($C57="","",VLOOKUP($C57,'Plano de Contas'!$B$2:$E$200,4,FALSE)) -> CF | E57: =IF($C57="","",VLOOKUP($C57,'Plano de Contas'!$B$2:$E$200,3,FALSE)) -> INSS | F57: =IFERROR((SUMIFS(Arquivo!$F$2:$F$20000,Arquivo!$B$2:$B$20000,F$6,Arquivo!$C$2:$C$20000,G$6,Arquivo!$D$2:$D$20000,$C57)),0) -> 0 | G57: 0 | H57: =IFERROR((SUMIFS(Arquivo!$F$2:$F$20000,Arquivo!$B$2:$B$20000,H$6,Arquivo!$C$2:$C$20000,I$6,Arquivo!$D$2:$D$20000,$C57)),0) -> 0 | I57: 0 | J57: =IFERROR((SUMIFS(Arquivo!$F$2:$F$20000,Arquivo!$B$2:$B$20000,J$6,Arquivo!$C$2:$C$20000,K$6,Arquivo!$D$2:$D$20000,$C57)),0) -> 0 | K57: 0 | L57: =IFERROR((SUMIFS(Arquivo!$F$2:$F$20000,Arquivo!$B$2:$B$20000,L$6,Arquivo!$C$2:$C$20000,M$6,Arquivo!$D$2:$D$20000,$C57)),0) -> 0 | M57: 0 | N57: =IFERROR((SUMIFS(Arquivo!$F$2:$F$20000,Arquivo!$B$2:$B$20000,N$6,Arquivo!$C$2:$C$20000,O$6,Arquivo!$D$2:$D$20000,$C57)),0) -> 0 | O57: 0 | P57: =IFERROR((SUMIFS(Arquivo!$F$2:$F$20000,Arquivo!$B$2:$B$20000,P$6,Arquivo!$C$2:$C$20000,Q$6,Arquivo!$D$2:$D$20000,$C57)),0) -> 0 | Q57: 0 | R57: =IFERROR((SUMIFS(Arquivo!$F$2:$F$20000,Arquivo!$B$2:$B$20000,R$6,Arquivo!$C$2:$C$20000,S$6,Arquivo!$D$2:$D$20000,$C57)),0) -> 0 | S57: 0 | T57: =IFERROR((SUMIFS(Arquivo!$F$2:$F$20000,Arquivo!$B$2:$B$20000,T$6,Arquivo!$C$2:$C$20000,U$6,Arquivo!$D$2:$D$20000,$C57)),0) -> 0 | U57: 0 | V57: =IFERROR((SUMIFS(Arquivo!$F$2:$F$20000,Arquivo!$B$2:$B$20000,V$6,Arquivo!$C$2:$C$20000,W$6,Arquivo!$D$2:$D$20000,$C57)),0) -> 0 | W57: 0 | X57: =IFERROR((SUMIFS(Arquivo!$F$2:$F$20000,Arquivo!$B$2:$B$20000,X$6,Arquivo!$C$2:$C$20000,Y$6,Arquivo!$D$2:$D$20000,$C57)),0) -> 0 | Y57: 0 | Z57: =IFERROR((SUMIFS(Arquivo!$F$2:$F$20000,Arquivo!$B$2:$B$20000,Z$6,Arquivo!$C$2:$C$20000,AA$6,Arquivo!$D$2:$D$20000,$C57)),0) -> 0 | AA57: 0 | AB57: =IFERROR((SUMIFS(Arquivo!$F$2:$F$20000,Arquivo!$B$2:$B$20000,AB$6,Arquivo!$C$2:$C$20000,AC$6,Arquivo!$D$2:$D$20000,$C57)),0) -> 0 | AC57: 0 | AD57: 0 | AE57: 0
C58: =IF('Plano de Contas'!B46="","",'Plano de Contas'!B46) -> 8.1.2.2 | D58: =IF($C58="","",VLOOKUP($C58,'Plano de Contas'!$B$2:$E$200,4,FALSE)) -> CF | E58: =IF($C58="","",VLOOKUP($C58,'Plano de Contas'!$B$2:$E$200,3,FALSE)) -> FGTS | F58: =IFERROR((SUMIFS(Arquivo!$F$2:$F$20000,Arquivo!$B$2:$B$20000,F$6,Arquivo!$C$2:$C$20000,G$6,Arquivo!$D$2:$D$20000,$C58)),0) -> 4051.3 | G58: 0.004217350588 | H58: =IFERROR((SUMIFS(Arquivo!$F$2:$F$20000,Arquivo!$B$2:$B$20000,H$6,Arquivo!$C$2:$C$20000,I$6,Arquivo!$D$2:$D$20000,$C58)),0) -> 4595.44 | I58: 0.005593757307 | J58: =IFERROR((SUMIFS(Arquivo!$F$2:$F$20000,Arquivo!$B$2:$B$20000,J$6,Arquivo!$C$2:$C$20000,K$6,Arquivo!$D$2:$D$20000,$C58)),0) -> 12844.94 | K58: 0.00970698815 | L58: =IFERROR((SUMIFS(Arquivo!$F$2:$F$20000,Arquivo!$B$2:$B$20000,L$6,Arquivo!$C$2:$C$20000,M$6,Arquivo!$D$2:$D$20000,$C58)),0) -> 4729.56 | M58: 0.004687732535 | N58: =IFERROR((SUMIFS(Arquivo!$F$2:$F$20000,Arquivo!$B$2:$B$20000,N$6,Arquivo!$C$2:$C$20000,O$6,Arquivo!$D$2:$D$20000,$C58)),0) -> 4086.59 | O58: 0.005078044716 | P58: =IFERROR((SUMIFS(Arquivo!$F$2:$F$20000,Arquivo!$B$2:$B$20000,P$6,Arquivo!$C$2:$C$20000,Q$6,Arquivo!$D$2:$D$20000,$C58)),0) -> 4361.64 | Q58: 0.004938623872 | R58: =IFERROR((SUMIFS(Arquivo!$F$2:$F$20000,Arquivo!$B$2:$B$20000,R$6,Arquivo!$C$2:$C$20000,S$6,Arquivo!$D$2:$D$20000,$C58)),0) -> 4469.8 | S58: 0.007347451976 | T58: =IFERROR((SUMIFS(Arquivo!$F$2:$F$20000,Arquivo!$B$2:$B$20000,T$6,Arquivo!$C$2:$C$20000,U$6,Arquivo!$D$2:$D$20000,$C58)),0) -> 0 | U58: 0 | V58: =IFERROR((SUMIFS(Arquivo!$F$2:$F$20000,Arquivo!$B$2:$B$20000,V$6,Arquivo!$C$2:$C$20000,W$6,Arquivo!$D$2:$D$20000,$C58)),0) -> 0 | W58: 0 | X58: =IFERROR((SUMIFS(Arquivo!$F$2:$F$20000,Arquivo!$B$2:$B$20000,X$6,Arquivo!$C$2:$C$20000,Y$6,Arquivo!$D$2:$D$20000,$C58)),0) -> 0 | Y58: 0 | Z58: =IFERROR((SUMIFS(Arquivo!$F$2:$F$20000,Arquivo!$B$2:$B$20000,Z$6,Arquivo!$C$2:$C$20000,AA$6,Arquivo!$D$2:$D$20000,$C58)),0) -> 0 | AA58: 0 | AB58: =IFERROR((SUMIFS(Arquivo!$F$2:$F$20000,Arquivo!$B$2:$B$20000,AB$6,Arquivo!$C$2:$C$20000,AC$6,Arquivo!$D$2:$D$20000,$C58)),0) -> 0 | AC58: 0 | AD58: 39139.27 | AE58: 0.006105380204 | AH58: X
C59: =IF('Plano de Contas'!B47="","",'Plano de Contas'!B47) -> 8.1.2.3 | D59: =IF($C59="","",VLOOKUP($C59,'Plano de Contas'!$B$2:$E$200,4,FALSE)) -> CF | E59: =IF($C59="","",VLOOKUP($C59,'Plano de Contas'!$B$2:$E$200,3,FALSE)) -> CONTRIBUICAO SOCIAL | F59: =IFERROR((SUMIFS(Arquivo!$F$2:$F$20000,Arquivo!$B$2:$B$20000,F$6,Arquivo!$C$2:$C$20000,G$6,Arquivo!$D$2:$D$20000,$C59)),0) -> 0 | G59: 0 | H59: =IFERROR((SUMIFS(Arquivo!$F$2:$F$20000,Arquivo!$B$2:$B$20000,H$6,Arquivo!$C$2:$C$20000,I$6,Arquivo!$D$2:$D$20000,$C59)),0) -> 0 | I59: 0 | J59: =IFERROR((SUMIFS(Arquivo!$F$2:$F$20000,Arquivo!$B$2:$B$20000,J$6,Arquivo!$C$2:$C$20000,K$6,Arquivo!$D$2:$D$20000,$C59)),0) -> 0 | K59: 0 | L59: =IFERROR((SUMIFS(Arquivo!$F$2:$F$20000,Arquivo!$B$2:$B$20000,L$6,Arquivo!$C$2:$C$20000,M$6,Arquivo!$D$2:$D$20000,$C59)),0) -> 0 | M59: 0 | N59: =IFERROR((SUMIFS(Arquivo!$F$2:$F$20000,Arquivo!$B$2:$B$20000,N$6,Arquivo!$C$2:$C$20000,O$6,Arquivo!$D$2:$D$20000,$C59)),0) -> 3101.84 | O59: 0.003854382803 | P59: =IFERROR((SUMIFS(Arquivo!$F$2:$F$20000,Arquivo!$B$2:$B$20000,P$6,Arquivo!$C$2:$C$20000,Q$6,Arquivo!$D$2:$D$20000,$C59)),0) -> 0 | Q59: 0 | R59: =IFERROR((SUMIFS(Arquivo!$F$2:$F$20000,Arquivo!$B$2:$B$20000,R$6,Arquivo!$C$2:$C$20000,S$6,Arquivo!$D$2:$D$20000,$C59)),0) -> 0 | S59: 0 | T59: =IFERROR((SUMIFS(Arquivo!$F$2:$F$20000,Arquivo!$B$2:$B$20000,T$6,Arquivo!$C$2:$C$20000,U$6,Arquivo!$D$2:$D$20000,$C59)),0) -> 0 | U59: 0 | V59: =IFERROR((SUMIFS(Arquivo!$F$2:$F$20000,Arquivo!$B$2:$B$20000,V$6,Arquivo!$C$2:$C$20000,W$6,Arquivo!$D$2:$D$20000,$C59)),0) -> 0 | W59: 0 | X59: =IFERROR((SUMIFS(Arquivo!$F$2:$F$20000,Arquivo!$B$2:$B$20000,X$6,Arquivo!$C$2:$C$20000,Y$6,Arquivo!$D$2:$D$20000,$C59)),0) -> 0 | Y59: 0 | Z59: =IFERROR((SUMIFS(Arquivo!$F$2:$F$20000,Arquivo!$B$2:$B$20000,Z$6,Arquivo!$C$2:$C$20000,AA$6,Arquivo!$D$2:$D$20000,$C59)),0) -> 0 | AA59: 0 | AB59: =IFERROR((SUMIFS(Arquivo!$F$2:$F$20000,Arquivo!$B$2:$B$20000,AB$6,Arquivo!$C$2:$C$20000,AC$6,Arquivo!$D$2:$D$20000,$C59)),0) -> 0 | AC59: 0 | AD59: 3101.84 | AE59: 0.0004838596257 | AH59: X
C60: =IF('Plano de Contas'!B48="","",'Plano de Contas'!B48) -> 8.1.2.4 | D60: =IF($C60="","",VLOOKUP($C60,'Plano de Contas'!$B$2:$E$200,4,FALSE)) -> CF | E60: =IF($C60="","",VLOOKUP($C60,'Plano de Contas'!$B$2:$E$200,3,FALSE)) -> INSS ADMINISTRACAO/CAMARA | F60: =IFERROR((SUMIFS(Arquivo!$F$2:$F$20000,Arquivo!$B$2:$B$20000,F$6,Arquivo!$C$2:$C$20000,G$6,Arquivo!$D$2:$D$20000,$C60)),0) -> 6703.71 | G60: 0.006978474887 | H60: =IFERROR((SUMIFS(Arquivo!$F$2:$F$20000,Arquivo!$B$2:$B$20000,H$6,Arquivo!$C$2:$C$20000,I$6,Arquivo!$D$2:$D$20000,$C60)),0) -> 6810.67 | I60: 0.008290225763 | J60: =IFERROR((SUMIFS(Arquivo!$F$2:$F$20000,Arquivo!$B$2:$B$20000,J$6,Arquivo!$C$2:$C$20000,K$6,Arquivo!$D$2:$D$20000,$C60)),0) -> 6282.22 | K60: 0.004747506418 | L60: =IFERROR((SUMIFS(Arquivo!$F$2:$F$20000,Arquivo!$B$2:$B$20000,L$6,Arquivo!$C$2:$C$20000,M$6,Arquivo!$D$2:$D$20000,$C60)),0) -> 6639.33 | M60: 0.006580612837 | N60: =IFERROR((SUMIFS(Arquivo!$F$2:$F$20000,Arquivo!$B$2:$B$20000,N$6,Arquivo!$C$2:$C$20000,O$6,Arquivo!$D$2:$D$20000,$C60)),0) -> 6396.87 | O60: 0.007948825769 | P60: =IFERROR((SUMIFS(Arquivo!$F$2:$F$20000,Arquivo!$B$2:$B$20000,P$6,Arquivo!$C$2:$C$20000,Q$6,Arquivo!$D$2:$D$20000,$C60)),0) -> 6369.58 | Q60: 0.007212186205 | R60: =IFERROR((SUMIFS(Arquivo!$F$2:$F$20000,Arquivo!$B$2:$B$20000,R$6,Arquivo!$C$2:$C$20000,S$6,Arquivo!$D$2:$D$20000,$C60)),0) -> 6575.02 | S60: 0.01080801013 | T60: =IFERROR((SUMIFS(Arquivo!$F$2:$F$20000,Arquivo!$B$2:$B$20000,T$6,Arquivo!$C$2:$C$20000,U$6,Arquivo!$D$2:$D$20000,$C60)),0) -> 0 | U60: 0 | V60: =IFERROR((SUMIFS(Arquivo!$F$2:$F$20000,Arquivo!$B$2:$B$20000,V$6,Arquivo!$C$2:$C$20000,W$6,Arquivo!$D$2:$D$20000,$C60)),0) -> 0 | W60: 0 | X60: =IFERROR((SUMIFS(Arquivo!$F$2:$F$20000,Arquivo!$B$2:$B$20000,X$6,Arquivo!$C$2:$C$20000,Y$6,Arquivo!$D$2:$D$20000,$C60)),0) -> 0 | Y60: 0 | Z60: =IFERROR((SUMIFS(Arquivo!$F$2:$F$20000,Arquivo!$B$2:$B$20000,Z$6,Arquivo!$C$2:$C$20000,AA$6,Arquivo!$D$2:$D$20000,$C60)),0) -> 0 | AA60: 0 | AB60: =IFERROR((SUMIFS(Arquivo!$F$2:$F$20000,Arquivo!$B$2:$B$20000,AB$6,Arquivo!$C$2:$C$20000,AC$6,Arquivo!$D$2:$D$20000,$C60)),0) -> 0 | AC60: 0 | AD60: 45777.4 | AE60: 0.007140869815 | AH60: X
C61: =IF('Plano de Contas'!B49="","",'Plano de Contas'!B49) -> 8.1.2.5 | D61: =IF($C61="","",VLOOKUP($C61,'Plano de Contas'!$B$2:$E$200,4,FALSE)) -> CF | E61: =IF($C61="","",VLOOKUP($C61,'Plano de Contas'!$B$2:$E$200,3,FALSE)) -> INSS COLHEITADORES | F61: =IFERROR((SUMIFS(Arquivo!$F$2:$F$20000,Arquivo!$B$2:$B$20000,F$6,Arquivo!$C$2:$C$20000,G$6,Arquivo!$D$2:$D$20000,$C61)),0) -> 3717.77 | G61: 0.003870150198 | H61: =IFERROR((SUMIFS(Arquivo!$F$2:$F$20000,Arquivo!$B$2:$B$20000,H$6,Arquivo!$C$2:$C$20000,I$6,Arquivo!$D$2:$D$20000,$C61)),0) -> 4365.72 | I61: 0.005314132738 | J61: =IFERROR((SUMIFS(Arquivo!$F$2:$F$20000,Arquivo!$B$2:$B$20000,J$6,Arquivo!$C$2:$C$20000,K$6,Arquivo!$D$2:$D$20000,$C61)),0) -> 4264.7 | K61: 0.003222856032 | L61: =IFERROR((SUMIFS(Arquivo!$F$2:$F$20000,Arquivo!$B$2:$B$20000,L$6,Arquivo!$C$2:$C$20000,M$6,Arquivo!$D$2:$D$20000,$C61)),0) -> 4073.82 | M61: 0.004037791793 | N61: =IFERROR((SUMIFS(Arquivo!$F$2:$F$20000,Arquivo!$B$2:$B$20000,N$6,Arquivo!$C$2:$C$20000,O$6,Arquivo!$D$2:$D$20000,$C61)),0) -> 3664.55 | O61: 0.004553612856 | P61: =IFERROR((SUMIFS(Arquivo!$F$2:$F$20000,Arquivo!$B$2:$B$20000,P$6,Arquivo!$C$2:$C$20000,Q$6,Arquivo!$D$2:$D$20000,$C61)),0) -> 4103.58 | Q61: 0.004646426149 | R61: =IFERROR((SUMIFS(Arquivo!$F$2:$F$20000,Arquivo!$B$2:$B$20000,R$6,Arquivo!$C$2:$C$20000,S$6,Arquivo!$D$2:$D$20000,$C61)),0) -> 4064.82 | S61: 0.006681746329 | T61: =IFERROR((SUMIFS(Arquivo!$F$2:$F$20000,Arquivo!$B$2:$B$20000,T$6,Arquivo!$C$2:$C$20000,U$6,Arquivo!$D$2:$D$20000,$C61)),0) -> 0 | U61: 0 | V61: =IFERROR((SUMIFS(Arquivo!$F$2:$F$20000,Arquivo!$B$2:$B$20000,V$6,Arquivo!$C$2:$C$20000,W$6,Arquivo!$D$2:$D$20000,$C61)),0) -> 0 | W61: 0 | X61: =IFERROR((SUMIFS(Arquivo!$F$2:$F$20000,Arquivo!$B$2:$B$20000,X$6,Arquivo!$C$2:$C$20000,Y$6,Arquivo!$D$2:$D$20000,$C61)),0) -> 0 | Y61: 0 | Z61: =IFERROR((SUMIFS(Arquivo!$F$2:$F$20000,Arquivo!$B$2:$B$20000,Z$6,Arquivo!$C$2:$C$20000,AA$6,Arquivo!$D$2:$D$20000,$C61)),0) -> 0 | AA61: 0 | AB61: =IFERROR((SUMIFS(Arquivo!$F$2:$F$20000,Arquivo!$B$2:$B$20000,AB$6,Arquivo!$C$2:$C$20000,AC$6,Arquivo!$D$2:$D$20000,$C61)),0) -> 0 | AC61: 0 | AD61: 28254.96 | AE61: 0.00440752404 | AH61: X
C62: =IF('Plano de Contas'!B50="","",'Plano de Contas'!B50) -> 8.4.1.2 | D62: =IF($C62="","",VLOOKUP($C62,'Plano de Contas'!$B$2:$E$200,4,FALSE)) -> CV | E62: =IF($C62="","",VLOOKUP($C62,'Plano de Contas'!$B$2:$E$200,3,FALSE)) -> BRINDES C/ APOSENTADORIA FUNCIONARIOS | F62: =IFERROR((SUMIFS(Arquivo!$F$2:$F$20000,Arquivo!$B$2:$B$20000,F$6,Arquivo!$C$2:$C$20000,G$6,Arquivo!$D$2:$D$20000,$C62)),0) -> 0 | G62: 0 | H62: =IFERROR((SUMIFS(Arquivo!$F$2:$F$20000,Arquivo!$B$2:$B$20000,H$6,Arquivo!$C$2:$C$20000,I$6,Arquivo!$D$2:$D$20000,$C62)),0) -> 0 | I62: 0 | J62: =IFERROR((SUMIFS(Arquivo!$F$2:$F$20000,Arquivo!$B$2:$B$20000,J$6,Arquivo!$C$2:$C$20000,K$6,Arquivo!$D$2:$D$20000,$C62)),0) -> 0 | K62: 0 | L62: =IFERROR((SUMIFS(Arquivo!$F$2:$F$20000,Arquivo!$B$2:$B$20000,L$6,Arquivo!$C$2:$C$20000,M$6,Arquivo!$D$2:$D$20000,$C62)),0) -> 0 | M62: 0 | N62: =IFERROR((SUMIFS(Arquivo!$F$2:$F$20000,Arquivo!$B$2:$B$20000,N$6,Arquivo!$C$2:$C$20000,O$6,Arquivo!$D$2:$D$20000,$C62)),0) -> 0 | O62: 0 | P62: =IFERROR((SUMIFS(Arquivo!$F$2:$F$20000,Arquivo!$B$2:$B$20000,P$6,Arquivo!$C$2:$C$20000,Q$6,Arquivo!$D$2:$D$20000,$C62)),0) -> 0 | Q62: 0 | R62: =IFERROR((SUMIFS(Arquivo!$F$2:$F$20000,Arquivo!$B$2:$B$20000,R$6,Arquivo!$C$2:$C$20000,S$6,Arquivo!$D$2:$D$20000,$C62)),0) -> 0 | S62: 0 | T62: =IFERROR((SUMIFS(Arquivo!$F$2:$F$20000,Arquivo!$B$2:$B$20000,T$6,Arquivo!$C$2:$C$20000,U$6,Arquivo!$D$2:$D$20000,$C62)),0) -> 0 | U62: 0 | V62: =IFERROR((SUMIFS(Arquivo!$F$2:$F$20000,Arquivo!$B$2:$B$20000,V$6,Arquivo!$C$2:$C$20000,W$6,Arquivo!$D$2:$D$20000,$C62)),0) -> 0 | W62: 0 | X62: =IFERROR((SUMIFS(Arquivo!$F$2:$F$20000,Arquivo!$B$2:$B$20000,X$6,Arquivo!$C$2:$C$20000,Y$6,Arquivo!$D$2:$D$20000,$C62)),0) -> 0 | Y62: 0 | Z62: =IFERROR((SUMIFS(Arquivo!$F$2:$F$20000,Arquivo!$B$2:$B$20000,Z$6,Arquivo!$C$2:$C$20000,AA$6,Arquivo!$D$2:$D$20000,$C62)),0) -> 0 | AA62: 0 | AB62: =IFERROR((SUMIFS(Arquivo!$F$2:$F$20000,Arquivo!$B$2:$B$20000,AB$6,Arquivo!$C$2:$C$20000,AC$6,Arquivo!$D$2:$D$20000,$C62)),0) -> 0 | AC62: 0 | AD62: 0 | AE62: 0
C63: =IF('Plano de Contas'!B51="","",'Plano de Contas'!B51) -> 6.1.1.3 | D63: =IF($C63="","",VLOOKUP($C63,'Plano de Contas'!$B$2:$E$200,4,FALSE)) -> CV | E63: =IF($C63="","",VLOOKUP($C63,'Plano de Contas'!$B$2:$E$200,3,FALSE)) -> FUNRURAL | F63: =IFERROR((SUMIFS(Arquivo!$F$2:$F$20000,Arquivo!$B$2:$B$20000,F$6,Arquivo!$C$2:$C$20000,G$6,Arquivo!$D$2:$D$20000,$C63)),0) -> 11943.72 | G63: 0.01243325712 | H63: =IFERROR((SUMIFS(Arquivo!$F$2:$F$20000,Arquivo!$B$2:$B$20000,H$6,Arquivo!$C$2:$C$20000,I$6,Arquivo!$D$2:$D$20000,$C63)),0) -> 9381.83 | I63: 0.01141994676 | J63: =IFERROR((SUMIFS(Arquivo!$F$2:$F$20000,Arquivo!$B$2:$B$20000,J$6,Arquivo!$C$2:$C$20000,K$6,Arquivo!$D$2:$D$20000,$C63)),0) -> 15516.45 | K63: 0.01172586219 | L63: =IFERROR((SUMIFS(Arquivo!$F$2:$F$20000,Arquivo!$B$2:$B$20000,L$6,Arquivo!$C$2:$C$20000,M$6,Arquivo!$D$2:$D$20000,$C63)),0) -> 11998.92 | M63: 0.01189280349 | N63: =IFERROR((SUMIFS(Arquivo!$F$2:$F$20000,Arquivo!$B$2:$B$20000,N$6,Arquivo!$C$2:$C$20000,O$6,Arquivo!$D$2:$D$20000,$C63)),0) -> 9972.97 | O63: 0.01239252962 | P63: =IFERROR((SUMIFS(Arquivo!$F$2:$F$20000,Arquivo!$B$2:$B$20000,P$6,Arquivo!$C$2:$C$20000,Q$6,Arquivo!$D$2:$D$20000,$C63)),0) -> 10508.04 | Q63: 0.01189810649 | R63: =IFERROR((SUMIFS(Arquivo!$F$2:$F$20000,Arquivo!$B$2:$B$20000,R$6,Arquivo!$C$2:$C$20000,S$6,Arquivo!$D$2:$D$20000,$C63)),0) -> 6299.63 | S63: 0.01035532438 | T63: =IFERROR((SUMIFS(Arquivo!$F$2:$F$20000,Arquivo!$B$2:$B$20000,T$6,Arquivo!$C$2:$C$20000,U$6,Arquivo!$D$2:$D$20000,$C63)),0) -> 0 | U63: 0 | V63: =IFERROR((SUMIFS(Arquivo!$F$2:$F$20000,Arquivo!$B$2:$B$20000,V$6,Arquivo!$C$2:$C$20000,W$6,Arquivo!$D$2:$D$20000,$C63)),0) -> 0 | W63: 0 | X63: =IFERROR((SUMIFS(Arquivo!$F$2:$F$20000,Arquivo!$B$2:$B$20000,X$6,Arquivo!$C$2:$C$20000,Y$6,Arquivo!$D$2:$D$20000,$C63)),0) -> 0 | Y63: 0 | Z63: =IFERROR((SUMIFS(Arquivo!$F$2:$F$20000,Arquivo!$B$2:$B$20000,Z$6,Arquivo!$C$2:$C$20000,AA$6,Arquivo!$D$2:$D$20000,$C63)),0) -> 0 | AA63: 0 | AB63: =IFERROR((SUMIFS(Arquivo!$F$2:$F$20000,Arquivo!$B$2:$B$20000,AB$6,Arquivo!$C$2:$C$20000,AC$6,Arquivo!$D$2:$D$20000,$C63)),0) -> 0 | AC63: 0 | AD63: 75621.56 | AE63: 0.01179629501 | AH63: X
C64: =IF('Plano de Contas'!B52="","",'Plano de Contas'!B52) ->  | D64: =IF($C64="","",VLOOKUP($C64,'Plano de Contas'!$B$2:$E$200,4,FALSE)) ->  | E64: =IF($C64="","",VLOOKUP($C64,'Plano de Contas'!$B$2:$E$200,3,FALSE)) ->  | F64: =IFERROR((SUMIFS(Arquivo!$F$2:$F$20000,Arquivo!$B$2:$B$20000,F$6,Arquivo!$C$2:$C$20000,G$6,Arquivo!$D$2:$D$20000,$C64)),0) -> 0 | G64: 0 | H64: =IFERROR((SUMIFS(Arquivo!$F$2:$F$20000,Arquivo!$B$2:$B$20000,H$6,Arquivo!$C$2:$C$20000,I$6,Arquivo!$D$2:$D$20000,$C64)),0) -> 0 | I64: 0 | J64: =IFERROR((SUMIFS(Arquivo!$F$2:$F$20000,Arquivo!$B$2:$B$20000,J$6,Arquivo!$C$2:$C$20000,K$6,Arquivo!$D$2:$D$20000,$C64)),0) -> 0 | K64: 0 | L64: =IFERROR((SUMIFS(Arquivo!$F$2:$F$20000,Arquivo!$B$2:$B$20000,L$6,Arquivo!$C$2:$C$20000,M$6,Arquivo!$D$2:$D$20000,$C64)),0) -> 0 | M64: 0 | N64: =IFERROR((SUMIFS(Arquivo!$F$2:$F$20000,Arquivo!$B$2:$B$20000,N$6,Arquivo!$C$2:$C$20000,O$6,Arquivo!$D$2:$D$20000,$C64)),0) -> 0 | O64: 0 | P64: =IFERROR((SUMIFS(Arquivo!$F$2:$F$20000,Arquivo!$B$2:$B$20000,P$6,Arquivo!$C$2:$C$20000,Q$6,Arquivo!$D$2:$D$20000,$C64)),0) -> 0 | Q64: 0 | R64: =IFERROR((SUMIFS(Arquivo!$F$2:$F$20000,Arquivo!$B$2:$B$20000,R$6,Arquivo!$C$2:$C$20000,S$6,Arquivo!$D$2:$D$20000,$C64)),0) -> 0 | S64: 0 | T64: =IFERROR((SUMIFS(Arquivo!$F$2:$F$20000,Arquivo!$B$2:$B$20000,T$6,Arquivo!$C$2:$C$20000,U$6,Arquivo!$D$2:$D$20000,$C64)),0) -> 0 | U64: 0 | V64: =IFERROR((SUMIFS(Arquivo!$F$2:$F$20000,Arquivo!$B$2:$B$20000,V$6,Arquivo!$C$2:$C$20000,W$6,Arquivo!$D$2:$D$20000,$C64)),0) -> 0 | W64: 0 | X64: =IFERROR((SUMIFS(Arquivo!$F$2:$F$20000,Arquivo!$B$2:$B$20000,X$6,Arquivo!$C$2:$C$20000,Y$6,Arquivo!$D$2:$D$20000,$C64)),0) -> 0 | Y64: 0 | Z64: =IFERROR((SUMIFS(Arquivo!$F$2:$F$20000,Arquivo!$B$2:$B$20000,Z$6,Arquivo!$C$2:$C$20000,AA$6,Arquivo!$D$2:$D$20000,$C64)),0) -> 0 | AA64: 0 | AB64: =IFERROR((SUMIFS(Arquivo!$F$2:$F$20000,Arquivo!$B$2:$B$20000,AB$6,Arquivo!$C$2:$C$20000,AC$6,Arquivo!$D$2:$D$20000,$C64)),0) -> 0 | AC64: 0 | AD64: 0 | AE64: 0
C65: =IF('Plano de Contas'!B53="","",'Plano de Contas'!B53) ->  | D65: =IF($C65="","",VLOOKUP($C65,'Plano de Contas'!$B$2:$E$200,4,FALSE)) ->  | E65: =IF($C65="","",VLOOKUP($C65,'Plano de Contas'!$B$2:$E$200,3,FALSE)) ->  | F65: =IFERROR((SUMIFS(Arquivo!$F$2:$F$20000,Arquivo!$B$2:$B$20000,F$6,Arquivo!$C$2:$C$20000,G$6,Arquivo!$D$2:$D$20000,$C65)),0) -> 0 | G65: 0 | H65: =IFERROR((SUMIFS(Arquivo!$F$2:$F$20000,Arquivo!$B$2:$B$20000,H$6,Arquivo!$C$2:$C$20000,I$6,Arquivo!$D$2:$D$20000,$C65)),0) -> 0 | I65: 0 | J65: =IFERROR((SUMIFS(Arquivo!$F$2:$F$20000,Arquivo!$B$2:$B$20000,J$6,Arquivo!$C$2:$C$20000,K$6,Arquivo!$D$2:$D$20000,$C65)),0) -> 0 | K65: 0 | L65: =IFERROR((SUMIFS(Arquivo!$F$2:$F$20000,Arquivo!$B$2:$B$20000,L$6,Arquivo!$C$2:$C$20000,M$6,Arquivo!$D$2:$D$20000,$C65)),0) -> 0 | M65: 0 | N65: =IFERROR((SUMIFS(Arquivo!$F$2:$F$20000,Arquivo!$B$2:$B$20000,N$6,Arquivo!$C$2:$C$20000,O$6,Arquivo!$D$2:$D$20000,$C65)),0) -> 0 | O65: 0 | P65: =IFERROR((SUMIFS(Arquivo!$F$2:$F$20000,Arquivo!$B$2:$B$20000,P$6,Arquivo!$C$2:$C$20000,Q$6,Arquivo!$D$2:$D$20000,$C65)),0) -> 0 | Q65: 0 | R65: =IFERROR((SUMIFS(Arquivo!$F$2:$F$20000,Arquivo!$B$2:$B$20000,R$6,Arquivo!$C$2:$C$20000,S$6,Arquivo!$D$2:$D$20000,$C65)),0) -> 0 | S65: 0 | T65: =IFERROR((SUMIFS(Arquivo!$F$2:$F$20000,Arquivo!$B$2:$B$20000,T$6,Arquivo!$C$2:$C$20000,U$6,Arquivo!$D$2:$D$20000,$C65)),0) -> 0 | U65: 0 | V65: =IFERROR((SUMIFS(Arquivo!$F$2:$F$20000,Arquivo!$B$2:$B$20000,V$6,Arquivo!$C$2:$C$20000,W$6,Arquivo!$D$2:$D$20000,$C65)),0) -> 0 | W65: 0 | X65: =IFERROR((SUMIFS(Arquivo!$F$2:$F$20000,Arquivo!$B$2:$B$20000,X$6,Arquivo!$C$2:$C$20000,Y$6,Arquivo!$D$2:$D$20000,$C65)),0) -> 0 | Y65: 0 | Z65: =IFERROR((SUMIFS(Arquivo!$F$2:$F$20000,Arquivo!$B$2:$B$20000,Z$6,Arquivo!$C$2:$C$20000,AA$6,Arquivo!$D$2:$D$20000,$C65)),0) -> 0 | AA65: 0 | AB65: =IFERROR((SUMIFS(Arquivo!$F$2:$F$20000,Arquivo!$B$2:$B$20000,AB$6,Arquivo!$C$2:$C$20000,AC$6,Arquivo!$D$2:$D$20000,$C65)),0) -> 0 | AC65: 0 | AD65: 0 | AE65: 0
C66: =IF('Plano de Contas'!B54="","",'Plano de Contas'!B54) ->  | D66: =IF($C66="","",VLOOKUP($C66,'Plano de Contas'!$B$2:$E$200,4,FALSE)) ->  | E66: =IF($C66="","",VLOOKUP($C66,'Plano de Contas'!$B$2:$E$200,3,FALSE)) ->  | F66: =IFERROR((SUMIFS(Arquivo!$F$2:$F$20000,Arquivo!$B$2:$B$20000,F$6,Arquivo!$C$2:$C$20000,G$6,Arquivo!$D$2:$D$20000,$C66)),0) -> 0 | G66: 0 | H66: =IFERROR((SUMIFS(Arquivo!$F$2:$F$20000,Arquivo!$B$2:$B$20000,H$6,Arquivo!$C$2:$C$20000,I$6,Arquivo!$D$2:$D$20000,$C66)),0) -> 0 | I66: 0 | J66: =IFERROR((SUMIFS(Arquivo!$F$2:$F$20000,Arquivo!$B$2:$B$20000,J$6,Arquivo!$C$2:$C$20000,K$6,Arquivo!$D$2:$D$20000,$C66)),0) -> 0 | K66: 0 | L66: =IFERROR((SUMIFS(Arquivo!$F$2:$F$20000,Arquivo!$B$2:$B$20000,L$6,Arquivo!$C$2:$C$20000,M$6,Arquivo!$D$2:$D$20000,$C66)),0) -> 0 | M66: 0 | N66: =IFERROR((SUMIFS(Arquivo!$F$2:$F$20000,Arquivo!$B$2:$B$20000,N$6,Arquivo!$C$2:$C$20000,O$6,Arquivo!$D$2:$D$20000,$C66)),0) -> 0 | O66: 0 | P66: =IFERROR((SUMIFS(Arquivo!$F$2:$F$20000,Arquivo!$B$2:$B$20000,P$6,Arquivo!$C$2:$C$20000,Q$6,Arquivo!$D$2:$D$20000,$C66)),0) -> 0 | Q66: 0 | R66: =IFERROR((SUMIFS(Arquivo!$F$2:$F$20000,Arquivo!$B$2:$B$20000,R$6,Arquivo!$C$2:$C$20000,S$6,Arquivo!$D$2:$D$20000,$C66)),0) -> 0 | S66: 0 | T66: =IFERROR((SUMIFS(Arquivo!$F$2:$F$20000,Arquivo!$B$2:$B$20000,T$6,Arquivo!$C$2:$C$20000,U$6,Arquivo!$D$2:$D$20000,$C66)),0) -> 0 | U66: 0 | V66: =IFERROR((SUMIFS(Arquivo!$F$2:$F$20000,Arquivo!$B$2:$B$20000,V$6,Arquivo!$C$2:$C$20000,W$6,Arquivo!$D$2:$D$20000,$C66)),0) -> 0 | W66: 0 | X66: =IFERROR((SUMIFS(Arquivo!$F$2:$F$20000,Arquivo!$B$2:$B$20000,X$6,Arquivo!$C$2:$C$20000,Y$6,Arquivo!$D$2:$D$20000,$C66)),0) -> 0 | Y66: 0 | Z66: =IFERROR((SUMIFS(Arquivo!$F$2:$F$20000,Arquivo!$B$2:$B$20000,Z$6,Arquivo!$C$2:$C$20000,AA$6,Arquivo!$D$2:$D$20000,$C66)),0) -> 0 | AA66: 0 | AB66: =IFERROR((SUMIFS(Arquivo!$F$2:$F$20000,Arquivo!$B$2:$B$20000,AB$6,Arquivo!$C$2:$C$20000,AC$6,Arquivo!$D$2:$D$20000,$C66)),0) -> 0 | AC66: 0 | AD66: 0 | AE66: 0
C67: =IF('Plano de Contas'!B55="","",'Plano de Contas'!B55) ->  | D67: =IF($C67="","",VLOOKUP($C67,'Plano de Contas'!$B$2:$E$200,4,FALSE)) ->  | E67: =IF($C67="","",VLOOKUP($C67,'Plano de Contas'!$B$2:$E$200,3,FALSE)) ->  | F67: =IFERROR((SUMIFS(Arquivo!$F$2:$F$20000,Arquivo!$B$2:$B$20000,F$6,Arquivo!$C$2:$C$20000,G$6,Arquivo!$D$2:$D$20000,$C67)),0) -> 0 | G67: 0 | H67: =IFERROR((SUMIFS(Arquivo!$F$2:$F$20000,Arquivo!$B$2:$B$20000,H$6,Arquivo!$C$2:$C$20000,I$6,Arquivo!$D$2:$D$20000,$C67)),0) -> 0 | I67: 0 | J67: =IFERROR((SUMIFS(Arquivo!$F$2:$F$20000,Arquivo!$B$2:$B$20000,J$6,Arquivo!$C$2:$C$20000,K$6,Arquivo!$D$2:$D$20000,$C67)),0) -> 0 | K67: 0 | L67: =IFERROR((SUMIFS(Arquivo!$F$2:$F$20000,Arquivo!$B$2:$B$20000,L$6,Arquivo!$C$2:$C$20000,M$6,Arquivo!$D$2:$D$20000,$C67)),0) -> 0 | M67: 0 | N67: =IFERROR((SUMIFS(Arquivo!$F$2:$F$20000,Arquivo!$B$2:$B$20000,N$6,Arquivo!$C$2:$C$20000,O$6,Arquivo!$D$2:$D$20000,$C67)),0) -> 0 | O67: 0 | P67: =IFERROR((SUMIFS(Arquivo!$F$2:$F$20000,Arquivo!$B$2:$B$20000,P$6,Arquivo!$C$2:$C$20000,Q$6,Arquivo!$D$2:$D$20000,$C67)),0) -> 0 | Q67: 0 | R67: =IFERROR((SUMIFS(Arquivo!$F$2:$F$20000,Arquivo!$B$2:$B$20000,R$6,Arquivo!$C$2:$C$20000,S$6,Arquivo!$D$2:$D$20000,$C67)),0) -> 0 | S67: 0 | T67: =IFERROR((SUMIFS(Arquivo!$F$2:$F$20000,Arquivo!$B$2:$B$20000,T$6,Arquivo!$C$2:$C$20000,U$6,Arquivo!$D$2:$D$20000,$C67)),0) -> 0 | U67: 0 | V67: =IFERROR((SUMIFS(Arquivo!$F$2:$F$20000,Arquivo!$B$2:$B$20000,V$6,Arquivo!$C$2:$C$20000,W$6,Arquivo!$D$2:$D$20000,$C67)),0) -> 0 | W67: 0 | X67: =IFERROR((SUMIFS(Arquivo!$F$2:$F$20000,Arquivo!$B$2:$B$20000,X$6,Arquivo!$C$2:$C$20000,Y$6,Arquivo!$D$2:$D$20000,$C67)),0) -> 0 | Y67: 0 | Z67: =IFERROR((SUMIFS(Arquivo!$F$2:$F$20000,Arquivo!$B$2:$B$20000,Z$6,Arquivo!$C$2:$C$20000,AA$6,Arquivo!$D$2:$D$20000,$C67)),0) -> 0 | AA67: 0 | AB67: =IFERROR((SUMIFS(Arquivo!$F$2:$F$20000,Arquivo!$B$2:$B$20000,AB$6,Arquivo!$C$2:$C$20000,AC$6,Arquivo!$D$2:$D$20000,$C67)),0) -> 0 | AC67: 0 | AD67: 0 | AE67: 0
AH68: =IF(AH45="","","X") -> X
D69: DESPESAS ADMINISTRATIVAS | F69: =SUBTOTAL(9,F70:F95) -> 14928.37 | G69: =IFERROR((F69/IF($X$3="CT",F$10,F$69)),0) -> 0.01554023894 | H69: =SUBTOTAL(9,H70:H95) -> 14780.88 | I69: =IFERROR((H69/IF($X$3="CT",H$10,H$69)),0) -> 0.01799189098 | J69: =SUBTOTAL(9,J70:J95) -> 21467.02 | K69: =IFERROR((J69/IF($X$3="CT",J$10,J$69)),0) -> 0.01622273897 | L69: =SUBTOTAL(9,L70:L95) -> 19916.47 | M69: =IFERROR((L69/IF($X$3="CT",L$10,L$69)),0) -> 0.01974033195 | N69: =SUBTOTAL(9,N70:N95) -> 17877.72 | O69: =IFERROR((N69/IF($X$3="CT",N$10,N$69)),0) -> 0.02221506478 | P69: =SUBTOTAL(9,P70:P95) -> 15645.7 | Q69: =IFERROR((P69/IF($X$3="CT",P$10,P$69)),0) -> 0.01771540694 | R69: =SUBTOTAL(9,R70:R95) -> 18469.89 | S69: =IFERROR((R69/IF($X$3="CT",R$10,R$69)),0) -> 0.03036078343 | T69: =SUBTOTAL(9,T70:T95) -> 0 | U69: =IFERROR((T69/IF($X$3="CT",T$10,T$69)),0) -> 0 | V69: =SUBTOTAL(9,V70:V95) -> 0 | W69: =IFERROR((V69/IF($X$3="CT",V$10,V$69)),0) -> 0 | X69: =SUBTOTAL(9,X70:X95) -> 0 | Y69: =IFERROR((X69/IF($X$3="CT",X$10,X$69)),0) -> 0 | Z69: =SUBTOTAL(9,Z70:Z95) -> 0 | AA69: =IFERROR((Z69/IF($X$3="CT",Z$10,Z$69)),0) -> 0 | AB69: =SUBTOTAL(9,AB70:AB95) -> 0 | AC69: =IFERROR((AB69/IF($X$3="CT",AB$10,AB$69)),0) -> 0 | AD69: =SUBTOTAL(9,AD70:AD95) -> 123086.05 | AE69: =IFERROR((AD69/IF($X$3="CT",AD$10,AD$69)),0) -> 0.01920033596 | AH69: =IF(COUNTIF(AH70:AH94,"X")>0,"X","") -> X
C70: =IF('Plano de Contas'!B57="","",'Plano de Contas'!B57) -> 8.1.3.1 | D70: =IF($C70="","",VLOOKUP($C70,'Plano de Contas'!$B$2:$E$200,4,FALSE)) -> CF | E70: =IF($C70="","",VLOOKUP($C70,'Plano de Contas'!$B$2:$E$200,3,FALSE)) -> ENERGIA | F70: =IFERROR((SUMIFS(Arquivo!$F$2:$F$20000,Arquivo!$B$2:$B$20000,F$6,Arquivo!$C$2:$C$20000,G$6,Arquivo!$D$2:$D$20000,$C70)),0) -> 964.16 | G70: 0.001003678015 | H70: =IFERROR((SUMIFS(Arquivo!$F$2:$F$20000,Arquivo!$B$2:$B$20000,H$6,Arquivo!$C$2:$C$20000,I$6,Arquivo!$D$2:$D$20000,$C70)),0) -> 1112.55 | I70: 0.001354241311 | J70: =IFERROR((SUMIFS(Arquivo!$F$2:$F$20000,Arquivo!$B$2:$B$20000,J$6,Arquivo!$C$2:$C$20000,K$6,Arquivo!$D$2:$D$20000,$C70)),0) -> 2144.06 | K70: 0.001620277324 | L70: =IFERROR((SUMIFS(Arquivo!$F$2:$F$20000,Arquivo!$B$2:$B$20000,L$6,Arquivo!$C$2:$C$20000,M$6,Arquivo!$D$2:$D$20000,$C70)),0) -> 1416.22 | M70: 0.001403695179 | N70: =IFERROR((SUMIFS(Arquivo!$F$2:$F$20000,Arquivo!$B$2:$B$20000,N$6,Arquivo!$C$2:$C$20000,O$6,Arquivo!$D$2:$D$20000,$C70)),0) -> 1067.58 | O70: 0.001326587443 | P70: =IFERROR((SUMIFS(Arquivo!$F$2:$F$20000,Arquivo!$B$2:$B$20000,P$6,Arquivo!$C$2:$C$20000,Q$6,Arquivo!$D$2:$D$20000,$C70)),0) -> 2335.87 | Q70: 0.002644872879 | R70: =IFERROR((SUMIFS(Arquivo!$F$2:$F$20000,Arquivo!$B$2:$B$20000,R$6,Arquivo!$C$2:$C$20000,S$6,Arquivo!$D$2:$D$20000,$C70)),0) -> 1202.31 | S70: 0.001976355762 | T70: =IFERROR((SUMIFS(Arquivo!$F$2:$F$20000,Arquivo!$B$2:$B$20000,T$6,Arquivo!$C$2:$C$20000,U$6,Arquivo!$D$2:$D$20000,$C70)),0) -> 0 | U70: 0 | V70: =IFERROR((SUMIFS(Arquivo!$F$2:$F$20000,Arquivo!$B$2:$B$20000,V$6,Arquivo!$C$2:$C$20000,W$6,Arquivo!$D$2:$D$20000,$C70)),0) -> 0 | W70: 0 | X70: =IFERROR((SUMIFS(Arquivo!$F$2:$F$20000,Arquivo!$B$2:$B$20000,X$6,Arquivo!$C$2:$C$20000,Y$6,Arquivo!$D$2:$D$20000,$C70)),0) -> 0 | Y70: 0 | Z70: =IFERROR((SUMIFS(Arquivo!$F$2:$F$20000,Arquivo!$B$2:$B$20000,Z$6,Arquivo!$C$2:$C$20000,AA$6,Arquivo!$D$2:$D$20000,$C70)),0) -> 0 | AA70: 0 | AB70: =IFERROR((SUMIFS(Arquivo!$F$2:$F$20000,Arquivo!$B$2:$B$20000,AB$6,Arquivo!$C$2:$C$20000,AC$6,Arquivo!$D$2:$D$20000,$C70)),0) -> 0 | AC70: 0 | AD70: =F70+H70+J70+L70+N70+P70+R70+T70+V70+X70+Z70+AB70 -> 10242.75 | AE70: 0.001597778474 | AH70: =IF($AD70=0,"",IF($X$3="CT","X",IF($X$3=$D70,"X",""))) -> X
C71: =IF('Plano de Contas'!B58="","",'Plano de Contas'!B58) -> 8.1.3.2 | D71: =IF($C71="","",VLOOKUP($C71,'Plano de Contas'!$B$2:$E$200,4,FALSE)) -> CF | E71: =IF($C71="","",VLOOKUP($C71,'Plano de Contas'!$B$2:$E$200,3,FALSE)) -> AGUA | F71: =IFERROR((SUMIFS(Arquivo!$F$2:$F$20000,Arquivo!$B$2:$B$20000,F$6,Arquivo!$C$2:$C$20000,G$6,Arquivo!$D$2:$D$20000,$C71)),0) -> 60.99 | G71: 6.348979645e-05 | H71: =IFERROR((SUMIFS(Arquivo!$F$2:$F$20000,Arquivo!$B$2:$B$20000,H$6,Arquivo!$C$2:$C$20000,I$6,Arquivo!$D$2:$D$20000,$C71)),0) -> 69.52 | I71: 8.462258413e-05 | J71: =IFERROR((SUMIFS(Arquivo!$F$2:$F$20000,Arquivo!$B$2:$B$20000,J$6,Arquivo!$C$2:$C$20000,K$6,Arquivo!$D$2:$D$20000,$C71)),0) -> 69.52 | K71: 5.253662658e-05 | L71: =IFERROR((SUMIFS(Arquivo!$F$2:$F$20000,Arquivo!$B$2:$B$20000,L$6,Arquivo!$C$2:$C$20000,M$6,Arquivo!$D$2:$D$20000,$C71)),0) -> 78.04 | M71: 7.734982683e-05 | N71: =IFERROR((SUMIFS(Arquivo!$F$2:$F$20000,Arquivo!$B$2:$B$20000,N$6,Arquivo!$C$2:$C$20000,O$6,Arquivo!$D$2:$D$20000,$C71)),0) -> 78.04 | O71: 9.697342029e-05 | P71: =IFERROR((SUMIFS(Arquivo!$F$2:$F$20000,Arquivo!$B$2:$B$20000,P$6,Arquivo!$C$2:$C$20000,Q$6,Arquivo!$D$2:$D$20000,$C71)),0) -> 52.46 | Q71: 5.939972311e-05 | R71: =IFERROR((SUMIFS(Arquivo!$F$2:$F$20000,Arquivo!$B$2:$B$20000,R$6,Arquivo!$C$2:$C$20000,S$6,Arquivo!$D$2:$D$20000,$C71)),0) -> 78.04 | S71: 0.0001282820601 | T71: =IFERROR((SUMIFS(Arquivo!$F$2:$F$20000,Arquivo!$B$2:$B$20000,T$6,Arquivo!$C$2:$C$20000,U$6,Arquivo!$D$2:$D$20000,$C71)),0) -> 0 | U71: 0 | V71: =IFERROR((SUMIFS(Arquivo!$F$2:$F$20000,Arquivo!$B$2:$B$20000,V$6,Arquivo!$C$2:$C$20000,W$6,Arquivo!$D$2:$D$20000,$C71)),0) -> 0 | W71: 0 | X71: =IFERROR((SUMIFS(Arquivo!$F$2:$F$20000,Arquivo!$B$2:$B$20000,X$6,Arquivo!$C$2:$C$20000,Y$6,Arquivo!$D$2:$D$20000,$C71)),0) -> 0 | Y71: 0 | Z71: =IFERROR((SUMIFS(Arquivo!$F$2:$F$20000,Arquivo!$B$2:$B$20000,Z$6,Arquivo!$C$2:$C$20000,AA$6,Arquivo!$D$2:$D$20000,$C71)),0) -> 0 | AA71: 0 | AB71: =IFERROR((SUMIFS(Arquivo!$F$2:$F$20000,Arquivo!$B$2:$B$20000,AB$6,Arquivo!$C$2:$C$20000,AC$6,Arquivo!$D$2:$D$20000,$C71)),0) -> 0 | AC71: 0 | AD71: 486.61 | AE71: 7.59068593e-05 | AH71: X
C72: =IF('Plano de Contas'!B59="","",'Plano de Contas'!B59) -> 8.1.3.3 | D72: =IF($C72="","",VLOOKUP($C72,'Plano de Contas'!$B$2:$E$200,4,FALSE)) -> CF | E72: =IF($C72="","",VLOOKUP($C72,'Plano de Contas'!$B$2:$E$200,3,FALSE)) -> TELEFONE FIXO | F72: =IFERROR((SUMIFS(Arquivo!$F$2:$F$20000,Arquivo!$B$2:$B$20000,F$6,Arquivo!$C$2:$C$20000,G$6,Arquivo!$D$2:$D$20000,$C72)),0) -> 190.12 | G72: 0.0001979124463 | H72: =IFERROR((SUMIFS(Arquivo!$F$2:$F$20000,Arquivo!$B$2:$B$20000,H$6,Arquivo!$C$2:$C$20000,I$6,Arquivo!$D$2:$D$20000,$C72)),0) -> 142.68 | I72: 0.000173675925 | J72: =IFERROR((SUMIFS(Arquivo!$F$2:$F$20000,Arquivo!$B$2:$B$20000,J$6,Arquivo!$C$2:$C$20000,K$6,Arquivo!$D$2:$D$20000,$C72)),0) -> 65.87 | K72: 4.977830254e-05 | L72: =IFERROR((SUMIFS(Arquivo!$F$2:$F$20000,Arquivo!$B$2:$B$20000,L$6,Arquivo!$C$2:$C$20000,M$6,Arquivo!$D$2:$D$20000,$C72)),0) -> 67.83 | M72: 6.723012243e-05 | N72: =IFERROR((SUMIFS(Arquivo!$F$2:$F$20000,Arquivo!$B$2:$B$20000,N$6,Arquivo!$C$2:$C$20000,O$6,Arquivo!$D$2:$D$20000,$C72)),0) -> 65.87 | O72: 8.18508354e-05 | P72: =IFERROR((SUMIFS(Arquivo!$F$2:$F$20000,Arquivo!$B$2:$B$20000,P$6,Arquivo!$C$2:$C$20000,Q$6,Arquivo!$D$2:$D$20000,$C72)),0) -> 67.83 | Q72: 7.68029588e-05 | R72: =IFERROR((SUMIFS(Arquivo!$F$2:$F$20000,Arquivo!$B$2:$B$20000,R$6,Arquivo!$C$2:$C$20000,S$6,Arquivo!$D$2:$D$20000,$C72)),0) -> 69.25 | S72: 0.0001138330684 | T72: =IFERROR((SUMIFS(Arquivo!$F$2:$F$20000,Arquivo!$B$2:$B$20000,T$6,Arquivo!$C$2:$C$20000,U$6,Arquivo!$D$2:$D$20000,$C72)),0) -> 0 | U72: 0 | V72: =IFERROR((SUMIFS(Arquivo!$F$2:$F$20000,Arquivo!$B$2:$B$20000,V$6,Arquivo!$C$2:$C$20000,W$6,Arquivo!$D$2:$D$20000,$C72)),0) -> 0 | W72: 0 | X72: =IFERROR((SUMIFS(Arquivo!$F$2:$F$20000,Arquivo!$B$2:$B$20000,X$6,Arquivo!$C$2:$C$20000,Y$6,Arquivo!$D$2:$D$20000,$C72)),0) -> 0 | Y72: 0 | Z72: =IFERROR((SUMIFS(Arquivo!$F$2:$F$20000,Arquivo!$B$2:$B$20000,Z$6,Arquivo!$C$2:$C$20000,AA$6,Arquivo!$D$2:$D$20000,$C72)),0) -> 0 | AA72: 0 | AB72: =IFERROR((SUMIFS(Arquivo!$F$2:$F$20000,Arquivo!$B$2:$B$20000,AB$6,Arquivo!$C$2:$C$20000,AC$6,Arquivo!$D$2:$D$20000,$C72)),0) -> 0 | AC72: 0 | AD72: 669.45 | AE72: 0.0001044282833 | AH72: X
C73: =IF('Plano de Contas'!B60="","",'Plano de Contas'!B60) -> 8.1.3.4 | D73: =IF($C73="","",VLOOKUP($C73,'Plano de Contas'!$B$2:$E$200,4,FALSE)) -> CF | E73: =IF($C73="","",VLOOKUP($C73,'Plano de Contas'!$B$2:$E$200,3,FALSE)) -> TELEFONE CELULAR | F73: =IFERROR((SUMIFS(Arquivo!$F$2:$F$20000,Arquivo!$B$2:$B$20000,F$6,Arquivo!$C$2:$C$20000,G$6,Arquivo!$D$2:$D$20000,$C73)),0) -> 638.45 | G73: 0.0006646181431 | H73: =IFERROR((SUMIFS(Arquivo!$F$2:$F$20000,Arquivo!$B$2:$B$20000,H$6,Arquivo!$C$2:$C$20000,I$6,Arquivo!$D$2:$D$20000,$C73)),0) -> 682.61 | I73: 0.0008309007789 | J73: =IFERROR((SUMIFS(Arquivo!$F$2:$F$20000,Arquivo!$B$2:$B$20000,J$6,Arquivo!$C$2:$C$20000,K$6,Arquivo!$D$2:$D$20000,$C73)),0) -> 641.49 | K73: 0.0004847773386 | L73: =IFERROR((SUMIFS(Arquivo!$F$2:$F$20000,Arquivo!$B$2:$B$20000,L$6,Arquivo!$C$2:$C$20000,M$6,Arquivo!$D$2:$D$20000,$C73)),0) -> 630.95 | M73: 0.00062536998 | N73: =IFERROR((SUMIFS(Arquivo!$F$2:$F$20000,Arquivo!$B$2:$B$20000,N$6,Arquivo!$C$2:$C$20000,O$6,Arquivo!$D$2:$D$20000,$C73)),0) -> 646.94 | O73: 0.0008038952399 | P73: =IFERROR((SUMIFS(Arquivo!$F$2:$F$20000,Arquivo!$B$2:$B$20000,P$6,Arquivo!$C$2:$C$20000,Q$6,Arquivo!$D$2:$D$20000,$C73)),0) -> 697.18 | Q73: 0.0007894071475 | R73: =IFERROR((SUMIFS(Arquivo!$F$2:$F$20000,Arquivo!$B$2:$B$20000,R$6,Arquivo!$C$2:$C$20000,S$6,Arquivo!$D$2:$D$20000,$C73)),0) -> 622.93 | S73: 0.0010239716 | T73: =IFERROR((SUMIFS(Arquivo!$F$2:$F$20000,Arquivo!$B$2:$B$20000,T$6,Arquivo!$C$2:$C$20000,U$6,Arquivo!$D$2:$D$20000,$C73)),0) -> 0 | U73: 0 | V73: =IFERROR((SUMIFS(Arquivo!$F$2:$F$20000,Arquivo!$B$2:$B$20000,V$6,Arquivo!$C$2:$C$20000,W$6,Arquivo!$D$2:$D$20000,$C73)),0) -> 0 | W73: 0 | X73: =IFERROR((SUMIFS(Arquivo!$F$2:$F$20000,Arquivo!$B$2:$B$20000,X$6,Arquivo!$C$2:$C$20000,Y$6,Arquivo!$D$2:$D$20000,$C73)),0) -> 0 | Y73: 0 | Z73: =IFERROR((SUMIFS(Arquivo!$F$2:$F$20000,Arquivo!$B$2:$B$20000,Z$6,Arquivo!$C$2:$C$20000,AA$6,Arquivo!$D$2:$D$20000,$C73)),0) -> 0 | AA73: 0 | AB73: =IFERROR((SUMIFS(Arquivo!$F$2:$F$20000,Arquivo!$B$2:$B$20000,AB$6,Arquivo!$C$2:$C$20000,AC$6,Arquivo!$D$2:$D$20000,$C73)),0) -> 0 | AC73: 0 | AD73: 4560.55 | AE73: 0.0007114054935 | AH73: X
C74: =IF('Plano de Contas'!B61="","",'Plano de Contas'!B61) -> 8.1.3.5 | D74: =IF($C74="","",VLOOKUP($C74,'Plano de Contas'!$B$2:$E$200,4,FALSE)) -> CF | E74: =IF($C74="","",VLOOKUP($C74,'Plano de Contas'!$B$2:$E$200,3,FALSE)) -> HONORARIOS CONTABEIS | F74: =IFERROR((SUMIFS(Arquivo!$F$2:$F$20000,Arquivo!$B$2:$B$20000,F$6,Arquivo!$C$2:$C$20000,G$6,Arquivo!$D$2:$D$20000,$C74)),0) -> 2910 | G74: 0.003029272138 | H74: =IFERROR((SUMIFS(Arquivo!$F$2:$F$20000,Arquivo!$B$2:$B$20000,H$6,Arquivo!$C$2:$C$20000,I$6,Arquivo!$D$2:$D$20000,$C74)),0) -> 2915.6 | I74: 0.003548987432 | J74: =IFERROR((SUMIFS(Arquivo!$F$2:$F$20000,Arquivo!$B$2:$B$20000,J$6,Arquivo!$C$2:$C$20000,K$6,Arquivo!$D$2:$D$20000,$C74)),0) -> 2980 | K74: 0.002252001542 | L74: =IFERROR((SUMIFS(Arquivo!$F$2:$F$20000,Arquivo!$B$2:$B$20000,L$6,Arquivo!$C$2:$C$20000,M$6,Arquivo!$D$2:$D$20000,$C74)),0) -> 2923 | M74: 0.00289714946 | N74: =IFERROR((SUMIFS(Arquivo!$F$2:$F$20000,Arquivo!$B$2:$B$20000,N$6,Arquivo!$C$2:$C$20000,O$6,Arquivo!$D$2:$D$20000,$C74)),0) -> 2980 | O74: 0.003702982989 | P74: =IFERROR((SUMIFS(Arquivo!$F$2:$F$20000,Arquivo!$B$2:$B$20000,P$6,Arquivo!$C$2:$C$20000,Q$6,Arquivo!$D$2:$D$20000,$C74)),0) -> 2910 | Q74: 0.003294952235 | R74: =IFERROR((SUMIFS(Arquivo!$F$2:$F$20000,Arquivo!$B$2:$B$20000,R$6,Arquivo!$C$2:$C$20000,S$6,Arquivo!$D$2:$D$20000,$C74)),0) -> 2915.6 | S74: 0.004792659846 | T74: =IFERROR((SUMIFS(Arquivo!$F$2:$F$20000,Arquivo!$B$2:$B$20000,T$6,Arquivo!$C$2:$C$20000,U$6,Arquivo!$D$2:$D$20000,$C74)),0) -> 0 | U74: 0 | V74: =IFERROR((SUMIFS(Arquivo!$F$2:$F$20000,Arquivo!$B$2:$B$20000,V$6,Arquivo!$C$2:$C$20000,W$6,Arquivo!$D$2:$D$20000,$C74)),0) -> 0 | W74: 0 | X74: =IFERROR((SUMIFS(Arquivo!$F$2:$F$20000,Arquivo!$B$2:$B$20000,X$6,Arquivo!$C$2:$C$20000,Y$6,Arquivo!$D$2:$D$20000,$C74)),0) -> 0 | Y74: 0 | Z74: =IFERROR((SUMIFS(Arquivo!$F$2:$F$20000,Arquivo!$B$2:$B$20000,Z$6,Arquivo!$C$2:$C$20000,AA$6,Arquivo!$D$2:$D$20000,$C74)),0) -> 0 | AA74: 0 | AB74: =IFERROR((SUMIFS(Arquivo!$F$2:$F$20000,Arquivo!$B$2:$B$20000,AB$6,Arquivo!$C$2:$C$20000,AC$6,Arquivo!$D$2:$D$20000,$C74)),0) -> 0 | AC74: 0 | AD74: 20534.2 | AE74: 0.003203153717 | AH74: X
C75: =IF('Plano de Contas'!B62="","",'Plano de Contas'!B62) -> 8.1.3.6 | D75: =IF($C75="","",VLOOKUP($C75,'Plano de Contas'!$B$2:$E$200,4,FALSE)) -> CV | E75: =IF($C75="","",VLOOKUP($C75,'Plano de Contas'!$B$2:$E$200,3,FALSE)) -> MATERIAL DE ESCRITORIO | F75: =IFERROR((SUMIFS(Arquivo!$F$2:$F$20000,Arquivo!$B$2:$B$20000,F$6,Arquivo!$C$2:$C$20000,G$6,Arquivo!$D$2:$D$20000,$C75)),0) -> 45 | G75: 4.68444145e-05 | H75: =IFERROR((SUMIFS(Arquivo!$F$2:$F$20000,Arquivo!$B$2:$B$20000,H$6,Arquivo!$C$2:$C$20000,I$6,Arquivo!$D$2:$D$20000,$C75)),0) -> 297.5 | I75: 0.0003621291539 | J75: =IFERROR((SUMIFS(Arquivo!$F$2:$F$20000,Arquivo!$B$2:$B$20000,J$6,Arquivo!$C$2:$C$20000,K$6,Arquivo!$D$2:$D$20000,$C75)),0) -> 175.85 | K75: 0.0001328907621 | L75: =IFERROR((SUMIFS(Arquivo!$F$2:$F$20000,Arquivo!$B$2:$B$20000,L$6,Arquivo!$C$2:$C$20000,M$6,Arquivo!$D$2:$D$20000,$C75)),0) -> 45 | M75: 4.460202726e-05 | N75: =IFERROR((SUMIFS(Arquivo!$F$2:$F$20000,Arquivo!$B$2:$B$20000,N$6,Arquivo!$C$2:$C$20000,O$6,Arquivo!$D$2:$D$20000,$C75)),0) -> 45 | O75: 5.591752836e-05 | P75: =IFERROR((SUMIFS(Arquivo!$F$2:$F$20000,Arquivo!$B$2:$B$20000,P$6,Arquivo!$C$2:$C$20000,Q$6,Arquivo!$D$2:$D$20000,$C75)),0) -> 333 | Q75: 0.0003770512351 | R75: =IFERROR((SUMIFS(Arquivo!$F$2:$F$20000,Arquivo!$B$2:$B$20000,R$6,Arquivo!$C$2:$C$20000,S$6,Arquivo!$D$2:$D$20000,$C75)),0) -> 115.55 | S75: 0.0001899409539 | T75: =IFERROR((SUMIFS(Arquivo!$F$2:$F$20000,Arquivo!$B$2:$B$20000,T$6,Arquivo!$C$2:$C$20000,U$6,Arquivo!$D$2:$D$20000,$C75)),0) -> 0 | U75: 0 | V75: =IFERROR((SUMIFS(Arquivo!$F$2:$F$20000,Arquivo!$B$2:$B$20000,V$6,Arquivo!$C$2:$C$20000,W$6,Arquivo!$D$2:$D$20000,$C75)),0) -> 0 | W75: 0 | X75: =IFERROR((SUMIFS(Arquivo!$F$2:$F$20000,Arquivo!$B$2:$B$20000,X$6,Arquivo!$C$2:$C$20000,Y$6,Arquivo!$D$2:$D$20000,$C75)),0) -> 0 | Y75: 0 | Z75: =IFERROR((SUMIFS(Arquivo!$F$2:$F$20000,Arquivo!$B$2:$B$20000,Z$6,Arquivo!$C$2:$C$20000,AA$6,Arquivo!$D$2:$D$20000,$C75)),0) -> 0 | AA75: 0 | AB75: =IFERROR((SUMIFS(Arquivo!$F$2:$F$20000,Arquivo!$B$2:$B$20000,AB$6,Arquivo!$C$2:$C$20000,AC$6,Arquivo!$D$2:$D$20000,$C75)),0) -> 0 | AC75: 0 | AD75: 1056.9 | AE75: 0.000164867059 | AH75: X
C76: =IF('Plano de Contas'!B63="","",'Plano de Contas'!B63) -> 8.1.3.7 | D76: =IF($C76="","",VLOOKUP($C76,'Plano de Contas'!$B$2:$E$200,4,FALSE)) -> CF | E76: =IF($C76="","",VLOOKUP($C76,'Plano de Contas'!$B$2:$E$200,3,FALSE)) -> MATERIAL DE LIMPEZA E CANTINA | F76: =IFERROR((SUMIFS(Arquivo!$F$2:$F$20000,Arquivo!$B$2:$B$20000,F$6,Arquivo!$C$2:$C$20000,G$6,Arquivo!$D$2:$D$20000,$C76)),0) -> 416.92 | G76: 0.0004340082954 | H76: =IFERROR((SUMIFS(Arquivo!$F$2:$F$20000,Arquivo!$B$2:$B$20000,H$6,Arquivo!$C$2:$C$20000,I$6,Arquivo!$D$2:$D$20000,$C76)),0) -> 429.04 | I76: 0.0005222450157 | J76: =IFERROR((SUMIFS(Arquivo!$F$2:$F$20000,Arquivo!$B$2:$B$20000,J$6,Arquivo!$C$2:$C$20000,K$6,Arquivo!$D$2:$D$20000,$C76)),0) -> 0 | K76: 0 | L76: =IFERROR((SUMIFS(Arquivo!$F$2:$F$20000,Arquivo!$B$2:$B$20000,L$6,Arquivo!$C$2:$C$20000,M$6,Arquivo!$D$2:$D$20000,$C76)),0) -> 622.61 | M76: 0.0006171037376 | N76: =IFERROR((SUMIFS(Arquivo!$F$2:$F$20000,Arquivo!$B$2:$B$20000,N$6,Arquivo!$C$2:$C$20000,O$6,Arquivo!$D$2:$D$20000,$C76)),0) -> 302.37 | O76: 0.0003757285122 | P76: =IFERROR((SUMIFS(Arquivo!$F$2:$F$20000,Arquivo!$B$2:$B$20000,P$6,Arquivo!$C$2:$C$20000,Q$6,Arquivo!$D$2:$D$20000,$C76)),0) -> 0 | Q76: 0 | R76: =IFERROR((SUMIFS(Arquivo!$F$2:$F$20000,Arquivo!$B$2:$B$20000,R$6,Arquivo!$C$2:$C$20000,S$6,Arquivo!$D$2:$D$20000,$C76)),0) -> 710.3 | S76: 0.001167590304 | T76: =IFERROR((SUMIFS(Arquivo!$F$2:$F$20000,Arquivo!$B$2:$B$20000,T$6,Arquivo!$C$2:$C$20000,U$6,Arquivo!$D$2:$D$20000,$C76)),0) -> 0 | U76: 0 | V76: =IFERROR((SUMIFS(Arquivo!$F$2:$F$20000,Arquivo!$B$2:$B$20000,V$6,Arquivo!$C$2:$C$20000,W$6,Arquivo!$D$2:$D$20000,$C76)),0) -> 0 | W76: 0 | X76: =IFERROR((SUMIFS(Arquivo!$F$2:$F$20000,Arquivo!$B$2:$B$20000,X$6,Arquivo!$C$2:$C$20000,Y$6,Arquivo!$D$2:$D$20000,$C76)),0) -> 0 | Y76: 0 | Z76: =IFERROR((SUMIFS(Arquivo!$F$2:$F$20000,Arquivo!$B$2:$B$20000,Z$6,Arquivo!$C$2:$C$20000,AA$6,Arquivo!$D$2:$D$20000,$C76)),0) -> 0 | AA76: 0 | AB76: =IFERROR((SUMIFS(Arquivo!$F$2:$F$20000,Arquivo!$B$2:$B$20000,AB$6,Arquivo!$C$2:$C$20000,AC$6,Arquivo!$D$2:$D$20000,$C76)),0) -> 0 | AC76: 0 | AD76: 2481.24 | AE76: 0.0003870515106 | AH76: X
C77: =IF('Plano de Contas'!B64="","",'Plano de Contas'!B64) -> 8.1.3.8 | D77: =IF($C77="","",VLOOKUP($C77,'Plano de Contas'!$B$2:$E$200,4,FALSE)) -> CF | E77: =IF($C77="","",VLOOKUP($C77,'Plano de Contas'!$B$2:$E$200,3,FALSE)) -> ALUGUEIS E ARRENDAMENTOS | F77: =IFERROR((SUMIFS(Arquivo!$F$2:$F$20000,Arquivo!$B$2:$B$20000,F$6,Arquivo!$C$2:$C$20000,G$6,Arquivo!$D$2:$D$20000,$C77)),0) -> 0 | G77: 0 | H77: =IFERROR((SUMIFS(Arquivo!$F$2:$F$20000,Arquivo!$B$2:$B$20000,H$6,Arquivo!$C$2:$C$20000,I$6,Arquivo!$D$2:$D$20000,$C77)),0) -> 0 | I77: 0 | J77: =IFERROR((SUMIFS(Arquivo!$F$2:$F$20000,Arquivo!$B$2:$B$20000,J$6,Arquivo!$C$2:$C$20000,K$6,Arquivo!$D$2:$D$20000,$C77)),0) -> 0 | K77: 0 | L77: =IFERROR((SUMIFS(Arquivo!$F$2:$F$20000,Arquivo!$B$2:$B$20000,L$6,Arquivo!$C$2:$C$20000,M$6,Arquivo!$D$2:$D$20000,$C77)),0) -> 0 | M77: 0 | N77: =IFERROR((SUMIFS(Arquivo!$F$2:$F$20000,Arquivo!$B$2:$B$20000,N$6,Arquivo!$C$2:$C$20000,O$6,Arquivo!$D$2:$D$20000,$C77)),0) -> 0 | O77: 0 | P77: =IFERROR((SUMIFS(Arquivo!$F$2:$F$20000,Arquivo!$B$2:$B$20000,P$6,Arquivo!$C$2:$C$20000,Q$6,Arquivo!$D$2:$D$20000,$C77)),0) -> 0 | Q77: 0 | R77: =IFERROR((SUMIFS(Arquivo!$F$2:$F$20000,Arquivo!$B$2:$B$20000,R$6,Arquivo!$C$2:$C$20000,S$6,Arquivo!$D$2:$D$20000,$C77)),0) -> 0 | S77: 0 | T77: =IFERROR((SUMIFS(Arquivo!$F$2:$F$20000,Arquivo!$B$2:$B$20000,T$6,Arquivo!$C$2:$C$20000,U$6,Arquivo!$D$2:$D$20000,$C77)),0) -> 0 | U77: 0 | V77: =IFERROR((SUMIFS(Arquivo!$F$2:$F$20000,Arquivo!$B$2:$B$20000,V$6,Arquivo!$C$2:$C$20000,W$6,Arquivo!$D$2:$D$20000,$C77)),0) -> 0 | W77: 0 | X77: =IFERROR((SUMIFS(Arquivo!$F$2:$F$20000,Arquivo!$B$2:$B$20000,X$6,Arquivo!$C$2:$C$20000,Y$6,Arquivo!$D$2:$D$20000,$C77)),0) -> 0 | Y77: 0 | Z77: =IFERROR((SUMIFS(Arquivo!$F$2:$F$20000,Arquivo!$B$2:$B$20000,Z$6,Arquivo!$C$2:$C$20000,AA$6,Arquivo!$D$2:$D$20000,$C77)),0) -> 0 | AA77: 0 | AB77: =IFERROR((SUMIFS(Arquivo!$F$2:$F$20000,Arquivo!$B$2:$B$20000,AB$6,Arquivo!$C$2:$C$20000,AC$6,Arquivo!$D$2:$D$20000,$C77)),0) -> 0 | AC77: 0 | AD77: 0 | AE77: 0
C78: =IF('Plano de Contas'!B65="","",'Plano de Contas'!B65) -> 8.1.3.9 | D78: =IF($C78="","",VLOOKUP($C78,'Plano de Contas'!$B$2:$E$200,4,FALSE)) -> CV | E78: =IF($C78="","",VLOOKUP($C78,'Plano de Contas'!$B$2:$E$200,3,FALSE)) -> CORREIO, ENCOMENDAS E CARTORIOS | F78: =IFERROR((SUMIFS(Arquivo!$F$2:$F$20000,Arquivo!$B$2:$B$20000,F$6,Arquivo!$C$2:$C$20000,G$6,Arquivo!$D$2:$D$20000,$C78)),0) -> 76.7 | G78: 7.984370205e-05 | H78: =IFERROR((SUMIFS(Arquivo!$F$2:$F$20000,Arquivo!$B$2:$B$20000,H$6,Arquivo!$C$2:$C$20000,I$6,Arquivo!$D$2:$D$20000,$C78)),0) -> 31.74 | I78: 3.863522469e-05 | J78: =IFERROR((SUMIFS(Arquivo!$F$2:$F$20000,Arquivo!$B$2:$B$20000,J$6,Arquivo!$C$2:$C$20000,K$6,Arquivo!$D$2:$D$20000,$C78)),0) -> 0 | K78: 0 | L78: =IFERROR((SUMIFS(Arquivo!$F$2:$F$20000,Arquivo!$B$2:$B$20000,L$6,Arquivo!$C$2:$C$20000,M$6,Arquivo!$D$2:$D$20000,$C78)),0) -> 0 | M78: 0 | N78: =IFERROR((SUMIFS(Arquivo!$F$2:$F$20000,Arquivo!$B$2:$B$20000,N$6,Arquivo!$C$2:$C$20000,O$6,Arquivo!$D$2:$D$20000,$C78)),0) -> 12.53 | O78: 1.556992512e-05 | P78: =IFERROR((SUMIFS(Arquivo!$F$2:$F$20000,Arquivo!$B$2:$B$20000,P$6,Arquivo!$C$2:$C$20000,Q$6,Arquivo!$D$2:$D$20000,$C78)),0) -> 0 | Q78: 0 | R78: =IFERROR((SUMIFS(Arquivo!$F$2:$F$20000,Arquivo!$B$2:$B$20000,R$6,Arquivo!$C$2:$C$20000,S$6,Arquivo!$D$2:$D$20000,$C78)),0) -> 0 | S78: 0 | T78: =IFERROR((SUMIFS(Arquivo!$F$2:$F$20000,Arquivo!$B$2:$B$20000,T$6,Arquivo!$C$2:$C$20000,U$6,Arquivo!$D$2:$D$20000,$C78)),0) -> 0 | U78: 0 | V78: =IFERROR((SUMIFS(Arquivo!$F$2:$F$20000,Arquivo!$B$2:$B$20000,V$6,Arquivo!$C$2:$C$20000,W$6,Arquivo!$D$2:$D$20000,$C78)),0) -> 0 | W78: 0 | X78: =IFERROR((SUMIFS(Arquivo!$F$2:$F$20000,Arquivo!$B$2:$B$20000,X$6,Arquivo!$C$2:$C$20000,Y$6,Arquivo!$D$2:$D$20000,$C78)),0) -> 0 | Y78: 0 | Z78: =IFERROR((SUMIFS(Arquivo!$F$2:$F$20000,Arquivo!$B$2:$B$20000,Z$6,Arquivo!$C$2:$C$20000,AA$6,Arquivo!$D$2:$D$20000,$C78)),0) -> 0 | AA78: 0 | AB78: =IFERROR((SUMIFS(Arquivo!$F$2:$F$20000,Arquivo!$B$2:$B$20000,AB$6,Arquivo!$C$2:$C$20000,AC$6,Arquivo!$D$2:$D$20000,$C78)),0) -> 0 | AC78: 0 | AD78: 120.97 | AE78: 1.887025086e-05 | AH78: X
C79: =IF('Plano de Contas'!B66="","",'Plano de Contas'!B66) -> 8.1.3.10 | D79: =IF($C79="","",VLOOKUP($C79,'Plano de Contas'!$B$2:$E$200,4,FALSE)) -> CF | E79: =IF($C79="","",VLOOKUP($C79,'Plano de Contas'!$B$2:$E$200,3,FALSE)) -> SEGUROS | F79: =IFERROR((SUMIFS(Arquivo!$F$2:$F$20000,Arquivo!$B$2:$B$20000,F$6,Arquivo!$C$2:$C$20000,G$6,Arquivo!$D$2:$D$20000,$C79)),0) -> 1073.8 | G79: 0.001117811829 | H79: =IFERROR((SUMIFS(Arquivo!$F$2:$F$20000,Arquivo!$B$2:$B$20000,H$6,Arquivo!$C$2:$C$20000,I$6,Arquivo!$D$2:$D$20000,$C79)),0) -> 1123.5 | I79: 0.001367570099 | J79: =IFERROR((SUMIFS(Arquivo!$F$2:$F$20000,Arquivo!$B$2:$B$20000,J$6,Arquivo!$C$2:$C$20000,K$6,Arquivo!$D$2:$D$20000,$C79)),0) -> 1073.8 | K79: 0.0008114762603 | L79: =IFERROR((SUMIFS(Arquivo!$F$2:$F$20000,Arquivo!$B$2:$B$20000,L$6,Arquivo!$C$2:$C$20000,M$6,Arquivo!$D$2:$D$20000,$C79)),0) -> 1585.45 | M79: 0.001571428536 | N79: =IFERROR((SUMIFS(Arquivo!$F$2:$F$20000,Arquivo!$B$2:$B$20000,N$6,Arquivo!$C$2:$C$20000,O$6,Arquivo!$D$2:$D$20000,$C79)),0) -> 1547.31 | O79: 0.001922705573 | P79: =IFERROR((SUMIFS(Arquivo!$F$2:$F$20000,Arquivo!$B$2:$B$20000,P$6,Arquivo!$C$2:$C$20000,Q$6,Arquivo!$D$2:$D$20000,$C79)),0) -> 1073.8 | Q79: 0.001215848698 | R79: =IFERROR((SUMIFS(Arquivo!$F$2:$F$20000,Arquivo!$B$2:$B$20000,R$6,Arquivo!$C$2:$C$20000,S$6,Arquivo!$D$2:$D$20000,$C79)),0) -> 3023.33 | S79: 0.004969746294 | T79: =IFERROR((SUMIFS(Arquivo!$F$2:$F$20000,Arquivo!$B$2:$B$20000,T$6,Arquivo!$C$2:$C$20000,U$6,Arquivo!$D$2:$D$20000,$C79)),0) -> 0 | U79: 0 | V79: =IFERROR((SUMIFS(Arquivo!$F$2:$F$20000,Arquivo!$B$2:$B$20000,V$6,Arquivo!$C$2:$C$20000,W$6,Arquivo!$D$2:$D$20000,$C79)),0) -> 0 | W79: 0 | X79: =IFERROR((SUMIFS(Arquivo!$F$2:$F$20000,Arquivo!$B$2:$B$20000,X$6,Arquivo!$C$2:$C$20000,Y$6,Arquivo!$D$2:$D$20000,$C79)),0) -> 0 | Y79: 0 | Z79: =IFERROR((SUMIFS(Arquivo!$F$2:$F$20000,Arquivo!$B$2:$B$20000,Z$6,Arquivo!$C$2:$C$20000,AA$6,Arquivo!$D$2:$D$20000,$C79)),0) -> 0 | AA79: 0 | AB79: =IFERROR((SUMIFS(Arquivo!$F$2:$F$20000,Arquivo!$B$2:$B$20000,AB$6,Arquivo!$C$2:$C$20000,AC$6,Arquivo!$D$2:$D$20000,$C79)),0) -> 0 | AC79: 0 | AD79: 10500.99 | AE79: 0.001638061631 | AH79: X
C80: =IF('Plano de Contas'!B67="","",'Plano de Contas'!B67) -> 8.1.3.11 | D80: =IF($C80="","",VLOOKUP($C80,'Plano de Contas'!$B$2:$E$200,4,FALSE)) -> CF | E80: =IF($C80="","",VLOOKUP($C80,'Plano de Contas'!$B$2:$E$200,3,FALSE)) -> COMODATO-ABANORTE | F80: =IFERROR((SUMIFS(Arquivo!$F$2:$F$20000,Arquivo!$B$2:$B$20000,F$6,Arquivo!$C$2:$C$20000,G$6,Arquivo!$D$2:$D$20000,$C80)),0) -> 0 | G80: 0 | H80: =IFERROR((SUMIFS(Arquivo!$F$2:$F$20000,Arquivo!$B$2:$B$20000,H$6,Arquivo!$C$2:$C$20000,I$6,Arquivo!$D$2:$D$20000,$C80)),0) -> 0 | I80: 0 | J80: =IFERROR((SUMIFS(Arquivo!$F$2:$F$20000,Arquivo!$B$2:$B$20000,J$6,Arquivo!$C$2:$C$20000,K$6,Arquivo!$D$2:$D$20000,$C80)),0) -> 0 | K80: 0 | L80: =IFERROR((SUMIFS(Arquivo!$F$2:$F$20000,Arquivo!$B$2:$B$20000,L$6,Arquivo!$C$2:$C$20000,M$6,Arquivo!$D$2:$D$20000,$C80)),0) -> 0 | M80: 0 | N80: =IFERROR((SUMIFS(Arquivo!$F$2:$F$20000,Arquivo!$B$2:$B$20000,N$6,Arquivo!$C$2:$C$20000,O$6,Arquivo!$D$2:$D$20000,$C80)),0) -> 0 | O80: 0 | P80: =IFERROR((SUMIFS(Arquivo!$F$2:$F$20000,Arquivo!$B$2:$B$20000,P$6,Arquivo!$C$2:$C$20000,Q$6,Arquivo!$D$2:$D$20000,$C80)),0) -> 0 | Q80: 0 | R80: =IFERROR((SUMIFS(Arquivo!$F$2:$F$20000,Arquivo!$B$2:$B$20000,R$6,Arquivo!$C$2:$C$20000,S$6,Arquivo!$D$2:$D$20000,$C80)),0) -> 0 | S80: 0 | T80: =IFERROR((SUMIFS(Arquivo!$F$2:$F$20000,Arquivo!$B$2:$B$20000,T$6,Arquivo!$C$2:$C$20000,U$6,Arquivo!$D$2:$D$20000,$C80)),0) -> 0 | U80: 0 | V80: =IFERROR((SUMIFS(Arquivo!$F$2:$F$20000,Arquivo!$B$2:$B$20000,V$6,Arquivo!$C$2:$C$20000,W$6,Arquivo!$D$2:$D$20000,$C80)),0) -> 0 | W80: 0 | X80: =IFERROR((SUMIFS(Arquivo!$F$2:$F$20000,Arquivo!$B$2:$B$20000,X$6,Arquivo!$C$2:$C$20000,Y$6,Arquivo!$D$2:$D$20000,$C80)),0) -> 0 | Y80: 0 | Z80: =IFERROR((SUMIFS(Arquivo!$F$2:$F$20000,Arquivo!$B$2:$B$20000,Z$6,Arquivo!$C$2:$C$20000,AA$6,Arquivo!$D$2:$D$20000,$C80)),0) -> 0 | AA80: 0 | AB80: =IFERROR((SUMIFS(Arquivo!$F$2:$F$20000,Arquivo!$B$2:$B$20000,AB$6,Arquivo!$C$2:$C$20000,AC$6,Arquivo!$D$2:$D$20000,$C80)),0) -> 0 | AC80: 0 | AD80: 0 | AE80: 0
C81: =IF('Plano de Contas'!B68="","",'Plano de Contas'!B68) -> 8.1.3.12 | D81: =IF($C81="","",VLOOKUP($C81,'Plano de Contas'!$B$2:$E$200,4,FALSE)) -> CF | E81: =IF($C81="","",VLOOKUP($C81,'Plano de Contas'!$B$2:$E$200,3,FALSE)) -> MENSALIDADE-ABANORTE | F81: =IFERROR((SUMIFS(Arquivo!$F$2:$F$20000,Arquivo!$B$2:$B$20000,F$6,Arquivo!$C$2:$C$20000,G$6,Arquivo!$D$2:$D$20000,$C81)),0) -> 1074 | G81: 0.001118020026 | H81: =IFERROR((SUMIFS(Arquivo!$F$2:$F$20000,Arquivo!$B$2:$B$20000,H$6,Arquivo!$C$2:$C$20000,I$6,Arquivo!$D$2:$D$20000,$C81)),0) -> 1074 | I81: 0.001307316677 | J81: =IFERROR((SUMIFS(Arquivo!$F$2:$F$20000,Arquivo!$B$2:$B$20000,J$6,Arquivo!$C$2:$C$20000,K$6,Arquivo!$D$2:$D$20000,$C81)),0) -> 1074 | K81: 0.0008116274014 | L81: =IFERROR((SUMIFS(Arquivo!$F$2:$F$20000,Arquivo!$B$2:$B$20000,L$6,Arquivo!$C$2:$C$20000,M$6,Arquivo!$D$2:$D$20000,$C81)),0) -> 1074 | M81: 0.001064501717 | N81: =IFERROR((SUMIFS(Arquivo!$F$2:$F$20000,Arquivo!$B$2:$B$20000,N$6,Arquivo!$C$2:$C$20000,O$6,Arquivo!$D$2:$D$20000,$C81)),0) -> 1074 | O81: 0.00133456501 | P81: =IFERROR((SUMIFS(Arquivo!$F$2:$F$20000,Arquivo!$B$2:$B$20000,P$6,Arquivo!$C$2:$C$20000,Q$6,Arquivo!$D$2:$D$20000,$C81)),0) -> 1074 | Q81: 0.001216075155 | R81: =IFERROR((SUMIFS(Arquivo!$F$2:$F$20000,Arquivo!$B$2:$B$20000,R$6,Arquivo!$C$2:$C$20000,S$6,Arquivo!$D$2:$D$20000,$C81)),0) -> 1074 | S81: 0.001765439935 | T81: =IFERROR((SUMIFS(Arquivo!$F$2:$F$20000,Arquivo!$B$2:$B$20000,T$6,Arquivo!$C$2:$C$20000,U$6,Arquivo!$D$2:$D$20000,$C81)),0) -> 0 | U81: 0 | V81: =IFERROR((SUMIFS(Arquivo!$F$2:$F$20000,Arquivo!$B$2:$B$20000,V$6,Arquivo!$C$2:$C$20000,W$6,Arquivo!$D$2:$D$20000,$C81)),0) -> 0 | W81: 0 | X81: =IFERROR((SUMIFS(Arquivo!$F$2:$F$20000,Arquivo!$B$2:$B$20000,X$6,Arquivo!$C$2:$C$20000,Y$6,Arquivo!$D$2:$D$20000,$C81)),0) -> 0 | Y81: 0 | Z81: =IFERROR((SUMIFS(Arquivo!$F$2:$F$20000,Arquivo!$B$2:$B$20000,Z$6,Arquivo!$C$2:$C$20000,AA$6,Arquivo!$D$2:$D$20000,$C81)),0) -> 0 | AA81: 0 | AB81: =IFERROR((SUMIFS(Arquivo!$F$2:$F$20000,Arquivo!$B$2:$B$20000,AB$6,Arquivo!$C$2:$C$20000,AC$6,Arquivo!$D$2:$D$20000,$C81)),0) -> 0 | AC81: 0 | AD81: 7518 | AE81: 0.001172741555 | AH81: X
C82: =IF('Plano de Contas'!B69="","",'Plano de Contas'!B69) -> 8.1.3.13 | D82: =IF($C82="","",VLOOKUP($C82,'Plano de Contas'!$B$2:$E$200,4,FALSE)) -> CF | E82: =IF($C82="","",VLOOKUP($C82,'Plano de Contas'!$B$2:$E$200,3,FALSE)) -> MENSALIDADE-ACIJAN | F82: =IFERROR((SUMIFS(Arquivo!$F$2:$F$20000,Arquivo!$B$2:$B$20000,F$6,Arquivo!$C$2:$C$20000,G$6,Arquivo!$D$2:$D$20000,$C82)),0) -> 88.7 | G82: 9.233554592e-05 | H82: =IFERROR((SUMIFS(Arquivo!$F$2:$F$20000,Arquivo!$B$2:$B$20000,H$6,Arquivo!$C$2:$C$20000,I$6,Arquivo!$D$2:$D$20000,$C82)),0) -> 80.1 | I82: 9.750099236e-05 | J82: =IFERROR((SUMIFS(Arquivo!$F$2:$F$20000,Arquivo!$B$2:$B$20000,J$6,Arquivo!$C$2:$C$20000,K$6,Arquivo!$D$2:$D$20000,$C82)),0) -> 78.8 | K82: 5.954957097e-05 | L82: =IFERROR((SUMIFS(Arquivo!$F$2:$F$20000,Arquivo!$B$2:$B$20000,L$6,Arquivo!$C$2:$C$20000,M$6,Arquivo!$D$2:$D$20000,$C82)),0) -> 78.8 | M82: 7.810310552e-05 | N82: =IFERROR((SUMIFS(Arquivo!$F$2:$F$20000,Arquivo!$B$2:$B$20000,N$6,Arquivo!$C$2:$C$20000,O$6,Arquivo!$D$2:$D$20000,$C82)),0) -> 78.8 | O82: 9.791780521e-05 | P82: =IFERROR((SUMIFS(Arquivo!$F$2:$F$20000,Arquivo!$B$2:$B$20000,P$6,Arquivo!$C$2:$C$20000,Q$6,Arquivo!$D$2:$D$20000,$C82)),0) -> 78.8 | Q82: 8.922413613e-05 | R82: =IFERROR((SUMIFS(Arquivo!$F$2:$F$20000,Arquivo!$B$2:$B$20000,R$6,Arquivo!$C$2:$C$20000,S$6,Arquivo!$D$2:$D$20000,$C82)),0) -> 80.1 | S82: 0.0001316682857 | T82: =IFERROR((SUMIFS(Arquivo!$F$2:$F$20000,Arquivo!$B$2:$B$20000,T$6,Arquivo!$C$2:$C$20000,U$6,Arquivo!$D$2:$D$20000,$C82)),0) -> 0 | U82: 0 | V82: =IFERROR((SUMIFS(Arquivo!$F$2:$F$20000,Arquivo!$B$2:$B$20000,V$6,Arquivo!$C$2:$C$20000,W$6,Arquivo!$D$2:$D$20000,$C82)),0) -> 0 | W82: 0 | X82: =IFERROR((SUMIFS(Arquivo!$F$2:$F$20000,Arquivo!$B$2:$B$20000,X$6,Arquivo!$C$2:$C$20000,Y$6,Arquivo!$D$2:$D$20000,$C82)),0) -> 0 | Y82: 0 | Z82: =IFERROR((SUMIFS(Arquivo!$F$2:$F$20000,Arquivo!$B$2:$B$20000,Z$6,Arquivo!$C$2:$C$20000,AA$6,Arquivo!$D$2:$D$20000,$C82)),0) -> 0 | AA82: 0 | AB82: =IFERROR((SUMIFS(Arquivo!$F$2:$F$20000,Arquivo!$B$2:$B$20000,AB$6,Arquivo!$C$2:$C$20000,AC$6,Arquivo!$D$2:$D$20000,$C82)),0) -> 0 | AC82: 0 | AD82: 564.1 | AE82: 8.799461444e-05 | AH82: X
C83: =IF('Plano de Contas'!B70="","",'Plano de Contas'!B70) -> 8.1.3.14 | D83: =IF($C83="","",VLOOKUP($C83,'Plano de Contas'!$B$2:$E$200,4,FALSE)) -> CF | E83: =IF($C83="","",VLOOKUP($C83,'Plano de Contas'!$B$2:$E$200,3,FALSE)) -> ASSINATURA (JORNAL, INTERNET) | F83: =IFERROR((SUMIFS(Arquivo!$F$2:$F$20000,Arquivo!$B$2:$B$20000,F$6,Arquivo!$C$2:$C$20000,G$6,Arquivo!$D$2:$D$20000,$C83)),0) -> 25 | G83: 2.602467472e-05 | H83: =IFERROR((SUMIFS(Arquivo!$F$2:$F$20000,Arquivo!$B$2:$B$20000,H$6,Arquivo!$C$2:$C$20000,I$6,Arquivo!$D$2:$D$20000,$C83)),0) -> 25 | I83: 3.043102133e-05 | J83: =IFERROR((SUMIFS(Arquivo!$F$2:$F$20000,Arquivo!$B$2:$B$20000,J$6,Arquivo!$C$2:$C$20000,K$6,Arquivo!$D$2:$D$20000,$C83)),0) -> 105 | K83: 7.934904762e-05 | L83: =IFERROR((SUMIFS(Arquivo!$F$2:$F$20000,Arquivo!$B$2:$B$20000,L$6,Arquivo!$C$2:$C$20000,M$6,Arquivo!$D$2:$D$20000,$C83)),0) -> 25 | M83: 2.477890403e-05 | N83: =IFERROR((SUMIFS(Arquivo!$F$2:$F$20000,Arquivo!$B$2:$B$20000,N$6,Arquivo!$C$2:$C$20000,O$6,Arquivo!$D$2:$D$20000,$C83)),0) -> 25 | O83: 3.106529353e-05 | P83: =IFERROR((SUMIFS(Arquivo!$F$2:$F$20000,Arquivo!$B$2:$B$20000,P$6,Arquivo!$C$2:$C$20000,Q$6,Arquivo!$D$2:$D$20000,$C83)),0) -> 25 | Q83: 2.830714979e-05 | R83: =IFERROR((SUMIFS(Arquivo!$F$2:$F$20000,Arquivo!$B$2:$B$20000,R$6,Arquivo!$C$2:$C$20000,S$6,Arquivo!$D$2:$D$20000,$C83)),0) -> 25 | S83: 4.109497056e-05 | T83: =IFERROR((SUMIFS(Arquivo!$F$2:$F$20000,Arquivo!$B$2:$B$20000,T$6,Arquivo!$C$2:$C$20000,U$6,Arquivo!$D$2:$D$20000,$C83)),0) -> 0 | U83: 0 | V83: =IFERROR((SUMIFS(Arquivo!$F$2:$F$20000,Arquivo!$B$2:$B$20000,V$6,Arquivo!$C$2:$C$20000,W$6,Arquivo!$D$2:$D$20000,$C83)),0) -> 0 | W83: 0 | X83: =IFERROR((SUMIFS(Arquivo!$F$2:$F$20000,Arquivo!$B$2:$B$20000,X$6,Arquivo!$C$2:$C$20000,Y$6,Arquivo!$D$2:$D$20000,$C83)),0) -> 0 | Y83: 0 | Z83: =IFERROR((SUMIFS(Arquivo!$F$2:$F$20000,Arquivo!$B$2:$B$20000,Z$6,Arquivo!$C$2:$C$20000,AA$6,Arquivo!$D$2:$D$20000,$C83)),0) -> 0 | AA83: 0 | AB83: =IFERROR((SUMIFS(Arquivo!$F$2:$F$20000,Arquivo!$B$2:$B$20000,AB$6,Arquivo!$C$2:$C$20000,AC$6,Arquivo!$D$2:$D$20000,$C83)),0) -> 0 | AC83: 0 | AD83: 255 | AE83: 3.977774629e-05 | AH83: X
C84: =IF('Plano de Contas'!B71="","",'Plano de Contas'!B71) -> 8.1.3.15 | D84: =IF($C84="","",VLOOKUP($C84,'Plano de Contas'!$B$2:$E$200,4,FALSE)) -> CV | E84: =IF($C84="","",VLOOKUP($C84,'Plano de Contas'!$B$2:$E$200,3,FALSE)) -> SUPORTE INFORMATICA | F84: =IFERROR((SUMIFS(Arquivo!$F$2:$F$20000,Arquivo!$B$2:$B$20000,F$6,Arquivo!$C$2:$C$20000,G$6,Arquivo!$D$2:$D$20000,$C84)),0) -> 281.1 | G84: 0.0002926214426 | H84: =IFERROR((SUMIFS(Arquivo!$F$2:$F$20000,Arquivo!$B$2:$B$20000,H$6,Arquivo!$C$2:$C$20000,I$6,Arquivo!$D$2:$D$20000,$C84)),0) -> 376.2 | I84: 0.000457926009 | J84: =IFERROR((SUMIFS(Arquivo!$F$2:$F$20000,Arquivo!$B$2:$B$20000,J$6,Arquivo!$C$2:$C$20000,K$6,Arquivo!$D$2:$D$20000,$C84)),0) -> 286.2 | K84: 0.0002162828327 | L84: =IFERROR((SUMIFS(Arquivo!$F$2:$F$20000,Arquivo!$B$2:$B$20000,L$6,Arquivo!$C$2:$C$20000,M$6,Arquivo!$D$2:$D$20000,$C84)),0) -> 286.2 | M84: 0.0002836688934 | N84: =IFERROR((SUMIFS(Arquivo!$F$2:$F$20000,Arquivo!$B$2:$B$20000,N$6,Arquivo!$C$2:$C$20000,O$6,Arquivo!$D$2:$D$20000,$C84)),0) -> 416.2 | O84: 0.0005171750067 | P84: =IFERROR((SUMIFS(Arquivo!$F$2:$F$20000,Arquivo!$B$2:$B$20000,P$6,Arquivo!$C$2:$C$20000,Q$6,Arquivo!$D$2:$D$20000,$C84)),0) -> 286.2 | Q84: 0.0003240602507 | R84: =IFERROR((SUMIFS(Arquivo!$F$2:$F$20000,Arquivo!$B$2:$B$20000,R$6,Arquivo!$C$2:$C$20000,S$6,Arquivo!$D$2:$D$20000,$C84)),0) -> 286.2 | S84: 0.000470455223 | T84: =IFERROR((SUMIFS(Arquivo!$F$2:$F$20000,Arquivo!$B$2:$B$20000,T$6,Arquivo!$C$2:$C$20000,U$6,Arquivo!$D$2:$D$20000,$C84)),0) -> 0 | U84: 0 | V84: =IFERROR((SUMIFS(Arquivo!$F$2:$F$20000,Arquivo!$B$2:$B$20000,V$6,Arquivo!$C$2:$C$20000,W$6,Arquivo!$D$2:$D$20000,$C84)),0) -> 0 | W84: 0 | X84: =IFERROR((SUMIFS(Arquivo!$F$2:$F$20000,Arquivo!$B$2:$B$20000,X$6,Arquivo!$C$2:$C$20000,Y$6,Arquivo!$D$2:$D$20000,$C84)),0) -> 0 | Y84: 0 | Z84: =IFERROR((SUMIFS(Arquivo!$F$2:$F$20000,Arquivo!$B$2:$B$20000,Z$6,Arquivo!$C$2:$C$20000,AA$6,Arquivo!$D$2:$D$20000,$C84)),0) -> 0 | AA84: 0 | AB84: =IFERROR((SUMIFS(Arquivo!$F$2:$F$20000,Arquivo!$B$2:$B$20000,AB$6,Arquivo!$C$2:$C$20000,AC$6,Arquivo!$D$2:$D$20000,$C84)),0) -> 0 | AC84: 0 | AD84: 2218.3 | AE84: 0.0003460351945 | AH84: X
C85: =IF('Plano de Contas'!B72="","",'Plano de Contas'!B72) -> 8.1.3.16 | D85: =IF($C85="","",VLOOKUP($C85,'Plano de Contas'!$B$2:$E$200,4,FALSE)) -> CV | E85: =IF($C85="","",VLOOKUP($C85,'Plano de Contas'!$B$2:$E$200,3,FALSE)) -> MANUT.MAQ E EQUIP | F85: =IFERROR((SUMIFS(Arquivo!$F$2:$F$20000,Arquivo!$B$2:$B$20000,F$6,Arquivo!$C$2:$C$20000,G$6,Arquivo!$D$2:$D$20000,$C85)),0) -> 0 | G85: 0 | H85: =IFERROR((SUMIFS(Arquivo!$F$2:$F$20000,Arquivo!$B$2:$B$20000,H$6,Arquivo!$C$2:$C$20000,I$6,Arquivo!$D$2:$D$20000,$C85)),0) -> 0 | I85: 0 | J85: =IFERROR((SUMIFS(Arquivo!$F$2:$F$20000,Arquivo!$B$2:$B$20000,J$6,Arquivo!$C$2:$C$20000,K$6,Arquivo!$D$2:$D$20000,$C85)),0) -> 0 | K85: 0 | L85: =IFERROR((SUMIFS(Arquivo!$F$2:$F$20000,Arquivo!$B$2:$B$20000,L$6,Arquivo!$C$2:$C$20000,M$6,Arquivo!$D$2:$D$20000,$C85)),0) -> 195 | M85: 0.0001932754515 | N85: =IFERROR((SUMIFS(Arquivo!$F$2:$F$20000,Arquivo!$B$2:$B$20000,N$6,Arquivo!$C$2:$C$20000,O$6,Arquivo!$D$2:$D$20000,$C85)),0) -> 120 | O85: 0.0001491134089 | P85: =IFERROR((SUMIFS(Arquivo!$F$2:$F$20000,Arquivo!$B$2:$B$20000,P$6,Arquivo!$C$2:$C$20000,Q$6,Arquivo!$D$2:$D$20000,$C85)),0) -> 0 | Q85: 0 | R85: =IFERROR((SUMIFS(Arquivo!$F$2:$F$20000,Arquivo!$B$2:$B$20000,R$6,Arquivo!$C$2:$C$20000,S$6,Arquivo!$D$2:$D$20000,$C85)),0) -> 0 | S85: 0 | T85: =IFERROR((SUMIFS(Arquivo!$F$2:$F$20000,Arquivo!$B$2:$B$20000,T$6,Arquivo!$C$2:$C$20000,U$6,Arquivo!$D$2:$D$20000,$C85)),0) -> 0 | U85: 0 | V85: =IFERROR((SUMIFS(Arquivo!$F$2:$F$20000,Arquivo!$B$2:$B$20000,V$6,Arquivo!$C$2:$C$20000,W$6,Arquivo!$D$2:$D$20000,$C85)),0) -> 0 | W85: 0 | X85: =IFERROR((SUMIFS(Arquivo!$F$2:$F$20000,Arquivo!$B$2:$B$20000,X$6,Arquivo!$C$2:$C$20000,Y$6,Arquivo!$D$2:$D$20000,$C85)),0) -> 0 | Y85: 0 | Z85: =IFERROR((SUMIFS(Arquivo!$F$2:$F$20000,Arquivo!$B$2:$B$20000,Z$6,Arquivo!$C$2:$C$20000,AA$6,Arquivo!$D$2:$D$20000,$C85)),0) -> 0 | AA85: 0 | AB85: =IFERROR((SUMIFS(Arquivo!$F$2:$F$20000,Arquivo!$B$2:$B$20000,AB$6,Arquivo!$C$2:$C$20000,AC$6,Arquivo!$D$2:$D$20000,$C85)),0) -> 0 | AC85: 0 | AD85: 315 | AE85: 4.9137216e-05 | AH85: X
C86: =IF('Plano de Contas'!B73="","",'Plano de Contas'!B73) -> 8.1.3.17 | D86: =IF($C86="","",VLOOKUP($C86,'Plano de Contas'!$B$2:$E$200,4,FALSE)) -> CV | E86: =IF($C86="","",VLOOKUP($C86,'Plano de Contas'!$B$2:$E$200,3,FALSE)) -> MANUT. HIDRAULICA E ELETRICA | F86: =IFERROR((SUMIFS(Arquivo!$F$2:$F$20000,Arquivo!$B$2:$B$20000,F$6,Arquivo!$C$2:$C$20000,G$6,Arquivo!$D$2:$D$20000,$C86)),0) -> 0 | G86: 0 | H86: =IFERROR((SUMIFS(Arquivo!$F$2:$F$20000,Arquivo!$B$2:$B$20000,H$6,Arquivo!$C$2:$C$20000,I$6,Arquivo!$D$2:$D$20000,$C86)),0) -> 94.9 | I86: 0.000115516157 | J86: =IFERROR((SUMIFS(Arquivo!$F$2:$F$20000,Arquivo!$B$2:$B$20000,J$6,Arquivo!$C$2:$C$20000,K$6,Arquivo!$D$2:$D$20000,$C86)),0) -> 30 | K86: 2.267115646e-05 | L86: =IFERROR((SUMIFS(Arquivo!$F$2:$F$20000,Arquivo!$B$2:$B$20000,L$6,Arquivo!$C$2:$C$20000,M$6,Arquivo!$D$2:$D$20000,$C86)),0) -> 0 | M86: 0 | N86: =IFERROR((SUMIFS(Arquivo!$F$2:$F$20000,Arquivo!$B$2:$B$20000,N$6,Arquivo!$C$2:$C$20000,O$6,Arquivo!$D$2:$D$20000,$C86)),0) -> 148.3 | O86: 0.0001842793212 | P86: =IFERROR((SUMIFS(Arquivo!$F$2:$F$20000,Arquivo!$B$2:$B$20000,P$6,Arquivo!$C$2:$C$20000,Q$6,Arquivo!$D$2:$D$20000,$C86)),0) -> 129.6 | Q86: 0.0001467442645 | R86: =IFERROR((SUMIFS(Arquivo!$F$2:$F$20000,Arquivo!$B$2:$B$20000,R$6,Arquivo!$C$2:$C$20000,S$6,Arquivo!$D$2:$D$20000,$C86)),0) -> 1020 | S86: 0.001676674799 | T86: =IFERROR((SUMIFS(Arquivo!$F$2:$F$20000,Arquivo!$B$2:$B$20000,T$6,Arquivo!$C$2:$C$20000,U$6,Arquivo!$D$2:$D$20000,$C86)),0) -> 0 | U86: 0 | V86: =IFERROR((SUMIFS(Arquivo!$F$2:$F$20000,Arquivo!$B$2:$B$20000,V$6,Arquivo!$C$2:$C$20000,W$6,Arquivo!$D$2:$D$20000,$C86)),0) -> 0 | W86: 0 | X86: =IFERROR((SUMIFS(Arquivo!$F$2:$F$20000,Arquivo!$B$2:$B$20000,X$6,Arquivo!$C$2:$C$20000,Y$6,Arquivo!$D$2:$D$20000,$C86)),0) -> 0 | Y86: 0 | Z86: =IFERROR((SUMIFS(Arquivo!$F$2:$F$20000,Arquivo!$B$2:$B$20000,Z$6,Arquivo!$C$2:$C$20000,AA$6,Arquivo!$D$2:$D$20000,$C86)),0) -> 0 | AA86: 0 | AB86: =IFERROR((SUMIFS(Arquivo!$F$2:$F$20000,Arquivo!$B$2:$B$20000,AB$6,Arquivo!$C$2:$C$20000,AC$6,Arquivo!$D$2:$D$20000,$C86)),0) -> 0 | AC86: 0 | AD86: 1422.8 | AE86: 0.0002219442252 | AH86: X
C87: =IF('Plano de Contas'!B74="","",'Plano de Contas'!B74) -> 8.1.3.18 | D87: =IF($C87="","",VLOOKUP($C87,'Plano de Contas'!$B$2:$E$200,4,FALSE)) -> CF | E87: =IF($C87="","",VLOOKUP($C87,'Plano de Contas'!$B$2:$E$200,3,FALSE)) -> SERVICOS DE VIGILANCIA | F87: =IFERROR((SUMIFS(Arquivo!$F$2:$F$20000,Arquivo!$B$2:$B$20000,F$6,Arquivo!$C$2:$C$20000,G$6,Arquivo!$D$2:$D$20000,$C87)),0) -> 150 | G87: 0.0001561480483 | H87: =IFERROR((SUMIFS(Arquivo!$F$2:$F$20000,Arquivo!$B$2:$B$20000,H$6,Arquivo!$C$2:$C$20000,I$6,Arquivo!$D$2:$D$20000,$C87)),0) -> 150 | I87: 0.000182586128 | J87: =IFERROR((SUMIFS(Arquivo!$F$2:$F$20000,Arquivo!$B$2:$B$20000,J$6,Arquivo!$C$2:$C$20000,K$6,Arquivo!$D$2:$D$20000,$C87)),0) -> 150 | K87: 0.0001133557823 | L87: =IFERROR((SUMIFS(Arquivo!$F$2:$F$20000,Arquivo!$B$2:$B$20000,L$6,Arquivo!$C$2:$C$20000,M$6,Arquivo!$D$2:$D$20000,$C87)),0) -> 150 | M87: 0.0001486734242 | N87: =IFERROR((SUMIFS(Arquivo!$F$2:$F$20000,Arquivo!$B$2:$B$20000,N$6,Arquivo!$C$2:$C$20000,O$6,Arquivo!$D$2:$D$20000,$C87)),0) -> 150 | O87: 0.0001863917612 | P87: =IFERROR((SUMIFS(Arquivo!$F$2:$F$20000,Arquivo!$B$2:$B$20000,P$6,Arquivo!$C$2:$C$20000,Q$6,Arquivo!$D$2:$D$20000,$C87)),0) -> 150 | Q87: 0.0001698428987 | R87: =IFERROR((SUMIFS(Arquivo!$F$2:$F$20000,Arquivo!$B$2:$B$20000,R$6,Arquivo!$C$2:$C$20000,S$6,Arquivo!$D$2:$D$20000,$C87)),0) -> 150 | S87: 0.0002465698234 | T87: =IFERROR((SUMIFS(Arquivo!$F$2:$F$20000,Arquivo!$B$2:$B$20000,T$6,Arquivo!$C$2:$C$20000,U$6,Arquivo!$D$2:$D$20000,$C87)),0) -> 0 | U87: 0 | V87: =IFERROR((SUMIFS(Arquivo!$F$2:$F$20000,Arquivo!$B$2:$B$20000,V$6,Arquivo!$C$2:$C$20000,W$6,Arquivo!$D$2:$D$20000,$C87)),0) -> 0 | W87: 0 | X87: =IFERROR((SUMIFS(Arquivo!$F$2:$F$20000,Arquivo!$B$2:$B$20000,X$6,Arquivo!$C$2:$C$20000,Y$6,Arquivo!$D$2:$D$20000,$C87)),0) -> 0 | Y87: 0 | Z87: =IFERROR((SUMIFS(Arquivo!$F$2:$F$20000,Arquivo!$B$2:$B$20000,Z$6,Arquivo!$C$2:$C$20000,AA$6,Arquivo!$D$2:$D$20000,$C87)),0) -> 0 | AA87: 0 | AB87: =IFERROR((SUMIFS(Arquivo!$F$2:$F$20000,Arquivo!$B$2:$B$20000,AB$6,Arquivo!$C$2:$C$20000,AC$6,Arquivo!$D$2:$D$20000,$C87)),0) -> 0 | AC87: 0 | AD87: 1050 | AE87: 0.00016379072 | AH87: X
C88: =IF('Plano de Contas'!B75="","",'Plano de Contas'!B75) -> 8.1.3.19 | D88: =IF($C88="","",VLOOKUP($C88,'Plano de Contas'!$B$2:$E$200,4,FALSE)) -> CV | E88: =IF($C88="","",VLOOKUP($C88,'Plano de Contas'!$B$2:$E$200,3,FALSE)) -> PADARIA E LANCHONETE | F88: =IFERROR((SUMIFS(Arquivo!$F$2:$F$20000,Arquivo!$B$2:$B$20000,F$6,Arquivo!$C$2:$C$20000,G$6,Arquivo!$D$2:$D$20000,$C88)),0) -> 404.25 | G88: 0.0004208189903 | H88: =IFERROR((SUMIFS(Arquivo!$F$2:$F$20000,Arquivo!$B$2:$B$20000,H$6,Arquivo!$C$2:$C$20000,I$6,Arquivo!$D$2:$D$20000,$C88)),0) -> 174.56 | I88: 0.0002124815634 | J88: =IFERROR((SUMIFS(Arquivo!$F$2:$F$20000,Arquivo!$B$2:$B$20000,J$6,Arquivo!$C$2:$C$20000,K$6,Arquivo!$D$2:$D$20000,$C88)),0) -> 513.45 | K88: 0.0003880168429 | L88: =IFERROR((SUMIFS(Arquivo!$F$2:$F$20000,Arquivo!$B$2:$B$20000,L$6,Arquivo!$C$2:$C$20000,M$6,Arquivo!$D$2:$D$20000,$C88)),0) -> 651.04 | M88: 0.0006452823073 | N88: =IFERROR((SUMIFS(Arquivo!$F$2:$F$20000,Arquivo!$B$2:$B$20000,N$6,Arquivo!$C$2:$C$20000,O$6,Arquivo!$D$2:$D$20000,$C88)),0) -> 352.5 | O88: 0.0004380206388 | P88: =IFERROR((SUMIFS(Arquivo!$F$2:$F$20000,Arquivo!$B$2:$B$20000,P$6,Arquivo!$C$2:$C$20000,Q$6,Arquivo!$D$2:$D$20000,$C88)),0) -> 282.98 | Q88: 0.0003204142899 | R88: =IFERROR((SUMIFS(Arquivo!$F$2:$F$20000,Arquivo!$B$2:$B$20000,R$6,Arquivo!$C$2:$C$20000,S$6,Arquivo!$D$2:$D$20000,$C88)),0) -> 350.1 | S88: 0.0005754939677 | T88: =IFERROR((SUMIFS(Arquivo!$F$2:$F$20000,Arquivo!$B$2:$B$20000,T$6,Arquivo!$C$2:$C$20000,U$6,Arquivo!$D$2:$D$20000,$C88)),0) -> 0 | U88: 0 | V88: =IFERROR((SUMIFS(Arquivo!$F$2:$F$20000,Arquivo!$B$2:$B$20000,V$6,Arquivo!$C$2:$C$20000,W$6,Arquivo!$D$2:$D$20000,$C88)),0) -> 0 | W88: 0 | X88: =IFERROR((SUMIFS(Arquivo!$F$2:$F$20000,Arquivo!$B$2:$B$20000,X$6,Arquivo!$C$2:$C$20000,Y$6,Arquivo!$D$2:$D$20000,$C88)),0) -> 0 | Y88: 0 | Z88: =IFERROR((SUMIFS(Arquivo!$F$2:$F$20000,Arquivo!$B$2:$B$20000,Z$6,Arquivo!$C$2:$C$20000,AA$6,Arquivo!$D$2:$D$20000,$C88)),0) -> 0 | AA88: 0 | AB88: =IFERROR((SUMIFS(Arquivo!$F$2:$F$20000,Arquivo!$B$2:$B$20000,AB$6,Arquivo!$C$2:$C$20000,AC$6,Arquivo!$D$2:$D$20000,$C88)),0) -> 0 | AC88: 0 | AD88: 2728.88 | AE88: 0.0004256811619 | AH88: X
C89: =IF('Plano de Contas'!B76="","",'Plano de Contas'!B76) -> 8.1.3.20 | D89: =IF($C89="","",VLOOKUP($C89,'Plano de Contas'!$B$2:$E$200,4,FALSE)) -> CV | E89: =IF($C89="","",VLOOKUP($C89,'Plano de Contas'!$B$2:$E$200,3,FALSE)) -> OUTRAS DESP.ADMINISTRATIVAS | F89: =IFERROR((SUMIFS(Arquivo!$F$2:$F$20000,Arquivo!$B$2:$B$20000,F$6,Arquivo!$C$2:$C$20000,G$6,Arquivo!$D$2:$D$20000,$C89)),0) -> 1879.38 | G89: 0.001956410127 | H89: =IFERROR((SUMIFS(Arquivo!$F$2:$F$20000,Arquivo!$B$2:$B$20000,H$6,Arquivo!$C$2:$C$20000,I$6,Arquivo!$D$2:$D$20000,$C89)),0) -> 1879.38 | I89: 0.002287658115 | J89: =IFERROR((SUMIFS(Arquivo!$F$2:$F$20000,Arquivo!$B$2:$B$20000,J$6,Arquivo!$C$2:$C$20000,K$6,Arquivo!$D$2:$D$20000,$C89)),0) -> 8495.38 | K89: 0.006420002973 | L89: =IFERROR((SUMIFS(Arquivo!$F$2:$F$20000,Arquivo!$B$2:$B$20000,L$6,Arquivo!$C$2:$C$20000,M$6,Arquivo!$D$2:$D$20000,$C89)),0) -> 4694.88 | M89: 0.004653359239 | N89: =IFERROR((SUMIFS(Arquivo!$F$2:$F$20000,Arquivo!$B$2:$B$20000,N$6,Arquivo!$C$2:$C$20000,O$6,Arquivo!$D$2:$D$20000,$C89)),0) -> 4694.88 | O89: 0.005833913012 | P89: =IFERROR((SUMIFS(Arquivo!$F$2:$F$20000,Arquivo!$B$2:$B$20000,P$6,Arquivo!$C$2:$C$20000,Q$6,Arquivo!$D$2:$D$20000,$C89)),0) -> 1879.38 | Q89: 0.002127995647 | R89: =IFERROR((SUMIFS(Arquivo!$F$2:$F$20000,Arquivo!$B$2:$B$20000,R$6,Arquivo!$C$2:$C$20000,S$6,Arquivo!$D$2:$D$20000,$C89)),0) -> 1879.38 | S89: 0.003089322631 | T89: =IFERROR((SUMIFS(Arquivo!$F$2:$F$20000,Arquivo!$B$2:$B$20000,T$6,Arquivo!$C$2:$C$20000,U$6,Arquivo!$D$2:$D$20000,$C89)),0) -> 0 | U89: 0 | V89: =IFERROR((SUMIFS(Arquivo!$F$2:$F$20000,Arquivo!$B$2:$B$20000,V$6,Arquivo!$C$2:$C$20000,W$6,Arquivo!$D$2:$D$20000,$C89)),0) -> 0 | W89: 0 | X89: =IFERROR((SUMIFS(Arquivo!$F$2:$F$20000,Arquivo!$B$2:$B$20000,X$6,Arquivo!$C$2:$C$20000,Y$6,Arquivo!$D$2:$D$20000,$C89)),0) -> 0 | Y89: 0 | Z89: =IFERROR((SUMIFS(Arquivo!$F$2:$F$20000,Arquivo!$B$2:$B$20000,Z$6,Arquivo!$C$2:$C$20000,AA$6,Arquivo!$D$2:$D$20000,$C89)),0) -> 0 | AA89: 0 | AB89: =IFERROR((SUMIFS(Arquivo!$F$2:$F$20000,Arquivo!$B$2:$B$20000,AB$6,Arquivo!$C$2:$C$20000,AC$6,Arquivo!$D$2:$D$20000,$C89)),0) -> 0 | AC89: 0 | AD89: 25402.66 | AE89: 0.003962590449 | AH89: X
C90: =IF('Plano de Contas'!B77="","",'Plano de Contas'!B77) -> 11.1.1.8 | D90: =IF($C90="","",VLOOKUP($C90,'Plano de Contas'!$B$2:$E$200,4,FALSE)) -> CF | E90: =IF($C90="","",VLOOKUP($C90,'Plano de Contas'!$B$2:$E$200,3,FALSE)) -> FUNDO ABANORTE SIGATOKA NEGRA | F90: =IFERROR((SUMIFS(Arquivo!$F$2:$F$20000,Arquivo!$B$2:$B$20000,F$6,Arquivo!$C$2:$C$20000,G$6,Arquivo!$D$2:$D$20000,$C90)),0) -> 1792 | G90: 0.001865448684 | H90: =IFERROR((SUMIFS(Arquivo!$F$2:$F$20000,Arquivo!$B$2:$B$20000,H$6,Arquivo!$C$2:$C$20000,I$6,Arquivo!$D$2:$D$20000,$C90)),0) -> 1504 | I90: 0.001830730243 | J90: =IFERROR((SUMIFS(Arquivo!$F$2:$F$20000,Arquivo!$B$2:$B$20000,J$6,Arquivo!$C$2:$C$20000,K$6,Arquivo!$D$2:$D$20000,$C90)),0) -> 1632 | K90: 0.001233310912 | L90: =IFERROR((SUMIFS(Arquivo!$F$2:$F$20000,Arquivo!$B$2:$B$20000,L$6,Arquivo!$C$2:$C$20000,M$6,Arquivo!$D$2:$D$20000,$C90)),0) -> 1952 | M90: 0.001934736827 | N90: =IFERROR((SUMIFS(Arquivo!$F$2:$F$20000,Arquivo!$B$2:$B$20000,N$6,Arquivo!$C$2:$C$20000,O$6,Arquivo!$D$2:$D$20000,$C90)),0) -> 1376 | O90: 0.001709833756 | P90: =IFERROR((SUMIFS(Arquivo!$F$2:$F$20000,Arquivo!$B$2:$B$20000,P$6,Arquivo!$C$2:$C$20000,Q$6,Arquivo!$D$2:$D$20000,$C90)),0) -> 1792 | Q90: 0.002029056497 | R90: =IFERROR((SUMIFS(Arquivo!$F$2:$F$20000,Arquivo!$B$2:$B$20000,R$6,Arquivo!$C$2:$C$20000,S$6,Arquivo!$D$2:$D$20000,$C90)),0) -> 2432 | S90: 0.003997718736 | T90: =IFERROR((SUMIFS(Arquivo!$F$2:$F$20000,Arquivo!$B$2:$B$20000,T$6,Arquivo!$C$2:$C$20000,U$6,Arquivo!$D$2:$D$20000,$C90)),0) -> 0 | U90: 0 | V90: =IFERROR((SUMIFS(Arquivo!$F$2:$F$20000,Arquivo!$B$2:$B$20000,V$6,Arquivo!$C$2:$C$20000,W$6,Arquivo!$D$2:$D$20000,$C90)),0) -> 0 | W90: 0 | X90: =IFERROR((SUMIFS(Arquivo!$F$2:$F$20000,Arquivo!$B$2:$B$20000,X$6,Arquivo!$C$2:$C$20000,Y$6,Arquivo!$D$2:$D$20000,$C90)),0) -> 0 | Y90: 0 | Z90: =IFERROR((SUMIFS(Arquivo!$F$2:$F$20000,Arquivo!$B$2:$B$20000,Z$6,Arquivo!$C$2:$C$20000,AA$6,Arquivo!$D$2:$D$20000,$C90)),0) -> 0 | AA90: 0 | AB90: =IFERROR((SUMIFS(Arquivo!$F$2:$F$20000,Arquivo!$B$2:$B$20000,AB$6,Arquivo!$C$2:$C$20000,AC$6,Arquivo!$D$2:$D$20000,$C90)),0) -> 0 | AC90: 0 | AD90: 12480 | AE90: 0.001946769701 | AH90: X
C91: =IF('Plano de Contas'!B78="","",'Plano de Contas'!B78) -> 8.2.2.15 | D91: =IF($C91="","",VLOOKUP($C91,'Plano de Contas'!$B$2:$E$200,4,FALSE)) -> CV | E91: =IF($C91="","",VLOOKUP($C91,'Plano de Contas'!$B$2:$E$200,3,FALSE)) -> COMBUSTIVEL COOPERADOS | F91: =IFERROR((SUMIFS(Arquivo!$F$2:$F$20000,Arquivo!$B$2:$B$20000,F$6,Arquivo!$C$2:$C$20000,G$6,Arquivo!$D$2:$D$20000,$C91)),0) -> 2857.8 | G91: 0.002974932617 | H91: =IFERROR((SUMIFS(Arquivo!$F$2:$F$20000,Arquivo!$B$2:$B$20000,H$6,Arquivo!$C$2:$C$20000,I$6,Arquivo!$D$2:$D$20000,$C91)),0) -> 2618 | I91: 0.003186736554 | J91: =IFERROR((SUMIFS(Arquivo!$F$2:$F$20000,Arquivo!$B$2:$B$20000,J$6,Arquivo!$C$2:$C$20000,K$6,Arquivo!$D$2:$D$20000,$C91)),0) -> 1951.6 | K91: 0.001474834298 | L91: =IFERROR((SUMIFS(Arquivo!$F$2:$F$20000,Arquivo!$B$2:$B$20000,L$6,Arquivo!$C$2:$C$20000,M$6,Arquivo!$D$2:$D$20000,$C91)),0) -> 3440.45 | M91: 0.003410023215 | N91: =IFERROR((SUMIFS(Arquivo!$F$2:$F$20000,Arquivo!$B$2:$B$20000,N$6,Arquivo!$C$2:$C$20000,O$6,Arquivo!$D$2:$D$20000,$C91)),0) -> 2696.4 | O91: 0.003350578299 | P91: =IFERROR((SUMIFS(Arquivo!$F$2:$F$20000,Arquivo!$B$2:$B$20000,P$6,Arquivo!$C$2:$C$20000,Q$6,Arquivo!$D$2:$D$20000,$C91)),0) -> 2477.6 | Q91: 0.002805351772 | R91: =IFERROR((SUMIFS(Arquivo!$F$2:$F$20000,Arquivo!$B$2:$B$20000,R$6,Arquivo!$C$2:$C$20000,S$6,Arquivo!$D$2:$D$20000,$C91)),0) -> 2435.8 | S91: 0.004003965172 | T91: =IFERROR((SUMIFS(Arquivo!$F$2:$F$20000,Arquivo!$B$2:$B$20000,T$6,Arquivo!$C$2:$C$20000,U$6,Arquivo!$D$2:$D$20000,$C91)),0) -> 0 | U91: 0 | V91: =IFERROR((SUMIFS(Arquivo!$F$2:$F$20000,Arquivo!$B$2:$B$20000,V$6,Arquivo!$C$2:$C$20000,W$6,Arquivo!$D$2:$D$20000,$C91)),0) -> 0 | W91: 0 | X91: =IFERROR((SUMIFS(Arquivo!$F$2:$F$20000,Arquivo!$B$2:$B$20000,X$6,Arquivo!$C$2:$C$20000,Y$6,Arquivo!$D$2:$D$20000,$C91)),0) -> 0 | Y91: 0 | Z91: =IFERROR((SUMIFS(Arquivo!$F$2:$F$20000,Arquivo!$B$2:$B$20000,Z$6,Arquivo!$C$2:$C$20000,AA$6,Arquivo!$D$2:$D$20000,$C91)),0) -> 0 | AA91: 0 | AB91: =IFERROR((SUMIFS(Arquivo!$F$2:$F$20000,Arquivo!$B$2:$B$20000,AB$6,Arquivo!$C$2:$C$20000,AC$6,Arquivo!$D$2:$D$20000,$C91)),0) -> 0 | AC91: 0 | AD91: 18477.65 | AE91: 0.002882350093 | AH91: X
C92: =IF('Plano de Contas'!B79="","",'Plano de Contas'!B79) ->  | D92: =IF($C92="","",VLOOKUP($C92,'Plano de Contas'!$B$2:$E$200,4,FALSE)) ->  | E92: =IF($C92="","",VLOOKUP($C92,'Plano de Contas'!$B$2:$E$200,3,FALSE)) ->  | F92: =IFERROR((SUMIFS(Arquivo!$F$2:$F$20000,Arquivo!$B$2:$B$20000,F$6,Arquivo!$C$2:$C$20000,G$6,Arquivo!$D$2:$D$20000,$C92)),0) -> 0 | G92: 0 | H92: =IFERROR((SUMIFS(Arquivo!$F$2:$F$20000,Arquivo!$B$2:$B$20000,H$6,Arquivo!$C$2:$C$20000,I$6,Arquivo!$D$2:$D$20000,$C92)),0) -> 0 | I92: 0 | J92: =IFERROR((SUMIFS(Arquivo!$F$2:$F$20000,Arquivo!$B$2:$B$20000,J$6,Arquivo!$C$2:$C$20000,K$6,Arquivo!$D$2:$D$20000,$C92)),0) -> 0 | K92: 0 | L92: =IFERROR((SUMIFS(Arquivo!$F$2:$F$20000,Arquivo!$B$2:$B$20000,L$6,Arquivo!$C$2:$C$20000,M$6,Arquivo!$D$2:$D$20000,$C92)),0) -> 0 | M92: 0 | N92: =IFERROR((SUMIFS(Arquivo!$F$2:$F$20000,Arquivo!$B$2:$B$20000,N$6,Arquivo!$C$2:$C$20000,O$6,Arquivo!$D$2:$D$20000,$C92)),0) -> 0 | O92: 0 | P92: =IFERROR((SUMIFS(Arquivo!$F$2:$F$20000,Arquivo!$B$2:$B$20000,P$6,Arquivo!$C$2:$C$20000,Q$6,Arquivo!$D$2:$D$20000,$C92)),0) -> 0 | Q92: 0 | R92: =IFERROR((SUMIFS(Arquivo!$F$2:$F$20000,Arquivo!$B$2:$B$20000,R$6,Arquivo!$C$2:$C$20000,S$6,Arquivo!$D$2:$D$20000,$C92)),0) -> 0 | S92: 0 | T92: =IFERROR((SUMIFS(Arquivo!$F$2:$F$20000,Arquivo!$B$2:$B$20000,T$6,Arquivo!$C$2:$C$20000,U$6,Arquivo!$D$2:$D$20000,$C92)),0) -> 0 | U92: 0 | V92: =IFERROR((SUMIFS(Arquivo!$F$2:$F$20000,Arquivo!$B$2:$B$20000,V$6,Arquivo!$C$2:$C$20000,W$6,Arquivo!$D$2:$D$20000,$C92)),0) -> 0 | W92: 0 | X92: =IFERROR((SUMIFS(Arquivo!$F$2:$F$20000,Arquivo!$B$2:$B$20000,X$6,Arquivo!$C$2:$C$20000,Y$6,Arquivo!$D$2:$D$20000,$C92)),0) -> 0 | Y92: 0 | Z92: =IFERROR((SUMIFS(Arquivo!$F$2:$F$20000,Arquivo!$B$2:$B$20000,Z$6,Arquivo!$C$2:$C$20000,AA$6,Arquivo!$D$2:$D$20000,$C92)),0) -> 0 | AA92: 0 | AB92: =IFERROR((SUMIFS(Arquivo!$F$2:$F$20000,Arquivo!$B$2:$B$20000,AB$6,Arquivo!$C$2:$C$20000,AC$6,Arquivo!$D$2:$D$20000,$C92)),0) -> 0 | AC92: 0 | AD92: 0 | AE92: 0
C93: =IF('Plano de Contas'!B80="","",'Plano de Contas'!B80) ->  | D93: =IF($C93="","",VLOOKUP($C93,'Plano de Contas'!$B$2:$E$200,4,FALSE)) ->  | E93: =IF($C93="","",VLOOKUP($C93,'Plano de Contas'!$B$2:$E$200,3,FALSE)) ->  | F93: =IFERROR((SUMIFS(Arquivo!$F$2:$F$20000,Arquivo!$B$2:$B$20000,F$6,Arquivo!$C$2:$C$20000,G$6,Arquivo!$D$2:$D$20000,$C93)),0) -> 0 | G93: 0 | H93: =IFERROR((SUMIFS(Arquivo!$F$2:$F$20000,Arquivo!$B$2:$B$20000,H$6,Arquivo!$C$2:$C$20000,I$6,Arquivo!$D$2:$D$20000,$C93)),0) -> 0 | I93: 0 | J93: =IFERROR((SUMIFS(Arquivo!$F$2:$F$20000,Arquivo!$B$2:$B$20000,J$6,Arquivo!$C$2:$C$20000,K$6,Arquivo!$D$2:$D$20000,$C93)),0) -> 0 | K93: 0 | L93: =IFERROR((SUMIFS(Arquivo!$F$2:$F$20000,Arquivo!$B$2:$B$20000,L$6,Arquivo!$C$2:$C$20000,M$6,Arquivo!$D$2:$D$20000,$C93)),0) -> 0 | M93: 0 | N93: =IFERROR((SUMIFS(Arquivo!$F$2:$F$20000,Arquivo!$B$2:$B$20000,N$6,Arquivo!$C$2:$C$20000,O$6,Arquivo!$D$2:$D$20000,$C93)),0) -> 0 | O93: 0 | P93: =IFERROR((SUMIFS(Arquivo!$F$2:$F$20000,Arquivo!$B$2:$B$20000,P$6,Arquivo!$C$2:$C$20000,Q$6,Arquivo!$D$2:$D$20000,$C93)),0) -> 0 | Q93: 0 | R93: =IFERROR((SUMIFS(Arquivo!$F$2:$F$20000,Arquivo!$B$2:$B$20000,R$6,Arquivo!$C$2:$C$20000,S$6,Arquivo!$D$2:$D$20000,$C93)),0) -> 0 | S93: 0 | T93: =IFERROR((SUMIFS(Arquivo!$F$2:$F$20000,Arquivo!$B$2:$B$20000,T$6,Arquivo!$C$2:$C$20000,U$6,Arquivo!$D$2:$D$20000,$C93)),0) -> 0 | U93: 0 | V93: =IFERROR((SUMIFS(Arquivo!$F$2:$F$20000,Arquivo!$B$2:$B$20000,V$6,Arquivo!$C$2:$C$20000,W$6,Arquivo!$D$2:$D$20000,$C93)),0) -> 0 | W93: 0 | X93: =IFERROR((SUMIFS(Arquivo!$F$2:$F$20000,Arquivo!$B$2:$B$20000,X$6,Arquivo!$C$2:$C$20000,Y$6,Arquivo!$D$2:$D$20000,$C93)),0) -> 0 | Y93: 0 | Z93: =IFERROR((SUMIFS(Arquivo!$F$2:$F$20000,Arquivo!$B$2:$B$20000,Z$6,Arquivo!$C$2:$C$20000,AA$6,Arquivo!$D$2:$D$20000,$C93)),0) -> 0 | AA93: 0 | AB93: =IFERROR((SUMIFS(Arquivo!$F$2:$F$20000,Arquivo!$B$2:$B$20000,AB$6,Arquivo!$C$2:$C$20000,AC$6,Arquivo!$D$2:$D$20000,$C93)),0) -> 0 | AC93: 0 | AD93: 0 | AE93: 0
C94: =IF('Plano de Contas'!B81="","",'Plano de Contas'!B81) ->  | D94: =IF($C94="","",VLOOKUP($C94,'Plano de Contas'!$B$2:$E$200,4,FALSE)) ->  | E94: =IF($C94="","",VLOOKUP($C94,'Plano de Contas'!$B$2:$E$200,3,FALSE)) ->  | F94: =IFERROR((SUMIFS(Arquivo!$F$2:$F$20000,Arquivo!$B$2:$B$20000,F$6,Arquivo!$C$2:$C$20000,G$6,Arquivo!$D$2:$D$20000,$C94)),0) -> 0 | G94: 0 | H94: =IFERROR((SUMIFS(Arquivo!$F$2:$F$20000,Arquivo!$B$2:$B$20000,H$6,Arquivo!$C$2:$C$20000,I$6,Arquivo!$D$2:$D$20000,$C94)),0) -> 0 | I94: 0 | J94: =IFERROR((SUMIFS(Arquivo!$F$2:$F$20000,Arquivo!$B$2:$B$20000,J$6,Arquivo!$C$2:$C$20000,K$6,Arquivo!$D$2:$D$20000,$C94)),0) -> 0 | K94: 0 | L94: =IFERROR((SUMIFS(Arquivo!$F$2:$F$20000,Arquivo!$B$2:$B$20000,L$6,Arquivo!$C$2:$C$20000,M$6,Arquivo!$D$2:$D$20000,$C94)),0) -> 0 | M94: 0 | N94: =IFERROR((SUMIFS(Arquivo!$F$2:$F$20000,Arquivo!$B$2:$B$20000,N$6,Arquivo!$C$2:$C$20000,O$6,Arquivo!$D$2:$D$20000,$C94)),0) -> 0 | O94: 0 | P94: =IFERROR((SUMIFS(Arquivo!$F$2:$F$20000,Arquivo!$B$2:$B$20000,P$6,Arquivo!$C$2:$C$20000,Q$6,Arquivo!$D$2:$D$20000,$C94)),0) -> 0 | Q94: 0 | R94: =IFERROR((SUMIFS(Arquivo!$F$2:$F$20000,Arquivo!$B$2:$B$20000,R$6,Arquivo!$C$2:$C$20000,S$6,Arquivo!$D$2:$D$20000,$C94)),0) -> 0 | S94: 0 | T94: =IFERROR((SUMIFS(Arquivo!$F$2:$F$20000,Arquivo!$B$2:$B$20000,T$6,Arquivo!$C$2:$C$20000,U$6,Arquivo!$D$2:$D$20000,$C94)),0) -> 0 | U94: 0 | V94: =IFERROR((SUMIFS(Arquivo!$F$2:$F$20000,Arquivo!$B$2:$B$20000,V$6,Arquivo!$C$2:$C$20000,W$6,Arquivo!$D$2:$D$20000,$C94)),0) -> 0 | W94: 0 | X94: =IFERROR((SUMIFS(Arquivo!$F$2:$F$20000,Arquivo!$B$2:$B$20000,X$6,Arquivo!$C$2:$C$20000,Y$6,Arquivo!$D$2:$D$20000,$C94)),0) -> 0 | Y94: 0 | Z94: =IFERROR((SUMIFS(Arquivo!$F$2:$F$20000,Arquivo!$B$2:$B$20000,Z$6,Arquivo!$C$2:$C$20000,AA$6,Arquivo!$D$2:$D$20000,$C94)),0) -> 0 | AA94: 0 | AB94: =IFERROR((SUMIFS(Arquivo!$F$2:$F$20000,Arquivo!$B$2:$B$20000,AB$6,Arquivo!$C$2:$C$20000,AC$6,Arquivo!$D$2:$D$20000,$C94)),0) -> 0 | AC94: 0 | AD94: 0 | AE94: 0
AH95: =IF(AH69="","","X") -> X
D96: DESPESAS COMERCIAIS | F96: =SUBTOTAL(9,F97:F105) -> 441.5 | G96: =IFERROR((F96/IF($X$3="CT",F$10,F$96)),0) -> 0.0004595957556 | H96: =SUBTOTAL(9,H97:H105) -> 827.5 | I96: =IFERROR((H96/IF($X$3="CT",H$10,H$96)),0) -> 0.001007266806 | J96: =SUBTOTAL(9,J97:J105) -> 665.22 | K96: =IFERROR((J96/IF($X$3="CT",J$10,J$96)),0) -> 0.0005027102234 | L96: =SUBTOTAL(9,L97:L105) -> 4337.77 | M96: =IFERROR((L96/IF($X$3="CT",L$10,L$96)),0) -> 0.004299407462 | N96: =SUBTOTAL(9,N97:N105) -> 700 | O96: =IFERROR((N96/IF($X$3="CT",N$10,N$96)),0) -> 0.0008698282189 | P96: =SUBTOTAL(9,P97:P105) -> 0 | Q96: =IFERROR((P96/IF($X$3="CT",P$10,P$96)),0) -> 0 | R96: =SUBTOTAL(9,R97:R105) -> 34 | S96: =IFERROR((R96/IF($X$3="CT",R$10,R$96)),0) -> 5.588915996e-05 | T96: =SUBTOTAL(9,T97:T105) -> 0 | U96: =IFERROR((T96/IF($X$3="CT",T$10,T$96)),0) -> 0 | V96: =SUBTOTAL(9,V97:V105) -> 0 | W96: =IFERROR((V96/IF($X$3="CT",V$10,V$96)),0) -> 0 | X96: =SUBTOTAL(9,X97:X105) -> 0 | Y96: =IFERROR((X96/IF($X$3="CT",X$10,X$96)),0) -> 0 | Z96: =SUBTOTAL(9,Z97:Z105) -> 0 | AA96: =IFERROR((Z96/IF($X$3="CT",Z$10,Z$96)),0) -> 0 | AB96: =SUBTOTAL(9,AB97:AB105) -> 0 | AC96: =IFERROR((AB96/IF($X$3="CT",AB$10,AB$96)),0) -> 0 | AD96: =SUBTOTAL(9,AD97:AD105) -> 7005.99 | AE96: =IFERROR((AD96/IF($X$3="CT",AD$10,AD$96)),0) -> 0.00109287252 | AH96: =IF(COUNTIF(AH97:AH104,"X")>0,"X","") -> X
C97: =IF('Plano de Contas'!B83="","",'Plano de Contas'!B83) -> 8.2.1.1 | D97: =IF($C97="","",VLOOKUP($C97,'Plano de Contas'!$B$2:$E$200,4,FALSE)) -> CV | E97: =IF($C97="","",VLOOKUP($C97,'Plano de Contas'!$B$2:$E$200,3,FALSE)) -> COMISSAO VENDEDORES | F97: =IFERROR((SUMIFS(Arquivo!$F$2:$F$20000,Arquivo!$B$2:$B$20000,F$6,Arquivo!$C$2:$C$20000,G$6,Arquivo!$D$2:$D$20000,$C97)),0) -> 0 | G97: 0 | H97: =IFERROR((SUMIFS(Arquivo!$F$2:$F$20000,Arquivo!$B$2:$B$20000,H$6,Arquivo!$C$2:$C$20000,I$6,Arquivo!$D$2:$D$20000,$C97)),0) -> 0 | I97: 0 | J97: =IFERROR((SUMIFS(Arquivo!$F$2:$F$20000,Arquivo!$B$2:$B$20000,J$6,Arquivo!$C$2:$C$20000,K$6,Arquivo!$D$2:$D$20000,$C97)),0) -> 0 | K97: 0 | L97: =IFERROR((SUMIFS(Arquivo!$F$2:$F$20000,Arquivo!$B$2:$B$20000,L$6,Arquivo!$C$2:$C$20000,M$6,Arquivo!$D$2:$D$20000,$C97)),0) -> 0 | M97: 0 | N97: =IFERROR((SUMIFS(Arquivo!$F$2:$F$20000,Arquivo!$B$2:$B$20000,N$6,Arquivo!$C$2:$C$20000,O$6,Arquivo!$D$2:$D$20000,$C97)),0) -> 0 | O97: 0 | P97: =IFERROR((SUMIFS(Arquivo!$F$2:$F$20000,Arquivo!$B$2:$B$20000,P$6,Arquivo!$C$2:$C$20000,Q$6,Arquivo!$D$2:$D$20000,$C97)),0) -> 0 | Q97: 0 | R97: =IFERROR((SUMIFS(Arquivo!$F$2:$F$20000,Arquivo!$B$2:$B$20000,R$6,Arquivo!$C$2:$C$20000,S$6,Arquivo!$D$2:$D$20000,$C97)),0) -> 0 | S97: 0 | T97: =IFERROR((SUMIFS(Arquivo!$F$2:$F$20000,Arquivo!$B$2:$B$20000,T$6,Arquivo!$C$2:$C$20000,U$6,Arquivo!$D$2:$D$20000,$C97)),0) -> 0 | U97: 0 | V97: =IFERROR((SUMIFS(Arquivo!$F$2:$F$20000,Arquivo!$B$2:$B$20000,V$6,Arquivo!$C$2:$C$20000,W$6,Arquivo!$D$2:$D$20000,$C97)),0) -> 0 | W97: 0 | X97: =IFERROR((SUMIFS(Arquivo!$F$2:$F$20000,Arquivo!$B$2:$B$20000,X$6,Arquivo!$C$2:$C$20000,Y$6,Arquivo!$D$2:$D$20000,$C97)),0) -> 0 | Y97: 0 | Z97: =IFERROR((SUMIFS(Arquivo!$F$2:$F$20000,Arquivo!$B$2:$B$20000,Z$6,Arquivo!$C$2:$C$20000,AA$6,Arquivo!$D$2:$D$20000,$C97)),0) -> 0 | AA97: 0 | AB97: =IFERROR((SUMIFS(Arquivo!$F$2:$F$20000,Arquivo!$B$2:$B$20000,AB$6,Arquivo!$C$2:$C$20000,AC$6,Arquivo!$D$2:$D$20000,$C97)),0) -> 0 | AC97: 0 | AD97: =F97+H97+J97+L97+N97+P97+R97+T97+V97+X97+Z97+AB97 -> 0 | AE97: 0 | AH97: =IF($AD97=0,"",IF($X$3="CT","X",IF($X$3=$D97,"X",""))) -> 
C98: =IF('Plano de Contas'!B84="","",'Plano de Contas'!B84) -> 8.2.1.2 | D98: =IF($C98="","",VLOOKUP($C98,'Plano de Contas'!$B$2:$E$200,4,FALSE)) -> CV | E98: =IF($C98="","",VLOOKUP($C98,'Plano de Contas'!$B$2:$E$200,3,FALSE)) -> AJUDA DE CUSTO | F98: =IFERROR((SUMIFS(Arquivo!$F$2:$F$20000,Arquivo!$B$2:$B$20000,F$6,Arquivo!$C$2:$C$20000,G$6,Arquivo!$D$2:$D$20000,$C98)),0) -> 0 | G98: 0 | H98: =IFERROR((SUMIFS(Arquivo!$F$2:$F$20000,Arquivo!$B$2:$B$20000,H$6,Arquivo!$C$2:$C$20000,I$6,Arquivo!$D$2:$D$20000,$C98)),0) -> 0 | I98: 0 | J98: =IFERROR((SUMIFS(Arquivo!$F$2:$F$20000,Arquivo!$B$2:$B$20000,J$6,Arquivo!$C$2:$C$20000,K$6,Arquivo!$D$2:$D$20000,$C98)),0) -> 0 | K98: 0 | L98: =IFERROR((SUMIFS(Arquivo!$F$2:$F$20000,Arquivo!$B$2:$B$20000,L$6,Arquivo!$C$2:$C$20000,M$6,Arquivo!$D$2:$D$20000,$C98)),0) -> 0 | M98: 0 | N98: =IFERROR((SUMIFS(Arquivo!$F$2:$F$20000,Arquivo!$B$2:$B$20000,N$6,Arquivo!$C$2:$C$20000,O$6,Arquivo!$D$2:$D$20000,$C98)),0) -> 0 | O98: 0 | P98: =IFERROR((SUMIFS(Arquivo!$F$2:$F$20000,Arquivo!$B$2:$B$20000,P$6,Arquivo!$C$2:$C$20000,Q$6,Arquivo!$D$2:$D$20000,$C98)),0) -> 0 | Q98: 0 | R98: =IFERROR((SUMIFS(Arquivo!$F$2:$F$20000,Arquivo!$B$2:$B$20000,R$6,Arquivo!$C$2:$C$20000,S$6,Arquivo!$D$2:$D$20000,$C98)),0) -> 0 | S98: 0 | T98: =IFERROR((SUMIFS(Arquivo!$F$2:$F$20000,Arquivo!$B$2:$B$20000,T$6,Arquivo!$C$2:$C$20000,U$6,Arquivo!$D$2:$D$20000,$C98)),0) -> 0 | U98: 0 | V98: =IFERROR((SUMIFS(Arquivo!$F$2:$F$20000,Arquivo!$B$2:$B$20000,V$6,Arquivo!$C$2:$C$20000,W$6,Arquivo!$D$2:$D$20000,$C98)),0) -> 0 | W98: 0 | X98: =IFERROR((SUMIFS(Arquivo!$F$2:$F$20000,Arquivo!$B$2:$B$20000,X$6,Arquivo!$C$2:$C$20000,Y$6,Arquivo!$D$2:$D$20000,$C98)),0) -> 0 | Y98: 0 | Z98: =IFERROR((SUMIFS(Arquivo!$F$2:$F$20000,Arquivo!$B$2:$B$20000,Z$6,Arquivo!$C$2:$C$20000,AA$6,Arquivo!$D$2:$D$20000,$C98)),0) -> 0 | AA98: 0 | AB98: =IFERROR((SUMIFS(Arquivo!$F$2:$F$20000,Arquivo!$B$2:$B$20000,AB$6,Arquivo!$C$2:$C$20000,AC$6,Arquivo!$D$2:$D$20000,$C98)),0) -> 0 | AC98: 0 | AD98: 0 | AE98: 0
C99: =IF('Plano de Contas'!B85="","",'Plano de Contas'!B85) -> 8.2.1.3 | D99: =IF($C99="","",VLOOKUP($C99,'Plano de Contas'!$B$2:$E$200,4,FALSE)) -> CV | E99: =IF($C99="","",VLOOKUP($C99,'Plano de Contas'!$B$2:$E$200,3,FALSE)) -> OUTRAS DESP.COM VENDAS | F99: =IFERROR((SUMIFS(Arquivo!$F$2:$F$20000,Arquivo!$B$2:$B$20000,F$6,Arquivo!$C$2:$C$20000,G$6,Arquivo!$D$2:$D$20000,$C99)),0) -> 441.5 | G99: 0.0004595957556 | H99: =IFERROR((SUMIFS(Arquivo!$F$2:$F$20000,Arquivo!$B$2:$B$20000,H$6,Arquivo!$C$2:$C$20000,I$6,Arquivo!$D$2:$D$20000,$C99)),0) -> 827.5 | I99: 0.001007266806 | J99: =IFERROR((SUMIFS(Arquivo!$F$2:$F$20000,Arquivo!$B$2:$B$20000,J$6,Arquivo!$C$2:$C$20000,K$6,Arquivo!$D$2:$D$20000,$C99)),0) -> 665.22 | K99: 0.0005027102234 | L99: =IFERROR((SUMIFS(Arquivo!$F$2:$F$20000,Arquivo!$B$2:$B$20000,L$6,Arquivo!$C$2:$C$20000,M$6,Arquivo!$D$2:$D$20000,$C99)),0) -> 4337.77 | M99: 0.004299407462 | N99: =IFERROR((SUMIFS(Arquivo!$F$2:$F$20000,Arquivo!$B$2:$B$20000,N$6,Arquivo!$C$2:$C$20000,O$6,Arquivo!$D$2:$D$20000,$C99)),0) -> 700 | O99: 0.0008698282189 | P99: =IFERROR((SUMIFS(Arquivo!$F$2:$F$20000,Arquivo!$B$2:$B$20000,P$6,Arquivo!$C$2:$C$20000,Q$6,Arquivo!$D$2:$D$20000,$C99)),0) -> 0 | Q99: 0 | R99: =IFERROR((SUMIFS(Arquivo!$F$2:$F$20000,Arquivo!$B$2:$B$20000,R$6,Arquivo!$C$2:$C$20000,S$6,Arquivo!$D$2:$D$20000,$C99)),0) -> 34 | S99: 5.588915996e-05 | T99: =IFERROR((SUMIFS(Arquivo!$F$2:$F$20000,Arquivo!$B$2:$B$20000,T$6,Arquivo!$C$2:$C$20000,U$6,Arquivo!$D$2:$D$20000,$C99)),0) -> 0 | U99: 0 | V99: =IFERROR((SUMIFS(Arquivo!$F$2:$F$20000,Arquivo!$B$2:$B$20000,V$6,Arquivo!$C$2:$C$20000,W$6,Arquivo!$D$2:$D$20000,$C99)),0) -> 0 | W99: 0 | X99: =IFERROR((SUMIFS(Arquivo!$F$2:$F$20000,Arquivo!$B$2:$B$20000,X$6,Arquivo!$C$2:$C$20000,Y$6,Arquivo!$D$2:$D$20000,$C99)),0) -> 0 | Y99: 0 | Z99: =IFERROR((SUMIFS(Arquivo!$F$2:$F$20000,Arquivo!$B$2:$B$20000,Z$6,Arquivo!$C$2:$C$20000,AA$6,Arquivo!$D$2:$D$20000,$C99)),0) -> 0 | AA99: 0 | AB99: =IFERROR((SUMIFS(Arquivo!$F$2:$F$20000,Arquivo!$B$2:$B$20000,AB$6,Arquivo!$C$2:$C$20000,AC$6,Arquivo!$D$2:$D$20000,$C99)),0) -> 0 | AC99: 0 | AD99: 7005.99 | AE99: 0.00109287252 | AH99: X
C100: =IF('Plano de Contas'!B86="","",'Plano de Contas'!B86) ->  | D100: =IF($C100="","",VLOOKUP($C100,'Plano de Contas'!$B$2:$E$200,4,FALSE)) ->  | E100: =IF($C100="","",VLOOKUP($C100,'Plano de Contas'!$B$2:$E$200,3,FALSE)) ->  | F100: =IFERROR((SUMIFS(Arquivo!$F$2:$F$20000,Arquivo!$B$2:$B$20000,F$6,Arquivo!$C$2:$C$20000,G$6,Arquivo!$D$2:$D$20000,$C100)),0) -> 0 | G100: 0 | H100: =IFERROR((SUMIFS(Arquivo!$F$2:$F$20000,Arquivo!$B$2:$B$20000,H$6,Arquivo!$C$2:$C$20000,I$6,Arquivo!$D$2:$D$20000,$C100)),0) -> 0 | I100: 0 | J100: =IFERROR((SUMIFS(Arquivo!$F$2:$F$20000,Arquivo!$B$2:$B$20000,J$6,Arquivo!$C$2:$C$20000,K$6,Arquivo!$D$2:$D$20000,$C100)),0) -> 0 | K100: 0 | L100: =IFERROR((SUMIFS(Arquivo!$F$2:$F$20000,Arquivo!$B$2:$B$20000,L$6,Arquivo!$C$2:$C$20000,M$6,Arquivo!$D$2:$D$20000,$C100)),0) -> 0 | M100: 0 | N100: =IFERROR((SUMIFS(Arquivo!$F$2:$F$20000,Arquivo!$B$2:$B$20000,N$6,Arquivo!$C$2:$C$20000,O$6,Arquivo!$D$2:$D$20000,$C100)),0) -> 0 | O100: 0 | P100: =IFERROR((SUMIFS(Arquivo!$F$2:$F$20000,Arquivo!$B$2:$B$20000,P$6,Arquivo!$C$2:$C$20000,Q$6,Arquivo!$D$2:$D$20000,$C100)),0) -> 0 | Q100: 0 | R100: =IFERROR((SUMIFS(Arquivo!$F$2:$F$20000,Arquivo!$B$2:$B$20000,R$6,Arquivo!$C$2:$C$20000,S$6,Arquivo!$D$2:$D$20000,$C100)),0) -> 0 | S100: 0 | T100: =IFERROR((SUMIFS(Arquivo!$F$2:$F$20000,Arquivo!$B$2:$B$20000,T$6,Arquivo!$C$2:$C$20000,U$6,Arquivo!$D$2:$D$20000,$C100)),0) -> 0 | U100: 0 | V100: =IFERROR((SUMIFS(Arquivo!$F$2:$F$20000,Arquivo!$B$2:$B$20000,V$6,Arquivo!$C$2:$C$20000,W$6,Arquivo!$D$2:$D$20000,$C100)),0) -> 0 | W100: 0 | X100: =IFERROR((SUMIFS(Arquivo!$F$2:$F$20000,Arquivo!$B$2:$B$20000,X$6,Arquivo!$C$2:$C$20000,Y$6,Arquivo!$D$2:$D$20000,$C100)),0) -> 0 | Y100: 0 | Z100: =IFERROR((SUMIFS(Arquivo!$F$2:$F$20000,Arquivo!$B$2:$B$20000,Z$6,Arquivo!$C$2:$C$20000,AA$6,Arquivo!$D$2:$D$20000,$C100)),0) -> 0 | AA100: 0 | AB100: =IFERROR((SUMIFS(Arquivo!$F$2:$F$20000,Arquivo!$B$2:$B$20000,AB$6,Arquivo!$C$2:$C$20000,AC$6,Arquivo!$D$2:$D$20000,$C100)),0) -> 0 | AC100: 0 | AD100: 0 | AE100: 0
C101: =IF('Plano de Contas'!B87="","",'Plano de Contas'!B87) ->  | D101: =IF($C101="","",VLOOKUP($C101,'Plano de Contas'!$B$2:$E$200,4,FALSE)) ->  | E101: =IF($C101="","",VLOOKUP($C101,'Plano de Contas'!$B$2:$E$200,3,FALSE)) ->  | F101: =IFERROR((SUMIFS(Arquivo!$F$2:$F$20000,Arquivo!$B$2:$B$20000,F$6,Arquivo!$C$2:$C$20000,G$6,Arquivo!$D$2:$D$20000,$C101)),0) -> 0 | G101: 0 | H101: =IFERROR((SUMIFS(Arquivo!$F$2:$F$20000,Arquivo!$B$2:$B$20000,H$6,Arquivo!$C$2:$C$20000,I$6,Arquivo!$D$2:$D$20000,$C101)),0) -> 0 | I101: 0 | J101: =IFERROR((SUMIFS(Arquivo!$F$2:$F$20000,Arquivo!$B$2:$B$20000,J$6,Arquivo!$C$2:$C$20000,K$6,Arquivo!$D$2:$D$20000,$C101)),0) -> 0 | K101: 0 | L101: =IFERROR((SUMIFS(Arquivo!$F$2:$F$20000,Arquivo!$B$2:$B$20000,L$6,Arquivo!$C$2:$C$20000,M$6,Arquivo!$D$2:$D$20000,$C101)),0) -> 0 | M101: 0 | N101: =IFERROR((SUMIFS(Arquivo!$F$2:$F$20000,Arquivo!$B$2:$B$20000,N$6,Arquivo!$C$2:$C$20000,O$6,Arquivo!$D$2:$D$20000,$C101)),0) -> 0 | O101: 0 | P101: =IFERROR((SUMIFS(Arquivo!$F$2:$F$20000,Arquivo!$B$2:$B$20000,P$6,Arquivo!$C$2:$C$20000,Q$6,Arquivo!$D$2:$D$20000,$C101)),0) -> 0 | Q101: 0 | R101: =IFERROR((SUMIFS(Arquivo!$F$2:$F$20000,Arquivo!$B$2:$B$20000,R$6,Arquivo!$C$2:$C$20000,S$6,Arquivo!$D$2:$D$20000,$C101)),0) -> 0 | S101: 0 | T101: =IFERROR((SUMIFS(Arquivo!$F$2:$F$20000,Arquivo!$B$2:$B$20000,T$6,Arquivo!$C$2:$C$20000,U$6,Arquivo!$D$2:$D$20000,$C101)),0) -> 0 | U101: 0 | V101: =IFERROR((SUMIFS(Arquivo!$F$2:$F$20000,Arquivo!$B$2:$B$20000,V$6,Arquivo!$C$2:$C$20000,W$6,Arquivo!$D$2:$D$20000,$C101)),0) -> 0 | W101: 0 | X101: =IFERROR((SUMIFS(Arquivo!$F$2:$F$20000,Arquivo!$B$2:$B$20000,X$6,Arquivo!$C$2:$C$20000,Y$6,Arquivo!$D$2:$D$20000,$C101)),0) -> 0 | Y101: 0 | Z101: =IFERROR((SUMIFS(Arquivo!$F$2:$F$20000,Arquivo!$B$2:$B$20000,Z$6,Arquivo!$C$2:$C$20000,AA$6,Arquivo!$D$2:$D$20000,$C101)),0) -> 0 | AA101: 0 | AB101: =IFERROR((SUMIFS(Arquivo!$F$2:$F$20000,Arquivo!$B$2:$B$20000,AB$6,Arquivo!$C$2:$C$20000,AC$6,Arquivo!$D$2:$D$20000,$C101)),0) -> 0 | AC101: 0 | AD101: 0 | AE101: 0
C102: =IF('Plano de Contas'!B88="","",'Plano de Contas'!B88) ->  | D102: =IF($C102="","",VLOOKUP($C102,'Plano de Contas'!$B$2:$E$200,4,FALSE)) ->  | E102: =IF($C102="","",VLOOKUP($C102,'Plano de Contas'!$B$2:$E$200,3,FALSE)) ->  | F102: =IFERROR((SUMIFS(Arquivo!$F$2:$F$20000,Arquivo!$B$2:$B$20000,F$6,Arquivo!$C$2:$C$20000,G$6,Arquivo!$D$2:$D$20000,$C102)),0) -> 0 | G102: 0 | H102: =IFERROR((SUMIFS(Arquivo!$F$2:$F$20000,Arquivo!$B$2:$B$20000,H$6,Arquivo!$C$2:$C$20000,I$6,Arquivo!$D$2:$D$20000,$C102)),0) -> 0 | I102: 0 | J102: =IFERROR((SUMIFS(Arquivo!$F$2:$F$20000,Arquivo!$B$2:$B$20000,J$6,Arquivo!$C$2:$C$20000,K$6,Arquivo!$D$2:$D$20000,$C102)),0) -> 0 | K102: 0 | L102: =IFERROR((SUMIFS(Arquivo!$F$2:$F$20000,Arquivo!$B$2:$B$20000,L$6,Arquivo!$C$2:$C$20000,M$6,Arquivo!$D$2:$D$20000,$C102)),0) -> 0 | M102: 0 | N102: =IFERROR((SUMIFS(Arquivo!$F$2:$F$20000,Arquivo!$B$2:$B$20000,N$6,Arquivo!$C$2:$C$20000,O$6,Arquivo!$D$2:$D$20000,$C102)),0) -> 0 | O102: 0 | P102: =IFERROR((SUMIFS(Arquivo!$F$2:$F$20000,Arquivo!$B$2:$B$20000,P$6,Arquivo!$C$2:$C$20000,Q$6,Arquivo!$D$2:$D$20000,$C102)),0) -> 0 | Q102: 0 | R102: =IFERROR((SUMIFS(Arquivo!$F$2:$F$20000,Arquivo!$B$2:$B$20000,R$6,Arquivo!$C$2:$C$20000,S$6,Arquivo!$D$2:$D$20000,$C102)),0) -> 0 | S102: 0 | T102: =IFERROR((SUMIFS(Arquivo!$F$2:$F$20000,Arquivo!$B$2:$B$20000,T$6,Arquivo!$C$2:$C$20000,U$6,Arquivo!$D$2:$D$20000,$C102)),0) -> 0 | U102: 0 | V102: =IFERROR((SUMIFS(Arquivo!$F$2:$F$20000,Arquivo!$B$2:$B$20000,V$6,Arquivo!$C$2:$C$20000,W$6,Arquivo!$D$2:$D$20000,$C102)),0) -> 0 | W102: 0 | X102: =IFERROR((SUMIFS(Arquivo!$F$2:$F$20000,Arquivo!$B$2:$B$20000,X$6,Arquivo!$C$2:$C$20000,Y$6,Arquivo!$D$2:$D$20000,$C102)),0) -> 0 | Y102: 0 | Z102: =IFERROR((SUMIFS(Arquivo!$F$2:$F$20000,Arquivo!$B$2:$B$20000,Z$6,Arquivo!$C$2:$C$20000,AA$6,Arquivo!$D$2:$D$20000,$C102)),0) -> 0 | AA102: 0 | AB102: =IFERROR((SUMIFS(Arquivo!$F$2:$F$20000,Arquivo!$B$2:$B$20000,AB$6,Arquivo!$C$2:$C$20000,AC$6,Arquivo!$D$2:$D$20000,$C102)),0) -> 0 | AC102: 0 | AD102: 0 | AE102: 0
C103: =IF('Plano de Contas'!B89="","",'Plano de Contas'!B89) ->  | D103: =IF($C103="","",VLOOKUP($C103,'Plano de Contas'!$B$2:$E$200,4,FALSE)) ->  | E103: =IF($C103="","",VLOOKUP($C103,'Plano de Contas'!$B$2:$E$200,3,FALSE)) ->  | F103: =IFERROR((SUMIFS(Arquivo!$F$2:$F$20000,Arquivo!$B$2:$B$20000,F$6,Arquivo!$C$2:$C$20000,G$6,Arquivo!$D$2:$D$20000,$C103)),0) -> 0 | G103: 0 | H103: =IFERROR((SUMIFS(Arquivo!$F$2:$F$20000,Arquivo!$B$2:$B$20000,H$6,Arquivo!$C$2:$C$20000,I$6,Arquivo!$D$2:$D$20000,$C103)),0) -> 0 | I103: 0 | J103: =IFERROR((SUMIFS(Arquivo!$F$2:$F$20000,Arquivo!$B$2:$B$20000,J$6,Arquivo!$C$2:$C$20000,K$6,Arquivo!$D$2:$D$20000,$C103)),0) -> 0 | K103: 0 | L103: =IFERROR((SUMIFS(Arquivo!$F$2:$F$20000,Arquivo!$B$2:$B$20000,L$6,Arquivo!$C$2:$C$20000,M$6,Arquivo!$D$2:$D$20000,$C103)),0) -> 0 | M103: 0 | N103: =IFERROR((SUMIFS(Arquivo!$F$2:$F$20000,Arquivo!$B$2:$B$20000,N$6,Arquivo!$C$2:$C$20000,O$6,Arquivo!$D$2:$D$20000,$C103)),0) -> 0 | O103: 0 | P103: =IFERROR((SUMIFS(Arquivo!$F$2:$F$20000,Arquivo!$B$2:$B$20000,P$6,Arquivo!$C$2:$C$20000,Q$6,Arquivo!$D$2:$D$20000,$C103)),0) -> 0 | Q103: 0 | R103: =IFERROR((SUMIFS(Arquivo!$F$2:$F$20000,Arquivo!$B$2:$B$20000,R$6,Arquivo!$C$2:$C$20000,S$6,Arquivo!$D$2:$D$20000,$C103)),0) -> 0 | S103: 0 | T103: =IFERROR((SUMIFS(Arquivo!$F$2:$F$20000,Arquivo!$B$2:$B$20000,T$6,Arquivo!$C$2:$C$20000,U$6,Arquivo!$D$2:$D$20000,$C103)),0) -> 0 | U103: 0 | V103: =IFERROR((SUMIFS(Arquivo!$F$2:$F$20000,Arquivo!$B$2:$B$20000,V$6,Arquivo!$C$2:$C$20000,W$6,Arquivo!$D$2:$D$20000,$C103)),0) -> 0 | W103: 0 | X103: =IFERROR((SUMIFS(Arquivo!$F$2:$F$20000,Arquivo!$B$2:$B$20000,X$6,Arquivo!$C$2:$C$20000,Y$6,Arquivo!$D$2:$D$20000,$C103)),0) -> 0 | Y103: 0 | Z103: =IFERROR((SUMIFS(Arquivo!$F$2:$F$20000,Arquivo!$B$2:$B$20000,Z$6,Arquivo!$C$2:$C$20000,AA$6,Arquivo!$D$2:$D$20000,$C103)),0) -> 0 | AA103: 0 | AB103: =IFERROR((SUMIFS(Arquivo!$F$2:$F$20000,Arquivo!$B$2:$B$20000,AB$6,Arquivo!$C$2:$C$20000,AC$6,Arquivo!$D$2:$D$20000,$C103)),0) -> 0 | AC103: 0 | AD103: 0 | AE103: 0
C104: =IF('Plano de Contas'!B90="","",'Plano de Contas'!B90) ->  | D104: =IF($C104="","",VLOOKUP($C104,'Plano de Contas'!$B$2:$E$200,4,FALSE)) ->  | E104: =IF($C104="","",VLOOKUP($C104,'Plano de Contas'!$B$2:$E$200,3,FALSE)) ->  | F104: =IFERROR((SUMIFS(Arquivo!$F$2:$F$20000,Arquivo!$B$2:$B$20000,F$6,Arquivo!$C$2:$C$20000,G$6,Arquivo!$D$2:$D$20000,$C104)),0) -> 0 | G104: 0 | H104: =IFERROR((SUMIFS(Arquivo!$F$2:$F$20000,Arquivo!$B$2:$B$20000,H$6,Arquivo!$C$2:$C$20000,I$6,Arquivo!$D$2:$D$20000,$C104)),0) -> 0 | I104: 0 | J104: =IFERROR((SUMIFS(Arquivo!$F$2:$F$20000,Arquivo!$B$2:$B$20000,J$6,Arquivo!$C$2:$C$20000,K$6,Arquivo!$D$2:$D$20000,$C104)),0) -> 0 | K104: 0 | L104: =IFERROR((SUMIFS(Arquivo!$F$2:$F$20000,Arquivo!$B$2:$B$20000,L$6,Arquivo!$C$2:$C$20000,M$6,Arquivo!$D$2:$D$20000,$C104)),0) -> 0 | M104: 0 | N104: =IFERROR((SUMIFS(Arquivo!$F$2:$F$20000,Arquivo!$B$2:$B$20000,N$6,Arquivo!$C$2:$C$20000,O$6,Arquivo!$D$2:$D$20000,$C104)),0) -> 0 | O104: 0 | P104: =IFERROR((SUMIFS(Arquivo!$F$2:$F$20000,Arquivo!$B$2:$B$20000,P$6,Arquivo!$C$2:$C$20000,Q$6,Arquivo!$D$2:$D$20000,$C104)),0) -> 0 | Q104: 0 | R104: =IFERROR((SUMIFS(Arquivo!$F$2:$F$20000,Arquivo!$B$2:$B$20000,R$6,Arquivo!$C$2:$C$20000,S$6,Arquivo!$D$2:$D$20000,$C104)),0) -> 0 | S104: 0 | T104: =IFERROR((SUMIFS(Arquivo!$F$2:$F$20000,Arquivo!$B$2:$B$20000,T$6,Arquivo!$C$2:$C$20000,U$6,Arquivo!$D$2:$D$20000,$C104)),0) -> 0 | U104: 0 | V104: =IFERROR((SUMIFS(Arquivo!$F$2:$F$20000,Arquivo!$B$2:$B$20000,V$6,Arquivo!$C$2:$C$20000,W$6,Arquivo!$D$2:$D$20000,$C104)),0) -> 0 | W104: 0 | X104: =IFERROR((SUMIFS(Arquivo!$F$2:$F$20000,Arquivo!$B$2:$B$20000,X$6,Arquivo!$C$2:$C$20000,Y$6,Arquivo!$D$2:$D$20000,$C104)),0) -> 0 | Y104: 0 | Z104: =IFERROR((SUMIFS(Arquivo!$F$2:$F$20000,Arquivo!$B$2:$B$20000,Z$6,Arquivo!$C$2:$C$20000,AA$6,Arquivo!$D$2:$D$20000,$C104)),0) -> 0 | AA104: 0 | AB104: =IFERROR((SUMIFS(Arquivo!$F$2:$F$20000,Arquivo!$B$2:$B$20000,AB$6,Arquivo!$C$2:$C$20000,AC$6,Arquivo!$D$2:$D$20000,$C104)),0) -> 0 | AC104: 0 | AD104: 0 | AE104: 0
AH105: =IF(AH96="","","X") -> X
D106: DESPESAS COM TRANSPORTE | F106: =SUBTOTAL(9,F107:F135) -> 10762.03 | G106: =IFERROR((F106/IF($X$3="CT",F$10,F$106)),0) -> 0.0112031332 | H106: =SUBTOTAL(9,H107:H135) -> 11770.7 | I106: =IFERROR((H106/IF($X$3="CT",H$10,H$106)),0) -> 0.01432777691 | J106: =SUBTOTAL(9,J107:J135) -> 18610.4 | K106: =IFERROR((J106/IF($X$3="CT",J$10,J$106)),0) -> 0.01406397634 | L106: =SUBTOTAL(9,L107:L135) -> 21673.08 | M106: =IFERROR((L106/IF($X$3="CT",L$10,L$106)),0) -> 0.02148140678 | N106: =SUBTOTAL(9,N107:N135) -> 13275.43 | O106: =IFERROR((N106/IF($X$3="CT",N$10,N$106)),0) -> 0.01649620519 | P106: =SUBTOTAL(9,P107:P135) -> 15185.4 | Q106: =IFERROR((P106/IF($X$3="CT",P$10,P$106)),0) -> 0.01719421569 | R106: =SUBTOTAL(9,R107:R135) -> 18059.56 | S106: =IFERROR((R106/IF($X$3="CT",R$10,R$106)),0) -> 0.02968628346 | T106: =SUBTOTAL(9,T107:T135) -> 0 | U106: =IFERROR((T106/IF($X$3="CT",T$10,T$106)),0) -> 0 | V106: =SUBTOTAL(9,V107:V135) -> 0 | W106: =IFERROR((V106/IF($X$3="CT",V$10,V$106)),0) -> 0 | X106: =SUBTOTAL(9,X107:X135) -> 0 | Y106: =IFERROR((X106/IF($X$3="CT",X$10,X$106)),0) -> 0 | Z106: =SUBTOTAL(9,Z107:Z135) -> 0 | AA106: =IFERROR((Z106/IF($X$3="CT",Z$10,Z$106)),0) -> 0 | AB106: =SUBTOTAL(9,AB107:AB135) -> 0 | AC106: =IFERROR((AB106/IF($X$3="CT",AB$10,AB$106)),0) -> 0 | AD106: =SUBTOTAL(9,AD107:AD135) -> 109336.6 | AE106: =IFERROR((AD106/IF($X$3="CT",AD$10,AD$106)),0) -> 0.01705554327 | AH106: =IF(COUNTIF(AH107:AH134,"X")>0,"X","") -> X
C107: =IF('Plano de Contas'!B92="","",'Plano de Contas'!B92) -> 8.2.2.1 | D107: =IF($C107="","",VLOOKUP($C107,'Plano de Contas'!$B$2:$E$200,4,FALSE)) -> CV | E107: =IF($C107="","",VLOOKUP($C107,'Plano de Contas'!$B$2:$E$200,3,FALSE)) -> MANUTENCAO VEICULO | F107: =IFERROR((SUMIFS(Arquivo!$F$2:$F$20000,Arquivo!$B$2:$B$20000,F$6,Arquivo!$C$2:$C$20000,G$6,Arquivo!$D$2:$D$20000,$C107)),0) -> 1681.8 | G107: 0.001750731918 | H107: =IFERROR((SUMIFS(Arquivo!$F$2:$F$20000,Arquivo!$B$2:$B$20000,H$6,Arquivo!$C$2:$C$20000,I$6,Arquivo!$D$2:$D$20000,$C107)),0) -> 670 | I107: 0.0008155513718 | J107: =IFERROR((SUMIFS(Arquivo!$F$2:$F$20000,Arquivo!$B$2:$B$20000,J$6,Arquivo!$C$2:$C$20000,K$6,Arquivo!$D$2:$D$20000,$C107)),0) -> 1301.05 | K107: 0.0009832102705 | L107: =IFERROR((SUMIFS(Arquivo!$F$2:$F$20000,Arquivo!$B$2:$B$20000,L$6,Arquivo!$C$2:$C$20000,M$6,Arquivo!$D$2:$D$20000,$C107)),0) -> 2434 | M107: 0.002412474097 | N107: =IFERROR((SUMIFS(Arquivo!$F$2:$F$20000,Arquivo!$B$2:$B$20000,N$6,Arquivo!$C$2:$C$20000,O$6,Arquivo!$D$2:$D$20000,$C107)),0) -> 1609.5 | O107: 0.001999983598 | P107: =IFERROR((SUMIFS(Arquivo!$F$2:$F$20000,Arquivo!$B$2:$B$20000,P$6,Arquivo!$C$2:$C$20000,Q$6,Arquivo!$D$2:$D$20000,$C107)),0) -> 301.87 | Q107: 0.0003418031722 | R107: =IFERROR((SUMIFS(Arquivo!$F$2:$F$20000,Arquivo!$B$2:$B$20000,R$6,Arquivo!$C$2:$C$20000,S$6,Arquivo!$D$2:$D$20000,$C107)),0) -> 2120 | S107: 0.003484853503 | T107: =IFERROR((SUMIFS(Arquivo!$F$2:$F$20000,Arquivo!$B$2:$B$20000,T$6,Arquivo!$C$2:$C$20000,U$6,Arquivo!$D$2:$D$20000,$C107)),0) -> 0 | U107: 0 | V107: =IFERROR((SUMIFS(Arquivo!$F$2:$F$20000,Arquivo!$B$2:$B$20000,V$6,Arquivo!$C$2:$C$20000,W$6,Arquivo!$D$2:$D$20000,$C107)),0) -> 0 | W107: 0 | X107: =IFERROR((SUMIFS(Arquivo!$F$2:$F$20000,Arquivo!$B$2:$B$20000,X$6,Arquivo!$C$2:$C$20000,Y$6,Arquivo!$D$2:$D$20000,$C107)),0) -> 0 | Y107: 0 | Z107: =IFERROR((SUMIFS(Arquivo!$F$2:$F$20000,Arquivo!$B$2:$B$20000,Z$6,Arquivo!$C$2:$C$20000,AA$6,Arquivo!$D$2:$D$20000,$C107)),0) -> 0 | AA107: 0 | AB107: =IFERROR((SUMIFS(Arquivo!$F$2:$F$20000,Arquivo!$B$2:$B$20000,AB$6,Arquivo!$C$2:$C$20000,AC$6,Arquivo!$D$2:$D$20000,$C107)),0) -> 0 | AC107: 0 | AD107: =F107+H107+J107+L107+N107+P107+R107+T107+V107+X107+Z107+AB107 -> 10118.22 | AE107: 0.001578352894 | AH107: =IF($AD107=0,"",IF($X$3="CT","X",IF($X$3=$D107,"X",""))) -> X
C108: =IF('Plano de Contas'!B93="","",'Plano de Contas'!B93) -> 8.2.2.2 | D108: =IF($C108="","",VLOOKUP($C108,'Plano de Contas'!$B$2:$E$200,4,FALSE)) -> CV | E108: =IF($C108="","",VLOOKUP($C108,'Plano de Contas'!$B$2:$E$200,3,FALSE)) -> COMBUSTIVEL | F108: =IFERROR((SUMIFS(Arquivo!$F$2:$F$20000,Arquivo!$B$2:$B$20000,F$6,Arquivo!$C$2:$C$20000,G$6,Arquivo!$D$2:$D$20000,$C108)),0) -> 2911.91 | G108: 0.003031260423 | H108: =IFERROR((SUMIFS(Arquivo!$F$2:$F$20000,Arquivo!$B$2:$B$20000,H$6,Arquivo!$C$2:$C$20000,I$6,Arquivo!$D$2:$D$20000,$C108)),0) -> 2976.37 | I108: 0.003622959159 | J108: =IFERROR((SUMIFS(Arquivo!$F$2:$F$20000,Arquivo!$B$2:$B$20000,J$6,Arquivo!$C$2:$C$20000,K$6,Arquivo!$D$2:$D$20000,$C108)),0) -> 3177.73 | K108: 0.002401427134 | L108: =IFERROR((SUMIFS(Arquivo!$F$2:$F$20000,Arquivo!$B$2:$B$20000,L$6,Arquivo!$C$2:$C$20000,M$6,Arquivo!$D$2:$D$20000,$C108)),0) -> 2758.43 | M108: 0.00273403489 | N108: =IFERROR((SUMIFS(Arquivo!$F$2:$F$20000,Arquivo!$B$2:$B$20000,N$6,Arquivo!$C$2:$C$20000,O$6,Arquivo!$D$2:$D$20000,$C108)),0) -> 1715.78 | O108: 0.002132048373 | P108: =IFERROR((SUMIFS(Arquivo!$F$2:$F$20000,Arquivo!$B$2:$B$20000,P$6,Arquivo!$C$2:$C$20000,Q$6,Arquivo!$D$2:$D$20000,$C108)),0) -> 2874.32 | Q108: 0.003254552271 | R108: =IFERROR((SUMIFS(Arquivo!$F$2:$F$20000,Arquivo!$B$2:$B$20000,R$6,Arquivo!$C$2:$C$20000,S$6,Arquivo!$D$2:$D$20000,$C108)),0) -> 3506.51 | S108: 0.005763997009 | T108: =IFERROR((SUMIFS(Arquivo!$F$2:$F$20000,Arquivo!$B$2:$B$20000,T$6,Arquivo!$C$2:$C$20000,U$6,Arquivo!$D$2:$D$20000,$C108)),0) -> 0 | U108: 0 | V108: =IFERROR((SUMIFS(Arquivo!$F$2:$F$20000,Arquivo!$B$2:$B$20000,V$6,Arquivo!$C$2:$C$20000,W$6,Arquivo!$D$2:$D$20000,$C108)),0) -> 0 | W108: 0 | X108: =IFERROR((SUMIFS(Arquivo!$F$2:$F$20000,Arquivo!$B$2:$B$20000,X$6,Arquivo!$C$2:$C$20000,Y$6,Arquivo!$D$2:$D$20000,$C108)),0) -> 0 | Y108: 0 | Z108: =IFERROR((SUMIFS(Arquivo!$F$2:$F$20000,Arquivo!$B$2:$B$20000,Z$6,Arquivo!$C$2:$C$20000,AA$6,Arquivo!$D$2:$D$20000,$C108)),0) -> 0 | AA108: 0 | AB108: =IFERROR((SUMIFS(Arquivo!$F$2:$F$20000,Arquivo!$B$2:$B$20000,AB$6,Arquivo!$C$2:$C$20000,AC$6,Arquivo!$D$2:$D$20000,$C108)),0) -> 0 | AC108: 0 | AD108: 19921.05 | AE108: 0.003107507736 | AH108: X
C109: =IF('Plano de Contas'!B94="","",'Plano de Contas'!B94) -> 8.2.2.3 | D109: =IF($C109="","",VLOOKUP($C109,'Plano de Contas'!$B$2:$E$200,4,FALSE)) -> CV | E109: =IF($C109="","",VLOOKUP($C109,'Plano de Contas'!$B$2:$E$200,3,FALSE)) -> PECAS E REPAROS | F109: =IFERROR((SUMIFS(Arquivo!$F$2:$F$20000,Arquivo!$B$2:$B$20000,F$6,Arquivo!$C$2:$C$20000,G$6,Arquivo!$D$2:$D$20000,$C109)),0) -> 0 | G109: 0 | H109: =IFERROR((SUMIFS(Arquivo!$F$2:$F$20000,Arquivo!$B$2:$B$20000,H$6,Arquivo!$C$2:$C$20000,I$6,Arquivo!$D$2:$D$20000,$C109)),0) -> 0 | I109: 0 | J109: =IFERROR((SUMIFS(Arquivo!$F$2:$F$20000,Arquivo!$B$2:$B$20000,J$6,Arquivo!$C$2:$C$20000,K$6,Arquivo!$D$2:$D$20000,$C109)),0) -> 0 | K109: 0 | L109: =IFERROR((SUMIFS(Arquivo!$F$2:$F$20000,Arquivo!$B$2:$B$20000,L$6,Arquivo!$C$2:$C$20000,M$6,Arquivo!$D$2:$D$20000,$C109)),0) -> 0 | M109: 0 | N109: =IFERROR((SUMIFS(Arquivo!$F$2:$F$20000,Arquivo!$B$2:$B$20000,N$6,Arquivo!$C$2:$C$20000,O$6,Arquivo!$D$2:$D$20000,$C109)),0) -> 0 | O109: 0 | P109: =IFERROR((SUMIFS(Arquivo!$F$2:$F$20000,Arquivo!$B$2:$B$20000,P$6,Arquivo!$C$2:$C$20000,Q$6,Arquivo!$D$2:$D$20000,$C109)),0) -> 0 | Q109: 0 | R109: =IFERROR((SUMIFS(Arquivo!$F$2:$F$20000,Arquivo!$B$2:$B$20000,R$6,Arquivo!$C$2:$C$20000,S$6,Arquivo!$D$2:$D$20000,$C109)),0) -> 0 | S109: 0 | T109: =IFERROR((SUMIFS(Arquivo!$F$2:$F$20000,Arquivo!$B$2:$B$20000,T$6,Arquivo!$C$2:$C$20000,U$6,Arquivo!$D$2:$D$20000,$C109)),0) -> 0 | U109: 0 | V109: =IFERROR((SUMIFS(Arquivo!$F$2:$F$20000,Arquivo!$B$2:$B$20000,V$6,Arquivo!$C$2:$C$20000,W$6,Arquivo!$D$2:$D$20000,$C109)),0) -> 0 | W109: 0 | X109: =IFERROR((SUMIFS(Arquivo!$F$2:$F$20000,Arquivo!$B$2:$B$20000,X$6,Arquivo!$C$2:$C$20000,Y$6,Arquivo!$D$2:$D$20000,$C109)),0) -> 0 | Y109: 0 | Z109: =IFERROR((SUMIFS(Arquivo!$F$2:$F$20000,Arquivo!$B$2:$B$20000,Z$6,Arquivo!$C$2:$C$20000,AA$6,Arquivo!$D$2:$D$20000,$C109)),0) -> 0 | AA109: 0 | AB109: =IFERROR((SUMIFS(Arquivo!$F$2:$F$20000,Arquivo!$B$2:$B$20000,AB$6,Arquivo!$C$2:$C$20000,AC$6,Arquivo!$D$2:$D$20000,$C109)),0) -> 0 | AC109: 0 | AD109: 0 | AE109: 0
C110: =IF('Plano de Contas'!B95="","",'Plano de Contas'!B95) -> 8.2.2.4 | D110: =IF($C110="","",VLOOKUP($C110,'Plano de Contas'!$B$2:$E$200,4,FALSE)) -> CV | E110: =IF($C110="","",VLOOKUP($C110,'Plano de Contas'!$B$2:$E$200,3,FALSE)) -> BALDEIO | F110: =IFERROR((SUMIFS(Arquivo!$F$2:$F$20000,Arquivo!$B$2:$B$20000,F$6,Arquivo!$C$2:$C$20000,G$6,Arquivo!$D$2:$D$20000,$C110)),0) -> 0 | G110: 0 | H110: =IFERROR((SUMIFS(Arquivo!$F$2:$F$20000,Arquivo!$B$2:$B$20000,H$6,Arquivo!$C$2:$C$20000,I$6,Arquivo!$D$2:$D$20000,$C110)),0) -> 0 | I110: 0 | J110: =IFERROR((SUMIFS(Arquivo!$F$2:$F$20000,Arquivo!$B$2:$B$20000,J$6,Arquivo!$C$2:$C$20000,K$6,Arquivo!$D$2:$D$20000,$C110)),0) -> 0 | K110: 0 | L110: =IFERROR((SUMIFS(Arquivo!$F$2:$F$20000,Arquivo!$B$2:$B$20000,L$6,Arquivo!$C$2:$C$20000,M$6,Arquivo!$D$2:$D$20000,$C110)),0) -> 0 | M110: 0 | N110: =IFERROR((SUMIFS(Arquivo!$F$2:$F$20000,Arquivo!$B$2:$B$20000,N$6,Arquivo!$C$2:$C$20000,O$6,Arquivo!$D$2:$D$20000,$C110)),0) -> 0 | O110: 0 | P110: =IFERROR((SUMIFS(Arquivo!$F$2:$F$20000,Arquivo!$B$2:$B$20000,P$6,Arquivo!$C$2:$C$20000,Q$6,Arquivo!$D$2:$D$20000,$C110)),0) -> 0 | Q110: 0 | R110: =IFERROR((SUMIFS(Arquivo!$F$2:$F$20000,Arquivo!$B$2:$B$20000,R$6,Arquivo!$C$2:$C$20000,S$6,Arquivo!$D$2:$D$20000,$C110)),0) -> 0 | S110: 0 | T110: =IFERROR((SUMIFS(Arquivo!$F$2:$F$20000,Arquivo!$B$2:$B$20000,T$6,Arquivo!$C$2:$C$20000,U$6,Arquivo!$D$2:$D$20000,$C110)),0) -> 0 | U110: 0 | V110: =IFERROR((SUMIFS(Arquivo!$F$2:$F$20000,Arquivo!$B$2:$B$20000,V$6,Arquivo!$C$2:$C$20000,W$6,Arquivo!$D$2:$D$20000,$C110)),0) -> 0 | W110: 0 | X110: =IFERROR((SUMIFS(Arquivo!$F$2:$F$20000,Arquivo!$B$2:$B$20000,X$6,Arquivo!$C$2:$C$20000,Y$6,Arquivo!$D$2:$D$20000,$C110)),0) -> 0 | Y110: 0 | Z110: =IFERROR((SUMIFS(Arquivo!$F$2:$F$20000,Arquivo!$B$2:$B$20000,Z$6,Arquivo!$C$2:$C$20000,AA$6,Arquivo!$D$2:$D$20000,$C110)),0) -> 0 | AA110: 0 | AB110: =IFERROR((SUMIFS(Arquivo!$F$2:$F$20000,Arquivo!$B$2:$B$20000,AB$6,Arquivo!$C$2:$C$20000,AC$6,Arquivo!$D$2:$D$20000,$C110)),0) -> 0 | AC110: 0 | AD110: 0 | AE110: 0
C111: =IF('Plano de Contas'!B96="","",'Plano de Contas'!B96) -> 8.2.2.5 | D111: =IF($C111="","",VLOOKUP($C111,'Plano de Contas'!$B$2:$E$200,4,FALSE)) -> CV | E111: =IF($C111="","",VLOOKUP($C111,'Plano de Contas'!$B$2:$E$200,3,FALSE)) -> BALSA | F111: =IFERROR((SUMIFS(Arquivo!$F$2:$F$20000,Arquivo!$B$2:$B$20000,F$6,Arquivo!$C$2:$C$20000,G$6,Arquivo!$D$2:$D$20000,$C111)),0) -> 0 | G111: 0 | H111: =IFERROR((SUMIFS(Arquivo!$F$2:$F$20000,Arquivo!$B$2:$B$20000,H$6,Arquivo!$C$2:$C$20000,I$6,Arquivo!$D$2:$D$20000,$C111)),0) -> 0 | I111: 0 | J111: =IFERROR((SUMIFS(Arquivo!$F$2:$F$20000,Arquivo!$B$2:$B$20000,J$6,Arquivo!$C$2:$C$20000,K$6,Arquivo!$D$2:$D$20000,$C111)),0) -> 0 | K111: 0 | L111: =IFERROR((SUMIFS(Arquivo!$F$2:$F$20000,Arquivo!$B$2:$B$20000,L$6,Arquivo!$C$2:$C$20000,M$6,Arquivo!$D$2:$D$20000,$C111)),0) -> 0 | M111: 0 | N111: =IFERROR((SUMIFS(Arquivo!$F$2:$F$20000,Arquivo!$B$2:$B$20000,N$6,Arquivo!$C$2:$C$20000,O$6,Arquivo!$D$2:$D$20000,$C111)),0) -> 0 | O111: 0 | P111: =IFERROR((SUMIFS(Arquivo!$F$2:$F$20000,Arquivo!$B$2:$B$20000,P$6,Arquivo!$C$2:$C$20000,Q$6,Arquivo!$D$2:$D$20000,$C111)),0) -> 0 | Q111: 0 | R111: =IFERROR((SUMIFS(Arquivo!$F$2:$F$20000,Arquivo!$B$2:$B$20000,R$6,Arquivo!$C$2:$C$20000,S$6,Arquivo!$D$2:$D$20000,$C111)),0) -> 0 | S111: 0 | T111: =IFERROR((SUMIFS(Arquivo!$F$2:$F$20000,Arquivo!$B$2:$B$20000,T$6,Arquivo!$C$2:$C$20000,U$6,Arquivo!$D$2:$D$20000,$C111)),0) -> 0 | U111: 0 | V111: =IFERROR((SUMIFS(Arquivo!$F$2:$F$20000,Arquivo!$B$2:$B$20000,V$6,Arquivo!$C$2:$C$20000,W$6,Arquivo!$D$2:$D$20000,$C111)),0) -> 0 | W111: 0 | X111: =IFERROR((SUMIFS(Arquivo!$F$2:$F$20000,Arquivo!$B$2:$B$20000,X$6,Arquivo!$C$2:$C$20000,Y$6,Arquivo!$D$2:$D$20000,$C111)),0) -> 0 | Y111: 0 | Z111: =IFERROR((SUMIFS(Arquivo!$F$2:$F$20000,Arquivo!$B$2:$B$20000,Z$6,Arquivo!$C$2:$C$20000,AA$6,Arquivo!$D$2:$D$20000,$C111)),0) -> 0 | AA111: 0 | AB111: =IFERROR((SUMIFS(Arquivo!$F$2:$F$20000,Arquivo!$B$2:$B$20000,AB$6,Arquivo!$C$2:$C$20000,AC$6,Arquivo!$D$2:$D$20000,$C111)),0) -> 0 | AC111: 0 | AD111: 0 | AE111: 0
C112: =IF('Plano de Contas'!B97="","",'Plano de Contas'!B97) -> 8.2.2.6 | D112: =IF($C112="","",VLOOKUP($C112,'Plano de Contas'!$B$2:$E$200,4,FALSE)) -> CV | E112: =IF($C112="","",VLOOKUP($C112,'Plano de Contas'!$B$2:$E$200,3,FALSE)) -> ICMS SOBRE FRETE | F112: =IFERROR((SUMIFS(Arquivo!$F$2:$F$20000,Arquivo!$B$2:$B$20000,F$6,Arquivo!$C$2:$C$20000,G$6,Arquivo!$D$2:$D$20000,$C112)),0) -> 2965.94 | G112: 0.00308750495 | H112: =IFERROR((SUMIFS(Arquivo!$F$2:$F$20000,Arquivo!$B$2:$B$20000,H$6,Arquivo!$C$2:$C$20000,I$6,Arquivo!$D$2:$D$20000,$C112)),0) -> 2965.62 | I112: 0.00360987382 | J112: =IFERROR((SUMIFS(Arquivo!$F$2:$F$20000,Arquivo!$B$2:$B$20000,J$6,Arquivo!$C$2:$C$20000,K$6,Arquivo!$D$2:$D$20000,$C112)),0) -> 972.34 | K112: 0.0007348024092 | L112: =IFERROR((SUMIFS(Arquivo!$F$2:$F$20000,Arquivo!$B$2:$B$20000,L$6,Arquivo!$C$2:$C$20000,M$6,Arquivo!$D$2:$D$20000,$C112)),0) -> 644.48 | M112: 0.0006387803229 | N112: =IFERROR((SUMIFS(Arquivo!$F$2:$F$20000,Arquivo!$B$2:$B$20000,N$6,Arquivo!$C$2:$C$20000,O$6,Arquivo!$D$2:$D$20000,$C112)),0) -> 216.41 | O112: 0.0002689136069 | P112: =IFERROR((SUMIFS(Arquivo!$F$2:$F$20000,Arquivo!$B$2:$B$20000,P$6,Arquivo!$C$2:$C$20000,Q$6,Arquivo!$D$2:$D$20000,$C112)),0) -> 0 | Q112: 0 | R112: =IFERROR((SUMIFS(Arquivo!$F$2:$F$20000,Arquivo!$B$2:$B$20000,R$6,Arquivo!$C$2:$C$20000,S$6,Arquivo!$D$2:$D$20000,$C112)),0) -> 236.66 | S112: 0.0003890214293 | T112: =IFERROR((SUMIFS(Arquivo!$F$2:$F$20000,Arquivo!$B$2:$B$20000,T$6,Arquivo!$C$2:$C$20000,U$6,Arquivo!$D$2:$D$20000,$C112)),0) -> 0 | U112: 0 | V112: =IFERROR((SUMIFS(Arquivo!$F$2:$F$20000,Arquivo!$B$2:$B$20000,V$6,Arquivo!$C$2:$C$20000,W$6,Arquivo!$D$2:$D$20000,$C112)),0) -> 0 | W112: 0 | X112: =IFERROR((SUMIFS(Arquivo!$F$2:$F$20000,Arquivo!$B$2:$B$20000,X$6,Arquivo!$C$2:$C$20000,Y$6,Arquivo!$D$2:$D$20000,$C112)),0) -> 0 | Y112: 0 | Z112: =IFERROR((SUMIFS(Arquivo!$F$2:$F$20000,Arquivo!$B$2:$B$20000,Z$6,Arquivo!$C$2:$C$20000,AA$6,Arquivo!$D$2:$D$20000,$C112)),0) -> 0 | AA112: 0 | AB112: =IFERROR((SUMIFS(Arquivo!$F$2:$F$20000,Arquivo!$B$2:$B$20000,AB$6,Arquivo!$C$2:$C$20000,AC$6,Arquivo!$D$2:$D$20000,$C112)),0) -> 0 | AC112: 0 | AD112: =F112+H112+J112+L112+N112+P112+R112+T112+V112+X112+Z112+AB112 -> 8001.45 | AE112: 0.001248155483 | AH112: X
C113: =IF('Plano de Contas'!B98="","",'Plano de Contas'!B98) -> 8.2.2.7 | D113: =IF($C113="","",VLOOKUP($C113,'Plano de Contas'!$B$2:$E$200,4,FALSE)) -> CV | E113: =IF($C113="","",VLOOKUP($C113,'Plano de Contas'!$B$2:$E$200,3,FALSE)) -> FRETE TRANSPORTES | F113: =IFERROR((SUMIFS(Arquivo!$F$2:$F$20000,Arquivo!$B$2:$B$20000,F$6,Arquivo!$C$2:$C$20000,G$6,Arquivo!$D$2:$D$20000,$C113)),0) -> 0 | G113: 0 | H113: =IFERROR((SUMIFS(Arquivo!$F$2:$F$20000,Arquivo!$B$2:$B$20000,H$6,Arquivo!$C$2:$C$20000,I$6,Arquivo!$D$2:$D$20000,$C113)),0) -> 0 | I113: 0 | J113: =IFERROR((SUMIFS(Arquivo!$F$2:$F$20000,Arquivo!$B$2:$B$20000,J$6,Arquivo!$C$2:$C$20000,K$6,Arquivo!$D$2:$D$20000,$C113)),0) -> 1200 | K113: 0.0009068462585 | L113: =IFERROR((SUMIFS(Arquivo!$F$2:$F$20000,Arquivo!$B$2:$B$20000,L$6,Arquivo!$C$2:$C$20000,M$6,Arquivo!$D$2:$D$20000,$C113)),0) -> 6809.92 | M113: 0.006749694166 | N113: =IFERROR((SUMIFS(Arquivo!$F$2:$F$20000,Arquivo!$B$2:$B$20000,N$6,Arquivo!$C$2:$C$20000,O$6,Arquivo!$D$2:$D$20000,$C113)),0) -> 6278.89 | O113: 0.007802222436 | P113: =IFERROR((SUMIFS(Arquivo!$F$2:$F$20000,Arquivo!$B$2:$B$20000,P$6,Arquivo!$C$2:$C$20000,Q$6,Arquivo!$D$2:$D$20000,$C113)),0) -> 4756.82 | Q113: 0.00538608065 | R113: =IFERROR((SUMIFS(Arquivo!$F$2:$F$20000,Arquivo!$B$2:$B$20000,R$6,Arquivo!$C$2:$C$20000,S$6,Arquivo!$D$2:$D$20000,$C113)),0) -> 8369.89 | S113: 0.01375841533 | T113: =IFERROR((SUMIFS(Arquivo!$F$2:$F$20000,Arquivo!$B$2:$B$20000,T$6,Arquivo!$C$2:$C$20000,U$6,Arquivo!$D$2:$D$20000,$C113)),0) -> 0 | U113: 0 | V113: =IFERROR((SUMIFS(Arquivo!$F$2:$F$20000,Arquivo!$B$2:$B$20000,V$6,Arquivo!$C$2:$C$20000,W$6,Arquivo!$D$2:$D$20000,$C113)),0) -> 0 | W113: 0 | X113: =IFERROR((SUMIFS(Arquivo!$F$2:$F$20000,Arquivo!$B$2:$B$20000,X$6,Arquivo!$C$2:$C$20000,Y$6,Arquivo!$D$2:$D$20000,$C113)),0) -> 0 | Y113: 0 | Z113: =IFERROR((SUMIFS(Arquivo!$F$2:$F$20000,Arquivo!$B$2:$B$20000,Z$6,Arquivo!$C$2:$C$20000,AA$6,Arquivo!$D$2:$D$20000,$C113)),0) -> 0 | AA113: 0 | AB113: =IFERROR((SUMIFS(Arquivo!$F$2:$F$20000,Arquivo!$B$2:$B$20000,AB$6,Arquivo!$C$2:$C$20000,AC$6,Arquivo!$D$2:$D$20000,$C113)),0) -> 0 | AC113: 0 | AD113: 27415.52 | AE113: 0.004276578819 | AH113: X
C114: =IF('Plano de Contas'!B99="","",'Plano de Contas'!B99) -> 8.2.2.8 | D114: =IF($C114="","",VLOOKUP($C114,'Plano de Contas'!$B$2:$E$200,4,FALSE)) -> CV | E114: =IF($C114="","",VLOOKUP($C114,'Plano de Contas'!$B$2:$E$200,3,FALSE)) -> PERMISSAO TRANSITO | F114: =IFERROR((SUMIFS(Arquivo!$F$2:$F$20000,Arquivo!$B$2:$B$20000,F$6,Arquivo!$C$2:$C$20000,G$6,Arquivo!$D$2:$D$20000,$C114)),0) -> 2535.78 | G114: 0.002639713987 | H114: =IFERROR((SUMIFS(Arquivo!$F$2:$F$20000,Arquivo!$B$2:$B$20000,H$6,Arquivo!$C$2:$C$20000,I$6,Arquivo!$D$2:$D$20000,$C114)),0) -> 1983.11 | I114: 0.002413922509 | J114: =IFERROR((SUMIFS(Arquivo!$F$2:$F$20000,Arquivo!$B$2:$B$20000,J$6,Arquivo!$C$2:$C$20000,K$6,Arquivo!$D$2:$D$20000,$C114)),0) -> 2860.88 | K114: 0.002161981937 | L114: =IFERROR((SUMIFS(Arquivo!$F$2:$F$20000,Arquivo!$B$2:$B$20000,L$6,Arquivo!$C$2:$C$20000,M$6,Arquivo!$D$2:$D$20000,$C114)),0) -> 2925.9 | M114: 0.002900023813 | N114: =IFERROR((SUMIFS(Arquivo!$F$2:$F$20000,Arquivo!$B$2:$B$20000,N$6,Arquivo!$C$2:$C$20000,O$6,Arquivo!$D$2:$D$20000,$C114)),0) -> 1788.05 | O114: 0.002221851924 | P114: =IFERROR((SUMIFS(Arquivo!$F$2:$F$20000,Arquivo!$B$2:$B$20000,P$6,Arquivo!$C$2:$C$20000,Q$6,Arquivo!$D$2:$D$20000,$C114)),0) -> 3543.59 | Q114: 0.004012357316 | R114: =IFERROR((SUMIFS(Arquivo!$F$2:$F$20000,Arquivo!$B$2:$B$20000,R$6,Arquivo!$C$2:$C$20000,S$6,Arquivo!$D$2:$D$20000,$C114)),0) -> 2925.9 | S114: 0.004809590974 | T114: =IFERROR((SUMIFS(Arquivo!$F$2:$F$20000,Arquivo!$B$2:$B$20000,T$6,Arquivo!$C$2:$C$20000,U$6,Arquivo!$D$2:$D$20000,$C114)),0) -> 0 | U114: 0 | V114: =IFERROR((SUMIFS(Arquivo!$F$2:$F$20000,Arquivo!$B$2:$B$20000,V$6,Arquivo!$C$2:$C$20000,W$6,Arquivo!$D$2:$D$20000,$C114)),0) -> 0 | W114: 0 | X114: =IFERROR((SUMIFS(Arquivo!$F$2:$F$20000,Arquivo!$B$2:$B$20000,X$6,Arquivo!$C$2:$C$20000,Y$6,Arquivo!$D$2:$D$20000,$C114)),0) -> 0 | Y114: 0 | Z114: =IFERROR((SUMIFS(Arquivo!$F$2:$F$20000,Arquivo!$B$2:$B$20000,Z$6,Arquivo!$C$2:$C$20000,AA$6,Arquivo!$D$2:$D$20000,$C114)),0) -> 0 | AA114: 0 | AB114: =IFERROR((SUMIFS(Arquivo!$F$2:$F$20000,Arquivo!$B$2:$B$20000,AB$6,Arquivo!$C$2:$C$20000,AC$6,Arquivo!$D$2:$D$20000,$C114)),0) -> 0 | AC114: 0 | AD114: 18563.21 | AE114: 0.002895696697 | AH114: X
C115: =IF('Plano de Contas'!B100="","",'Plano de Contas'!B100) -> 8.2.2.9 | D115: =IF($C115="","",VLOOKUP($C115,'Plano de Contas'!$B$2:$E$200,4,FALSE)) -> CV | E115: =IF($C115="","",VLOOKUP($C115,'Plano de Contas'!$B$2:$E$200,3,FALSE)) -> MANUTENCAO CAMINHAO HMG 0033 | F115: =IFERROR((SUMIFS(Arquivo!$F$2:$F$20000,Arquivo!$B$2:$B$20000,F$6,Arquivo!$C$2:$C$20000,G$6,Arquivo!$D$2:$D$20000,$C115)),0) -> 0 | G115: 0 | H115: =IFERROR((SUMIFS(Arquivo!$F$2:$F$20000,Arquivo!$B$2:$B$20000,H$6,Arquivo!$C$2:$C$20000,I$6,Arquivo!$D$2:$D$20000,$C115)),0) -> 0 | I115: 0 | J115: =IFERROR((SUMIFS(Arquivo!$F$2:$F$20000,Arquivo!$B$2:$B$20000,J$6,Arquivo!$C$2:$C$20000,K$6,Arquivo!$D$2:$D$20000,$C115)),0) -> 0 | K115: 0 | L115: =IFERROR((SUMIFS(Arquivo!$F$2:$F$20000,Arquivo!$B$2:$B$20000,L$6,Arquivo!$C$2:$C$20000,M$6,Arquivo!$D$2:$D$20000,$C115)),0) -> 0 | M115: 0 | N115: =IFERROR((SUMIFS(Arquivo!$F$2:$F$20000,Arquivo!$B$2:$B$20000,N$6,Arquivo!$C$2:$C$20000,O$6,Arquivo!$D$2:$D$20000,$C115)),0) -> 0 | O115: 0 | P115: =IFERROR((SUMIFS(Arquivo!$F$2:$F$20000,Arquivo!$B$2:$B$20000,P$6,Arquivo!$C$2:$C$20000,Q$6,Arquivo!$D$2:$D$20000,$C115)),0) -> 0 | Q115: 0 | R115: =IFERROR((SUMIFS(Arquivo!$F$2:$F$20000,Arquivo!$B$2:$B$20000,R$6,Arquivo!$C$2:$C$20000,S$6,Arquivo!$D$2:$D$20000,$C115)),0) -> 0 | S115: 0 | T115: =IFERROR((SUMIFS(Arquivo!$F$2:$F$20000,Arquivo!$B$2:$B$20000,T$6,Arquivo!$C$2:$C$20000,U$6,Arquivo!$D$2:$D$20000,$C115)),0) -> 0 | U115: 0 | V115: =IFERROR((SUMIFS(Arquivo!$F$2:$F$20000,Arquivo!$B$2:$B$20000,V$6,Arquivo!$C$2:$C$20000,W$6,Arquivo!$D$2:$D$20000,$C115)),0) -> 0 | W115: 0 | X115: =IFERROR((SUMIFS(Arquivo!$F$2:$F$20000,Arquivo!$B$2:$B$20000,X$6,Arquivo!$C$2:$C$20000,Y$6,Arquivo!$D$2:$D$20000,$C115)),0) -> 0 | Y115: 0 | Z115: =IFERROR((SUMIFS(Arquivo!$F$2:$F$20000,Arquivo!$B$2:$B$20000,Z$6,Arquivo!$C$2:$C$20000,AA$6,Arquivo!$D$2:$D$20000,$C115)),0) -> 0 | AA115: 0 | AB115: =IFERROR((SUMIFS(Arquivo!$F$2:$F$20000,Arquivo!$B$2:$B$20000,AB$6,Arquivo!$C$2:$C$20000,AC$6,Arquivo!$D$2:$D$20000,$C115)),0) -> 0 | AC115: 0 | AD115: 0 | AE115: 0
C116: =IF('Plano de Contas'!B101="","",'Plano de Contas'!B101) -> 8.2.2.10 | D116: =IF($C116="","",VLOOKUP($C116,'Plano de Contas'!$B$2:$E$200,4,FALSE)) -> CV | E116: =IF($C116="","",VLOOKUP($C116,'Plano de Contas'!$B$2:$E$200,3,FALSE)) -> MANUTENCAO CAMINHAO VW GMB-9576 | F116: =IFERROR((SUMIFS(Arquivo!$F$2:$F$20000,Arquivo!$B$2:$B$20000,F$6,Arquivo!$C$2:$C$20000,G$6,Arquivo!$D$2:$D$20000,$C116)),0) -> 0 | G116: 0 | H116: =IFERROR((SUMIFS(Arquivo!$F$2:$F$20000,Arquivo!$B$2:$B$20000,H$6,Arquivo!$C$2:$C$20000,I$6,Arquivo!$D$2:$D$20000,$C116)),0) -> 0 | I116: 0 | J116: =IFERROR((SUMIFS(Arquivo!$F$2:$F$20000,Arquivo!$B$2:$B$20000,J$6,Arquivo!$C$2:$C$20000,K$6,Arquivo!$D$2:$D$20000,$C116)),0) -> 0 | K116: 0 | L116: =IFERROR((SUMIFS(Arquivo!$F$2:$F$20000,Arquivo!$B$2:$B$20000,L$6,Arquivo!$C$2:$C$20000,M$6,Arquivo!$D$2:$D$20000,$C116)),0) -> 0 | M116: 0 | N116: =IFERROR((SUMIFS(Arquivo!$F$2:$F$20000,Arquivo!$B$2:$B$20000,N$6,Arquivo!$C$2:$C$20000,O$6,Arquivo!$D$2:$D$20000,$C116)),0) -> 0 | O116: 0 | P116: =IFERROR((SUMIFS(Arquivo!$F$2:$F$20000,Arquivo!$B$2:$B$20000,P$6,Arquivo!$C$2:$C$20000,Q$6,Arquivo!$D$2:$D$20000,$C116)),0) -> 0 | Q116: 0 | R116: =IFERROR((SUMIFS(Arquivo!$F$2:$F$20000,Arquivo!$B$2:$B$20000,R$6,Arquivo!$C$2:$C$20000,S$6,Arquivo!$D$2:$D$20000,$C116)),0) -> 0 | S116: 0 | T116: =IFERROR((SUMIFS(Arquivo!$F$2:$F$20000,Arquivo!$B$2:$B$20000,T$6,Arquivo!$C$2:$C$20000,U$6,Arquivo!$D$2:$D$20000,$C116)),0) -> 0 | U116: 0 | V116: =IFERROR((SUMIFS(Arquivo!$F$2:$F$20000,Arquivo!$B$2:$B$20000,V$6,Arquivo!$C$2:$C$20000,W$6,Arquivo!$D$2:$D$20000,$C116)),0) -> 0 | W116: 0 | X116: =IFERROR((SUMIFS(Arquivo!$F$2:$F$20000,Arquivo!$B$2:$B$20000,X$6,Arquivo!$C$2:$C$20000,Y$6,Arquivo!$D$2:$D$20000,$C116)),0) -> 0 | Y116: 0 | Z116: =IFERROR((SUMIFS(Arquivo!$F$2:$F$20000,Arquivo!$B$2:$B$20000,Z$6,Arquivo!$C$2:$C$20000,AA$6,Arquivo!$D$2:$D$20000,$C116)),0) -> 0 | AA116: 0 | AB116: =IFERROR((SUMIFS(Arquivo!$F$2:$F$20000,Arquivo!$B$2:$B$20000,AB$6,Arquivo!$C$2:$C$20000,AC$6,Arquivo!$D$2:$D$20000,$C116)),0) -> 0 | AC116: 0 | AD116: 0 | AE116: 0
C117: =IF('Plano de Contas'!B102="","",'Plano de Contas'!B102) -> 8.2.2.11 | D117: =IF($C117="","",VLOOKUP($C117,'Plano de Contas'!$B$2:$E$200,4,FALSE)) -> CV | E117: =IF($C117="","",VLOOKUP($C117,'Plano de Contas'!$B$2:$E$200,3,FALSE)) -> MANUTENCAO MOTO GVZ 8529 | F117: =IFERROR((SUMIFS(Arquivo!$F$2:$F$20000,Arquivo!$B$2:$B$20000,F$6,Arquivo!$C$2:$C$20000,G$6,Arquivo!$D$2:$D$20000,$C117)),0) -> 0 | G117: 0 | H117: =IFERROR((SUMIFS(Arquivo!$F$2:$F$20000,Arquivo!$B$2:$B$20000,H$6,Arquivo!$C$2:$C$20000,I$6,Arquivo!$D$2:$D$20000,$C117)),0) -> 0 | I117: 0 | J117: =IFERROR((SUMIFS(Arquivo!$F$2:$F$20000,Arquivo!$B$2:$B$20000,J$6,Arquivo!$C$2:$C$20000,K$6,Arquivo!$D$2:$D$20000,$C117)),0) -> 0 | K117: 0 | L117: =IFERROR((SUMIFS(Arquivo!$F$2:$F$20000,Arquivo!$B$2:$B$20000,L$6,Arquivo!$C$2:$C$20000,M$6,Arquivo!$D$2:$D$20000,$C117)),0) -> 0 | M117: 0 | N117: =IFERROR((SUMIFS(Arquivo!$F$2:$F$20000,Arquivo!$B$2:$B$20000,N$6,Arquivo!$C$2:$C$20000,O$6,Arquivo!$D$2:$D$20000,$C117)),0) -> 0 | O117: 0 | P117: =IFERROR((SUMIFS(Arquivo!$F$2:$F$20000,Arquivo!$B$2:$B$20000,P$6,Arquivo!$C$2:$C$20000,Q$6,Arquivo!$D$2:$D$20000,$C117)),0) -> 0 | Q117: 0 | R117: =IFERROR((SUMIFS(Arquivo!$F$2:$F$20000,Arquivo!$B$2:$B$20000,R$6,Arquivo!$C$2:$C$20000,S$6,Arquivo!$D$2:$D$20000,$C117)),0) -> 0 | S117: 0 | T117: =IFERROR((SUMIFS(Arquivo!$F$2:$F$20000,Arquivo!$B$2:$B$20000,T$6,Arquivo!$C$2:$C$20000,U$6,Arquivo!$D$2:$D$20000,$C117)),0) -> 0 | U117: 0 | V117: =IFERROR((SUMIFS(Arquivo!$F$2:$F$20000,Arquivo!$B$2:$B$20000,V$6,Arquivo!$C$2:$C$20000,W$6,Arquivo!$D$2:$D$20000,$C117)),0) -> 0 | W117: 0 | X117: =IFERROR((SUMIFS(Arquivo!$F$2:$F$20000,Arquivo!$B$2:$B$20000,X$6,Arquivo!$C$2:$C$20000,Y$6,Arquivo!$D$2:$D$20000,$C117)),0) -> 0 | Y117: 0 | Z117: =IFERROR((SUMIFS(Arquivo!$F$2:$F$20000,Arquivo!$B$2:$B$20000,Z$6,Arquivo!$C$2:$C$20000,AA$6,Arquivo!$D$2:$D$20000,$C117)),0) -> 0 | AA117: 0 | AB117: =IFERROR((SUMIFS(Arquivo!$F$2:$F$20000,Arquivo!$B$2:$B$20000,AB$6,Arquivo!$C$2:$C$20000,AC$6,Arquivo!$D$2:$D$20000,$C117)),0) -> 0 | AC117: 0 | AD117: 0 | AE117: 0
C118: =IF('Plano de Contas'!B103="","",'Plano de Contas'!B103) -> 8.2.2.12 | D118: =IF($C118="","",VLOOKUP($C118,'Plano de Contas'!$B$2:$E$200,4,FALSE)) -> CV | E118: =IF($C118="","",VLOOKUP($C118,'Plano de Contas'!$B$2:$E$200,3,FALSE)) -> MANUTENCAO MOTO HAC 6345 | F118: =IFERROR((SUMIFS(Arquivo!$F$2:$F$20000,Arquivo!$B$2:$B$20000,F$6,Arquivo!$C$2:$C$20000,G$6,Arquivo!$D$2:$D$20000,$C118)),0) -> 0 | G118: 0 | H118: =IFERROR((SUMIFS(Arquivo!$F$2:$F$20000,Arquivo!$B$2:$B$20000,H$6,Arquivo!$C$2:$C$20000,I$6,Arquivo!$D$2:$D$20000,$C118)),0) -> 0 | I118: 0 | J118: =IFERROR((SUMIFS(Arquivo!$F$2:$F$20000,Arquivo!$B$2:$B$20000,J$6,Arquivo!$C$2:$C$20000,K$6,Arquivo!$D$2:$D$20000,$C118)),0) -> 0 | K118: 0 | L118: =IFERROR((SUMIFS(Arquivo!$F$2:$F$20000,Arquivo!$B$2:$B$20000,L$6,Arquivo!$C$2:$C$20000,M$6,Arquivo!$D$2:$D$20000,$C118)),0) -> 0 | M118: 0 | N118: =IFERROR((SUMIFS(Arquivo!$F$2:$F$20000,Arquivo!$B$2:$B$20000,N$6,Arquivo!$C$2:$C$20000,O$6,Arquivo!$D$2:$D$20000,$C118)),0) -> 0 | O118: 0 | P118: =IFERROR((SUMIFS(Arquivo!$F$2:$F$20000,Arquivo!$B$2:$B$20000,P$6,Arquivo!$C$2:$C$20000,Q$6,Arquivo!$D$2:$D$20000,$C118)),0) -> 0 | Q118: 0 | R118: =IFERROR((SUMIFS(Arquivo!$F$2:$F$20000,Arquivo!$B$2:$B$20000,R$6,Arquivo!$C$2:$C$20000,S$6,Arquivo!$D$2:$D$20000,$C118)),0) -> 0 | S118: 0 | T118: =IFERROR((SUMIFS(Arquivo!$F$2:$F$20000,Arquivo!$B$2:$B$20000,T$6,Arquivo!$C$2:$C$20000,U$6,Arquivo!$D$2:$D$20000,$C118)),0) -> 0 | U118: 0 | V118: =IFERROR((SUMIFS(Arquivo!$F$2:$F$20000,Arquivo!$B$2:$B$20000,V$6,Arquivo!$C$2:$C$20000,W$6,Arquivo!$D$2:$D$20000,$C118)),0) -> 0 | W118: 0 | X118: =IFERROR((SUMIFS(Arquivo!$F$2:$F$20000,Arquivo!$B$2:$B$20000,X$6,Arquivo!$C$2:$C$20000,Y$6,Arquivo!$D$2:$D$20000,$C118)),0) -> 0 | Y118: 0 | Z118: =IFERROR((SUMIFS(Arquivo!$F$2:$F$20000,Arquivo!$B$2:$B$20000,Z$6,Arquivo!$C$2:$C$20000,AA$6,Arquivo!$D$2:$D$20000,$C118)),0) -> 0 | AA118: 0 | AB118: =IFERROR((SUMIFS(Arquivo!$F$2:$F$20000,Arquivo!$B$2:$B$20000,AB$6,Arquivo!$C$2:$C$20000,AC$6,Arquivo!$D$2:$D$20000,$C118)),0) -> 0 | AC118: 0 | AD118: 0 | AE118: 0
C119: =IF('Plano de Contas'!B104="","",'Plano de Contas'!B104) -> 8.2.2.13 | D119: =IF($C119="","",VLOOKUP($C119,'Plano de Contas'!$B$2:$E$200,4,FALSE)) -> CV | E119: =IF($C119="","",VLOOKUP($C119,'Plano de Contas'!$B$2:$E$200,3,FALSE)) -> MANUT. UNO MILLE EX PLACA GMG-8644 | F119: =IFERROR((SUMIFS(Arquivo!$F$2:$F$20000,Arquivo!$B$2:$B$20000,F$6,Arquivo!$C$2:$C$20000,G$6,Arquivo!$D$2:$D$20000,$C119)),0) -> 0 | G119: 0 | H119: =IFERROR((SUMIFS(Arquivo!$F$2:$F$20000,Arquivo!$B$2:$B$20000,H$6,Arquivo!$C$2:$C$20000,I$6,Arquivo!$D$2:$D$20000,$C119)),0) -> 0 | I119: 0 | J119: =IFERROR((SUMIFS(Arquivo!$F$2:$F$20000,Arquivo!$B$2:$B$20000,J$6,Arquivo!$C$2:$C$20000,K$6,Arquivo!$D$2:$D$20000,$C119)),0) -> 0 | K119: 0 | L119: =IFERROR((SUMIFS(Arquivo!$F$2:$F$20000,Arquivo!$B$2:$B$20000,L$6,Arquivo!$C$2:$C$20000,M$6,Arquivo!$D$2:$D$20000,$C119)),0) -> 0 | M119: 0 | N119: =IFERROR((SUMIFS(Arquivo!$F$2:$F$20000,Arquivo!$B$2:$B$20000,N$6,Arquivo!$C$2:$C$20000,O$6,Arquivo!$D$2:$D$20000,$C119)),0) -> 0 | O119: 0 | P119: =IFERROR((SUMIFS(Arquivo!$F$2:$F$20000,Arquivo!$B$2:$B$20000,P$6,Arquivo!$C$2:$C$20000,Q$6,Arquivo!$D$2:$D$20000,$C119)),0) -> 0 | Q119: 0 | R119: =IFERROR((SUMIFS(Arquivo!$F$2:$F$20000,Arquivo!$B$2:$B$20000,R$6,Arquivo!$C$2:$C$20000,S$6,Arquivo!$D$2:$D$20000,$C119)),0) -> 0 | S119: 0 | T119: =IFERROR((SUMIFS(Arquivo!$F$2:$F$20000,Arquivo!$B$2:$B$20000,T$6,Arquivo!$C$2:$C$20000,U$6,Arquivo!$D$2:$D$20000,$C119)),0) -> 0 | U119: 0 | V119: =IFERROR((SUMIFS(Arquivo!$F$2:$F$20000,Arquivo!$B$2:$B$20000,V$6,Arquivo!$C$2:$C$20000,W$6,Arquivo!$D$2:$D$20000,$C119)),0) -> 0 | W119: 0 | X119: =IFERROR((SUMIFS(Arquivo!$F$2:$F$20000,Arquivo!$B$2:$B$20000,X$6,Arquivo!$C$2:$C$20000,Y$6,Arquivo!$D$2:$D$20000,$C119)),0) -> 0 | Y119: 0 | Z119: =IFERROR((SUMIFS(Arquivo!$F$2:$F$20000,Arquivo!$B$2:$B$20000,Z$6,Arquivo!$C$2:$C$20000,AA$6,Arquivo!$D$2:$D$20000,$C119)),0) -> 0 | AA119: 0 | AB119: =IFERROR((SUMIFS(Arquivo!$F$2:$F$20000,Arquivo!$B$2:$B$20000,AB$6,Arquivo!$C$2:$C$20000,AC$6,Arquivo!$D$2:$D$20000,$C119)),0) -> 0 | AC119: 0 | AD119: 0 | AE119: 0
C120: =IF('Plano de Contas'!B105="","",'Plano de Contas'!B105) -> 8.2.2.14 | D120: =IF($C120="","",VLOOKUP($C120,'Plano de Contas'!$B$2:$E$200,4,FALSE)) -> CV | E120: =IF($C120="","",VLOOKUP($C120,'Plano de Contas'!$B$2:$E$200,3,FALSE)) -> MANUTENCAO MOTO HAW 9706 | F120: =IFERROR((SUMIFS(Arquivo!$F$2:$F$20000,Arquivo!$B$2:$B$20000,F$6,Arquivo!$C$2:$C$20000,G$6,Arquivo!$D$2:$D$20000,$C120)),0) -> 0 | G120: 0 | H120: =IFERROR((SUMIFS(Arquivo!$F$2:$F$20000,Arquivo!$B$2:$B$20000,H$6,Arquivo!$C$2:$C$20000,I$6,Arquivo!$D$2:$D$20000,$C120)),0) -> 0 | I120: 0 | J120: =IFERROR((SUMIFS(Arquivo!$F$2:$F$20000,Arquivo!$B$2:$B$20000,J$6,Arquivo!$C$2:$C$20000,K$6,Arquivo!$D$2:$D$20000,$C120)),0) -> 0 | K120: 0 | L120: =IFERROR((SUMIFS(Arquivo!$F$2:$F$20000,Arquivo!$B$2:$B$20000,L$6,Arquivo!$C$2:$C$20000,M$6,Arquivo!$D$2:$D$20000,$C120)),0) -> 0 | M120: 0 | N120: =IFERROR((SUMIFS(Arquivo!$F$2:$F$20000,Arquivo!$B$2:$B$20000,N$6,Arquivo!$C$2:$C$20000,O$6,Arquivo!$D$2:$D$20000,$C120)),0) -> 0 | O120: 0 | P120: =IFERROR((SUMIFS(Arquivo!$F$2:$F$20000,Arquivo!$B$2:$B$20000,P$6,Arquivo!$C$2:$C$20000,Q$6,Arquivo!$D$2:$D$20000,$C120)),0) -> 0 | Q120: 0 | R120: =IFERROR((SUMIFS(Arquivo!$F$2:$F$20000,Arquivo!$B$2:$B$20000,R$6,Arquivo!$C$2:$C$20000,S$6,Arquivo!$D$2:$D$20000,$C120)),0) -> 0 | S120: 0 | T120: =IFERROR((SUMIFS(Arquivo!$F$2:$F$20000,Arquivo!$B$2:$B$20000,T$6,Arquivo!$C$2:$C$20000,U$6,Arquivo!$D$2:$D$20000,$C120)),0) -> 0 | U120: 0 | V120: =IFERROR((SUMIFS(Arquivo!$F$2:$F$20000,Arquivo!$B$2:$B$20000,V$6,Arquivo!$C$2:$C$20000,W$6,Arquivo!$D$2:$D$20000,$C120)),0) -> 0 | W120: 0 | X120: =IFERROR((SUMIFS(Arquivo!$F$2:$F$20000,Arquivo!$B$2:$B$20000,X$6,Arquivo!$C$2:$C$20000,Y$6,Arquivo!$D$2:$D$20000,$C120)),0) -> 0 | Y120: 0 | Z120: =IFERROR((SUMIFS(Arquivo!$F$2:$F$20000,Arquivo!$B$2:$B$20000,Z$6,Arquivo!$C$2:$C$20000,AA$6,Arquivo!$D$2:$D$20000,$C120)),0) -> 0 | AA120: 0 | AB120: =IFERROR((SUMIFS(Arquivo!$F$2:$F$20000,Arquivo!$B$2:$B$20000,AB$6,Arquivo!$C$2:$C$20000,AC$6,Arquivo!$D$2:$D$20000,$C120)),0) -> 0 | AC120: 0 | AD120: 0 | AE120: 0
C121: =IF('Plano de Contas'!B106="","",'Plano de Contas'!B106) -> 8.2.2.16 | D121: =IF($C121="","",VLOOKUP($C121,'Plano de Contas'!$B$2:$E$200,4,FALSE)) -> CV | E121: =IF($C121="","",VLOOKUP($C121,'Plano de Contas'!$B$2:$E$200,3,FALSE)) -> COMBUSTIVEL (OLEO DIESEL) | F121: =IFERROR((SUMIFS(Arquivo!$F$2:$F$20000,Arquivo!$B$2:$B$20000,F$6,Arquivo!$C$2:$C$20000,G$6,Arquivo!$D$2:$D$20000,$C121)),0) -> 666.6 | G121: 0.0006939219268 | H121: =IFERROR((SUMIFS(Arquivo!$F$2:$F$20000,Arquivo!$B$2:$B$20000,H$6,Arquivo!$C$2:$C$20000,I$6,Arquivo!$D$2:$D$20000,$C121)),0) -> 1135.6 | I121: 0.001382298713 | J121: =IFERROR((SUMIFS(Arquivo!$F$2:$F$20000,Arquivo!$B$2:$B$20000,J$6,Arquivo!$C$2:$C$20000,K$6,Arquivo!$D$2:$D$20000,$C121)),0) -> 1931.2 | K121: 0.001459417912 | L121: =IFERROR((SUMIFS(Arquivo!$F$2:$F$20000,Arquivo!$B$2:$B$20000,L$6,Arquivo!$C$2:$C$20000,M$6,Arquivo!$D$2:$D$20000,$C121)),0) -> 1376.85 | M121: 0.001364673361 | N121: =IFERROR((SUMIFS(Arquivo!$F$2:$F$20000,Arquivo!$B$2:$B$20000,N$6,Arquivo!$C$2:$C$20000,O$6,Arquivo!$D$2:$D$20000,$C121)),0) -> 885.6 | O121: 0.001100456958 | P121: =IFERROR((SUMIFS(Arquivo!$F$2:$F$20000,Arquivo!$B$2:$B$20000,P$6,Arquivo!$C$2:$C$20000,Q$6,Arquivo!$D$2:$D$20000,$C121)),0) -> 1314.8 | Q121: 0.001488729622 | R121: =IFERROR((SUMIFS(Arquivo!$F$2:$F$20000,Arquivo!$B$2:$B$20000,R$6,Arquivo!$C$2:$C$20000,S$6,Arquivo!$D$2:$D$20000,$C121)),0) -> 900.6 | S121: 0.001480405219 | T121: =IFERROR((SUMIFS(Arquivo!$F$2:$F$20000,Arquivo!$B$2:$B$20000,T$6,Arquivo!$C$2:$C$20000,U$6,Arquivo!$D$2:$D$20000,$C121)),0) -> 0 | U121: 0 | V121: =IFERROR((SUMIFS(Arquivo!$F$2:$F$20000,Arquivo!$B$2:$B$20000,V$6,Arquivo!$C$2:$C$20000,W$6,Arquivo!$D$2:$D$20000,$C121)),0) -> 0 | W121: 0 | X121: =IFERROR((SUMIFS(Arquivo!$F$2:$F$20000,Arquivo!$B$2:$B$20000,X$6,Arquivo!$C$2:$C$20000,Y$6,Arquivo!$D$2:$D$20000,$C121)),0) -> 0 | Y121: 0 | Z121: =IFERROR((SUMIFS(Arquivo!$F$2:$F$20000,Arquivo!$B$2:$B$20000,Z$6,Arquivo!$C$2:$C$20000,AA$6,Arquivo!$D$2:$D$20000,$C121)),0) -> 0 | AA121: 0 | AB121: =IFERROR((SUMIFS(Arquivo!$F$2:$F$20000,Arquivo!$B$2:$B$20000,AB$6,Arquivo!$C$2:$C$20000,AC$6,Arquivo!$D$2:$D$20000,$C121)),0) -> 0 | AC121: 0 | AD121: 8211.25 | AE121: 0.001280882428 | AH121: X
C122: =IF('Plano de Contas'!B107="","",'Plano de Contas'!B107) -> 8.2.2.17 | D122: =IF($C122="","",VLOOKUP($C122,'Plano de Contas'!$B$2:$E$200,4,FALSE)) -> CV | E122: =IF($C122="","",VLOOKUP($C122,'Plano de Contas'!$B$2:$E$200,3,FALSE)) -> COMBUSTIVEL TERCEIROS | F122: =IFERROR((SUMIFS(Arquivo!$F$2:$F$20000,Arquivo!$B$2:$B$20000,F$6,Arquivo!$C$2:$C$20000,G$6,Arquivo!$D$2:$D$20000,$C122)),0) -> 0 | G122: 0 | H122: =IFERROR((SUMIFS(Arquivo!$F$2:$F$20000,Arquivo!$B$2:$B$20000,H$6,Arquivo!$C$2:$C$20000,I$6,Arquivo!$D$2:$D$20000,$C122)),0) -> 2040 | I122: 0.002483171341 | J122: =IFERROR((SUMIFS(Arquivo!$F$2:$F$20000,Arquivo!$B$2:$B$20000,J$6,Arquivo!$C$2:$C$20000,K$6,Arquivo!$D$2:$D$20000,$C122)),0) -> 7167.2 | K122: 0.00541629042 | L122: =IFERROR((SUMIFS(Arquivo!$F$2:$F$20000,Arquivo!$B$2:$B$20000,L$6,Arquivo!$C$2:$C$20000,M$6,Arquivo!$D$2:$D$20000,$C122)),0) -> 4723.5 | M122: 0.004681726128 | N122: =IFERROR((SUMIFS(Arquivo!$F$2:$F$20000,Arquivo!$B$2:$B$20000,N$6,Arquivo!$C$2:$C$20000,O$6,Arquivo!$D$2:$D$20000,$C122)),0) -> 781.2 | O122: 0.0009707282923 | P122: =IFERROR((SUMIFS(Arquivo!$F$2:$F$20000,Arquivo!$B$2:$B$20000,P$6,Arquivo!$C$2:$C$20000,Q$6,Arquivo!$D$2:$D$20000,$C122)),0) -> 2394 | Q122: 0.002710692664 | R122: =IFERROR((SUMIFS(Arquivo!$F$2:$F$20000,Arquivo!$B$2:$B$20000,R$6,Arquivo!$C$2:$C$20000,S$6,Arquivo!$D$2:$D$20000,$C122)),0) -> 0 | S122: 0 | T122: =IFERROR((SUMIFS(Arquivo!$F$2:$F$20000,Arquivo!$B$2:$B$20000,T$6,Arquivo!$C$2:$C$20000,U$6,Arquivo!$D$2:$D$20000,$C122)),0) -> 0 | U122: 0 | V122: =IFERROR((SUMIFS(Arquivo!$F$2:$F$20000,Arquivo!$B$2:$B$20000,V$6,Arquivo!$C$2:$C$20000,W$6,Arquivo!$D$2:$D$20000,$C122)),0) -> 0 | W122: 0 | X122: =IFERROR((SUMIFS(Arquivo!$F$2:$F$20000,Arquivo!$B$2:$B$20000,X$6,Arquivo!$C$2:$C$20000,Y$6,Arquivo!$D$2:$D$20000,$C122)),0) -> 0 | Y122: 0 | Z122: =IFERROR((SUMIFS(Arquivo!$F$2:$F$20000,Arquivo!$B$2:$B$20000,Z$6,Arquivo!$C$2:$C$20000,AA$6,Arquivo!$D$2:$D$20000,$C122)),0) -> 0 | AA122: 0 | AB122: =IFERROR((SUMIFS(Arquivo!$F$2:$F$20000,Arquivo!$B$2:$B$20000,AB$6,Arquivo!$C$2:$C$20000,AC$6,Arquivo!$D$2:$D$20000,$C122)),0) -> 0 | AC122: 0 | AD122: 17105.9 | AE122: 0.002668369217 | AH122: X
C123: =IF('Plano de Contas'!B108="","",'Plano de Contas'!B108) -> 8.2.2.18 | D123: =IF($C123="","",VLOOKUP($C123,'Plano de Contas'!$B$2:$E$200,4,FALSE)) -> CV | E123: =IF($C123="","",VLOOKUP($C123,'Plano de Contas'!$B$2:$E$200,3,FALSE)) -> MANUTENCAO MOTO HBT-8219 | F123: =IFERROR((SUMIFS(Arquivo!$F$2:$F$20000,Arquivo!$B$2:$B$20000,F$6,Arquivo!$C$2:$C$20000,G$6,Arquivo!$D$2:$D$20000,$C123)),0) -> 0 | G123: 0 | H123: =IFERROR((SUMIFS(Arquivo!$F$2:$F$20000,Arquivo!$B$2:$B$20000,H$6,Arquivo!$C$2:$C$20000,I$6,Arquivo!$D$2:$D$20000,$C123)),0) -> 0 | I123: 0 | J123: =IFERROR((SUMIFS(Arquivo!$F$2:$F$20000,Arquivo!$B$2:$B$20000,J$6,Arquivo!$C$2:$C$20000,K$6,Arquivo!$D$2:$D$20000,$C123)),0) -> 0 | K123: 0 | L123: =IFERROR((SUMIFS(Arquivo!$F$2:$F$20000,Arquivo!$B$2:$B$20000,L$6,Arquivo!$C$2:$C$20000,M$6,Arquivo!$D$2:$D$20000,$C123)),0) -> 0 | M123: 0 | N123: =IFERROR((SUMIFS(Arquivo!$F$2:$F$20000,Arquivo!$B$2:$B$20000,N$6,Arquivo!$C$2:$C$20000,O$6,Arquivo!$D$2:$D$20000,$C123)),0) -> 0 | O123: 0 | P123: =IFERROR((SUMIFS(Arquivo!$F$2:$F$20000,Arquivo!$B$2:$B$20000,P$6,Arquivo!$C$2:$C$20000,Q$6,Arquivo!$D$2:$D$20000,$C123)),0) -> 0 | Q123: 0 | R123: =IFERROR((SUMIFS(Arquivo!$F$2:$F$20000,Arquivo!$B$2:$B$20000,R$6,Arquivo!$C$2:$C$20000,S$6,Arquivo!$D$2:$D$20000,$C123)),0) -> 0 | S123: 0 | T123: =IFERROR((SUMIFS(Arquivo!$F$2:$F$20000,Arquivo!$B$2:$B$20000,T$6,Arquivo!$C$2:$C$20000,U$6,Arquivo!$D$2:$D$20000,$C123)),0) -> 0 | U123: 0 | V123: =IFERROR((SUMIFS(Arquivo!$F$2:$F$20000,Arquivo!$B$2:$B$20000,V$6,Arquivo!$C$2:$C$20000,W$6,Arquivo!$D$2:$D$20000,$C123)),0) -> 0 | W123: 0 | X123: =IFERROR((SUMIFS(Arquivo!$F$2:$F$20000,Arquivo!$B$2:$B$20000,X$6,Arquivo!$C$2:$C$20000,Y$6,Arquivo!$D$2:$D$20000,$C123)),0) -> 0 | Y123: 0 | Z123: =IFERROR((SUMIFS(Arquivo!$F$2:$F$20000,Arquivo!$B$2:$B$20000,Z$6,Arquivo!$C$2:$C$20000,AA$6,Arquivo!$D$2:$D$20000,$C123)),0) -> 0 | AA123: 0 | AB123: =IFERROR((SUMIFS(Arquivo!$F$2:$F$20000,Arquivo!$B$2:$B$20000,AB$6,Arquivo!$C$2:$C$20000,AC$6,Arquivo!$D$2:$D$20000,$C123)),0) -> 0 | AC123: 0 | AD123: 0 | AE123: 0
C124: =IF('Plano de Contas'!B109="","",'Plano de Contas'!B109) -> 8.2.2.19 | D124: =IF($C124="","",VLOOKUP($C124,'Plano de Contas'!$B$2:$E$200,4,FALSE)) -> CV | E124: =IF($C124="","",VLOOKUP($C124,'Plano de Contas'!$B$2:$E$200,3,FALSE)) -> MANUTENCAO CAMINHAO GUR 3478 | F124: =IFERROR((SUMIFS(Arquivo!$F$2:$F$20000,Arquivo!$B$2:$B$20000,F$6,Arquivo!$C$2:$C$20000,G$6,Arquivo!$D$2:$D$20000,$C124)),0) -> 0 | G124: 0 | H124: =IFERROR((SUMIFS(Arquivo!$F$2:$F$20000,Arquivo!$B$2:$B$20000,H$6,Arquivo!$C$2:$C$20000,I$6,Arquivo!$D$2:$D$20000,$C124)),0) -> 0 | I124: 0 | J124: =IFERROR((SUMIFS(Arquivo!$F$2:$F$20000,Arquivo!$B$2:$B$20000,J$6,Arquivo!$C$2:$C$20000,K$6,Arquivo!$D$2:$D$20000,$C124)),0) -> 0 | K124: 0 | L124: =IFERROR((SUMIFS(Arquivo!$F$2:$F$20000,Arquivo!$B$2:$B$20000,L$6,Arquivo!$C$2:$C$20000,M$6,Arquivo!$D$2:$D$20000,$C124)),0) -> 0 | M124: 0 | N124: =IFERROR((SUMIFS(Arquivo!$F$2:$F$20000,Arquivo!$B$2:$B$20000,N$6,Arquivo!$C$2:$C$20000,O$6,Arquivo!$D$2:$D$20000,$C124)),0) -> 0 | O124: 0 | P124: =IFERROR((SUMIFS(Arquivo!$F$2:$F$20000,Arquivo!$B$2:$B$20000,P$6,Arquivo!$C$2:$C$20000,Q$6,Arquivo!$D$2:$D$20000,$C124)),0) -> 0 | Q124: 0 | R124: =IFERROR((SUMIFS(Arquivo!$F$2:$F$20000,Arquivo!$B$2:$B$20000,R$6,Arquivo!$C$2:$C$20000,S$6,Arquivo!$D$2:$D$20000,$C124)),0) -> 0 | S124: 0 | T124: =IFERROR((SUMIFS(Arquivo!$F$2:$F$20000,Arquivo!$B$2:$B$20000,T$6,Arquivo!$C$2:$C$20000,U$6,Arquivo!$D$2:$D$20000,$C124)),0) -> 0 | U124: 0 | V124: =IFERROR((SUMIFS(Arquivo!$F$2:$F$20000,Arquivo!$B$2:$B$20000,V$6,Arquivo!$C$2:$C$20000,W$6,Arquivo!$D$2:$D$20000,$C124)),0) -> 0 | W124: 0 | X124: =IFERROR((SUMIFS(Arquivo!$F$2:$F$20000,Arquivo!$B$2:$B$20000,X$6,Arquivo!$C$2:$C$20000,Y$6,Arquivo!$D$2:$D$20000,$C124)),0) -> 0 | Y124: 0 | Z124: =IFERROR((SUMIFS(Arquivo!$F$2:$F$20000,Arquivo!$B$2:$B$20000,Z$6,Arquivo!$C$2:$C$20000,AA$6,Arquivo!$D$2:$D$20000,$C124)),0) -> 0 | AA124: 0 | AB124: =IFERROR((SUMIFS(Arquivo!$F$2:$F$20000,Arquivo!$B$2:$B$20000,AB$6,Arquivo!$C$2:$C$20000,AC$6,Arquivo!$D$2:$D$20000,$C124)),0) -> 0 | AC124: 0 | AD124: 0 | AE124: 0
